Workbook

Sheet СВОД
C13: Сметный расчет | D13: НАИМЕНОВАНИЕ ПРОЕКТА
B14: ФИО
B15: Дата | C15: =TODAY() -> 2024-02-02
A17: 1/0(да/нет) | C17: Этапы выполнения работ: | D17: Отделочные работы | E17: Инженерные коммуникации | H17: Издержки (руб) | I17: Рента %
B18: 1 | C18: Внешняя покраска | H18: 0 | I18: =(D18-H18)/D18 -> 
B19: 2 | C19: Подготовительный этап черновой отделки под ОВВК и ЭОМ | H19: 0 | I19: =(D19-H19)/D19 -> 
B20: 3 | C20: Приточно-вытяжная система вентиляции | H20: 0 | I20: =(D20-H20)/D20 -> 
A21: 1 | B21: 4 | C21: Монтаж системы ОВиВК REHAU | E21: =IF(A21=1,'ОВиВК REHAU'!F105,0) -> 77289.23077 | H21: =IF(A21=1,'ОВиВК REHAU'!M105+'ОВиВК REHAU'!L105,0) -> 52818.31662 | I21: =(E21-H21)/E21 -> 0.3166147975
A22: 1 | B22: 4 | C22: Монтаж системы ОВиВК ТЕСЕ | E22: =IF(A22=1,'ОВиВК ТЕСЕ'!F110,0) -> 77289.23077 | H22: =IF(A22=1,'ОВиВК ТЕСЕ'!L105,0) -> 52818 | I22: =(E22-H22)/E22 -> 0.3166188941
A23: 1 | B23: 4 | C23: Монтаж системы ОВиВК Stout | E23: =IF(A23=1,'ОВиВК Stout'!F106,0) -> 77289.23077 | H23: =IF(A23=1,'ОВиВК Stout'!L101,0) -> 52818 | I23: =(E23-H23)/E23 -> 0.3166188941
A24: 1 | B24: 5 | C24: Монтаж внешней вентиляции | E24: =IF(A24=1,'ОВиВК ТЕСЕ'!F112+'Вентиляция (Приточная)'!F79,0) -> 33000 | H24: =IF(A25=1,'Вентиляция (Приточная)'!L77,0) -> 22000 | I24: =(E24-H24)/E24 -> 0.3333333333
A25: 1 | B25: 6 | C25: Монтаж системы ЭОМ | E25: =IF(A25=1,Электрика!F95,0) -> 64800 | H25: =IF(A24=1,Электрика!L92,0) -> 44700 | I25: =(E25-H25)/E25 -> 0.3101851852
B26: 7 | C26: Отделочные черновые работы и материалы (Полы) | H26: 0 | I26: =(D26-H26)/D26 -> 
A27: 1 | B27: 8 | C27: Монтаж теплого пола REHAU | E27: =IF(A27=1,'ТП REHAU'!F96,0) -> 51000 | H27: =IF(A27=1,'ТП REHAU'!L96,0) -> 34500 | I27: =(E27-H27)/E27 -> 0.3235294118
A28: 1 | B28: 8 | C28: Монтаж теплого пола ТЕСЕ | E28: =IF(A28=1,'ТП ТЕСЕ'!F98,0) -> 51000 | H28: =IF(A28=1,'ТП ТЕСЕ'!L96,0) -> 34500 | I28: =(E28-H28)/E28 -> 0.3235294118
A29: 1 | B29: 8 | C29: Монтаж теплого пола Stout | E29: =IF(A29=1,'ТП Stout '!F98,0) -> 51000 | H29: =IF(A29=1,'ТП Stout '!L96,0) -> 34500 | I29: 0.3235294118
B30: 9 | C30: Отделочные черновые работы и материалы (Стяжка) | H30: 0 | I30: =(D30-H30)/D30 -> 
B31: 10 | C31: Штукатурка внутренняя | H31: 0 | I31: =(E31-H31)/E31 -> 
B32: 11 | C32: Отделочные черновые работы и материалы (Стены) | H32: 0 | I32: =(E32-H32)/E32 -> 
B33: 11 | C33: Отделка потолок | H33: 0 | I33: =(E33-H33)/E33 -> 
B34: 12 | C34: Финишные отделочные работы (Отделка котельной) | H34: 0 | I34: =(E34-H34)/E34 -> 
A35: 1 | B35: 13 | C35: Монтаж котельного оборудования PPR Б | E35: =IF(A35=1,'Кот PPR (бюджет)'!F70,0) -> 101425.0811 | H35: =IF(A35=1,'Кот PPR (бюджет)'!L68,0) -> 75762.995 | I35: =(E35-H35)/E35 -> 0.2530151894
A36: 1 | B36: 13 | C36: Монтаж котельного оборудования PPR | E36: =IF(A36=1,'Кот ППР 23'!F74,0) -> 101639.9683 | H36: =IF(A36=1,'Кот ППР 23'!L72,0) -> 75810.045 | I36: 0.2541315558
A37: 1 | B37: 13 | C37: Монтаж котельного оборудования Медь | E37: =IF(A37=1,'Кот Медь 23'!F74,0) -> 103061.675 | H37: =IF(A37=1,'Кот Медь 23'!L72,0) -> 77149.045 | I37: 0.2514283804
B38: 14 | C38: Имитация бруса изготовление | H38: 0 | I38: =(E38-H38)/E38 -> 
B39: 15 | C39: Имитация бруса монтаж | H39: 0 | I39: =(E39-H39)/E39 -> 
B40: 16 | C40: Внутренняя покраска | H40: 0
B41: 17 | C41: Внешняя штукатурка | H41: 0
B42: 18 | C42: Чистовые отделочные работы и материалы (Ограждения) | H42: 0
C43: Стоимость отделочных работ: | D43: =D18+D19+D26+D30+D31+D32+D33+D34+D38+D39+D40+D41+D42 -> 0
C44: Стоимость инженерных коммуникаций: | E44: =E20+E22+E23+E24+E25+E28+E29+E35+E36+E37+E27+E21 -> 788794.4167 | I44: сумма по дог-ру | J44: издержки | K44: рента % по договору
C45: Итого : | D45: =D43+E44 -> 788794.4167 | I45: =D45 -> 788794.4167 | J45: =SUM(H18:H42) -> 557376.4016 | K45: =(I45-J45)/I45 -> 0.2933819132
B47: Данный сметный расчёт действителен 7 календарных дней. По истечению срока, цены могут быть изменены.
I53: =IF(C53=0,"",(C53-G53)/C53) -> 
I54: =IF(C54=0,"",(C54-G54)/C54) -> 
I55: =IF(C55=0,"",(C55-G55)/C55) -> 

Sheet Плановые
B1: материал | C1: бригада | D1: прораб | E1: перевозка | F1: доп.расходы | G1: Итого (проверка)
A2: ОВиВК ТЕСЕ | B2: ='ОВиВК ТЕСЕ'!I105 -> 0 | C2: ='ОВиВК ТЕСЕ'!J105 -> 8765 | D2: ='ОВиВК ТЕСЕ'!K105 -> 22053 | E2: ='ОВиВК ТЕСЕ'!L103 -> 10000 | F2: ='ОВиВК ТЕСЕ'!L102+'ОВиВК ТЕСЕ'!L104 -> 12000 | G2: =SUM(B2:F2) -> 52818
A3: ОВиВК Стаут | B3: ='ОВиВК Stout'!I101 -> 0 | C3: ='ОВиВК Stout'!J101 -> 8765 | D3: ='ОВиВК Stout'!K101 -> 22053 | E3: ='ОВиВК Stout'!L99 -> 10000 | F3: ='ОВиВК Stout'!L98+'ОВиВК Stout'!L100 -> 12000 | G3: =SUM(B3:F3) -> 52818
A4: Вентиляция | D4: ='Вентиляция (Приточная)'!I77+'Вентиляция (Приточная)'!K77 -> 10000 | F4: ='Вентиляция (Приточная)'!J77+'Вентиляция (Приточная)'!L74 -> 12000 | G4: 22000
A5: Электрика | B5: =Электрика!I92 -> 0 | C5: =Электрика!J92 -> 2000 | D5: =Электрика!K92 -> 20700 | E5: =Электрика!L90 -> 10000 | F5: =Электрика!L89+Электрика!L91 -> 12000 | G5: 44700
A6: ТП ТЕСЕ | B6: ='ТП ТЕСЕ'!I96 -> 0 | C6: ='ТП ТЕСЕ'!J96 -> 2000 | D6: ='ТП ТЕСЕ'!K96 -> 10500 | E6: ='ТП ТЕСЕ'!L94 -> 10000 | F6: ='ТП ТЕСЕ'!L93+'ТП ТЕСЕ'!L95 -> 12000 | G6: 34500
A7: ТП Стаут | B7: ='ТП Stout '!I96 -> 0 | C7: ='ТП Stout '!J96 -> 2000 | D7: ='ТП Stout '!K96 -> 10500 | E7: ='ТП Stout '!L94 -> 10000 | F7: ='ТП Stout '!L93+'ТП Stout '!L95 -> 12000 | G7: 34500
A8: Котельная бюджет | B8: ='Кот PPR (бюджет)'!I68 -> 38978.95 | C8: ='Кот PPR (бюджет)'!J68 -> 8990.4625 | D8: ='Кот PPR (бюджет)'!K68 -> 5793.5825 | E8: ='Кот PPR (бюджет)'!L66 -> 10000 | F8: ='Кот PPR (бюджет)'!L65+'Кот PPR (бюджет)'!L67 -> 12000 | G8: 75762.995
A9: Котельная ППР | B9: ='Кот ППР 23'!I72 -> 39026 | C9: ='Кот ППР 23'!J72 -> 8990.4625 | D9: ='Кот ППР 23'!K72 -> 5793.5825 | E9: ='Кот ППР 23'!L70 -> 10000 | F9: ='Кот ППР 23'!L69+'Кот ППР 23'!L71 -> 12000 | G9: 75810.045
A10: Котельная Медь | B10: ='Кот Медь 23'!I72 -> 40365 | C10: ='Кот Медь 23'!J72 -> 8990.4625 | D10: ='Кот Медь 23'!K72 -> 5793.5825 | E10: ='Кот Медь 23'!L70 -> 10000 | F10: ='Кот Медь 23'!L69+'Кот Медь 23'!L71 -> 12000 | G10: 77149.045

Sheet ОВиВК REHAU
A1: Приложение № к Договору подряда № ______________от_____________ | I1: курс € | J1: КОЭФ для ренты | K1: КОЭФ для ренты
A2: =TODAY() -> 2024-02-02 | B2: Данный сметный расчёт действителен 7 календарных дней. По истечению срока, цены могут быть изменены. | I2: 100 | J2: 0.65 | K2: 0.6
A3: Сметный расчет ОиВК REHAU
A4: Теплотрасса | I4: =РАБОТЫ!A1 -> Дата
A5: Материалы/услуги | B5: Описание | C5: Кол-во | D5: Ед.изм | E5: Мат-ал, руб | F5: Работа, руб | G5: Итого, руб | I5: Материал | J5: Бригада | K5: Прораб | L5: Итого | M5: Рента
A6: Теплотрасса | B6: Трубопровод USYSTEMS Ecoflex Quattro труба 2x25x2,3-2x25х3,5 /175 совмещает в себе трубы для систем горячего водоснабжения и теплоснабжения. | D6: пог.м | E6: =(I6/$J$2)*$J$117 -> 0 | F6: =((J6+K6)/$J$2)*$K$117 -> 0 | G6: =F6+E6 -> 0 | I6: =$C6*(УЗЛЫ!C2)*L117 -> 0 | J6: =$C6*РАБОТЫ!C5*M117 -> 0 | K6: =$C6*РАБОТЫ!D5*M117 -> 0 | L6: =SUM(I6:K6) -> 0 | M6: =IF(G6=0,"",(G6-L6)/G6) -> 
B7: Трубопровод USYSTEMS Ecoflex Quattro труба 2x32x2,9-2x25х3,5 /175 совмещает в себе трубы для систем горячего водоснабжения и теплоснабжения. | D7: пог.м | E7: 0 | F7: 0 | G7: 0 | I7: =$C7* (УЗЛЫ!C3)*L117 -> 0 | J7: =$C7*РАБОТЫ!C5*M117 -> 0 | K7: =$C7*РАБОТЫ!D5*M117 -> 0 | L7: 0
B8: Трубопровод USYSTEMS Ecoflex Varia Twin PN6 25x2.3 25x2.3 140 для водоснабжения и теплоснабжения. | D8: пог.м | E8: 0 | F8: 0 | G8: 0 | I8: =$C8* (УЗЛЫ!C4)*L117 -> 0 | J8: =$C8*РАБОТЫ!C5*M117 -> 0 | K8: =$C8*РАБОТЫ!D5*M117 -> 0 | L8: 0
B9: Трубопровод USYSTEMS Ecoflex Varia Twin PN6 32x2.9 32x2.9 140 для водоснабжения и теплоснабжения. | D9: пог.м | E9: 0 | F9: 0 | G9: 0 | I9: =$C9* (УЗЛЫ!C5)*L117 -> 0 | J9: =$C9*РАБОТЫ!C5*M117 -> 0 | K9: =$C9*РАБОТЫ!D5*M117 -> 0 | L9: 0
A10: Труба ПНД D32 | B10: Для подачи холодного водоснабжения (теплоизоляция Энергофлекс) | D10: пог.м | E10: 0 | F10: 0 | G10: 0 | I10: =$C10*(УЗЛЫ!C6+УЗЛЫ!C7)*L117 -> 0 | J10: =$C10*РАБОТЫ!C6*M117 -> 0 | K10: =$C10*РАБОТЫ!D6*M117 -> 0 | L10: 0
A11: Узел ТТ1 до150м2 | B11: Обвязка теплотрассы, подключение к коллекторам и насосам | D11: компл | E11: 0 | F11: 0 | G11: 0 | I11: =$C11*(УЗЛЫ!C8*0.5)*L117 -> 0 | J11: =$C11*РАБОТЫ!C7*M117 -> 0 | K11: =$C11*РАБОТЫ!D7*M117 -> 0 | L11: 0 | N11: * Обвязка с одной стороны, в случае обвязки с двух сторон - 2 компл.
A12: Узел ТТ2 150-200м2 | B12: Обвязка теплотрассы, подключение к коллекторам и насосам | D12: компл | E12: 0 | F12: 0 | G12: 0 | I12: =$C12* (УЗЛЫ!C9*0.5)*L117 -> 0 | J12: =$C12*РАБОТЫ!C7*M117 -> 0 | K12: =$C12*РАБОТЫ!D7*M117 -> 0 | L12: 0
A13: Автоматика | B13: Датчик температуры МЛ-722 (DS) | D13: шт. | E13: 0 | F13: 0 | G13: 0 | I13: =$C13* УЗЛЫ!C12*L117 -> 0 | J13: =($C13*РАБОТЫ!C8+$C13*РАБОТЫ!D8)*M117 -> 0 | L13: 0
A14: Кабель МКЭШ 5х0,75 , ПНД труба гофр. с протяжкой | B14: Кабель управления автоматикой | D14: пог.м | E14: =(I14/0.7)*$J$117 -> 0 | F14: =((J14+K14)/0.8)*$K$117 -> 0 | G14: 0 | I14: =C14*УЗЛЫ!C11*L117 -> 0 | J14: =C14*РАБОТЫ!C6*M117 -> 0 | K14: =C14*РАБОТЫ!D6*M117 -> 0 | L14: 0
B15: Протяжка кабеля в ПНД трубе (бухта 100м) | D15: бухта | E15: =(I15/0.8)*$J$117 -> 0 | G15: 0 | I15: =C15*УЗЛЫ!C10*L117 -> 0 | L15: 0
A16: Земляные работы | B16: Производится выемка и обратная засыпка | D16: м3 | E16: =(I16/$J$2)*$J$117 -> 0 | F16: =((J16+K16)/$J$2)*$K$117 -> 0 | G16: 0 | J16: =$C16*РАБОТЫ!C9*M117 -> 0 | K16: =$C16*РАБОТЫ!D9*M117 -> 0 | L16: 0
A17: Итого материал: | G17: =SUM(E6:E16) -> 0 | L17: =SUM(I6:I16) -> 0 | N17: =(SUM(G17:G18)-SUM(L17:L18))/SUM(G17:G18) -> 
A18: Работа: | G18: =SUM(F6:F16) -> 0 | L18: =SUM(J6:K16) -> 0
A19: Отопление
A20: Материалы/услуги | B20: Описание | C20: Кол-во | D20: Ед.изм | E20: Мат-ал, руб | F20: Работа, руб | G20: Итого, руб | I20: Материал | J20: Бригада | K20: Прораб | L20: Итого | M20: Рента
A21: Радиаторы (белые) | B21: Радиаторы стальные панельные концерна Rettig Heating Group (Европа) | D21: шт. | E21: =(I21/0.75)*$J$117 -> 0 | G21: =IF(C21>=1,E21,0) -> 0 | I21: =$C21*УЗЛЫ!C18 -> 0 | L21: =SUM(I21:K21) -> 0 | M21: =IF(G21=0,"",(G21-L21)/G21) -> 
B22: Радиаторы стальные панельные Rommer (Россия) | D22: шт. | E22: =(I22/0.75)*$J$117 -> 0 | G22: =IF(C22>=1,E22,0) -> 0 | I22: =C22*УЗЛЫ!C19 -> 0 | L22: 0
B23: Радиатор КЗТО Гармония | D23: шт. | E23: =(I23/0.75)*$J$117 -> 0 | G23: =IF(C23>=1,E23,0) -> 0 | I23: =C23*УЗЛЫ!C20 -> 0 | L23: 0
B24: Радиатор КЗТО РСК | D24: шт. | E24: =(I24/0.75)*$J$117 -> 0 | G24: 0 | I24: =C24*УЗЛЫ!C21 -> 0 | L24: 0
A25: Комплект декоративной подводки | B25: Для труб из сшитого полиэтилена | D25: компл. | E25: =(I25/0.9)*$J$117 -> 0 | F25: =((J25+K25)/$J$2)*$K$117*1.5 -> 0 | G25: =F25+E25 -> 0 | I25: =$C25*УЗЛЫ!C22*L117 -> 0 | J25: =$C25* РАБОТЫ!C12*M117 -> 0 | K25: =$C25* РАБОТЫ!D12*M117 -> 0 | L25: 0
A26: Монтаж креплений для радиаторов настенный | B26: Монтаж с использованием электронного измерителя уровня | D26: компл. | E26: =(I26/$J$2)*$J$117 -> 0 | F26: =((J26+K26)/$J$2)*$K$117*1.3 -> 0 | G26: 0 | J26: =$C26*(РАБОТЫ!C13*0.3)*M117 -> 0 | K26: =$C26*( РАБОТЫ!D13*0.3)*M117 -> 0 | L26: 0
A27: Монтаж креплений для радиаторов напольный | B27: Монтаж с использованием электронного измерителя уровня | D27: компл. | E27: =(I27/$J$2)*$J$117 -> 0 | F27: =((J27+K27)/$J$2)*$K$117*1.3 -> 0 | G27: 0 | I27: =C27*УЗЛЫ!D26*L117 -> 0 | J27: =$C27*( РАБОТЫ!C13*0.3)*M117 -> 0 | K27: =$C27*( РАБОТЫ!D13*0.3)*M117 -> 0 | L27: 0
A28: Монтаж радиатора | B28: Монтаж с использованием электронного измерителя уровня | D28: компл. | E28: =(I28/$J$2)*$J$117 -> 0 | F28: =((J28+K28)/0.76)*$K$117*1.3 -> 0 | G28: 0 | J28: =$C28* РАБОТЫ!C13*M117 -> 0 | K28: =$C28* РАБОТЫ!D13*M117 -> 0 | L28: 0
A29: Комплект подключения | B29: Узел нижнего подключения радиатора прямой из пола (без декор.подводки) | D29: компл. | E29: =(I29/0.8)*$J$117*0.7 -> 0 | F29: =(C29*500)*K117 -> 0 | G29: 0 | I29: =$C29*УЗЛЫ!C28*L117 -> 0 | L29: 0
B30: Узел нижнего подключения радиатора угловой из стены (без декор. подводки) | D30: компл. | E30: =(I30/0.8)*$J$117*0.7 -> 0 | F30: =(C30*590)+(J30+K30) -> 0 | G30: 0 | I30: =$C30*УЗЛЫ!C30*L117 -> 0 | J30: =C30*((РАБОТЫ!C36*2)) -> 0 | K30: =C30*(РАБОТЫ!D36*2)*M117 -> 0 | L30: 0
A31: Терморегулятор для радиатора | B31: Термоголовка (Германия), c жидкостным чувствительным элементом. С функцией защиты от замерзания и с блокировкой диапазона настройки. | D31: шт. | E31: =1069*C31 -> 0 | F31: =(C31*500)*K117*0.7 -> 0 | G31: 0 | I31: 0 | L31: =SUM(I31:K31) -> 0
A32: Управление внутрипольным конвектором | B32: Настенный регулятор программируемый с сенсорным экраном. Возможность регулировки до 12 приборов (Vartronic Белый) | D32: шт. | E32: =(I32/$J$2)*$J$117 -> 0 | F32: =((J32+K32)/$J$2)*K117 -> 0 | G32: 0 | I32: =$C32* УЗЛЫ!C33*L117 -> 0 | J32: =$C32*РАБОТЫ!C15*M117 -> 0 | K32: =$C32*РАБОТЫ!D15*M117 -> 0 | L32: 0
B33: Настенный регулятор программируемый с сенсорным экраном. Возможность регулировки до 12 приборов (Vartronic Черный) | D33: шт. | E33: =(I33/$J$2)*$J$117 -> 0 | F33: =((J33+K33)/$J$2)*K117 -> 0 | G33: 0 | I33: =$C33* УЗЛЫ!C33*L117 -> 0 | J33: =$C33*РАБОТЫ!C15*M117 -> 0 | K33: =$C33*РАБОТЫ!D15*M117 -> 0 | L33: =SUM(I33:K33) -> 0
A34: Комплектующие для подлючения конвектора внутрипольного | B34: Комплект запорно-регулирующей арматуры. | D34: компл. | E34: =(I34/$J$2)*$J$117 -> 0 | F34: =(C34*2300)*K117 -> 0 | G34: 0 | I34: =$C34*УЗЛЫ!C34*L117 -> 0 | L34: 0
A35: Конвектор энергозависимый внутрипольный | B35: Встраиваемый в пол конвектор Varmann Qtherm 230.75.1250. решетка роликовая из алюминия, тангенциальный вентилятор | D35: компл. | E35: =(I35/0.7)*$J$117*0.88 -> 0 | F35: =((J35+K35)/$J$2)*$K$117*2 -> 0 | G35: 0 | I35: =$C35*УЗЛЫ!C36 -> 0 | J35: =$C35*РАБОТЫ!C16*M117 -> 0 | K35: =$C35*РАБОТЫ!D16*M117 -> 0 | L35: 0
B36: Встраиваемый в пол конвектор Varmann Qtherm 230.75.1500. решетка роликовая из алюминия, тангенциальный вентилятор | D36: компл. | E36: 0 | F36: 0 | G36: 0 | I36: =$C36*УЗЛЫ!C37 -> 0 | J36: =$C36*РАБОТЫ!C16*M117 -> 0 | K36: =$C36*РАБОТЫ!D16*M117 -> 0 | L36: 0
B37: Встраиваемый в пол конвектор Varmann Qtherm 230.75.1750. решетка роликовая из алюминия, тангенциальный вентилятор | D37: компл. | E37: 0 | F37: 0 | G37: 0 | I37: =$C37*УЗЛЫ!C38 -> 0 | J37: =$C37* РАБОТЫ!$C$16*M117 -> 0 | K37: =$C37* РАБОТЫ!$D$16*M117 -> 0 | L37: 0
B38: Встраиваемый в пол конвектор Varmann Qtherm 230.75.2000. решетка роликовая из алюминия, тангенциальный вентилятор | D38: компл. | E38: 0 | F38: 0 | G38: 0 | I38: =C38*УЗЛЫ!C39 -> 0 | J38: =$C38* РАБОТЫ!$C$16*M117 -> 0 | K38: =$C38* РАБОТЫ!$D$16*M117 -> 0 | L38: 0
B39: Встраиваемый в пол конвектор Varmann Qtherm 230.75.2250. решетка роликовая из алюминия, тангенциальный вентилятор | D39: компл. | E39: 0 | F39: 0 | G39: 0 | I39: =C39*УЗЛЫ!C40 -> 0 | J39: =$C39* РАБОТЫ!$C$16*M117 -> 0 | K39: =$C39* РАБОТЫ!$D$16*M117 -> 0 | L39: 0
B40: Встраиваемый в пол конвектор Varmann Qtherm 230.75.3000. решетка роликовая из алюминия, вентиляторы с ЕС двигателем | D40: компл. | E40: 0 | F40: 0 | G40: 0 | I40: =C40*УЗЛЫ!C41 -> 0 | J40: =$C40* РАБОТЫ!$C$16*M117 -> 0 | K40: =$C40* РАБОТЫ!$D$16*M117 -> 0 | L40: 0
A41: Конвектор энергонезависимый внутрипольный | B41: Встраиваемый в пол конвектор Varmann Ntherm, 230.90.1400. решетка роликовая из алюминия. | D41: компл. | E41: 0 | F41: 0 | G41: 0 | I41: =C41*УЗЛЫ!C42 -> 0 | J41: =$C41* РАБОТЫ!$C$16*M117 -> 0 | K41: =$C41* РАБОТЫ!$D$16*M117 -> 0 | L41: =SUM(I41:K41) -> 0
B42: Встраиваемый в пол конвектор Varmann Ntherm, 230.90.1800. решетка роликовая из алюминия. | D42: компл. | E42: 0 | F42: 0 | G42: 0 | I42: =C42*УЗЛЫ!C43 -> 0 | J42: =$C42* РАБОТЫ!$C$16*M117 -> 0 | K42: =$C42* РАБОТЫ!$D$16*M117 -> 0 | L42: 0
B43: Встраиваемый в пол конвектор Varmann Ntherm, 230.90.2200. решетка роликовая из алюминия. | D43: компл. | E43: 0 | F43: 0 | G43: 0 | I43: =C43*УЗЛЫ!C44 -> 0 | J43: =$C43* РАБОТЫ!$C$16*M117 -> 0 | K43: =$C43* РАБОТЫ!$D$16*M117 -> 0 | L43: 0
A44: Конвектор энергонезависимый внутрипольный влагостойкий корпус | B44: Встраиваемый в пол конвектор Varmann Ntherm ES (для влажных помещений), 230.90.1400. решетка роликовая из алюминия. | D44: компл. | E44: 0 | F44: 0 | G44: 0 | I44: =C44*УЗЛЫ!C45 -> 0 | J44: =$C44* РАБОТЫ!$C$16*M117 -> 0 | K44: =$C44* РАБОТЫ!$D$16*M117 -> 0 | L44: 0
B45: Встраиваемый в пол конвектор Varmann Ntherm ES (для влажных помещений), 230.90.1800. решетка роликовая из алюминия. | D45: компл. | E45: 0 | F45: 0 | G45: 0 | I45: =C45*УЗЛЫ!C46 -> 0 | J45: =$C45* РАБОТЫ!$C$16*M117 -> 0 | K45: =$C45* РАБОТЫ!$D$16*M117 -> 0 | L45: 0
B46: Встраиваемый в пол конвектор Varmann Ntherm ES (для влажных помещений), 230.90.2200. решетка роликовая из алюминия. | D46: компл. | E46: 0 | F46: 0 | G46: 0 | I46: =C46*УЗЛЫ!C47 -> 0 | J46: =$C46* РАБОТЫ!$C$16*M117 -> 0 | K46: =$C46* РАБОТЫ!$D$16*M117 -> 0 | L46: 0
A47: Конвектор напольный | B47: Конвектор Varmann MiniKon 235.130.1600 | D47: шт. | E47: =(I47/0.7)*$J$117*0.87 -> 0 | F47: 0 | G47: 0 | I47: =C47*УЗЛЫ!C48 -> 0 | J47: =$C47* РАБОТЫ!C14*M117 -> 0 | K47: =$C47*РАБОТЫ!D14*M117 -> 0 | L47: 0
B48: Конвектор Varmann MiniKon 185.130.1600 | D48: шт. | E48: =(I48/0.7)*$J$117*0.85 -> 0 | F48: 0 | G48: 0 | I48: =C48*УЗЛЫ!C49 -> 0 | J48: =$C48* РАБОТЫ!$C$14*M117 -> 0 | K48: =$C48* РАБОТЫ!$D$14*M117 -> 0 | L48: 0
A49: Коллекторная система отопления | B49: Трубопроводы системы отопления - высококачественные трубы PEX (Трубы REHAU Германия - поперечно сшитый полиэтилен) в утеплителе "Энергофлекс". | D49: м² | E49: =(I49/$J$2)*$J$117 -> 0 | F49: =(C49*600)*$K$117 -> 0 | G49: 0 | I49: =$C49*(УЗЛЫ!C13)+(IF(C49=0,0,)+IF(C49>1,УЗЛЫ!D17,)) -> 0 | J49: =C49*((РАБОТЫ!C17+РАБОТЫ!C18)/R49)*M117 -> 0 | K49: =C49*((РАБОТЫ!D17+РАБОТЫ!D18)/R49)*M117 -> 0 | L49: 0 | O49: коэф. трубы отопл.: | P49: =IF(T49<70,4.5, IF(T49<250, 3.5, 4)) -> 4.5 | Q49: закл. петли: | R49: =IF(V49>7, V49, IF(T49=0, 12, IF(T49<165,11, 11+CEILING((T49-165)/8,1)))) -> 12 | S49: отапл. площ.: | T49: =C49 -> 0 | U49: радиаторы /конвек-ры: | V49: =C21+C37 -> 0
B50: Переход с трубопроводов Stout (по купону) на REHAU Германия | D50: м² | E50: =I50/0.65 -> 0 | F50: =(C50*600)*$K$117 -> 0 | G50: 0 | I50: =C50*УЗЛЫ!C16*L117 -> 0 | L50: 0
A51: Подключение коллекторного шкафа вне котельной | B51: Трубопроводы (до 25 пог.м), фитинги, арматура | D51: компл. | E51: =I51/0.62 -> 0 | F51: =(J51+K51)/0.6 -> 0 | G51: 0 | I51: =C51*(УЗЛЫ!C50+УЗЛЫ!C51)*L117 -> 0 | J51: =C51*РАБОТЫ!C19*M117 -> 0 | K51: =C51*РАБОТЫ!D19*M117 -> 0 | L51: 0
A52: Коллектор системы отопления | B52: Коллектор stout, шкаф, шаровые краны, фиксаторы, прокладки, фитинги. 3 выхода | D52: компл. | E52: =(I52/$K$2)*$J$117*0.75 -> 0 | F52: =((J52+K52)/$K$2)*$K$117*2.7 -> 0 | G52: =E52+F52 -> 0 | I52: =$C52*УЗЛЫ!N58*L117 -> 0 | J52: =$C52*РАБОТЫ!C20*M117 -> 0 | K52: =$C52*РАБОТЫ!D20*M117 -> 0 | L52: 0
B53: Коллектор stout, шкаф, шаровые краны, фиксаторы, прокладки, фитинги. 4 выхода | D53: компл. | E53: =(I53/$K$2)*$J$117*0.75 -> 0 | F53: 0 | G53: =E53+F53 -> 0 | I53: =$C53*УЗЛЫ!N59*L117 -> 0 | J53: =$C53*РАБОТЫ!C20*M117 -> 0 | K53: =$C53*РАБОТЫ!D20*M117 -> 0 | L53: 0
B54: Коллектор stout, шкаф, шаровые краны, фиксаторы, прокладки, фитинги. 5 выходов | D54: компл. | E54: =(I54/$K$2)*$J$117*0.75 -> 0 | F54: 0 | G54: 0 | I54: =$C54*УЗЛЫ!N60*L117 -> 0 | J54: =$C54*РАБОТЫ!C20*M117 -> 0 | K54: =$C54*РАБОТЫ!D20*M117 -> 0 | L54: 0
B55: Коллектор stout, шкаф, шаровые краны, фиксаторы, прокладки, фитинги. 6 выходов | D55: компл. | E55: =(I55/$K$2)*$J$117*0.8 -> 0 | F55: 0 | G55: 0 | I55: =$C55*УЗЛЫ!N61*L117 -> 0 | J55: =$C55*РАБОТЫ!C20*M117 -> 0 | K55: =$C55*РАБОТЫ!D20*M117 -> 0 | L55: 0
B56: Коллектор stout, шкаф, шаровые краны, фиксаторы, прокладки, фитинги. 7 выходов | D56: компл. | E56: =(I56/$K$2)*$J$117*0.81 -> 0 | F56: 0 | G56: 0 | I56: =$C56*УЗЛЫ!N62*L117 -> 0 | J56: =$C56*РАБОТЫ!C20*M117 -> 0 | K56: =$C56*РАБОТЫ!D20*M117 -> 0 | L56: 0
B57: Коллектор stout, шкаф, шаровые краны, фиксаторы, прокладки, фитинги. 8 выходов | D57: компл. | E57: =(I57/$K$2)*$J$117*0.8 -> 0 | F57: 0 | G57: 0 | I57: =$C57*УЗЛЫ!N63*L117 -> 0 | J57: =$C57*РАБОТЫ!C20*M117 -> 0 | K57: =$C57*РАБОТЫ!D20*M117 -> 0 | L57: 0
B58: Коллектор stout, шкаф, шаровые краны, фиксаторы, прокладки, фитинги. 9 выходов | D58: компл. | E58: =(I58/$K$2)*$J$117*0.81 -> 0 | F58: 0 | G58: 0 | I58: =$C58*УЗЛЫ!N64*L117 -> 0 | J58: =$C58*РАБОТЫ!C20*M117 -> 0 | K58: =$C58*РАБОТЫ!D20*M117 -> 0 | L58: 0
B59: Коллектор stout, шкаф, шаровые краны, фиксаторы, прокладки, фитинги. 10 выходов | D59: компл. | E59: =(I59/$K$2)*$J$117*0.8 -> 0 | F59: 0 | G59: 0 | I59: =$C59*УЗЛЫ!N65*L117 -> 0 | J59: =$C59*РАБОТЫ!C20*M117 -> 0 | K59: =$C59*РАБОТЫ!D20*M117 -> 0 | L59: 0
B60: Коллектор stout, шкаф, шаровые краны, фиксаторы, прокладки, фитинги. 11 выходов | D60: компл. | E60: =(I60/$K$2)*$J$117*0.8 -> 0 | F60: 0 | G60: 0 | I60: =$C60*УЗЛЫ!N66*L117 -> 0 | J60: =$C60*РАБОТЫ!C20*M117 -> 0 | K60: =$C60*РАБОТЫ!D20*M117 -> 0 | L60: 0
B61: Коллектор stout, шкаф, шаровые краны, фиксаторы, прокладки, фитинги. 12 выходов | D61: компл. | E61: =(I61/$K$2)*$J$117*0.81 -> 0 | F61: 0 | G61: 0 | I61: =$C61*УЗЛЫ!N67*L117 -> 0 | J61: =$C61*РАБОТЫ!C20*M117 -> 0 | K61: =$C61*РАБОТЫ!D20*M117 -> 0 | L61: 0
A62: Итого материал: | G62: =SUM(E21:E61) -> 0 | L62: =SUM(I21:I61) -> 0 | N62: =(SUM(G62:G63)-SUM(L62:L63))/SUM(G62:G63) -> 
A63: Работа: | G63: =SUM(F21:F61) -> 0 | L63: =SUM(J21:K61) -> 0
A64: Водоснабжение, канализация, вентиляция
A65: Материалы/услуги | B65: Описание | C65: Кол-во | D65: Ед.изм | E65: Мат-ал, руб | F65: Работа, руб | G65: Итого, руб | I65: Материал | J65: Бригада | K65: Прораб | L65: Итого | M65: Рента
A66: Точки водоснабжения | B66: Разводка труб холодного и горячего водоснабжения внутри помещения. Сшитый полиэтилен REHAU, Германия), в утеплителе "Энергофлекс". Установка водорозеток | D66: шт. | E66: =(I66/$K$2)*$J$117 -> 0 | F66: =((J66+K66)/$K$2)*$K$117*1.3 -> 0 | G66: =F66+E66 -> 0 | I66: =C66* УЗЛЫ!C68*L117 -> 0 | J66: =$C66*(РАБОТЫ!C23 + (РАБОТЫ!C24/10))*M117 -> 0 | K66: =$C66*(РАБОТЫ!D23 + (РАБОТЫ!D24/10))*M117 -> 0 | L66: =SUM(I66:K66) -> 0 | M66: =IF(G66=0,"",(G66-L66)/G66) ->  | O66: коэф. труб воды.: | P66: =IF(R66<8, 12, IF(R66<11, 8, IF(R66<18, 9,10))) -> 12 | Q66: точки воды: | R66: =C66 -> 0
B67: Переход водоснабжения Stout (по купону) на REHAU Германия | D67: шт. | E67: =I67/0.65 -> 0 | G67: 0 | I67: =C67*УЗЛЫ!C71*L117 -> 0 | L67: 0
A68: Подключение коллекторного шкафа вне котельной | B68: Трубопроводы (до 25 пог.м), фитинги, арматура | D68: компл. | E68: =I68/0.62 -> 0 | F68: =(J68+K68)/0.6 -> 0 | G68: 0 | I68: =C68*(УЗЛЫ!C50+УЗЛЫ!C51)*L117 -> 0 | J68: =C68*РАБОТЫ!C19*M117 -> 0 | K68: =C68*РАБОТЫ!D19*M117 -> 0 | L68: 0
A69: Коллектор водоснабжения | B69: Без рециркуляции - коллектор, шкаф распределительный наружный, шаровые краны, фиксаторы, прокладки, компрессионные фитинги. | D69: компл. | E69: =(I69/$J$2)*$J$117*0.92 -> 0 | F69: =((J69+K69)/$J$2)*$K$117*1.8 -> 0 | G69: 0 | I69: =$C69*УЗЛЫ!N72*L117 -> 0 | J69: =$C69*РАБОТЫ!C25*M117 -> 0 | K69: =$C69*РАБОТЫ!D25*M117 -> 0 | L69: 0
B70: С рециркуляцией - коллектор, шкаф распределительный наружный, шаровые краны, фиксаторы, прокладки, компрессионные фитинги. | D70: компл. | E70: =(I70/$J$2)*$J$117*0.9 -> 0 | F70: =((J70+K70)/$J$2)*$K$117*2.9 -> 0 | G70: 0 | I70: =$C70*УЗЛЫ!N73*L117 -> 0 | J70: =$C70*РАБОТЫ!C25*M117 -> 0 | K70: =$C70*РАБОТЫ!D25*M117 -> 0 | L70: 0
A71: Точки циркуляции | B71: Дополнительный контур на влажное помещение | D71: шт. | E71: =(I71/$J$2)*$J$117 -> 0 | F71: =((J71+K71)/$J$2)*$K$117 -> 0 | G71: 0 | I71: =C71*УЗЛЫ!C68*L117 -> 0 | J71: =$C71* РАБОТЫ!C23*M117 -> 0 | K71: =$C71* РАБОТЫ!D23*M117 -> 0 | L71: =SUM(I71:K71) -> 0
A72: Точки канализации | B72: Монтаж системы канализации шумопоглащающими трубами Rehau Германия | D72: шт. | E72: =(I72/$J$2)*$J$117 -> 0 | F72: =((J72+K72)/$J$2)*$K$117 -> 0 | G72: 0 | I72: =$C72* УЗЛЫ!C76*L117 -> 0 | J72: =$C72* (РАБОТЫ!C26+(РАБОТЫ!C27*0.5)+(РАБОТЫ!C28*0.1))*M117 -> 0 | K72: =$C72* (РАБОТЫ!D27+РАБОТЫ!D28)*M117 -> 0 | L72: 0
B73: Переход с трубы Sinicon Россия (по купону) на трубу Rehau Германия | D73: шт. | E73: =(I73/$J$2)*$J$117 -> 0 | G73: 0 | I73: =C73*УЗЛЫ!C79*L117 -> 0 | L73: 0
B74: Монтаж системы канализации производится шумопоглощающими трубами Sinicon Россия. Прокладка под лентой ростверка, с последующим выпуском на 1м за него (для фундамента типа "ростверк") | D74: шт. | E74: =(I74/$J$2)*$J$117 -> 0 | F74: =((J74+K74)/$J$2)*$K$117 -> 0 | G74: 0 | I74: =$C74* УЗЛЫ!C77*L117 -> 0 | J74: =$C74* (РАБОТЫ!C26+(РАБОТЫ!C27*0.5)+(РАБОТЫ!C28*0.1))*M117 -> 0 | K74: =$C74* (РАБОТЫ!D27+РАБОТЫ!D28)*M117 -> 0 | L74: 0 | M74: =IF(G74=0,"",(G74-L74)/G74) -> 
B75: Земляные работы | C75: 4 | D75: м3 | E75: =(I75/$J$2)*$J$117 -> 0 | F75: =((J75+K75)/$J$2)*$K$117 -> 12489.23077 | G75: 12489.23077 | J75: =$C75*РАБОТЫ!C28*M117 -> 6765 | K75: =$C75*РАБОТЫ!D28*M117 -> 1353 | L75: 8118 | M75: =IF(G75=0,"",(G75-L75)/G75) -> 0.35
A76: Точки вентиляции (без прохода через кровлю ) 100мм | B76: Система естественной вентиляции предназначена для того, чтобы регулировать влажность и удалять неприятные запахи из кухни и санузлов. | D76: шт. | E76: =(K76/$J$2)*$J$117*1.1 -> 0 | F76: =((J76)/$J$2)*$K$117*1.5 -> 0 | G76: 0 | J76: =$C76* РАБОТЫ!C29*M117 -> 0 | K76: =$C76* РАБОТЫ!D29*M117 -> 0 | L76: 0
A77: Точки вентиляции (без прохода через кровлю ) 125мм | B77: Система естественной вентиляции предназначена для того, чтобы регулировать влажность и удалять неприятные запахи из кухни и санузлов. | D77: шт. | E77: =(K77/0.78)*$J$117*1.1 -> 0 | F77: =((J77)/$J$2)*$K$117*1.5 -> 0 | G77: 0 | J77: =$C77* РАБОТЫ!C30*M117 -> 0 | K77: =$C77* РАБОТЫ!D30*M117 -> 0 | L77: 0
A78: Точки вентиляции (без прохода через кровлю ) 150мм | B78: Система естественной вентиляции предназначена для того, чтобы регулировать влажность и удалять неприятные запахи из кухни и санузлов. | D78: шт. | E78: =(K78/0.78)*$J$117*1.1 -> 0 | F78: =((J78)/$J$2)*$K$117*1.5 -> 0 | G78: 0 | J78: =$C78* РАБОТЫ!C30*M117 -> 0 | K78: =$C78* РАБОТЫ!D31*M117 -> 0 | L78: 0
A79: Узел на полив | B79: Кран Merril, фитинги, переходники | D79: шт. | E79: =(I79/$J$2)*$J$117 -> 0 | F79: =((J79+K79)/0.4)*$K$117 -> 0 | G79: 0 | I79: =$C79* УЗЛЫ!C80*L117 -> 0 | J79: =$C79* РАБОТЫ!C33*M117 -> 0 | K79: =$C79* РАБОТЫ!D33*M117 -> 0 | L79: =SUM(I79:K79) -> 0
A80: Трап (точечный) | B80: Только материал (трап точечный, переходник, компенсатор высоты) | D80: шт. | E80: =(I80/$J$2)*$J$117 -> 0 | G80: 0 | I80: =$C80*УЗЛЫ!C82*L117 -> 0 | L80: 0
A81: Установка трапа (точечного) | B81: Только работа | D81: Усл. | E81: =(I81/$J$2)*$J$117 -> 0 | F81: =((J81+K81)/$J$2)*$K$117 -> 0 | G81: =E81+F81 -> 0 | J81: =$C81*РАБОТЫ!C34*M117 -> 0 | K81: =$C81*РАБОТЫ!D34*M117 -> 0 | L81: 0
A82: Трап (линейный) ТЕСЕ | B82: Дренажный трап 700мм, решётка из нержавеющей стали, погружной стакан с мембраной, сифон, комплект опор | D82: шт. | E82: =(I82/0.8)*$J$117 -> 0 | G82: =F82+E82 -> 0 | I82: =$C82*УЗЛЫ!C83*L117 -> 0 | L82: =SUM(I82:K82) -> 0
A83: Установка трапа (линейного) | B83: Только работа | D83: Усл. | E83: =(I83/$J$2)*$J$117 -> 0 | F83: =((J83+K83)/$J$2)*$K$117 -> 0 | G83: =E83+F83 -> 0 | J83: =$C83* РАБОТЫ!C35*M117 -> 0 | K83: =$C83* РАБОТЫ!D35*M117 -> 0 | L83: 0
A84: Лоток для водоотведения (трап) в гараже | B84: Монтаж пластикового лотка (установка по уровню, крепление, монтаж чугунных оцинкованных решеток) без пескоуловителя | D84: пог.м. | E84: =I84/0.62 -> 0 | F84: =(J84+K84)/0.62 -> 0 | G84: =E84+F84 -> 0 | I84: =((C84*УЗЛЫ!C111))+IF(C84>0,УЗЛЫ!C113,0) -> 0 | J84: =C84*РАБОТЫ!C40*M117 -> 0 | K84: =C84*РАБОТЫ!D40*M117 -> 0 | L84: 0
B85: Монтаж пескоуловителя с решеткой | D85: шт. | E85: =I85/0.62 -> 0 | F85: =(J85+K85)/0.62 -> 0 | G85: 0 | I85: =C85*УЗЛЫ!C112*L117 -> 0 | J85: =C85*РАБОТЫ!C41*M117 -> 0 | K85: =C85*РАБОТЫ!D41*M117 -> 0 | L85: 0
B86: Подключение к закладной | D86: шт. | E86: =I86/0.62 -> 0 | F86: =(J86+K86)/0.62 -> 0 | G86: 0 | I86: =C86*УЗЛЫ!C114*L117 -> 0 | J86: =C86*РАБОТЫ!C42*M117 -> 0 | K86: =C86*РАБОТЫ!D42*M117 -> 0 | L86: 0
A87: Установка скрытых смесителей | B87: Душ/ ванна/ гиг.душ (комплектующие, сам смеситель покупает заказчик) | D87: шт. | E87: =I87/0.62 -> 0 | F87: =((J87+K87)/$J$2)*$K$117 -> 0 | G87: =E87+F87 -> 0 | I87: =C87*УЗЛЫ!C116*L117 -> 0 | J87: =C87*РАБОТЫ!C37*M117 -> 0 | K87: =C87*РАБОТЫ!D37*M117 -> 0 | L87: 0
B88: Встроенная душевая система с несколькими выводами (комплектующие, сам смеситель покупает заказчик) | D88: шт. | E88: 0 | F88: =((J88+K88)/$J$2)*$K$117 -> 0 | G88: =E88+F88 -> 0 | I88: =C88*УЗЛЫ!C118*L117 -> 0 | J88: =C88*РАБОТЫ!C38*M117 -> 0 | K88: =C88*РАБОТЫ!D38*M117 -> 0 | L88: 0
A89: Инсталляция (только материал) | B89: Инсталляция встраиваемая в деревянную перегородку. Только материал. (доска 40х140, монтажный комплект инсталляции без унитаза) | D89: Компл | E89: =I89/0.85 -> 0 | G89: =E89+F89 -> 0 | I89: =C89*УЗЛЫ!C84*'ОВиВК REHAU'!L117 -> 0 | L89: 0
B90: Инсталляция в коробе на стену (кирпич, металлокаркас, брус) или усиление стены из металлокаркаса. Только материал. (металлический профиль ТЕСЕ, монтажный комплект инсталляции без унитаза) | D90: Компл | E90: =I90/0.85 -> 0 | G90: =E90+F90 -> 0 | I90: =C90*УЗЛЫ!C85*L117 -> 0 | L90: 0
A91: Короб под инсталяцию (при необходимости) | B91: Только работа | D91: Усл. | F91: =((J91+K91)/0.33)*$K$117 -> 0 | G91: 0 | J91: =$C91* РАБОТЫ!C39*M117 -> 0 | K91: =$C91* РАБОТЫ!D39*M117 -> 0 | L91: 0
A92: Установка инсталляции | B92: Только работа, материал заказчика | D92: Усл. | F92: =((J92+K92)/0.25)*$K$117 -> 0 | G92: =E92+F92 -> 0 | J92: =$C92* РАБОТЫ!C39*M117 -> 0 | K92: =$C92* РАБОТЫ!D39*M117 -> 0 | L92: 0
A93: Итого материал: | G93: =SUM(E66:E92) -> 0 | L93: =SUM(I66:I92) -> 0 | N93: =(SUM(G93:G94)-SUM(L93:L94))/SUM(G93:G94) -> 0.35
A94: Работа: | B94: =РАБОТЫ!A1 -> Дата | G94: =SUM(F66:F92) -> 12489.23077 | L94: =SUM(J66:K92) -> 8118 | M94: 0.35
A95: Дополнительно
A96: Материалы/услуги | B96: Описание | C96: Кол-во | D96: Ед.изм | E96: Мат-ал, руб | F96: Работа, руб | G96: Итого, руб
A97: Проходные отверстия в плите | B97: Алмазное сверление | C97: 9 | D97: шт. | F97: =IF($C$97=0,0, IF($C$97<4,9000, IF($C$97>3,9000+2300*($C$97-3)))) -> 22800 | G97: =F97+E97 -> 22800 | K97: =IF($C$97=0,0, IF($C$97<4,6000, IF($C$97>3,6000+1700*($C$97-3)))) -> 16200
A98: Штробление | B98: Выводы под трубопроводы | C98: 0 | D98: шт. | F98: =(J98+K98)/0.65 -> 0 | G98: =F98+E98 -> 0 | J98: =C98*РАБОТЫ!C36 -> 0 | K98: =C98*РАБОТЫ!D36 -> 0
A99: Закладная для канализации | B99: Устройство ввода канализации в дом | C99: 0 | D99: шт. | E99: =C99*4500 -> 0 | F99: =C99*16000 -> 0 | G99: =F99+E99 -> 0 | K99: =12500*C99 -> 0
A100: Закладная для воды | B100: Устройство ввода водоснабжения в дом | C100: 0 | D100: шт. | E100: =C100*4500 -> 0 | F100: =C100*16000 -> 0 | G100: =F100+E100 -> 0 | K100: =12500*C100 -> 0
A101: Вывоз мусора (конетейнер) | B101: Вывоз мусора контейнер (необходим для домов свыше 350 м2) | C101: 0 | D101: Усл. | F101: =K101/0.8 -> 0 | G101: =F101 -> 0 | K101: =C101*8000 -> 0
A102: Подготовительные и накладные расходы | B102: Включают разработку комплекта документов для монтажа, проверку ОТК и приемку каждого этапа работ инженерами технического надзора, соблюдение стандарта компании | C102: 1 | D102: Усл. | F102: =C102*31000 -> 31000 | G102: =F102 -> 31000 | J102: 2000 | K102: 4500 | L102: =5500+6500 -> 12000 | M102: выезды ИТН | P102: Стоимость ОВиВК + радиаторы
A103: Транспортные расходы | B103: Доставка оборудования и материалов на объект | C103: 1 | D103: усл. | F103: =C103*11000 -> 11000 | G103: =F103 -> 11000 | L103: 10000 | P103: =F110+'ТП ТЕСЕ'!G46 -> 77289.23077
A104: Доставка бытовки на объект | B104: Если есть такая необходимость, мы предоставляем бытовку для проживания на объекте строителей. После окончания работ, бытовка вывозится. | D104: км от мкад | G104: =IF(C104=0,0, IF(C104<100,24000, IF(C104<150,30000,36000))) -> 0 | L104: =IF(C104=0,0, IF(C104<=50,13500, IF(C104<=100,17000, IF(C104<=150,20500, IF(C104<=200,24000, IF(C104<=250,27500, IF(C104>250,31000,))))))) -> 0
A105: Итого по смете: | F105: =SUM(G17:G18,G62:G63,G93:G94,G97:G104) -> 77289.23077 | I105: =SUM(L17,L62,L93) -> 0 | J105: =SUM(J6:J16,J21:J61,J66:J92,J97:J104) -> 8765 | K105: =SUM(K6:K16,K21:K61,K66:K92,K97:K104) -> 22053 | L105: =SUM(I105:K105,L97:L104)-M108 -> 52818 | M105: =IF(F110=0,"",(F110-L105)/F110) -> 0.3166188941
A106: Вычет по сертификату за систему отопление: | D106: м² | E106: =(I106/$J$2)*$J$117 -> 0 | F106: =(C106*600)*$K$117 -> 0 | G106: =F106+E106 -> 0 | I106: =$C106*(УЗЛЫ!C15)+(IF(C106=0,0,)+IF(C106>1,УЗЛЫ!D17,)) -> 0 | J106: =C106*(РАБОТЫ!C17+РАБОТЫ!C18)/R49 -> 0 | K106: =C106*(РАБОТЫ!D17+РАБОТЫ!D18)/R49 -> 0 | L106: =SUM(I106:K106) -> 0
A107: Вычет по сертификату за систему водоснабжения: | D107: точка | E107: =(I107/$K$2)*$J$117 -> 0 | F107: =((J107+K107)/$K$2)*$K$117*1.3 -> 0 | G107: 0 | I107: =C107* УЗЛЫ!C70 -> 0 | J107: =$C107*(РАБОТЫ!C23 + (РАБОТЫ!C24/10)) -> 0 | K107: =$C107*(РАБОТЫ!D23 + (РАБОТЫ!D24/10)) -> 0 | L107: =SUM(I107:K107) -> 0
A108: Вычет по сертификату за систему канализации: | D108: точка | E108: =(I108/$J$2)*$J$117 -> 0 | F108: =((J108+K108)/$J$2)*$K$117 -> 0 | G108: 0 | I108: =$C108* УЗЛЫ!C78 -> 0 | J108: =$C108* (РАБОТЫ!C26+(РАБОТЫ!C27*0.5)+(РАБОТЫ!C28*0.1)) -> 0 | K108: =$C108* (РАБОТЫ!D27+РАБОТЫ!D28) -> 0 | L108: 0 | M108: =SUM(L106:L108) -> 0
A109: Корректировка стоимости (скидка): | G109: 0
A110: Итого по смете со скидкой: | F110: =F105-G109-G106-G107-G108 -> 77289.23077
B111: =РАБОТЫ!$A$1 -> Дата | K111: Дом кирпично-деревянный | L111: 0
K112: (поставить 1)
J114: Коэффициент для заказчика | L114: Коэффициент для СЕБЕСА дом свыше 350м2 плюс 10%; мусор-контейнер; дизайн-проект 10%
N115: * 10% на оплату работ, материал через запрос в проектный
J116: Мат | K116: Раб | L116: Мат | M116: Раб
J117: 1 | K117: 1 | L117: 1 | M117: 1
I119: Стоим. мат-ла | J119: Стоим. работ бр. | K119: Стоим. работ ПР | L119: Мат-л + работа | M119: Промежут. рента
O120: Справочно, в разбивке по этапам:
I121: =I105-I122-I123 ->  | J121: =J105-J122-J123 ->  | K121: =K105-K122-K123 ->  | L121: =L105-L122-L123 ->  | M121: =IF(Q121=0, "", (Q121-L121)/Q121) ->  | O121: Скрытые | Q121: =F105-Q122-Q123 -> 
I122: =SUM(#REF!+#REF!+#REF!+#REF!+#REF!+#REF!+#REF!+#REF!+#REF!+#REF!+#REF!+#REF!+#REF!) ->  | J122: =SUM(#REF!+#REF!+#REF!++#REF!+#REF!+#REF!+#REF!+#REF!+#REF!+#REF!+#REF!+#REF!+#REF!) ->  | K122: =SUM(#REF!+#REF!+#REF!++#REF!+#REF!+#REF!+#REF!+#REF!+#REF!+#REF!+#REF!+#REF!+#REF!) ->  | L122: =SUM(#REF!+#REF!+#REF!++#REF!+#REF!+#REF!+#REF!+#REF!+#REF!+#REF!+#REF!+#REF!+#REF!) ->  | M122: =IF(Q122=0, "", (Q122-L122)/Q122) ->  | O122: Теплые полы | Q122: =SUM(#REF!+#REF!+#REF!+#REF!+#REF!+#REF!+#REF!+#REF!+#REF!+#REF!+#REF!+#REF!+#REF!) -> 
I123: =SUM(I6:I16) -> 0 | J123: =SUM(J6:J16) -> 0 | K123: =SUM(K6:K16) -> 0 | L123: =SUM(L6:L16) -> 0 | M123: =IF(Q123=0, "", (Q123-L123)/Q123) ->  | O123: Теплотрасса | Q123: =SUM(G6:G16) -> 0

Sheet ОВиВК ТЕСЕ
A1: Приложение № к Договору подряда № ______________от_____________ | I1: курс € | J1: КОЭФ для ренты | K1: КОЭФ для ренты
A2: =TODAY() -> 2024-02-02 | B2: Данный сметный расчёт действителен 7 календарных дней. По истечению срока, цены могут быть изменены. | I2: 100 | J2: 0.65 | K2: 0.6
A3: Сметный расчет ОиВК ТЕСЕ
A4: Теплотрасса | I4: =РАБОТЫ!A1 -> Дата
A5: Материалы/услуги | B5: Описание | C5: Кол-во | D5: Ед.изм | E5: Мат-ал, руб | F5: Работа, руб | G5: Итого, руб | I5: Материал | J5: Бригада | K5: Прораб | L5: Итого | M5: Рента
A6: Теплотрасса | B6: Трубопровод USYSTEMS Ecoflex Quattro труба 2x25x2,3-2x25х3,5 /175 совмещает в себе трубы для систем горячего водоснабжения и теплоснабжения. | D6: пог.м | E6: =(I6/$J$2)*$J$117 -> 0 | F6: =((J6+K6)/$J$2)*$K$117 -> 0 | G6: =F6+E6 -> 0 | I6: =$C6*(УЗЛЫ!C2)*L117 -> 0 | J6: =$C6*РАБОТЫ!C5*M117 -> 0 | K6: =$C6*РАБОТЫ!D5*M117 -> 0 | L6: =SUM(I6:K6) -> 0 | M6: =IF(G6=0,"",(G6-L6)/G6) -> 
B7: Трубопровод USYSTEMS Ecoflex Quattro труба 2x32x2,9-2x25х3,5 /175 совмещает в себе трубы для систем горячего водоснабжения и теплоснабжения. | D7: пог.м | E7: 0 | F7: 0 | G7: 0 | I7: =$C7* (УЗЛЫ!C3)*L117 -> 0 | J7: =$C7*РАБОТЫ!C5*M117 -> 0 | K7: =$C7*РАБОТЫ!D5*M117 -> 0 | L7: 0
B8: Трубопровод USYSTEMS Ecoflex Varia Twin PN6 25x2.3 25x2.3 140 для водоснабжения и теплоснабжения. | D8: пог.м | E8: 0 | F8: 0 | G8: 0 | I8: =$C8* (УЗЛЫ!C4)*L117 -> 0 | J8: =$C8*РАБОТЫ!C5*M117 -> 0 | K8: =$C8*РАБОТЫ!D5*M117 -> 0 | L8: 0
B9: Трубопровод USYSTEMS Ecoflex Varia Twin PN6 32x2.9 32x2.9 140 для водоснабжения и теплоснабжения. | D9: пог.м | E9: 0 | F9: 0 | G9: 0 | I9: =$C9* (УЗЛЫ!C5)*L117 -> 0 | J9: =$C9*РАБОТЫ!C5*M117 -> 0 | K9: =$C9*РАБОТЫ!D5*M117 -> 0 | L9: 0
A10: Труба ПНД D32 | B10: Для подачи холодного водоснабжения (теплоизоляция Энергофлекс) | D10: пог.м | E10: 0 | F10: 0 | G10: 0 | I10: =$C10*(УЗЛЫ!C6+УЗЛЫ!C7)*L117 -> 0 | J10: =$C10*РАБОТЫ!C6*M117 -> 0 | K10: =$C10*РАБОТЫ!D6*M117 -> 0 | L10: 0
A11: Узел ТТ1 до150м2 | B11: Обвязка теплотрассы, подключение к коллекторам и насосам | D11: компл | E11: 0 | F11: 0 | G11: 0 | I11: =$C11*(УЗЛЫ!C8*0.5)*L117 -> 0 | J11: =$C11*РАБОТЫ!C7*M117 -> 0 | K11: =$C11*РАБОТЫ!D7*M117 -> 0 | L11: 0 | N11: * Обвязка с одной стороны, в случае обвязки с двух сторон - 2 компл.
A12: Узел ТТ2 150-200м2 | B12: Обвязка теплотрассы, подключение к коллекторам и насосам | D12: компл | E12: 0 | F12: 0 | G12: 0 | I12: =$C12* (УЗЛЫ!C9*0.5)*L117 -> 0 | J12: =$C12*РАБОТЫ!C7*M117 -> 0 | K12: =$C12*РАБОТЫ!D7*M117 -> 0 | L12: 0
A13: Автоматика | B13: Датчик температуры МЛ-722 (DS) | D13: шт. | E13: 0 | F13: 0 | G13: 0 | I13: =$C13* УЗЛЫ!C12*L117 -> 0 | J13: =($C13*РАБОТЫ!C8+$C13*РАБОТЫ!D8)*M117 -> 0 | L13: 0
A14: Кабель МКЭШ 5х0,75 , ПНД труба гофр. с протяжкой | B14: Кабель управления автоматикой | D14: пог.м | E14: =(I14/0.7)*$J$117 -> 0 | F14: =((J14+K14)/0.8)*$K$117 -> 0 | G14: 0 | I14: =C14*УЗЛЫ!C11*L117 -> 0 | J14: =C14*РАБОТЫ!C6*M117 -> 0 | K14: =C14*РАБОТЫ!D6*M117 -> 0 | L14: 0
B15: Протяжка кабеля в ПНД трубе (бухта 100м) | D15: бухта | E15: =(I15/0.8)*$J$117 -> 0 | G15: 0 | I15: =C15*УЗЛЫ!C10*L117 -> 0 | L15: 0
A16: Земляные работы | B16: Производится выемка и обратная засыпка | D16: м3 | E16: =(I16/$J$2)*$J$117 -> 0 | F16: =((J16+K16)/$J$2)*$K$117 -> 0 | G16: 0 | J16: =$C16*РАБОТЫ!C9*M117 -> 0 | K16: =$C16*РАБОТЫ!D9*M117 -> 0 | L16: 0
A17: Итого материал: | G17: =SUM(E6:E16) -> 0 | L17: =SUM(I6:I16) -> 0 | N17: =(SUM(G17:G18)-SUM(L17:L18))/SUM(G17:G18) -> 
A18: Работа: | G18: =SUM(F6:F16) -> 0 | L18: =SUM(J6:K16) -> 0
A19: Отопление
A20: Материалы/услуги | B20: Описание | C20: Кол-во | D20: Ед.изм | E20: Мат-ал, руб | F20: Работа, руб | G20: Итого, руб | I20: Материал | J20: Бригада | K20: Прораб | L20: Итого | M20: Рента
A21: Радиаторы (белые) | B21: Радиаторы стальные панельные концерна Rettig Heating Group (Европа) | D21: шт. | E21: =(I21/0.75)*$J$117 -> 0 | G21: =IF(C21>=1,E21,0) -> 0 | I21: =$C21*УЗЛЫ!C18 -> 0 | L21: =SUM(I21:K21) -> 0 | M21: =IF(G21=0,"",(G21-L21)/G21) -> 
B22: Радиаторы стальные панельные Rommer (Россия) | D22: шт. | E22: =(I22/0.75)*$J$117 -> 0 | G22: =IF(C22>=1,E22,0) -> 0 | I22: =C22*УЗЛЫ!C19 -> 0 | L22: 0
B23: Радиатор КЗТО Гармония | D23: шт. | E23: =(I23/0.75)*$J$117 -> 0 | G23: =IF(C23>=1,E23,0) -> 0 | I23: =C23*УЗЛЫ!C20 -> 0 | L23: 0
B24: Радиатор КЗТО РСК | D24: шт. | E24: =(I24/0.75)*$J$117 -> 0 | G24: 0 | I24: =C24*УЗЛЫ!C21 -> 0 | L24: 0
A25: Комплект декоративной подводки | B25: Для труб из сшитого полиэтилена | D25: компл. | E25: =(I25/0.9)*$J$117 -> 0 | F25: =((J25+K25)/$J$2)*$K$117*1.5 -> 0 | G25: =F25+E25 -> 0 | I25: =$C25*УЗЛЫ!C22*L117 -> 0 | J25: =$C25* РАБОТЫ!C12*M117 -> 0 | K25: =$C25* РАБОТЫ!D12*M117 -> 0 | L25: 0
A26: Монтаж креплений для радиаторов настенный | B26: Монтаж с использованием электронного измерителя уровня | D26: компл. | E26: =(I26/$J$2)*$J$117 -> 0 | F26: =((J26+K26)/$J$2)*$K$117*1.3 -> 0 | G26: 0 | J26: =$C26*(РАБОТЫ!C13*0.3)*M117 -> 0 | K26: =$C26*( РАБОТЫ!D13*0.3)*M117 -> 0 | L26: 0
A27: Монтаж креплений для радиаторов напольный | B27: Монтаж с использованием электронного измерителя уровня | D27: компл. | E27: =(I27/$J$2)*$J$117 -> 0 | F27: =((J27+K27)/$J$2)*$K$117*1.3 -> 0 | G27: 0 | I27: =C27*УЗЛЫ!D26*L117 -> 0 | J27: =$C27*( РАБОТЫ!C13*0.3)*M117 -> 0 | K27: =$C27*( РАБОТЫ!D13*0.3)*M117 -> 0 | L27: 0
A28: Монтаж радиатора | B28: Монтаж с использованием электронного измерителя уровня | D28: компл. | E28: =(I28/$J$2)*$J$117 -> 0 | F28: =((J28+K28)/0.76)*$K$117*1.3 -> 0 | G28: 0 | J28: =$C28* РАБОТЫ!C13*M117 -> 0 | K28: =$C28* РАБОТЫ!D13*M117 -> 0 | L28: 0
A29: Комплект подключения | B29: Узел нижнего подключения радиатора прямой из пола (без декор.подводки) | D29: компл. | E29: =(I29/0.8)*$J$117*0.7 -> 0 | F29: =(C29*500)*K117 -> 0 | G29: 0 | I29: =$C29*УЗЛЫ!C28*L117 -> 0 | L29: 0
B30: Узел нижнего подключения радиатора угловой из стены (без декор. подводки) | D30: компл. | E30: =(I30/0.8)*$J$117*0.7 -> 0 | F30: =(C30*590)+(J30+K30) -> 0 | G30: 0 | I30: =$C30*УЗЛЫ!C30*L117 -> 0 | J30: =C30*((РАБОТЫ!C36*2)) -> 0 | K30: =C30*(РАБОТЫ!D36*2)*M117 -> 0 | L30: 0
A31: Терморегулятор для радиатора | B31: Термоголовка (Германия), c жидкостным чувствительным элементом. С функцией защиты от замерзания и с блокировкой диапазона настройки. | D31: шт. | E31: =1069*C31 -> 0 | F31: =(C31*500)*K117*0.7 -> 0 | G31: 0 | I31: 0 | L31: =SUM(I31:K31) -> 0
A32: Управление внутрипольным конвектором | B32: Настенный регулятор программируемый с сенсорным экраном. Возможность регулировки до 12 приборов (Vartronic Белый) | D32: шт. | E32: =(I32/$J$2)*$J$117 -> 0 | F32: =((J32+K32)/$J$2)*K117 -> 0 | G32: 0 | I32: =$C32* УЗЛЫ!C33*L117 -> 0 | J32: =$C32*РАБОТЫ!C15*M117 -> 0 | K32: =$C32*РАБОТЫ!D15*M117 -> 0 | L32: 0
B33: Настенный регулятор программируемый с сенсорным экраном. Возможность регулировки до 12 приборов (Vartronic Черный) | D33: шт. | E33: =(I33/$J$2)*$J$117 -> 0 | F33: =((J33+K33)/$J$2)*K117 -> 0 | G33: 0 | I33: =$C33* УЗЛЫ!C33*L117 -> 0 | J33: =$C33*РАБОТЫ!C15*M117 -> 0 | K33: =$C33*РАБОТЫ!D15*M117 -> 0 | L33: =SUM(I33:K33) -> 0
A34: Комплектующие для подлючения конвектора внутрипольного | B34: Комплект запорно-регулирующей арматуры. | D34: компл. | E34: =(I34/$J$2)*$J$117 -> 0 | F34: =(C34*2300)*K117 -> 0 | G34: 0 | I34: =$C34*УЗЛЫ!C34*L117 -> 0 | L34: 0
A35: Конвектор энергозависимый внутрипольный | B35: Встраиваемый в пол конвектор Varmann Qtherm 230.75.1250. решетка роликовая из алюминия, тангенциальный вентилятор | D35: компл. | E35: =(I35/0.7)*$J$117*0.88 -> 0 | F35: =((J35+K35)/$J$2)*$K$117*2 -> 0 | G35: 0 | I35: =$C35*УЗЛЫ!C36 -> 0 | J35: =$C35*РАБОТЫ!C16*M117 -> 0 | K35: =$C35*РАБОТЫ!D16*M117 -> 0 | L35: 0
B36: Встраиваемый в пол конвектор Varmann Qtherm 230.75.1500. решетка роликовая из алюминия, тангенциальный вентилятор | D36: компл. | E36: 0 | F36: 0 | G36: 0 | I36: =$C36*УЗЛЫ!C37 -> 0 | J36: =$C36*РАБОТЫ!C16*M117 -> 0 | K36: =$C36*РАБОТЫ!D16*M117 -> 0 | L36: 0
B37: Встраиваемый в пол конвектор Varmann Qtherm 230.75.1750. решетка роликовая из алюминия, тангенциальный вентилятор | D37: компл. | E37: 0 | F37: 0 | G37: 0 | I37: =$C37*УЗЛЫ!C38 -> 0 | J37: =$C37* РАБОТЫ!$C$16*M117 -> 0 | K37: =$C37* РАБОТЫ!$D$16*M117 -> 0 | L37: 0
B38: Встраиваемый в пол конвектор Varmann Qtherm 230.75.2000. решетка роликовая из алюминия, тангенциальный вентилятор | D38: компл. | E38: 0 | F38: 0 | G38: 0 | I38: =C38*УЗЛЫ!C39 -> 0 | J38: =$C38* РАБОТЫ!$C$16*M117 -> 0 | K38: =$C38* РАБОТЫ!$D$16*M117 -> 0 | L38: 0
B39: Встраиваемый в пол конвектор Varmann Qtherm 230.75.2250. решетка роликовая из алюминия, тангенциальный вентилятор | D39: компл. | E39: 0 | F39: 0 | G39: 0 | I39: =C39*УЗЛЫ!C40 -> 0 | J39: =$C39* РАБОТЫ!$C$16*M117 -> 0 | K39: =$C39* РАБОТЫ!$D$16*M117 -> 0 | L39: 0
B40: Встраиваемый в пол конвектор Varmann Qtherm 230.75.3000. решетка роликовая из алюминия, вентиляторы с ЕС двигателем | D40: компл. | E40: 0 | F40: 0 | G40: 0 | I40: =C40*УЗЛЫ!C41 -> 0 | J40: =$C40* РАБОТЫ!$C$16*M117 -> 0 | K40: =$C40* РАБОТЫ!$D$16*M117 -> 0 | L40: 0
A41: Конвектор энергонезависимый внутрипольный | B41: Встраиваемый в пол конвектор Varmann Ntherm, 230.90.1400. решетка роликовая из алюминия. | D41: компл. | E41: 0 | F41: 0 | G41: 0 | I41: =C41*УЗЛЫ!C42 -> 0 | J41: =$C41* РАБОТЫ!$C$16*M117 -> 0 | K41: =$C41* РАБОТЫ!$D$16*M117 -> 0 | L41: =SUM(I41:K41) -> 0
B42: Встраиваемый в пол конвектор Varmann Ntherm, 230.90.1800. решетка роликовая из алюминия. | D42: компл. | E42: 0 | F42: 0 | G42: 0 | I42: =C42*УЗЛЫ!C43 -> 0 | J42: =$C42* РАБОТЫ!$C$16*M117 -> 0 | K42: =$C42* РАБОТЫ!$D$16*M117 -> 0 | L42: 0
B43: Встраиваемый в пол конвектор Varmann Ntherm, 230.90.2200. решетка роликовая из алюминия. | D43: компл. | E43: 0 | F43: 0 | G43: 0 | I43: =C43*УЗЛЫ!C44 -> 0 | J43: =$C43* РАБОТЫ!$C$16*M117 -> 0 | K43: =$C43* РАБОТЫ!$D$16*M117 -> 0 | L43: 0
A44: Конвектор энергонезависимый внутрипольный влагостойкий корпус | B44: Встраиваемый в пол конвектор Varmann Ntherm ES (для влажных помещений), 230.90.1400. решетка роликовая из алюминия. | D44: компл. | E44: 0 | F44: 0 | G44: 0 | I44: =C44*УЗЛЫ!C45 -> 0 | J44: =$C44* РАБОТЫ!$C$16*M117 -> 0 | K44: =$C44* РАБОТЫ!$D$16*M117 -> 0 | L44: 0
B45: Встраиваемый в пол конвектор Varmann Ntherm ES (для влажных помещений), 230.90.1800. решетка роликовая из алюминия. | D45: компл. | E45: 0 | F45: 0 | G45: 0 | I45: =C45*УЗЛЫ!C46 -> 0 | J45: =$C45* РАБОТЫ!$C$16*M117 -> 0 | K45: =$C45* РАБОТЫ!$D$16*M117 -> 0 | L45: 0
B46: Встраиваемый в пол конвектор Varmann Ntherm ES (для влажных помещений), 230.90.2200. решетка роликовая из алюминия. | D46: компл. | E46: 0 | F46: 0 | G46: 0 | I46: =C46*УЗЛЫ!C47 -> 0 | J46: =$C46* РАБОТЫ!$C$16*M117 -> 0 | K46: =$C46* РАБОТЫ!$D$16*M117 -> 0 | L46: 0
A47: Конвектор напольный | B47: Конвектор Varmann MiniKon 235.130.1600 | D47: шт. | E47: =(I47/0.7)*$J$117*0.87 -> 0 | F47: 0 | G47: 0 | I47: =C47*УЗЛЫ!C48 -> 0 | J47: =$C47* РАБОТЫ!C14*M117 -> 0 | K47: =$C47*РАБОТЫ!D14*M117 -> 0 | L47: 0
B48: Конвектор Varmann MiniKon 185.130.1600 | D48: шт. | E48: =(I48/0.7)*$J$117*0.85 -> 0 | F48: 0 | G48: 0 | I48: =C48*УЗЛЫ!C49 -> 0 | J48: =$C48* РАБОТЫ!$C$14*M117 -> 0 | K48: =$C48* РАБОТЫ!$D$14*M117 -> 0 | L48: 0
A49: Коллекторная система отопления | B49: Трубопроводы системы отопления - высококачественные трубы PEX (Трубы ТЕСЕ Германия - поперечно сшитый полиэтилен) в утеплителе "Энергофлекс". | D49: м² | E49: =(I49/$J$2)*$J$117 -> 0 | F49: =(C49*600)*$K$117 -> 0 | G49: 0 | I49: =$C49*(УЗЛЫ!C13)+(IF(C49=0,0,)+IF(C49>1,УЗЛЫ!D17,)) -> 0 | J49: =C49*((РАБОТЫ!C17+РАБОТЫ!C18)/R49)*M117 -> 0 | K49: =C49*((РАБОТЫ!D17+РАБОТЫ!D18)/R49)*M117 -> 0 | L49: 0 | O49: коэф. трубы отопл.: | P49: =IF(T49<70,4.5, IF(T49<250, 3.5, 4)) -> 4.5 | Q49: закл. петли: | R49: =IF(V49>7, V49, IF(T49=0, 12, IF(T49<165,11, 11+CEILING((T49-165)/8,1)))) -> 12 | S49: отапл. площ.: | T49: =C49 -> 0 | U49: радиаторы /конвек-ры: | V49: =C21+C37 -> 0
B50: Переход с трубопроводов Stout (по купону) на ТЕСЕ Германия | D50: м² | E50: =I50/0.65 -> 0 | F50: =(C50*600)*$K$117 -> 0 | G50: 0 | I50: =C50*УЗЛЫ!C16*L117 -> 0 | L50: 0
A51: Подключение коллекторного шкафа вне котельной | B51: Трубопроводы (до 25 пог.м), фитинги, арматура | D51: компл. | E51: =I51/0.62 -> 0 | F51: =(J51+K51)/0.6 -> 0 | G51: 0 | I51: =C51*(УЗЛЫ!C50+УЗЛЫ!C51)*L117 -> 0 | J51: =C51*РАБОТЫ!C19*M117 -> 0 | K51: =C51*РАБОТЫ!D19*M117 -> 0 | L51: 0
A52: Коллектор системы отопления | B52: Коллектор stout, шкаф, шаровые краны, фиксаторы, прокладки, фитинги. 3 выхода | D52: компл. | E52: =(I52/$K$2)*$J$117*0.75 -> 0 | F52: =((J52+K52)/$K$2)*$K$117*2.7 -> 0 | G52: =E52+F52 -> 0 | I52: =$C52*УЗЛЫ!N58*L117 -> 0 | J52: =$C52*РАБОТЫ!C20*M117 -> 0 | K52: =$C52*РАБОТЫ!D20*M117 -> 0 | L52: 0
B53: Коллектор stout, шкаф, шаровые краны, фиксаторы, прокладки, фитинги. 4 выхода | D53: компл. | E53: =(I53/$K$2)*$J$117*0.75 -> 0 | F53: 0 | G53: =E53+F53 -> 0 | I53: =$C53*УЗЛЫ!N59*L117 -> 0 | J53: =$C53*РАБОТЫ!C20*M117 -> 0 | K53: =$C53*РАБОТЫ!D20*M117 -> 0 | L53: 0
B54: Коллектор stout, шкаф, шаровые краны, фиксаторы, прокладки, фитинги. 5 выходов | D54: компл. | E54: =(I54/$K$2)*$J$117*0.75 -> 0 | F54: 0 | G54: 0 | I54: =$C54*УЗЛЫ!N60*L117 -> 0 | J54: =$C54*РАБОТЫ!C20*M117 -> 0 | K54: =$C54*РАБОТЫ!D20*M117 -> 0 | L54: 0
B55: Коллектор stout, шкаф, шаровые краны, фиксаторы, прокладки, фитинги. 6 выходов | D55: компл. | E55: =(I55/$K$2)*$J$117*0.8 -> 0 | F55: 0 | G55: 0 | I55: =$C55*УЗЛЫ!N61*L117 -> 0 | J55: =$C55*РАБОТЫ!C20*M117 -> 0 | K55: =$C55*РАБОТЫ!D20*M117 -> 0 | L55: 0
B56: Коллектор stout, шкаф, шаровые краны, фиксаторы, прокладки, фитинги. 7 выходов | D56: компл. | E56: =(I56/$K$2)*$J$117*0.81 -> 0 | F56: 0 | G56: 0 | I56: =$C56*УЗЛЫ!N62*L117 -> 0 | J56: =$C56*РАБОТЫ!C20*M117 -> 0 | K56: =$C56*РАБОТЫ!D20*M117 -> 0 | L56: 0
B57: Коллектор stout, шкаф, шаровые краны, фиксаторы, прокладки, фитинги. 8 выходов | D57: компл. | E57: =(I57/$K$2)*$J$117*0.8 -> 0 | F57: 0 | G57: 0 | I57: =$C57*УЗЛЫ!N63*L117 -> 0 | J57: =$C57*РАБОТЫ!C20*M117 -> 0 | K57: =$C57*РАБОТЫ!D20*M117 -> 0 | L57: 0
B58: Коллектор stout, шкаф, шаровые краны, фиксаторы, прокладки, фитинги. 9 выходов | D58: компл. | E58: =(I58/$K$2)*$J$117*0.81 -> 0 | F58: 0 | G58: 0 | I58: =$C58*УЗЛЫ!N64*L117 -> 0 | J58: =$C58*РАБОТЫ!C20*M117 -> 0 | K58: =$C58*РАБОТЫ!D20*M117 -> 0 | L58: 0
B59: Коллектор stout, шкаф, шаровые краны, фиксаторы, прокладки, фитинги. 10 выходов | D59: компл. | E59: =(I59/$K$2)*$J$117*0.8 -> 0 | F59: 0 | G59: 0 | I59: =$C59*УЗЛЫ!N65*L117 -> 0 | J59: =$C59*РАБОТЫ!C20*M117 -> 0 | K59: =$C59*РАБОТЫ!D20*M117 -> 0 | L59: 0
B60: Коллектор stout, шкаф, шаровые краны, фиксаторы, прокладки, фитинги. 11 выходов | D60: компл. | E60: =(I60/$K$2)*$J$117*0.8 -> 0 | F60: 0 | G60: 0 | I60: =$C60*УЗЛЫ!N66*L117 -> 0 | J60: =$C60*РАБОТЫ!C20*M117 -> 0 | K60: =$C60*РАБОТЫ!D20*M117 -> 0 | L60: 0
B61: Коллектор stout, шкаф, шаровые краны, фиксаторы, прокладки, фитинги. 12 выходов | D61: компл. | E61: =(I61/$K$2)*$J$117*0.81 -> 0 | F61: 0 | G61: 0 | I61: =$C61*УЗЛЫ!N67*L117 -> 0 | J61: =$C61*РАБОТЫ!C20*M117 -> 0 | K61: =$C61*РАБОТЫ!D20*M117 -> 0 | L61: 0
A62: Итого материал: | G62: =SUM(E21:E61) -> 0 | L62: =SUM(I21:I61) -> 0 | N62: =(SUM(G62:G63)-SUM(L62:L63))/SUM(G62:G63) -> 
A63: Работа: | G63: =SUM(F21:F61) -> 0 | L63: =SUM(J21:K61) -> 0
A64: Водоснабжение, канализация, вентиляция
A65: Материалы/услуги | B65: Описание | C65: Кол-во | D65: Ед.изм | E65: Мат-ал, руб | F65: Работа, руб | G65: Итого, руб | I65: Материал | J65: Бригада | K65: Прораб | L65: Итого | M65: Рента
A66: Точки водоснабжения | B66: Разводка труб холодного и горячего водоснабжения внутри помещения. Сшитый полиэтилен (ТЕСЕ, Германия), в утеплителе "Энергофлекс". Установка водорозеток | D66: шт. | E66: =(I66/$K$2)*$J$117 -> 0 | F66: =((J66+K66)/$K$2)*$K$117*1.3 -> 0 | G66: =F66+E66 -> 0 | I66: =C66* УЗЛЫ!C68*L117 -> 0 | J66: =$C66*(РАБОТЫ!C23 + (РАБОТЫ!C24/10))*M117 -> 0 | K66: =$C66*(РАБОТЫ!D23 + (РАБОТЫ!D24/10))*M117 -> 0 | L66: =SUM(I66:K66) -> 0 | M66: =IF(G66=0,"",(G66-L66)/G66) ->  | O66: коэф. труб воды.: | P66: =IF(R66<8, 12, IF(R66<11, 8, IF(R66<18, 9,10))) -> 12 | Q66: точки воды: | R66: =C66 -> 0
B67: Переход водоснабжения Stout (по купону) на Тесе Германия | D67: шт. | E67: =I67/0.65 -> 0 | G67: 0 | I67: =C67*УЗЛЫ!C71*L117 -> 0 | L67: 0
A68: Подключение коллекторного шкафа вне котельной | B68: Трубопроводы (до 25 пог.м), фитинги, арматура | D68: компл. | E68: =I68/0.62 -> 0 | F68: =(J68+K68)/0.6 -> 0 | G68: 0 | I68: =C68*(УЗЛЫ!C50+УЗЛЫ!C51)*L117 -> 0 | J68: =C68*РАБОТЫ!C19*M117 -> 0 | K68: =C68*РАБОТЫ!D19*M117 -> 0 | L68: 0
A69: Коллектор водоснабжения | B69: Без рециркуляции - коллектор, шкаф распределительный наружный, шаровые краны, фиксаторы, прокладки, компрессионные фитинги. | D69: компл. | E69: =(I69/$J$2)*$J$117*0.92 -> 0 | F69: =((J69+K69)/$J$2)*$K$117*1.8 -> 0 | G69: 0 | I69: =$C69*УЗЛЫ!N72*L117 -> 0 | J69: =$C69*РАБОТЫ!C25*M117 -> 0 | K69: =$C69*РАБОТЫ!D25*M117 -> 0 | L69: 0
B70: С рециркуляцией - коллектор, шкаф распределительный наружный, шаровые краны, фиксаторы, прокладки, компрессионные фитинги. | D70: компл. | E70: =(I70/$J$2)*$J$117*0.9 -> 0 | F70: =((J70+K70)/$J$2)*$K$117*2.9 -> 0 | G70: 0 | I70: =$C70*УЗЛЫ!N73*L117 -> 0 | J70: =$C70*РАБОТЫ!C25*M117 -> 0 | K70: =$C70*РАБОТЫ!D25*M117 -> 0 | L70: 0
A71: Точки циркуляции | B71: Дополнительный контур на влажное помещение | D71: шт. | E71: =(I71/$J$2)*$J$117 -> 0 | F71: =((J71+K71)/$J$2)*$K$117 -> 0 | G71: 0 | I71: =C71*УЗЛЫ!C68*L117 -> 0 | J71: =$C71* РАБОТЫ!C23*M117 -> 0 | K71: =$C71* РАБОТЫ!D23*M117 -> 0 | L71: =SUM(I71:K71) -> 0
A72: Точки канализации | B72: Монтаж системы канализации шумопоглащающими трубами Rehau Германия | D72: шт. | E72: =(I72/$J$2)*$J$117 -> 0 | F72: =((J72+K72)/$J$2)*$K$117 -> 0 | G72: 0 | I72: =$C72* УЗЛЫ!C76*L117 -> 0 | J72: =$C72* (РАБОТЫ!C26+(РАБОТЫ!C27*0.5)+(РАБОТЫ!C28*0.1))*M117 -> 0 | K72: =$C72* (РАБОТЫ!D27+РАБОТЫ!D28)*M117 -> 0 | L72: 0
B73: Переход с трубы Sinicon Россия (по купону) на трубу Rehau Германия | D73: шт. | E73: =(I73/$J$2)*$J$117 -> 0 | G73: 0 | I73: =C73*УЗЛЫ!C79*L117 -> 0 | L73: 0
B74: Монтаж системы канализации производится шумопоглощающими трубами Sinicon Россия. Прокладка под лентой ростверка, с последующим выпуском на 1м за него (для фундамента типа "ростверк") | D74: шт. | E74: =(I74/$J$2)*$J$117 -> 0 | F74: =((J74+K74)/$J$2)*$K$117 -> 0 | G74: 0 | I74: =$C74* УЗЛЫ!C77*L117 -> 0 | J74: =$C74* (РАБОТЫ!C26+(РАБОТЫ!C27*0.5)+(РАБОТЫ!C28*0.1))*M117 -> 0 | K74: =$C74* (РАБОТЫ!D27+РАБОТЫ!D28)*M117 -> 0 | L74: 0 | M74: =IF(G74=0,"",(G74-L74)/G74) -> 
B75: Земляные работы | C75: 4 | D75: м3 | E75: =(I75/$J$2)*$J$117 -> 0 | F75: =((J75+K75)/$J$2)*$K$117 -> 12489.23077 | G75: 12489.23077 | J75: =$C75*РАБОТЫ!C28*M117 -> 6765 | K75: =$C75*РАБОТЫ!D28*M117 -> 1353 | L75: 8118 | M75: =IF(G75=0,"",(G75-L75)/G75) -> 0.35
A76: Точки вентиляции (без прохода через кровлю ) 100мм | B76: Система естественной вентиляции предназначена для того, чтобы регулировать влажность и удалять неприятные запахи из кухни и санузлов. | D76: шт. | E76: =(K76/$J$2)*$J$117*1.1 -> 0 | F76: =((J76)/$J$2)*$K$117*1.5 -> 0 | G76: 0 | J76: =$C76* РАБОТЫ!C29*M117 -> 0 | K76: =$C76* РАБОТЫ!D29*M117 -> 0 | L76: 0
A77: Точки вентиляции (без прохода через кровлю ) 125мм | B77: Система естественной вентиляции предназначена для того, чтобы регулировать влажность и удалять неприятные запахи из кухни и санузлов. | D77: шт. | E77: =(K77/0.78)*$J$117*1.1 -> 0 | F77: =((J77)/$J$2)*$K$117*1.5 -> 0 | G77: 0 | J77: =$C77* РАБОТЫ!C30*M117 -> 0 | K77: =$C77* РАБОТЫ!D30*M117 -> 0 | L77: 0
A78: Точки вентиляции (без прохода через кровлю ) 150мм | B78: Система естественной вентиляции предназначена для того, чтобы регулировать влажность и удалять неприятные запахи из кухни и санузлов. | D78: шт. | E78: =(K78/0.78)*$J$117*1.1 -> 0 | F78: =((J78)/$J$2)*$K$117*1.5 -> 0 | G78: =F78+E78 -> 0 | J78: =$C78* РАБОТЫ!C30*M117 -> 0 | K78: =$C78* РАБОТЫ!D31*M117 -> 0 | L78: 0
A79: Узел на полив | B79: Кран Merril, фитинги, переходники | D79: шт. | E79: =(I79/$J$2)*$J$117 -> 0 | F79: =((J79+K79)/0.4)*$K$117 -> 0 | G79: 0 | I79: =$C79* УЗЛЫ!C80*L117 -> 0 | J79: =$C79* РАБОТЫ!C33*M117 -> 0 | K79: =$C79* РАБОТЫ!D33*M117 -> 0 | L79: =SUM(I79:K79) -> 0
A80: Трап (точечный) | B80: Только материал (трап точечный, переходник, компенсатор высоты) | D80: шт. | E80: =(I80/$J$2)*$J$117 -> 0 | G80: 0 | I80: =$C80*УЗЛЫ!C82*L117 -> 0 | L80: 0
A81: Установка трапа (точечного) | B81: Только работа | D81: Усл. | E81: =(I81/$J$2)*$J$117 -> 0 | F81: =((J81+K81)/$J$2)*$K$117 -> 0 | G81: =E81+F81 -> 0 | J81: =$C81*РАБОТЫ!C34*M117 -> 0 | K81: =$C81*РАБОТЫ!D34*M117 -> 0 | L81: 0
A82: Трап (линейный) ТЕСЕ | B82: Дренажный трап 700мм, решётка из нержавеющей стали, погружной стакан с мембраной, сифон, комплект опор | D82: шт. | E82: =(I82/0.8)*$J$117 -> 0 | G82: =F82+E82 -> 0 | I82: =$C82*УЗЛЫ!C83*L117 -> 0 | L82: =SUM(I82:K82) -> 0
A83: Установка трапа (линейного) | B83: Только работа | D83: Усл. | E83: =(I83/$J$2)*$J$117 -> 0 | F83: =((J83+K83)/$J$2)*$K$117 -> 0 | G83: =E83+F83 -> 0 | J83: =$C83* РАБОТЫ!C35*M117 -> 0 | K83: =$C83* РАБОТЫ!D35*M117 -> 0 | L83: 0
A84: Лоток для водоотведения (трап) в гараже | B84: Монтаж пластикового лотка (установка по уровню, крепление, монтаж чугунных оцинкованных решеток) без пескоуловителя | D84: пог.м. | E84: =I84/0.62 -> 0 | F84: =(J84+K84)/0.62 -> 0 | G84: =E84+F84 -> 0 | I84: =((C84*УЗЛЫ!C111))+IF(C84>0,УЗЛЫ!C113,0) -> 0 | J84: =C84*РАБОТЫ!C40*M117 -> 0 | K84: =C84*РАБОТЫ!D40*M117 -> 0 | L84: 0
B85: Монтаж пескоуловителя с решеткой | D85: шт. | E85: =I85/0.62 -> 0 | F85: =(J85+K85)/0.62 -> 0 | G85: 0 | I85: =C85*УЗЛЫ!C112*L117 -> 0 | J85: =C85*РАБОТЫ!C41*M117 -> 0 | K85: =C85*РАБОТЫ!D41*M117 -> 0 | L85: 0
B86: Подключение к закладной | D86: шт. | E86: =I86/0.62 -> 0 | F86: =(J86+K86)/0.62 -> 0 | G86: 0 | I86: =C86*УЗЛЫ!C114*L117 -> 0 | J86: =C86*РАБОТЫ!C42*M117 -> 0 | K86: =C86*РАБОТЫ!D42*M117 -> 0 | L86: 0
A87: Установка скрытых смесителей | B87: Душ/ ванна/ гиг.душ (комплектующие, сам смеситель покупает заказчик) | D87: шт. | E87: =I87/0.62 -> 0 | F87: =((J87+K87)/$J$2)*$K$117 -> 0 | G87: =E87+F87 -> 0 | I87: =C87*УЗЛЫ!C116*L117 -> 0 | J87: =C87*РАБОТЫ!C37*M117 -> 0 | K87: =C87*РАБОТЫ!D37*M117 -> 0 | L87: 0
B88: Встроенная душевая система с несколькими выводами (комплектующие, сам смеситель покупает заказчик) | D88: шт. | E88: 0 | F88: =((J88+K88)/$J$2)*$K$117 -> 0 | G88: =E88+F88 -> 0 | I88: =C88*УЗЛЫ!C118*L117 -> 0 | J88: =C88*РАБОТЫ!C38*M117 -> 0 | K88: =C88*РАБОТЫ!D38*M117 -> 0 | L88: 0
A89: Инсталляция (только материал) | B89: Инсталляция встраиваемая в деревянную перегородку. Только материал. (доска 40х140, монтажный комплект инсталляции без унитаза) | D89: Компл | E89: =I89/0.85 -> 0 | G89: =E89+F89 -> 0 | I89: =C89*УЗЛЫ!C84*'ОВиВК ТЕСЕ'!L117 -> 0 | L89: 0
B90: Инсталляция в коробе на стену (кирпич, металлокаркас, брус) или усиление стены из металлокаркаса. Только материал. (металлический профиль ТЕСЕ, монтажный комплект инсталляции без унитаза) | D90: Компл | E90: =I90/0.85 -> 0 | G90: =E90+F90 -> 0 | I90: =C90*УЗЛЫ!C85*L117 -> 0 | L90: 0
A91: Короб под инсталяцию (при необходимости) | B91: Только работа | D91: Усл. | F91: =((J91+K91)/0.33)*$K$117 -> 0 | G91: 0 | J91: =$C91* РАБОТЫ!C39*M117 -> 0 | K91: =$C91* РАБОТЫ!D39*M117 -> 0 | L91: 0
A92: Установка инсталляции | B92: Только работа, материал заказчика | D92: Усл. | F92: =((J92+K92)/0.25)*$K$117 -> 0 | G92: =E92+F92 -> 0 | J92: =$C92* РАБОТЫ!C39*M117 -> 0 | K92: =$C92* РАБОТЫ!D39*M117 -> 0 | L92: 0
A93: Итого материал: | G93: =SUM(E66:E92) -> 0 | L93: =SUM(I66:I92) -> 0 | N93: =(SUM(G93:G94)-SUM(L93:L94))/SUM(G93:G94) -> 0.35
A94: Работа: | B94: =РАБОТЫ!A1 -> Дата | G94: =SUM(F66:F92) -> 12489.23077 | L94: =SUM(J66:K92) -> 8118 | M94: 0.35
A95: Дополнительно
A96: Материалы/услуги | B96: Описание | C96: Кол-во | D96: Ед.изм | E96: Мат-ал, руб | F96: Работа, руб | G96: Итого, руб
A97: Проходные отверстия в плите | B97: Алмазное сверление | C97: 9 | D97: шт. | F97: =IF($C$97=0,0, IF($C$97<4,9000, IF($C$97>3,9000+2300*($C$97-3)))) -> 22800 | G97: =F97+E97 -> 22800 | K97: =IF($C$97=0,0, IF($C$97<4,6000, IF($C$97>3,6000+1700*($C$97-3)))) -> 16200
A98: Штробление | B98: Выводы под трубопроводы | C98: 0 | D98: шт. | F98: =(J98+K98)/0.65 -> 0 | G98: =F98+E98 -> 0 | J98: =C98*РАБОТЫ!C36 -> 0 | K98: =C98*РАБОТЫ!D36 -> 0
A99: Закладная для канализации | B99: Устройство ввода канализации в дом | C99: 0 | D99: шт. | E99: =C99*4500 -> 0 | F99: =C99*16000 -> 0 | G99: =F99+E99 -> 0 | K99: =12500*C99 -> 0
A100: Закладная для воды | B100: Устройство ввода водоснабжения в дом | C100: 0 | D100: шт. | E100: =C100*4500 -> 0 | F100: =C100*16000 -> 0 | G100: =F100+E100 -> 0 | K100: =12500*C100 -> 0
A101: Вывоз мусора (конетейнер) | B101: Вывоз мусора контейнер (необходим для домов свыше 350 м2) | C101: 0 | D101: Усл. | F101: =K101/0.8 -> 0 | G101: =F101 -> 0 | K101: =C101*8000 -> 0
A102: Подготовительные и накладные расходы | B102: Включают разработку комплекта документов для монтажа, проверку ОТК и приемку каждого этапа работ инженерами технического надзора, соблюдение стандарта компании | C102: 1 | D102: Усл. | F102: =C102*31000 -> 31000 | G102: =F102 -> 31000 | J102: 2000 | K102: 4500 | L102: =5500+6500 -> 12000 | M102: выезды ИТН | P102: Стоимость ОВиВК + радиаторы
A103: Транспортные расходы | B103: Доставка оборудования и материалов на объект | C103: 1 | D103: усл. | F103: =C103*11000 -> 11000 | G103: =F103 -> 11000 | L103: 10000 | P103: =F110+'ТП ТЕСЕ'!G46 -> 77289.23077
A104: Доставка бытовки на объект | B104: Если есть такая необходимость, мы предоставляем бытовку для проживания на объекте строителей. После окончания работ, бытовка вывозится. | D104: км от мкад | G104: =IF(C104=0,0, IF(C104<100,24000, IF(C104<150,30000,36000))) -> 0 | L104: =IF(C104=0,0, IF(C104<=50,13500, IF(C104<=100,17000, IF(C104<=150,20500, IF(C104<=200,24000, IF(C104<=250,27500, IF(C104>250,31000,))))))) -> 0
A105: Итого по смете: | F105: =SUM(G17:G18,G62:G63,G93:G94,G97:G104) -> 77289.23077 | I105: =SUM(L17,L62,L93) -> 0 | J105: =SUM(J6:J16,J21:J61,J66:J92,J97:J104) -> 8765 | K105: =SUM(K6:K16,K21:K61,K66:K92,K97:K104) -> 22053 | L105: =SUM(I105:K105,L97:L104)-M108 -> 52818 | M105: =IF(F110=0,"",(F110-L105)/F110) -> 0.3166188941
A106: Вычет по сертификату за систему отопление: | D106: м² | E106: =(I106/$J$2)*$J$117 -> 0 | F106: =(C106*600)*$K$117 -> 0 | G106: =F106+E106 -> 0 | I106: =$C106*(УЗЛЫ!C15)+(IF(C106=0,0,)+IF(C106>1,УЗЛЫ!D17,)) -> 0 | J106: =C106*(РАБОТЫ!C17+РАБОТЫ!C18)/R49 -> 0 | K106: =C106*(РАБОТЫ!D17+РАБОТЫ!D18)/R49 -> 0 | L106: =SUM(I106:K106) -> 0
A107: Вычет по сертификату за систему водоснабжения: | D107: точка | E107: =(I107/$K$2)*$J$117 -> 0 | F107: =((J107+K107)/$K$2)*$K$117*1.3 -> 0 | G107: 0 | I107: =C107* УЗЛЫ!C70 -> 0 | J107: =$C107*(РАБОТЫ!C23 + (РАБОТЫ!C24/10)) -> 0 | K107: =$C107*(РАБОТЫ!D23 + (РАБОТЫ!D24/10)) -> 0 | L107: =SUM(I107:K107) -> 0
A108: Вычет по сертификату за систему канализации: | D108: точка | E108: =(I108/$J$2)*$J$117 -> 0 | F108: =((J108+K108)/$J$2)*$K$117 -> 0 | G108: 0 | I108: =$C108* УЗЛЫ!C78 -> 0 | J108: =$C108* (РАБОТЫ!C26+(РАБОТЫ!C27*0.5)+(РАБОТЫ!C28*0.1)) -> 0 | K108: =$C108* (РАБОТЫ!D27+РАБОТЫ!D28) -> 0 | L108: 0 | M108: =SUM(L106:L108) -> 0
A109: Корректировка стоимости (скидка): | G109: 0
A110: Итого по смете со скидкой: | F110: =F105-G109-G106-G107-G108 -> 77289.23077
B111: =РАБОТЫ!$A$1 -> Дата | K111: Дом кирпично-деревянный | L111: 0
K112: (поставить 1)
J114: Коэффициент для заказчика | L114: Коэффициент для СЕБЕСА дом свыше 350м2 плюс 10%; мусор-контейнер; дизайн-проект 10%
N115: * 10% на оплату работ, материал через запрос в проектный
J116: Мат | K116: Раб | L116: Мат | M116: Раб
J117: 1 | K117: 1 | L117: 1 | M117: 1
I119: Стоим. мат-ла | J119: Стоим. работ бр. | K119: Стоим. работ ПР | L119: Мат-л + работа | M119: Промежут. рента
O120: Справочно, в разбивке по этапам:
I121: =I105-I122-I123 ->  | J121: =J105-J122-J123 ->  | K121: =K105-K122-K123 ->  | L121: =L105-L122-L123 ->  | M121: =IF(Q121=0, "", (Q121-L121)/Q121) ->  | O121: Скрытые | Q121: =F105-Q122-Q123 -> 
I122: =SUM(#REF!+#REF!+#REF!+#REF!+#REF!+#REF!+#REF!+#REF!+#REF!+#REF!+#REF!+#REF!+#REF!) ->  | J122: =SUM(#REF!+#REF!+#REF!++#REF!+#REF!+#REF!+#REF!+#REF!+#REF!+#REF!+#REF!+#REF!+#REF!) ->  | K122: =SUM(#REF!+#REF!+#REF!++#REF!+#REF!+#REF!+#REF!+#REF!+#REF!+#REF!+#REF!+#REF!+#REF!) ->  | L122: =SUM(#REF!+#REF!+#REF!++#REF!+#REF!+#REF!+#REF!+#REF!+#REF!+#REF!+#REF!+#REF!+#REF!) ->  | M122: =IF(Q122=0, "", (Q122-L122)/Q122) ->  | O122: Теплые полы | Q122: =SUM(#REF!+#REF!+#REF!+#REF!+#REF!+#REF!+#REF!+#REF!+#REF!+#REF!+#REF!+#REF!+#REF!) -> 
I123: =SUM(I6:I16) -> 0 | J123: =SUM(J6:J16) -> 0 | K123: =SUM(K6:K16) -> 0 | L123: =SUM(L6:L16) -> 0 | M123: =IF(Q123=0, "", (Q123-L123)/Q123) ->  | O123: Теплотрасса | Q123: =SUM(G6:G16) -> 0

Sheet ОВиВК Stout
A1: Приложение № к Договору подряда № ______________от_____________ | I1: курс € | J1: КОЭФ для ренты | K1: КОЭФ для ренты
A2: =TODAY() -> 2024-02-02 | B2: Данный сметный расчёт действителен 7 календарных дней. По истечению срока, цены могут быть изменены. | I2: ='ОВиВК ТЕСЕ'!I2 -> 100 | J2: 0.65 | K2: 0.6
A3: Сметный расчет ОиВК Stout
A4: Теплотрасса | I4: =РАБОТЫ!A1 -> Дата
A5: Материалы/услуги | B5: Описание | C5: Кол-во | D5: Ед.изм | E5: Мат-ал, руб | F5: Работа, руб | G5: Итого, руб | I5: Материал | J5: Бригада | K5: Прораб | L5: Итого | M5: Рента
A6: Теплотрасса | B6: Трубопровод USYSTEMS Ecoflex Quattro труба 2x25x2,3-2x25х3,5 /175 совмещает в себе трубы для систем горячего водоснабжения и теплоснабжения. | C6: ='ОВиВК ТЕСЕ'!C6 -> 0 | D6: пог.м | E6: =(I6/$J$2)*$J$113 -> 0 | F6: =((J6+K6)/$J$2)*$K$113 -> 0 | G6: =F6+E6 -> 0 | I6: =$C6*(УЗЛЫ!C2)*L113 -> 0 | J6: =$C6*РАБОТЫ!C5*M113 -> 0 | K6: =$C6*РАБОТЫ!D5*M113 -> 0 | L6: =SUM(I6:K6) -> 0 | M6: =IF(G6=0,"",(G6-L6)/G6) -> 
B7: Трубопровод USYSTEMS Ecoflex Quattro труба 2x32x2,9-2x25х3,5 /175 совмещает в себе трубы для систем горячего водоснабжения и теплоснабжения. | C7: ='ОВиВК ТЕСЕ'!C7 -> 0 | D7: пог.м | E7: 0 | F7: 0 | G7: 0 | I7: =$C7* (УЗЛЫ!C3)*L113 -> 0 | J7: =$C7*РАБОТЫ!C5*M113 -> 0 | K7: =$C7*РАБОТЫ!D5*M113 -> 0 | L7: 0
B8: Трубопровод USYSTEMS Ecoflex Varia Twin PN6 25x2.3 25x2.3 140 для водоснабжения и теплоснабжения. | C8: ='ОВиВК ТЕСЕ'!C8 -> 0 | D8: пог.м | E8: 0 | F8: 0 | G8: 0 | I8: =$C8* (УЗЛЫ!C4)*L113 -> 0 | J8: =$C8*РАБОТЫ!C5*M113 -> 0 | K8: =$C8*РАБОТЫ!D5*M113 -> 0 | L8: 0
B9: Трубопровод USYSTEMS Ecoflex Varia Twin PN6 32x2.9 32x2.9 140 для водоснабжения и теплоснабжения. | C9: ='ОВиВК ТЕСЕ'!C9 -> 0 | D9: пог.м | E9: 0 | F9: 0 | G9: 0 | I9: =$C9* (УЗЛЫ!C5)*L113 -> 0 | J9: =$C9*РАБОТЫ!C5*M113 -> 0 | K9: =$C9*РАБОТЫ!D5*M113 -> 0 | L9: 0
A10: Труба ПНД D32 | B10: Для подачи холодного водоснабжения (теплоизоляция Энергофлекс) | C10: ='ОВиВК ТЕСЕ'!C10 -> 0 | D10: пог.м | E10: 0 | F10: 0 | G10: 0 | I10: =$C10*(УЗЛЫ!C6+УЗЛЫ!C7)*L113 -> 0 | J10: =$C10*РАБОТЫ!C6*M113 -> 0 | K10: =$C10*РАБОТЫ!D6*M113 -> 0 | L10: 0
A11: Узел ТТ1 до150м2 | B11: Обвязка теплотрассы, подключение к коллекторам и насосам | C11: ='ОВиВК ТЕСЕ'!C11 -> 0 | D11: компл | E11: 0 | F11: 0 | G11: 0 | I11: =$C11*(УЗЛЫ!C8*0.5)*L113 -> 0 | J11: =$C11*РАБОТЫ!C7*M113 -> 0 | K11: =$C11*РАБОТЫ!D7*M113 -> 0 | L11: 0 | N11: * Обвязка с одной стороны, в случае обвязки с двух сторон - 2 компл.
A12: Узел ТТ2 150-200м2 | B12: Обвязка теплотрассы, подключение к коллекторам и насосам | C12: ='ОВиВК ТЕСЕ'!C12 -> 0 | D12: компл | E12: 0 | F12: 0 | G12: 0 | I12: =$C12* (УЗЛЫ!C9*0.5)*L113 -> 0 | J12: =$C12*РАБОТЫ!C7*M113 -> 0 | K12: =$C12*РАБОТЫ!D7*M113 -> 0 | L12: 0
A13: Автоматика | B13: Датчик температуры МЛ-722 (DS) | C13: ='ОВиВК ТЕСЕ'!C13 -> 0 | D13: шт. | E13: 0 | F13: 0 | G13: 0 | I13: =$C13* УЗЛЫ!C12*L113 -> 0 | J13: =($C13*РАБОТЫ!C8+$C13*РАБОТЫ!D8)*M113 -> 0 | L13: 0
A14: Кабель МКЭШ 5х0,75 , ПНД труба гофр. с протяжкой | B14: Кабель управления автоматикой | C14: ='ОВиВК ТЕСЕ'!C14 -> 0 | D14: пог.м | E14: =(I14/0.7)*$J$113 -> 0 | F14: =((J14+K14)/0.8)*$K$113 -> 0 | G14: 0 | I14: =C14*УЗЛЫ!C11*L113 -> 0 | J14: =C14*РАБОТЫ!C6*M113 -> 0 | K14: =C14*РАБОТЫ!D6*M113 -> 0 | L14: 0
B15: Протяжка кабеля в ПНД трубе (бухта 100м) | C15: ='ОВиВК ТЕСЕ'!C15 -> 0 | D15: бухта | E15: =(I15/0.8)*$J$113 -> 0 | G15: 0 | I15: =C15*УЗЛЫ!C10*L113 -> 0 | L15: =SUM(I15:K15) -> 0
A16: Земляные работы | B16: Производится выемка и обратная засыпка | C16: ='ОВиВК ТЕСЕ'!C16 -> 0 | D16: м3 | E16: =(I16/$J$2)*$J$113 -> 0 | F16: =((J16+K16)/$J$2)*$K$113 -> 0 | G16: 0 | J16: =$C16*РАБОТЫ!C9*M113 -> 0 | K16: =$C16*РАБОТЫ!D9*M113 -> 0 | L16: 0
A17: Итого материал: | G17: =SUM(E6:E16) -> 0 | L17: =SUM(I6:I16) -> 0 | N17: =(SUM(G17:G18)-SUM(L17:L18))/SUM(G17:G18) -> 
A18: Работа: | G18: =SUM(F6:F16) -> 0 | L18: =SUM(J6:K16) -> 0
A19: Отопление
A20: Материалы/услуги | B20: Описание | C20: Кол-во | D20: Ед.изм | E20: Мат-ал, руб | F20: Работа, руб | G20: Итого, руб | I20: Материал | J20: Бригада | K20: Прораб | L20: Итого | M20: Рента
A21: Радиаторы (белые) | B21: Радиаторы стальные панельные концерна Rettig Heating Group (Европа) | C21: ='ОВиВК ТЕСЕ'!C21 -> 0 | D21: шт. | E21: =(I21/0.75)*$J$113 -> 0 | G21: =IF(C21>=1,E21,0) -> 0 | I21: =$C21*УЗЛЫ!C18 -> 0 | L21: =SUM(I21:K21) -> 0 | M21: =IF(G21=0,"",(G21-L21)/G21) -> 
B22: Радиаторы стальные панельные Rommer (Россия) | C22: ='ОВиВК ТЕСЕ'!C22 -> 0 | D22: шт. | E22: =(I22/0.75)*$J$113 -> 0 | G22: =IF(C22>=1,E22,0) -> 0 | I22: =C22*УЗЛЫ!C19 -> 0 | L22: 0
B23: Радиатор КЗТО Гармония | C23: ='ОВиВК ТЕСЕ'!C23 -> 0 | D23: шт. | E23: =(I23/0.75)*$J$113 -> 0 | G23: =IF(C23>=1,E23,0) -> 0 | I23: =C23*УЗЛЫ!C20 -> 0 | L23: 0
B24: Радиатор КЗТО РСК | C24: ='ОВиВК ТЕСЕ'!C24 -> 0 | D24: шт. | E24: =(I24/0.75)*$J$113 -> 0 | G24: 0 | I24: =C24*УЗЛЫ!C21 -> 0 | L24: 0
A25: Комплект декоративной подводки | B25: Для труб из сшитого полиэтилена | C25: ='ОВиВК ТЕСЕ'!C25 -> 0 | D25: компл. | E25: =(I25/0.9)*$J$113 -> 0 | F25: =((J25+K25)/$J$2)*$K$113*1.5 -> 0 | G25: =F25+E25 -> 0 | I25: =$C25*УЗЛЫ!C25*L113 -> 0 | J25: =$C25* РАБОТЫ!C12*M113 -> 0 | K25: =$C25* РАБОТЫ!D12*M113 -> 0 | L25: 0
A26: Монтаж креплений для радиаторов настенный | B26: Монтаж с использованием электронного измерителя уровня | C26: ='ОВиВК ТЕСЕ'!C26 -> 0 | D26: компл. | E26: =(I26/$J$2)*$J$113 -> 0 | F26: =((J26+K26)/$J$2)*$K$113*1.3 -> 0 | G26: 0 | J26: =$C26*( РАБОТЫ!C13*0.3)*M113 -> 0 | K26: =$C26*( РАБОТЫ!D13*0.3)*M113 -> 0 | L26: 0
A27: Монтаж креплений для радиаторов напольный | B27: Монтаж с использованием электронного измерителя уровня | C27: ='ОВиВК ТЕСЕ'!C27 -> 0 | D27: компл. | E27: =(I27/$J$2)*$J$113 -> 0 | F27: =((J27+K27)/$J$2)*$K$113*1.3 -> 0 | G27: 0 | I27: =C27*УЗЛЫ!D26*L113 -> 0 | J27: =$C27*( РАБОТЫ!C13*0.3)*M113 -> 0 | K27: =$C27*( РАБОТЫ!D13*0.3)*M113 -> 0 | L27: 0
A28: Монтаж радиатора | B28: Монтаж с использованием электронного измерителя уровня | C28: ='ОВиВК ТЕСЕ'!C28 -> 0 | D28: компл. | E28: =(I28/$J$2)*$J$113 -> 0 | F28: =((J28+K28)/0.76)*$K$113*1.3 -> 0 | G28: 0 | J28: =$C28* РАБОТЫ!C13*M113 -> 0 | K28: =$C28* РАБОТЫ!D13*M113 -> 0 | L28: 0
A29: Комплект подключения | B29: Узел нижнего подключения радиатора прямой из пола (без декор.подводки) | C29: ='ОВиВК ТЕСЕ'!C29 -> 0 | D29: компл. | E29: =(I29/0.8)*$J$113*0.7 -> 0 | F29: =(C29*500)*K113 -> 0 | G29: 0 | I29: =$C29*УЗЛЫ!C28*L113 -> 0 | L29: 0
B30: Узел нижнего подключения радиатора угловой из стены (без декор.подводки) | C30: ='ОВиВК ТЕСЕ'!C30 -> 0 | D30: компл. | E30: =(I30/0.8)*$J$113*0.7 -> 0 | F30: =(C30*590)+(J30+K30) -> 0 | G30: 0 | I30: =$C30*(УЗЛЫ!C29)*L113 -> 0 | J30: =C30*(РАБОТЫ!C36*2)*M113 -> 0 | K30: =C30*(РАБОТЫ!D36*2)*M113 -> 0 | L30: 0
A31: Терморегулятор для радиатора | B31: Термоголовка (Германия), c жидкостным чувствительным элементом. С функцией защиты от замерзания и с блокировкой диапазона настройки. | C31: ='ОВиВК ТЕСЕ'!C31 -> 0 | D31: шт. | E31: =1069*C31 -> 0 | F31: =(C31*500)*K113*0.7 -> 0 | G31: 0 | I31: 0 | L31: =SUM(I31:K31) -> 0
A32: Управление внутрипольным конвектором | B32: Настенный регулятор программируемый с сенсорным экраном. Возможность регулировки до 12 приборов (Vartronic Белый) | C32: ='ОВиВК ТЕСЕ'!C32 -> 0 | D32: шт. | E32: =(I32/$J$2)*$J$113 -> 0 | F32: =((J32+K32)/$J$2)*K113 -> 0 | G32: 0 | I32: =$C32* УЗЛЫ!C33*L113 -> 0 | J32: =$C32*РАБОТЫ!C15*M113 -> 0 | K32: =$C32*РАБОТЫ!D15*M113 -> 0 | L32: 0
B33: Настенный регулятор программируемый с сенсорным экраном. Возможность регулировки до 12 приборов (Vartronic Черный) | C33: ='ОВиВК ТЕСЕ'!C33 -> 0 | D33: шт. | E33: =(I33/$J$2)*$J$113 -> 0 | F33: =((J33+K33)/$J$2)*K113 -> 0 | G33: 0 | I33: =$C33* УЗЛЫ!C33*L113 -> 0 | J33: =$C33*РАБОТЫ!C15*M113 -> 0 | K33: =$C33*РАБОТЫ!D15*M113 -> 0 | L33: 0
A34: Комплектующие для подлючения конвектора внутрипольного | B34: Комплект запорно-регулирующей арматуры. | C34: ='ОВиВК ТЕСЕ'!C34 -> 0 | D34: компл. | E34: =(I34/$J$2)*$J$113 -> 0 | F34: =(C34*2300)*K113 -> 0 | G34: 0 | I34: =$C34*УЗЛЫ!C34*L113 -> 0 | L34: 0
A35: Конвектор энергозависимый внутрипольный | B35: Встраиваемый в пол конвектор Varmann Qtherm 230.75.1250. решетка роликовая из алюминия, тангенциальный вентилятор | C35: ='ОВиВК ТЕСЕ'!C35 -> 0 | D35: компл. | E35: =(I35/0.7)*$J$113*0.88 -> 0 | F35: =((J35+K35)/$J$2)*$K$113*2 -> 0 | G35: 0 | I35: =$C35*УЗЛЫ!C36 -> 0 | J35: =$C35*РАБОТЫ!C16*M113 -> 0 | K35: =$C35*РАБОТЫ!D16*M113 -> 0 | L35: 0
B36: Встраиваемый в пол конвектор Varmann Qtherm 230.75.1500. решетка роликовая из алюминия, тангенциальный вентилятор | C36: ='ОВиВК ТЕСЕ'!C36 -> 0 | D36: компл. | E36: 0 | F36: 0 | G36: 0 | I36: =$C36*УЗЛЫ!C37 -> 0 | J36: =$C36*РАБОТЫ!C16*M113 -> 0 | K36: =$C36*РАБОТЫ!D16*M113 -> 0 | L36: 0
B37: Встраиваемый в пол конвектор Varmann Qtherm 230.75.1750. решетка роликовая из алюминия, тангенциальный вентилятор | C37: ='ОВиВК ТЕСЕ'!C37 -> 0 | D37: компл. | E37: 0 | F37: 0 | G37: 0 | I37: =$C37*УЗЛЫ!C38 -> 0 | J37: =$C37* РАБОТЫ!$C$16*M113 -> 0 | K37: =$C37* РАБОТЫ!$D$16*M113 -> 0 | L37: 0
B38: Встраиваемый в пол конвектор Varmann Qtherm 230.75.2000. решетка роликовая из алюминия, тангенциальный вентилятор | C38: ='ОВиВК ТЕСЕ'!C38 -> 0 | D38: компл. | E38: 0 | F38: 0 | G38: 0 | I38: =C38*УЗЛЫ!C39 -> 0 | J38: =$C38* РАБОТЫ!$C$16*M113 -> 0 | K38: =$C38* РАБОТЫ!$D$16*M113 -> 0 | L38: 0
B39: Встраиваемый в пол конвектор Varmann Qtherm 230.75.2250. решетка роликовая из алюминия, тангенциальный вентилятор | C39: ='ОВиВК ТЕСЕ'!C39 -> 0 | D39: компл. | E39: 0 | F39: 0 | G39: 0 | I39: =C39*УЗЛЫ!C40 -> 0 | J39: =$C39* РАБОТЫ!$C$16*M113 -> 0 | K39: =$C39* РАБОТЫ!$D$16*M113 -> 0 | L39: 0
B40: Встраиваемый в пол конвектор Varmann Qtherm 230.75.3000. решетка роликовая из алюминия, вентиляторы с ЕС двигателем | C40: ='ОВиВК ТЕСЕ'!C40 -> 0 | D40: компл. | E40: =(I40/0.7)*$J$113*0.88 -> 0 | F40: =((J40+K40)/$J$2)*$K$113*2 -> 0 | G40: 0 | I40: =C40*УЗЛЫ!C41 -> 0 | J40: =$C40* РАБОТЫ!$C$16*M113 -> 0 | K40: =$C40* РАБОТЫ!$D$16*M113 -> 0 | L40: 0
A41: Конвектор энергонезависимый внутрипольный | B41: Встраиваемый в пол конвектор Varmann Ntherm, 230.90.1400. решетка роликовая из алюминия. | C41: ='ОВиВК ТЕСЕ'!C41 -> 0 | D41: компл. | E41: 0 | F41: 0 | G41: 0 | I41: =C41*УЗЛЫ!C42 -> 0 | J41: =$C41* РАБОТЫ!$C$16*M113 -> 0 | K41: =$C41* РАБОТЫ!$D$16*M113 -> 0 | L41: =SUM(I41:K41) -> 0
B42: Встраиваемый в пол конвектор Varmann Ntherm, 230.90.1800. решетка роликовая из алюминия. | C42: ='ОВиВК ТЕСЕ'!C42 -> 0 | D42: компл. | E42: 0 | F42: 0 | G42: 0 | I42: =C42*УЗЛЫ!C43 -> 0 | J42: =$C42* РАБОТЫ!$C$16*M113 -> 0 | K42: =$C42* РАБОТЫ!$D$16*M113 -> 0 | L42: 0
B43: Встраиваемый в пол конвектор Varmann Ntherm, 230.90.2200. решетка роликовая из алюминия. | C43: ='ОВиВК ТЕСЕ'!C43 -> 0 | D43: компл. | E43: 0 | F43: 0 | G43: 0 | I43: =C43*УЗЛЫ!C44 -> 0 | J43: =$C43* РАБОТЫ!$C$16*M113 -> 0 | K43: =$C43* РАБОТЫ!$D$16*M113 -> 0 | L43: 0
A44: Конвектор энергонезависимый внутрипольный влагостойкий корпус | B44: Встраиваемый в пол конвектор Varmann Ntherm ES (для влажных помещений), 230.90.1400. решетка роликовая из алюминия. | C44: ='ОВиВК ТЕСЕ'!C44 -> 0 | D44: компл. | E44: 0 | F44: 0 | G44: 0 | I44: =C44*УЗЛЫ!C45 -> 0 | J44: =$C44* РАБОТЫ!$C$16*M113 -> 0 | K44: =$C44* РАБОТЫ!$D$16*M113 -> 0 | L44: 0
B45: Встраиваемый в пол конвектор Varmann Ntherm ES (для влажных помещений), 230.90.1800. решетка роликовая из алюминия. | C45: ='ОВиВК ТЕСЕ'!C45 -> 0 | D45: компл. | E45: 0 | F45: 0 | G45: 0 | I45: =C45*УЗЛЫ!C46 -> 0 | J45: =$C45* РАБОТЫ!$C$16*M113 -> 0 | K45: =$C45* РАБОТЫ!$D$16*M113 -> 0 | L45: 0
B46: Встраиваемый в пол конвектор Varmann Ntherm ES (для влажных помещений), 230.90.2200. решетка роликовая из алюминия. | C46: ='ОВиВК ТЕСЕ'!C46 -> 0 | D46: компл. | E46: 0 | F46: 0 | G46: 0 | I46: =C46*УЗЛЫ!C47 -> 0 | J46: =$C46* РАБОТЫ!$C$16*M113 -> 0 | K46: =$C46* РАБОТЫ!$D$16*M113 -> 0 | L46: 0
A47: Конвектор напольный | B47: Конвектор Varmann MiniKon 235.130.1600 | C47: ='ОВиВК ТЕСЕ'!C47 -> 0 | D47: шт. | E47: =(I47/0.7)*$J$113*0.87 -> 0 | F47: 0 | G47: 0 | I47: =C47*УЗЛЫ!C48 -> 0 | J47: =$C47* РАБОТЫ!$C$14*M113 -> 0 | K47: =$C47* РАБОТЫ!$D$14*M113 -> 0 | L47: 0
B48: Конвектор Varmann MiniKon 185.130.1600 | C48: ='ОВиВК ТЕСЕ'!C48 -> 0 | D48: шт. | E48: =(I48/0.7)*$J$113*0.85 -> 0 | F48: 0 | G48: 0 | I48: =C48*УЗЛЫ!C49 -> 0 | J48: =$C48* РАБОТЫ!$C$14*M113 -> 0 | K48: =$C48* РАБОТЫ!$D$14*M113 -> 0 | L48: 0
A49: Коллекторная система отопления | B49: Трубопроводы системы отопления - высококачественные трубы PE-Xа (Трубы Stout, Испания - поперечно сшитый полиэтилен) в утеплителе "Энергофлекс". | C49: ='ОВиВК ТЕСЕ'!C49 -> 0 | D49: м² | E49: =(I49/$J$2)*$J$113 -> 0 | F49: =(C49*600)*$K$113 -> 0 | G49: 0 | I49: =$C49*(УЗЛЫ!C15)+(IF(C49=0,0,)+IF(C49>1,УЗЛЫ!D17,)) -> 0 | J49: =C49*((РАБОТЫ!C17+РАБОТЫ!C18)/R49)*M113 -> 0 | K49: =C49*((РАБОТЫ!D17+РАБОТЫ!D18)/R49)*M113 -> 0 | L49: 0 | O49: коэф. трубы отопл.: | P49: =IF(T49<70,4.5, IF(T49<250, 3.5, 4)) -> 4.5 | Q49: закл. петли: | R49: =IF(V49>7, V49, IF(T49=0, 12, IF(T49<165,11, 11+CEILING((T49-165)/8,1)))) -> 12 | S49: отапл. площ.: | T49: =C49 -> 0 | U49: радиаторы /конвек-ры: | V49: =C21+C37 -> 0
A50: Подключение коллекторного шкафа вне котельной | B50: Трубопроводы (до 25 пог.м), фитинги, арматура | C50: ='ОВиВК ТЕСЕ'!C51 -> 0 | D50: компл. | E50: =I50/0.62 -> 0 | F50: =(J50+K50)/0.6 -> 0 | G50: 0 | I50: =C50*(УЗЛЫ!C54+УЗЛЫ!C55) -> 0 | J50: =C50*РАБОТЫ!C19*M113 -> 0 | K50: =C50*РАБОТЫ!D19*M113 -> 0 | L50: 0
A51: Коллектор системы отопления | B51: Коллектор, шкаф, шаровые краны, фиксаторы, прокладки, фитинги. 3 выхода | C51: ='ОВиВК ТЕСЕ'!C52 -> 0 | D51: компл. | E51: =(I51/$K$2)*$J$113*0.8 -> 0 | F51: =((J51+K51)/$K$2)*$K$113*2.7 -> 0 | G51: =E51+F51 -> 0 | I51: =$C51*УЗЛЫ!H58*L113 -> 0 | J51: =$C51*РАБОТЫ!C20*M113 -> 0 | K51: =$C51*РАБОТЫ!D20*M113 -> 0 | L51: 0
B52: Коллектор, шкаф, шаровые краны, фиксаторы, прокладки, фитинги. 4 выхода | C52: ='ОВиВК ТЕСЕ'!C53 -> 0 | D52: компл. | E52: 0 | F52: 0 | G52: =E52+F52 -> 0 | I52: =$C52*УЗЛЫ!H59*L113 -> 0 | J52: =$C52*РАБОТЫ!C20*M113 -> 0 | K52: =$C52*РАБОТЫ!D20*M113 -> 0 | L52: 0
B53: Коллектор, шкаф, шаровые краны, фиксаторы, прокладки, фитинги. 5 выходов | C53: ='ОВиВК ТЕСЕ'!C54 -> 0 | D53: компл. | E53: 0 | F53: 0 | G53: 0 | I53: =$C53*УЗЛЫ!H60*L113 -> 0 | J53: =$C53*РАБОТЫ!C20*M113 -> 0 | K53: =$C53*РАБОТЫ!D20*M113 -> 0 | L53: 0
B54: Коллектор, шкаф, шаровые краны, фиксаторы, прокладки, фитинги. 6 выходов | C54: ='ОВиВК ТЕСЕ'!C55 -> 0 | D54: компл. | E54: 0 | F54: 0 | G54: 0 | I54: =$C54*УЗЛЫ!H61*L113 -> 0 | J54: =$C54*РАБОТЫ!C20*M113 -> 0 | K54: =$C54*РАБОТЫ!D20*M113 -> 0 | L54: 0
B55: Коллектор, шкаф, шаровые краны, фиксаторы, прокладки, фитинги. 7 выходов | C55: ='ОВиВК ТЕСЕ'!C56 -> 0 | D55: компл. | E55: 0 | F55: 0 | G55: 0 | I55: =$C55*УЗЛЫ!H62*L113 -> 0 | J55: =$C55*РАБОТЫ!C20*M113 -> 0 | K55: =$C55*РАБОТЫ!D20*M113 -> 0 | L55: 0
B56: Коллектор, шкаф, шаровые краны, фиксаторы, прокладки, фитинги. 8 выходов | C56: ='ОВиВК ТЕСЕ'!C57 -> 0 | D56: компл. | E56: 0 | F56: 0 | G56: 0 | I56: =$C56*УЗЛЫ!H63*L113 -> 0 | J56: =$C56*РАБОТЫ!C20*M113 -> 0 | K56: =$C56*РАБОТЫ!D20*M113 -> 0 | L56: 0
B57: Коллектор, шкаф, шаровые краны, фиксаторы, прокладки, фитинги. 9 выходов | C57: ='ОВиВК ТЕСЕ'!C58 -> 0 | D57: компл. | E57: 0 | F57: 0 | G57: 0 | I57: =$C57*УЗЛЫ!H64*L113 -> 0 | J57: =$C57*РАБОТЫ!C20*M113 -> 0 | K57: =$C57*РАБОТЫ!D20*M113 -> 0 | L57: 0
B58: Коллектор, шкаф, шаровые краны, фиксаторы, прокладки, фитинги. 10 выходов | C58: ='ОВиВК ТЕСЕ'!C59 -> 0 | D58: компл. | E58: 0 | F58: 0 | G58: 0 | I58: =$C58*УЗЛЫ!H65*L113 -> 0 | J58: =$C58*РАБОТЫ!C20*M113 -> 0 | K58: =$C58*РАБОТЫ!D20*M113 -> 0 | L58: 0
B59: Коллектор, шкаф, шаровые краны, фиксаторы, прокладки, фитинги. 11 выходов | C59: ='ОВиВК ТЕСЕ'!C60 -> 0 | D59: компл. | E59: 0 | F59: 0 | G59: 0 | I59: =$C59*УЗЛЫ!H66*L113 -> 0 | J59: =$C59*РАБОТЫ!C20*M113 -> 0 | K59: =$C59*РАБОТЫ!D20*M113 -> 0 | L59: 0
B60: Коллектор, шкаф, шаровые краны, фиксаторы, прокладки, фитинги. 12 выходов | C60: ='ОВиВК ТЕСЕ'!C61 -> 0 | D60: компл. | E60: 0 | F60: 0 | G60: 0 | I60: =$C60*УЗЛЫ!H67*L113 -> 0 | J60: =$C60*РАБОТЫ!C20*M113 -> 0 | K60: =$C60*РАБОТЫ!D20*M113 -> 0 | L60: 0
A61: Итого материал: | G61: =SUM(E21:E60) -> 0 | L61: =SUM(I21:I60) -> 0 | N61: =(SUM(G61:G62)-SUM(L61:L62))/SUM(G61:G62) -> 
A62: Работа: | G62: =SUM(F21:F60) -> 0 | L62: =SUM(J21:K60) -> 0
A63: Водоснабжение, канализация, вентиляция
A64: Материалы/услуги | B64: Описание | C64: Кол-во | D64: Ед.изм | E64: Мат-ал, руб | F64: Работа, руб | G64: Итого, руб | I64: Материал | J64: Бригада | K64: Прораб | L64: Итого | M64: Рента
A65: Точки водоснабжения | B65: Разводка труб холодного и горячего водоснабжения внутри помещения. Сшитый полиэтилен PE-Xa (Stout, Испания), в утеплителе "Энергофлекс". Установка водорозеток | C65: ='ОВиВК ТЕСЕ'!C66 -> 0 | D65: шт. | E65: =(I65/$K$2)*$J$113 -> 0 | F65: =((J65+K65)/$K$2)*$K$113*1.3 -> 0 | G65: =F65+E65 -> 0 | I65: =C65* УЗЛЫ!C70 -> 0 | J65: =$C65*(РАБОТЫ!C23 + (РАБОТЫ!C24/10))*M113 -> 0 | K65: =$C65*(РАБОТЫ!D23 + (РАБОТЫ!D24/10))*M113 -> 0 | L65: =SUM(I65:K65) -> 0 | M65: =IF(G65=0,"",(G65-L65)/G65) ->  | O65: коэф. труб воды.: | P65: =IF(R65<8, 12, IF(R65<11, 8, IF(R65<18, 9,10))) -> 12 | Q65: точки воды: | R65: =C65 -> 0
A66: Подключение коллекторного шкафа вне котельной | B66: Трубопроводы (до 25 пог.м), фитинги, арматура | C66: ='ОВиВК ТЕСЕ'!C68 -> 0 | D66: компл. | E66: =I66/0.62 -> 0 | F66: =C66*(J66+K66)/0.6 -> 0 | G66: 0 | I66: =C66*(УЗЛЫ!C56+УЗЛЫ!C57) -> 0 | J66: =C66*РАБОТЫ!C19*M113 -> 0 | K66: =C66*РАБОТЫ!D19*M113 -> 0 | L66: 0
A67: Коллектор водоснабжения | B67: Без рециркуляции - коллектор, шкаф распределительный наружный, шаровые краны, фиксаторы, прокладки, компрессионные фитинги. | C67: ='ОВиВК ТЕСЕ'!C69 -> 0 | D67: компл. | E67: =(I67/$J$2)*$J$113*0.92 -> 0 | F67: =((J67+K67)/$J$2)*$K$113*1.8 -> 0 | G67: 0 | I67: =$C67*УЗЛЫ!H72*L113 -> 0 | J67: =$C67*РАБОТЫ!C25*M113 -> 0 | K67: =$C67*РАБОТЫ!D25*M113 -> 0 | L67: 0
B68: С рециркуляцией - коллектор, шкаф распределительный наружный, шаровые краны, фиксаторы, прокладки, компрессионные фитинги. | C68: ='ОВиВК ТЕСЕ'!C70 -> 0 | D68: компл. | E68: =(I68/$J$2)*$J$113*0.9 -> 0 | F68: =((J68+K68)/$J$2)*$K$113*2.9 -> 0 | G68: 0 | I68: =$C68*УЗЛЫ!H73*L113 -> 0 | J68: =$C68*РАБОТЫ!C25*M113 -> 0 | K68: =$C68*РАБОТЫ!D25*M113 -> 0 | L68: 0
A69: Точки циркуляции | B69: Дополнительный контур на влажное помещение | C69: ='ОВиВК ТЕСЕ'!C71 -> 0 | D69: шт. | E69: =(I69/$J$2)*$J$113 -> 0 | F69: =((J69+K69)/$J$2)*$K$113 -> 0 | G69: 0 | I69: =C69*УЗЛЫ!C70*L113 -> 0 | J69: =$C69* РАБОТЫ!C23*M113 -> 0 | K69: =$C69* РАБОТЫ!D23*M113 -> 0 | L69: =SUM(I69:K69) -> 0
A70: Точки канализации | B70: Монтаж системы канализации производится шумопоглощающими трубами Sinicon Россия. Прокладка под лентой ростверка, с последующим выпуском на 1м за него (для фундамента типа "ростверк") | C70: ='ОВиВК ТЕСЕ'!C74 -> 0 | D70: шт. | E70: =(I70/$J$2)*$J$113 -> 0 | F70: =((J70+K70)/$J$2)*$K$113 -> 0 | G70: 0 | I70: =$C70* УЗЛЫ!C77*L113 -> 0 | J70: =$C70* (РАБОТЫ!C26+(РАБОТЫ!C27*0.5)+(РАБОТЫ!C28*0.1))*M113 -> 0 | K70: =$C70* (РАБОТЫ!D27+РАБОТЫ!D28)*M113 -> 0 | L70: 0 | M70: =IF(G70=0,"",(G70-L70)/G70) -> 
B71: Земляные работы | C71: ='ОВиВК ТЕСЕ'!C75 -> 4 | D71: м3 | E71: =(I71/$J$2)*$J$113 -> 0 | F71: =((J71+K71)/$J$2)*$K$113 -> 12489.23077 | G71: 12489.23077 | J71: =$C71*РАБОТЫ!C28*M113 -> 6765 | K71: =$C71*РАБОТЫ!D28*M113 -> 1353 | L71: 8118 | M71: 0.35
A72: Точки вентиляции (без прохода через кровлю ) 100мм | B72: Система естественной вентиляции предназначена для того, что бы регулировать влажность и удалять неприятные запахи из кухни и санузлов. | C72: ='ОВиВК ТЕСЕ'!C76 -> 0 | D72: шт. | E72: =(K72/$J$2)*$J$113*1.1 -> 0 | F72: =((J72)/$J$2)*$K$113*1.5 -> 0 | G72: 0 | J72: =$C72* РАБОТЫ!C29*M113 -> 0 | K72: =$C72* РАБОТЫ!D29*M113 -> 0 | L72: 0
A73: Точки вентиляции (без прохода через кровлю ) 125мм | B73: Система естественной вентиляции предназначена для того, чтобы регулировать влажность и удалять неприятные запахи из кухни и санузлов. | C73: ='ОВиВК ТЕСЕ'!C77 -> 0 | D73: шт. | E73: =(K73/0.78)*$J$113*1.1 -> 0 | F73: =((J73)/$J$2)*$K$113*1.5 -> 0 | G73: 0 | J73: =$C73*РАБОТЫ!C30*M113 -> 0 | K73: =$C73*РАБОТЫ!D30*M113 -> 0 | L73: 0
A74: Точки вентиляции (без прохода через кровлю ) 150мм | B74: Система естественной вентиляции предназначена для того, чтобы регулировать влажность и удалять неприятные запахи из кухни и санузлов. | C74: ='ОВиВК ТЕСЕ'!C78 -> 0 | D74: шт. | E74: =(K74/0.78)*$J$113*1.1 -> 0 | F74: =((J74)/$J$2)*$K$113*1.5 -> 0 | G74: 0 | J74: =$C74*РАБОТЫ!C30*M113 -> 0 | K74: =$C74*РАБОТЫ!D31*M113 -> 0 | L74: 0
A75: Узел на полив | B75: Кран Merril, фитинги, переходники | C75: ='ОВиВК ТЕСЕ'!C79 -> 0 | D75: шт. | E75: =(I75/$J$2)*$J$113 -> 0 | F75: =((J75+K75)/0.4)*$K$113 -> 0 | G75: 0 | I75: =$C75* УЗЛЫ!C80*L113 -> 0 | J75: =$C75* РАБОТЫ!C33*M113 -> 0 | K75: =$C75* РАБОТЫ!D33*M113 -> 0 | L75: =SUM(I75:K75) -> 0
A76: Трап (точечный) | B76: Только материал (трап точечный, переходник, компенсатор высоты) | C76: ='ОВиВК ТЕСЕ'!C80 -> 0 | D76: шт. | E76: =(I76/$J$2)*$J$113 -> 0 | F76: =((J76+K76)/$J$2)*$K$113 -> 0 | G76: 0 | I76: =$C76*УЗЛЫ!C82*L113 -> 0 | L76: 0
A77: Установка трапа (точечного) | B77: Только работа | C77: ='ОВиВК ТЕСЕ'!C81 -> 0 | D77: Усл. | E77: =(I77/$J$2)*$J$113 -> 0 | F77: =((J77+K77)/$J$2)*$K$113 -> 0 | G77: =E77+F77 -> 0 | J77: =$C77*РАБОТЫ!C34*M113 -> 0 | K77: =$C77*РАБОТЫ!D34*M113 -> 0 | L77: 0
A78: Трап (линейный) ТЕСЕ | B78: Дренажный трап 700мм, решётка из нержавеющей стали, погружной стакан с мембраной, сифон, комплект опор | C78: ='ОВиВК ТЕСЕ'!C82 -> 0 | D78: шт. | E78: =(I78/0.8)*$J$113 -> 0 | F78: =((J78+K78)/$J$2)*$K$113 -> 0 | G78: =F78+E78 -> 0 | I78: =C78*УЗЛЫ!C83*L113 -> 0 | L78: =SUM(I78:K78) -> 0
A79: Установка трапа (линейного) | B79: Только работа | C79: ='ОВиВК ТЕСЕ'!C83 -> 0 | D79: Усл. | E79: =(I79/$J$2)*$J$113 -> 0 | F79: =((J79+K79)/$J$2)*$K$113 -> 0 | G79: =E79+F79 -> 0 | J79: =$C79* РАБОТЫ!C35*M113 -> 0 | K79: =$C79* РАБОТЫ!D35*M113 -> 0 | L79: 0
A80: Лоток для водоотведения (трап) в гараже | B80: Монтаж пластикового лотка (установка по уровню, крепление, монтаж чугунных оцинкованных решеток) без пескоуловителя | C80: ='ОВиВК ТЕСЕ'!C84 -> 0 | D80: пог.м. | E80: =I80/0.62 -> 0 | F80: =(J80+K80)/0.62 -> 0 | G80: =E80+F80 -> 0 | I80: =((C80*УЗЛЫ!C111))+IF(C80>0,УЗЛЫ!C113,0) -> 0 | J80: =C80*РАБОТЫ!C40*M113 -> 0 | K80: =C80*РАБОТЫ!D40*M113 -> 0 | L80: =SUM(I80:K80) -> 0
B81: Монтаж пескоуловителя с решеткой | C81: ='ОВиВК ТЕСЕ'!C85 -> 0 | D81: шт. | E81: =I81/0.62 -> 0 | F81: =(J81+K81)/0.62 -> 0 | G81: 0 | I81: =C81*УЗЛЫ!C112*L113 -> 0 | J81: =C81*РАБОТЫ!C41*M113 -> 0 | K81: =C81*РАБОТЫ!D41*M113 -> 0 | L81: 0
B82: Подключение к закладной | C82: ='ОВиВК ТЕСЕ'!C86 -> 0 | D82: шт. | E82: =I82/0.62 -> 0 | F82: =(J82+K82)/0.62 -> 0 | G82: 0 | I82: =C82*УЗЛЫ!C114*L113 -> 0 | J82: =C82*РАБОТЫ!C42*M113 -> 0 | K82: =C82*РАБОТЫ!D42*M113 -> 0 | L82: 0
A83: Установка скрытых смесителей | B83: Душ/ ванна/ гиг.душ (комплектующие, сам смеситель покупает заказчик) | C83: ='ОВиВК ТЕСЕ'!C87 -> 0 | D83: шт. | E83: =I83/0.62 -> 0 | F83: =((J83+K83)/$J$2)*$K$113 -> 0 | G83: =E83+F83 -> 0 | I83: =C83*УЗЛЫ!C119*L113 -> 0 | J83: =C83*РАБОТЫ!C37*M113 -> 0 | K83: =C83*РАБОТЫ!D37*M113 -> 0 | L83: 0
B84: Встроенная душевая система с несколькими выводами (комплектующие, сам смеситель покупает заказчик) | C84: ='ОВиВК ТЕСЕ'!C88 -> 0 | D84: шт. | E84: 0 | F84: =((J84+K84)/$J$2)*$K$113 -> 0 | G84: =E84+F84 -> 0 | I84: =C84*УЗЛЫ!C120*L113 -> 0 | J84: =C84*РАБОТЫ!C38*M113 -> 0 | K84: =C84*РАБОТЫ!D38*M113 -> 0 | L84: 0
A85: Инсталляция (только материал) | B85: Инсталляция встраиваемая в деревянную перегородку. Только материал. (доска 40х140, монтажный комплект инсталляции без унитаза) | C85: ='ОВиВК ТЕСЕ'!C89 -> 0 | D85: Компл | E85: =I85/0.85 -> 0 | G85: =E85+F85 -> 0 | I85: =C85*УЗЛЫ!C84*L113 -> 0 | L85: 0
B86: Инсталляция в коробе на стену (кирпич, металлокаркас, брус) или усиление стены из металлокаркаса. Только материал. (металлический профиль ТЕСЕ, монтажный комплект инсталляции без унитаза) | C86: ='ОВиВК ТЕСЕ'!C90 -> 0 | D86: Компл | E86: =I86/0.85 -> 0 | G86: 0 | I86: =C86*УЗЛЫ!C85*L113 -> 0 | L86: 0
A87: Короб под инсталяцию (при необходимости) | B87: Только работа | C87: ='ОВиВК ТЕСЕ'!C91 -> 0 | D87: Усл. | F87: =((J87+K87)/0.33)*$K$113 -> 0 | G87: 0 | J87: =$C87* РАБОТЫ!C39*M113 -> 0 | K87: =$C87* РАБОТЫ!D39*M113 -> 0 | L87: 0
A88: Установка инсталляции | B88: Только работа, материал заказчика | C88: ='ОВиВК ТЕСЕ'!C92 -> 0 | D88: Усл. | F88: =((J88+K88)/0.25)*$K$113 -> 0 | G88: =E88+F88 -> 0 | J88: =$C88* РАБОТЫ!C39*M113 -> 0 | K88: =$C88* РАБОТЫ!D39*M113 -> 0 | L88: 0 | N88: =(SUM(G89:G90)-SUM(L89:L90))/SUM(G89:G90) -> 0.35
A89: Итого материал: | G89: =SUM(E65:E88) -> 0 | L89: =SUM(I65:I88) -> 0
A90: Работа: | B90: =РАБОТЫ!A1 -> Дата | G90: =SUM(F65:F88) -> 12489.23077 | L90: =SUM(J65:K88) -> 8118 | M90: 0.35
A91: Дополнительно
A92: Материалы/услуги | B92: Описание | C92: Кол-во | D92: Ед.изм | E92: Мат-ал, руб | F92: Работа, руб | G92: Итого, руб
A93: Проходные отверстия в плите | B93: Алмазное сверление | C93: ='ОВиВК ТЕСЕ'!C97 -> 9 | D93: шт. | F93: =IF($C$93=0,0, IF($C$93<4,9000, IF($C$93>3,9000+2300*($C$93-3)))) -> 22800 | G93: =F93+E93 -> 22800 | K93: =IF($C$93=0,0, IF($C$93<4,6000, IF($C$93>3,6000+1700*($C$93-3)))) -> 16200
A94: Штробление | B94: Выводы под трубопроводы | C94: ='ОВиВК ТЕСЕ'!C98 -> 0 | D94: шт. | F94: =(J94+K94)/0.65 -> 0 | G94: =F94+E94 -> 0 | J94: =C94*РАБОТЫ!C36 -> 0 | K94: =C94*РАБОТЫ!D36 -> 0
A95: Закладная для канализации | B95: Устройство ввода канализации в дом | C95: ='ОВиВК ТЕСЕ'!C99 -> 0 | D95: шт. | E95: =C95*4500 -> 0 | F95: =C95*16000 -> 0 | G95: =F95+E95 -> 0 | K95: =12500*C95 -> 0
A96: Закладная для воды | B96: Устройство ввода водоснабжения в дом | C96: ='ОВиВК ТЕСЕ'!C100 -> 0 | D96: шт. | E96: =C96*4500 -> 0 | F96: =C96*16000 -> 0 | G96: =F96+E96 -> 0 | K96: =12500*C96 -> 0
A97: Вывоз мусора (конетейнер) | B97: Вывоз мусора контейнер (необходим для домов свыше 350 м2) | C97: ='ОВиВК ТЕСЕ'!C101 -> 0 | D97: Усл. | F97: =K97/0.8 -> 0 | G97: =F97 -> 0 | K97: =C97*8000 -> 0
A98: Подготовительные и накладные расходы | B98: Включают разработку комплекта документов для монтажа, проверку ОТК и приемку каждого этапа работ инженерами технического надзора, соблюдение стандарта компании | C98: ='ОВиВК ТЕСЕ'!C102 -> 1 | D98: Усл. | F98: =C98*31000 -> 31000 | G98: =F98 -> 31000 | J98: 2000 | K98: 4500 | L98: =5500+6500 -> 12000 | M98: выезды ИТН | P98: Стоимость ОВиВК + радиаторы
A99: Транспортные расходы | B99: Доставка оборудования и материалов на объект | C99: ='ОВиВК ТЕСЕ'!C103 -> 1 | D99: усл. | F99: =C99*11000 -> 11000 | G99: =F99 -> 11000 | L99: 10000 | P99: =F106+'ТП Stout '!G46 -> 77289.23077
A100: Доставка бытовки на объект | B100: Если есть такая необходимость, мы предоставляем бытовку для проживания на объекте строителей. После окончания работ, бытовка вывозится. | C100: ='ОВиВК ТЕСЕ'!C104 -> 0 | D100: км от мкад | G100: =IF(C100=0,0, IF(C100<100,24000, IF(C100<150,30000,36000))) -> 0 | L100: =IF(C100=0,0, IF(C100<=50,13500, IF(C100<=100,17000, IF(C100<=150,20500, IF(C100<=200,24000, IF(C100<=250,27500, IF(C100>250,31000,))))))) -> 0
A101: Итого по смете: | F101: =SUM(G17:G18,G61:G62,G89:G90,G93:G99) -> 77289.23077 | I101: =SUM(L17,L61,L89) -> 0 | J101: =SUM(J6:J16,J21:J60,J65:J88,J93:J100) -> 8765 | K101: =SUM(K6:K16,K21:K60,K65:K88,K93:K100) -> 22053 | L101: =SUM(I101:K101,L93:L100)-M104 -> 52818 | M101: =IF(F106=0,"",(F106-L101)/F106) -> 0.3166188941
A102: Вычет по сертификату за систему отопление: | D102: м² | E102: =(I102/$J$2)*$J$113 -> 0 | F102: =(C102*600)*$K$113 -> 0 | G102: =F102+E102 -> 0 | I102: =$C102*(УЗЛЫ!C15)+(IF(C102=0,0,)+IF(C102>1,УЗЛЫ!D17,)) -> 0 | J102: =C102*(РАБОТЫ!C17+РАБОТЫ!C18)/R49 -> 0 | K102: =C102*(РАБОТЫ!D17+РАБОТЫ!D18)/R49 -> 0 | L102: =SUM(I102:K102) -> 0
A103: Вычет по сертификату за систему водоснабжения: | D103: точка | E103: =(I103/$K$2)*$J$113 -> 0 | F103: =((J103+K103)/$K$2)*$K$113*1.3 -> 0 | G103: 0 | I103: =C103* УЗЛЫ!C70 -> 0 | J103: =$C103*(РАБОТЫ!C23 + (РАБОТЫ!C24/10)) -> 0 | K103: =$C103*(РАБОТЫ!D23 + (РАБОТЫ!D24/10)) -> 0 | L103: =SUM(I103:K103) -> 0
A104: Вычет по сертификату за систему канализации: | D104: точка | E104: =(I104/$J$2)*$J$113 -> 0 | F104: =((J104+K104)/$J$2)*$K$113 -> 0 | G104: 0 | I104: =$C104* УЗЛЫ!C78 -> 0 | J104: =$C104* (РАБОТЫ!C26+(РАБОТЫ!C27*0.5)+(РАБОТЫ!C28*0.1)) -> 0 | K104: =$C104* (РАБОТЫ!D27+РАБОТЫ!D28) -> 0 | L104: 0 | M104: =SUM(L102:L104) -> 0
A105: Корректировка стоимости (скидка): | G105: 0
A106: Итого по смете со скидкой: | F106: =F101-G105-G102-G103-G104 -> 77289.23077
B107: =РАБОТЫ!$A$1 -> Дата | K107: Дом кирпично-деревянный | L107: 0
K108: (поставить 1)
J110: Коэффициент для заказчика | L110: Коэффициент для СЕБЕСА дом свыше 350м2 плюс 10%; мусор-контейнер; дизайн-проект 10%
N111: * 10% на оплату работ, материал через запрос в проектный
J112: Мат | K112: Раб | L112: Мат | M112: Раб
J113: 1 | K113: 1 | L113: 1 | M113: 1
I115: Стоим. мат-ла | J115: Стоим. работ бр. | K115: Стоим. работ ПР | L115: Мат-л + работа | M115: Промежут. рента
O116: Справочно, в разбивке по этапам:
I117: =I101-I118-I119 ->  | J117: =J101-J118-J119 ->  | K117: =K101-K118-K119 ->  | L117: =L101-L118-L119 ->  | M117: =IF(Q117=0, "", (Q117-L117)/Q117) ->  | O117: Скрытые | Q117: =F101-Q118-Q119 -> 
I118: =SUM(#REF!+#REF!+#REF!+#REF!+#REF!+#REF!+#REF!+#REF!+#REF!+#REF!+#REF!+#REF!+#REF!) ->  | J118: =SUM(#REF!+#REF!+#REF!++#REF!+#REF!+#REF!+#REF!+#REF!+#REF!+#REF!+#REF!+#REF!+#REF!) ->  | K118: =SUM(#REF!+#REF!+#REF!++#REF!+#REF!+#REF!+#REF!+#REF!+#REF!+#REF!+#REF!+#REF!+#REF!) ->  | L118: =SUM(#REF!+#REF!+#REF!++#REF!+#REF!+#REF!+#REF!+#REF!+#REF!+#REF!+#REF!+#REF!+#REF!) ->  | M118: =IF(Q118=0, "", (Q118-L118)/Q118) ->  | O118: Теплые полы | Q118: =SUM(#REF!+#REF!+#REF!+#REF!+#REF!+#REF!+#REF!+#REF!+#REF!+#REF!+#REF!+#REF!+#REF!) -> 
I119: =SUM(I6:I16) -> 0 | J119: =SUM(J6:J16) -> 0 | K119: =SUM(K6:K16) -> 0 | L119: =SUM(L6:L16) -> 0 | M119: =IF(Q119=0, "", (Q119-L119)/Q119) ->  | O119: Теплотрасса | Q119: =SUM(G6:G16) -> 0

Sheet Вентиляция (Приточная)
A1: Приложение № к Договору подряда № ______________от_____________ | I1: курс €
A2: =TODAY() -> 2024-02-02 | B2: Данный сметный расчёт действителен 7 календарных дней. По истечению срока, цены могут быть изменены. | I2: ='ОВиВК ТЕСЕ'!I2 -> 100
A3: Сметный расчет Вентиляция и Дымоходы
A4: Общеобменная вентиляция | I4: =РАБОТЫ!A1 -> Дата
A5: Материалы/услуги | B5: Описание | C5: Кол-во | D5: Ед.изм | E5: Мат-ал, руб | F5: Работа, руб | G5: Итого, руб | I5: Материал | J5: Бригада | K5: Прораб | L5: Итого | M5: Рента
A6: Точки вытяжной вентиляции (без прохода через кровлю ) | B6: Система естественной вытяжной вентиляции предназначена для того, что бы регулировать влажность и удалять неприятные запахи из кухни и санузлов. | D6: шт. | E6: =(K6/0.65)*1.1 -> 0 | F6: =((J6)/0.65)*1.5 -> 0 | G6: =F6+E6 -> 0 | J6: =C6*РАБОТЫ!C29 -> 0 | K6: =C6*РАБОТЫ!D29 -> 0 | L6: =SUM(I6:K6) -> 0 | M6: =IF(G6=0, "", (G6-L6)/G6) -> 
A7: Точки вытяжной вентиляции (без прохода через кровлю ) для парных | B7: Система естественной вытяжной вентиляции предназначена для того, что бы регулировать влажность и удалять неприятные запахи. | D7: шт. | E7: =(K7/0.65) -> 0 | F7: =((J7)/0.65)*1.2 -> 0 | G7: 0 | J7: =C7*РАБОТЫ!C32 -> 0 | K7: =C7*РАБОТЫ!D32 -> 0 | L7: =SUM(I7:K7) -> 0 | M7: =IF(G7=0, "", (G7-L7)/G7) -> 
A8: Приточный клапан 16кп-04 | B8: Предназначены для притока наружного воздуха в помещения в системах вентиляции | D8: шт. | E8: =((I8*64%)/0.7) -> 0 | F8: =((I8*36%)/0.5) -> 0 | G8: 0 | I8: =C8*УЗЛЫ!B288 -> 0 | L8: =SUM(I8:K8) -> 0 | M8: =IF(G8=0, "", (G8-L8)/G8) -> 
A9: Установка аэратора VILPE на кровле (проход кровли). Металло-черепица, мягкая кровля, цементно-песчанная кровля | B9: Система естественной вентиляции предназначена для того, что бы регулировать влажность и удалять неприятные запахи из кухни и санузлов. Цвет стандарт. | D9: шт. | E9: =((I9*0.73))*J85 -> 0 | F9: =(C9*15000)*K85 -> 0 | G9: =F9+E9 -> 0 | I9: =IF($C$9=0,0, IF($C$9=1,C9*УЗЛЫ!B270, IF($C$9>1,УЗЛЫ!B270+(C9-1)*УЗЛЫ!C270))) -> 0 | L9: =SUM(I9:K9) -> 0 | M9: =IF(G9=0, "", (G9-L9)/G9) -> 
A10: Установка аэратора VILPE 160 на кровле (проход кровли). Металло-черепица, мягкая кровля, цементно-песчанная кровля | B10: Система естественной вентиляции предназначена для того, чтобы регулировать влажность и удалять неприятные запахи из помещений требующего вывода большего объёма воздуха (гараж и пр.) Цвет стандарт. | D10: шт. | E10: =((I10*0.74))*J85 -> 0 | F10: =(C10*15000)*$K$85 -> 0 | G10: =F10+E10 -> 0 | I10: =C10*УЗЛЫ!B274 -> 0 | L10: =SUM(I10:K10) -> 0 | M10: =IF(G10=0, "", (G10-L10)/G10) -> 
A11: Установка аэратора на кровле VILPE FLOW 125/700 (проход кровли). Металло-черепица, мягкая кровля, цементно-песчанная кровля | B11: Система естественной вентиляции предназначена для того, что бы регулировать влажность и удалять неприятные запахи из кухни и санузлов. Увеличенный КПД. Цвет стандарт. | D11: шт. | E11: =((I11*0.75))*$J$85 -> 0 | F11: =(C11*15000)*$K$85 -> 0 | G11: 0 | I11: =C11*УЗЛЫ!B282 -> 0 | L11: 0
A12: Установка аэратора на кровле VILPE FLOW 160/700 (проход кровли).Металло-черепица, мягкая кровля, цементно-песчанная кровля | B12: Система естественной вентиляции предназначена для того, чтобы регулировать влажность и удалять неприятные запахи из помещений требующего вывода большего объёма воздуха (гараж и пр.) Увеличенный КПД. Цвет стандарт. | D12: шт. | E12: =((I12*0.95))*$J$85 -> 0 | F12: =(C12*15000)*$K$85 -> 0 | G12: 0 | I12: =C12*УЗЛЫ!B284 -> 0 | L12: 0
A13: Система снегозадержания ГрандЛайн (над газ.вент., вент.выходы) | B13: Защищает кровельные аэраторы, газ.вент. и дымоходы от повреждения при сходе снега/льда | C13: =IF(I13>0,1,0) -> 0 | D13: компл. | E13: =((I13*0.85)/0.72)*J85 -> 0 | F13: =(C9+C10+C11+C12+C18+C19+C20+C21+C31+C32+C42+C43)*1000 -> 0 | G13: =F13+E13 -> 0 | I13: =(C9+C10+C11+C12+C18+C19+C20+C21+C31+C32+C42+C43)*УЗЛЫ!B292 -> 0 | L13: =SUM(I13:K13) -> 0
A14: Итого материал: | F14: =SUM(E6:E13) -> 0 | L14: =SUM(I6:I13) -> 0
A15: Работа: | F15: =SUM(F6:F13) -> 0 | L15: =SUM(J6:K13) -> 0
A16: Вентиляция газовая (из котельной и кухни)
A17: Материалы/услуги | B17: Описание | C17: Кол-во | D17: Ед.изм | E17: Мат-ал, руб | F17: Работа, руб | G17: Итого, руб | I17: Материал | J17: Бригада | K17: Прораб | L17: Итого | M17: Рента
A18: Комплект внутренней вентиляции и D150мм | B18: Соотв. требованиям газовых служб. Нержавеющая сталь, сэндвич | D18: Компл. | E18: =K18*$J$85 -> 0 | F18: =(C18*35000)*K85 -> 0 | G18: =F18+E18 -> 0 | K18: =C18*УЗЛЫ!B294 -> 0 | L18: =SUM(I18:K18) -> 0 | M18: =IF(G18=0, "", (G18-L18)/G18) -> 
A19: Комплект внутренней вентиляции D200мм | B19: Соотв. требованиям газовых служб. Нержавеющая сталь, сэндвич | D19: Компл. | E19: =K19*$J$85 -> 0 | F19: =(C19*35000)*K85 -> 0 | G19: =F19+E19 -> 0 | K19: =C19*УЗЛЫ!B296 -> 0 | L19: =SUM(I19:K19) -> 0 | M19: =IF(G19=0, "", (G19-L19)/G19) -> 
A20: Комплект внешней вентиляции D150мм | B20: Соотв. требованиям газовых служб. Нержавеющая сталь, сэндвич | D20: Компл. | E20: =K20*$J$85 -> 0 | F20: =(C20*45000)*K85 -> 0 | G20: =F20+E20 -> 0 | K20: =C20* УЗЛЫ!B298 -> 0 | L20: =SUM(I20:K20) -> 0 | M20: =IF(G20=0, "", (G20-L20)/G20) -> 
A21: Комплект внешней вентиляции D200мм | B21: Соотв. требованиям газовых служб. Нержавеющая сталь, сэндвич | D21: Компл. | E21: =K21*$J$85 -> 0 | F21: =(C21*45000)*K85 -> 0 | G21: =F21+E21 -> 0 | K21: =C21*УЗЛЫ!B300 -> 0 | L21: =SUM(I21:K21) -> 0 | M21: =IF(G21=0, "", (G21-L21)/G21) -> 
A22: Цвет трубы | B22: Покраска верхней части (ТЕМНО КРАСНЫй, ТЕМНО СЕРЫЙ, КОРРИЧНЕВЫЙ, ТЕМНЫЙ ШОКОЛАД, ЧЕРНЫЙ) | D22: пог.м. | E22: =K22*$J$85 -> 0 | F22: =(C22*500)*K85 -> 0 | G22: =F22+E22 -> 0 | K22: =C22*1700 -> 0 | L22: =SUM(I22:K22) -> 0 | M22: =IF(G22=0, "", (G22-L22)/G22) -> 
A23: Итого материал: | F23: =SUM(E18:E22) -> 0
A24: Работа: | F24: =SUM(F18:F22) -> 0 | L24: =SUM(L18:L22) -> 0
A25: Система с принудительным вытяжным грибком Е190Р/Е220Р
A26: Материалы/услуги | B26: Описание | C26: Кол-во | D26: Ед.изм | E26: Мат-ал, руб | F26: Работа, руб | G26: Итого, руб | I26: Материал | J26: Бригада | K26: Прораб | L26: Итого | M26: Рента
A27: Вытяжной канал на одно помещение, для первого этажа | B27: Подключение канала первого этажа на одно помещение. Гофрированный воздуховод, 140х64мм, гладкая внутреннняя поверхность, покрытая специальным антибактериальным и антистатическим раствором. | D27: Компл. | E27: =(I27*1.5)*J85 -> 0 | F27: =(K27*1.9)*K85 -> 0 | G27: =E27+F27 -> 0 | I27: =$C27*УЗЛЫ!C344 -> 0 | K27: =$C27*УЗЛЫ!C316 -> 0 | L27: =I27+K27 -> 0 | M27: =IF(G27=0,"",(G27-L27)/G27) -> 
A28: Вытяжной канал на два помещения, для первого этажа | B28: Подключение канала второго этажа на два помещения. Гофрированный воздуховод, 140х64мм, гладкая внутреннняя поверхность, покрытая специальным антибактериальным и антистатическим раствором. | D28: Компл. | E28: =(I28*1.5)*J85 -> 0 | F28: =(K28*1.9)*K85 -> 0 | G28: =E28+F28 -> 0 | I28: =$C28*УЗЛЫ!C345 -> 0 | K28: =$C28*УЗЛЫ!C317 -> 0 | L28: 0
A29: Вытяжной канал на одно помещение, для второго этажа | B29: Подключение канала первого этажа на одно помещение. Гофрированный воздуховод, 140х64мм, гладкая внутреннняя поверхность, покрытая специальным антибактериальным и антистатическим раствором. | D29: Компл. | E29: =(I29*1.5)*J85 -> 0 | F29: =(K29*1.9)*K85 -> 0 | G29: 0 | I29: =$C29*УЗЛЫ!C346 -> 0 | K29: =$C29*УЗЛЫ!C318 -> 0 | L29: 0
A30: Вытяжной канал на два помещения, для второго этажа | B30: Подключение канала второго этажа на два помещения. Гофрированный воздуховод, 140х64мм, гладкая внутреннняя поверхность, покрытая специальным антибактериальным и антистатическим раствором. | D30: Компл. | E30: =(I30*1.5)*J85 -> 0 | F30: =(K30*1.9)*K85 -> 0 | G30: 0 | I30: =$C30*УЗЛЫ!C347 -> 0 | K30: =$C30*УЗЛЫ!C319 -> 0 | L30: 0
A31: Кровельный вентилятор E190P с диммером | B31: Подключение кровельного грибка E190P, с регулировкой мощности через диммер (до 250 м.кв.) | D31: Компл. | E31: =(I31*1)*J85 -> 0 | F31: =(K31*6.5)*K85 -> 0 | G31: 0 | I31: =$C31*УЗЛЫ!C348 -> 0 | K31: =$C31*УЗЛЫ!C320 -> 0 | L31: 0
A32: Кровельный вентилятор E220P с диммером | B32: Подключение кровельного грибка E220P, с регулировкой мощности через диммер (до 350 м.кв.). | D32: Компл. | E32: =(I32*1)*J85 -> 0 | F32: =(K32*6.5)*K85 -> 0 | G32: 0 | I32: =$C32*УЗЛЫ!C349 -> 0 | K32: =$C32*УЗЛЫ!C320 -> 0 | L32: 0
A33: Подключение распределительной коробки воздуховодов | B33: Распределительный блок объеденяющий в себя 6 воздуховодов, с одним выходом на крышу. | D33: Компл. | E33: =(I33*1.4)*J85 -> 0 | F33: =(K33*1.9)*K85 -> 0 | G33: 0 | I33: =$C33*УЗЛЫ!C352 -> 0 | K33: =$C33*УЗЛЫ!C321 -> 0 | L33: 0 | M33: =IF(G48=0,"",(G48-L48)/G48) -> 
A34: Приточный клапан Velco 110 | B34: Приточный клапан Velco 110 с термостатическим элементом, с возможностью механической регулировки, со сменным мембранным фильтром, с белой наружной решеткой. | D34: шт. | E34: =(I34*1.5)*J85 -> 0 | F34: =(K34*1.9)*K85 -> 0 | G34: 0 | I34: =$C34*УЗЛЫ!C353 -> 0 | K34: =$C34*УЗЛЫ!C322 -> 0 | L34: 0
A35: Декоративная решетка с возможностью регулировки, стандарт | B35: Декоративная решетка с возможностью регулировки SQair Extraction Стандарт Ø125 | D35: шт. | E35: =(I35*1.5)*J85 -> 0 | F35: =(K35*1.9)*K85 -> 0 | G35: 0 | I35: =$C35*УЗЛЫ!C354 -> 0 | K35: =$C35*УЗЛЫ!C323 -> 0 | L35: 0
A36: Декоративная решетка с возможностью регулировки, Delux | B36: Декоративная решетка с возможностью регулировки SQair Extraction Deluxe Ø125 | D36: шт. | E36: =(I36*1.5)*J85 -> 0 | F36: =(K36*1.9)*K85 -> 0 | G36: 0 | I36: =$C36*УЗЛЫ!C355 -> 0 | K36: =$C36*УЗЛЫ!C324 -> 0 | L36: 0
A37: Итого материал: | F37: =SUM(E27:E36) -> 0 | L37: =SUM(I27:I36) -> 0 | M37: =IF(F37=0,"",(F37-L37)/F37) -> 
A38: Работа: | F38: =SUM(F27:F36) -> 0 | L38: =SUM(K27:K36) -> 0 | M38: =IF(F38=0,"",(F38-L38)/F38) -> 
A39: Тихая кухня (кухонная вытяжка покупается отдельно после установки кухни)
A40: Материалы/услуги | B40: Описание | C40: Кол-во | D40: Ед.изм | E40: Мат-ал, руб | F40: Работа, руб | G40: Итого, руб | I40: Материал | J40: Бригада | K40: Прораб | L40: Итого | M40: Рента
A41: Точки вентиляции (без прохода через кровлю ) 125мм | B41: Система естественной вентиляции предназначена для того, чтобы регулировать влажность и удалять неприятные запахи из кухни и санузлов. | D41: шт. | E41: =(K41/0.78)*$J$85*1.1 -> 0 | F41: =((J41)/0.65)*$K$85*1.5 -> 0 | G41: =F41+E41 -> 0 | J41: =$C41* РАБОТЫ!C30 -> 0 | K41: =$C41*РАБОТЫ!D30 -> 0 | L41: =SUM(I41:K41) -> 0 | M41: =IF(G41=0,"",(G41-L41)/G41) -> 
A42: Кровельный вентилятор E190P | B42: Подключение кровельного грибка E190P, с регулировкой мощности через кухонную вытяжку (вытяжка покупается отдельно после установки кухни). | D42: Компл. | E42: =(I42*1)*J85 -> 0 | F42: =(K42*6)*K85 -> 0 | G42: =E42+F42 -> 0 | I42: =$C42*УЗЛЫ!C350 -> 0 | K42: =$C42*УЗЛЫ!C320 -> 0 | L42: =I42+K42 -> 0
A43: Кровельный вентилятор E220P | B43: Подключение кровельного грибка E220P, с регулировкой мощности через кухонную вытяжку (вытяжка покупается отдельно после установки кухни). Для островной вытяжки | D43: Компл. | E43: =(I43*1)*J85 -> 0 | F43: =(K43*6)*K85 -> 0 | G43: 0 | I43: =$C43*УЗЛЫ!C351 -> 0 | K43: =$C43*УЗЛЫ!C320 -> 0 | L43: 0 | M43: =IF(G43=0,"",(G43-L43)/G43) -> 
A44: Итого материал: | F44: =SUM(E41:E43) -> 0 | L44: =SUM(I41:I43) -> 0 | M44: =IF(F44=0,"",(F44-L44)/F44) -> 
A45: Работа: | F45: =SUM(F41:F43) -> 0 | L45: =SUM(K41:K43) -> 0 | M45: =IF(F45=0,"",(F45-L45)/F45) -> 
A46: Приточная вентиляция ЗАПРОС АКТУАЛЬНЫХ ПОЗИЦИЙ И ЦЕН ЧЕРЕЗ ПРОЕКТНЫЙ (ВИКТОР ШАТЕРНИКОВ)
A47: Материалы/услуги | B47: Описание | C47: Кол-во | D47: Ед.изм | E47: Мат-ал, руб | F47: Работа, руб | G47: Итого, руб | I47: Материал | J47: Бригада | K47: Прораб | L47: Итого | M47: Рента
B48: Воздуховод бухта 50 м.п. d75 | D48: м.пог | E48: =I48/0.8 -> 0 | F48: =(J48+K48)/0.5 -> 0 | G48: =E48+F48 -> 0 | I48: =C48*УЗЛЫ!C362 -> 0 | J48: =C48*РАБОТЫ!C261 -> 0 | K48: =C48*РАБОТЫ!D261 -> 0 | L48: =SUM(I48:K48) -> 0 | M48: =IF(G48=0,"",(G48-L48)/G48) -> 
B49: Диффузор потолочный приточный 125 мм | D49: шт | E49: =I49/0.8 -> 0 | F49: =(J49+K49)/0.5 -> 0 | G49: =E49+F49 -> 0 | I49: =C49*УЗЛЫ!C363 -> 0 | J49: =C49*РАБОТЫ!C262 -> 0 | K49: =C49*РАБОТЫ!D262 -> 0 | L49: =SUM(I49:K49) -> 0 | M49: =IF(G49=0,"",(G49-L49)/G49) -> 
B50: Диффузор стеновой приточный | D50: шт | E50: 0 | F50: 0 | G50: 0 | I50: =C50*УЗЛЫ!C364 -> 0 | J50: =C50*РАБОТЫ!C263 -> 0 | K50: =C50*РАБОТЫ!D263 -> 0 | L50: 0
B51: Адаптеры | D51: шт | E51: 0 | F51: 0 | G51: 0 | I51: =C51*УЗЛЫ!C365 -> 0 | J51: =C51*РАБОТЫ!C264 -> 0 | K51: =C51*РАБОТЫ!D264 -> 0 | L51: 0
B52: Распределительный короб 8-10х диам75мм | D52: шт | E52: 0 | F52: 0 | G52: 0 | I52: =C52*УЗЛЫ!C366 -> 0 | J52: =C52*РАБОТЫ!C265 -> 0 | K52: =C52*РАБОТЫ!D265 -> 0 | L52: 0
B53: Отводы, крепления,комплектующие для полужестких гофр. воздуховодов | D53: компл | E53: 0 | F53: 0 | G53: 0 | I53: =C53*УЗЛЫ!C367 -> 0 | J53: =C53*РАБОТЫ!C266 -> 0 | K53: =C53*РАБОТЫ!D266 -> 0 | L53: 0
A54: Приточная установка с обвязкой | B54: Приточная установка 400-500м3/ч | D54: шт | E54: 0 | F54: 0 | G54: 0 | I54: =C54*УЗЛЫ!C368 -> 0 | J54: =C54*РАБОТЫ!C267 -> 0 | K54: =C54*РАБОТЫ!D267 -> 0 | L54: 0
B55: Приточная установка 250-300м3/ч | D55: шт | E55: 0 | F55: 0 | G55: 0 | I55: =C55*УЗЛЫ!C369 -> 0 | J55: =C55*РАБОТЫ!C268 -> 0 | K55: =C55*РАБОТЫ!D268 -> 0 | L55: 0
B56: Пульт управления | D56: шт | E56: 0 | F56: 0 | G56: 0 | I56: =C56*УЗЛЫ!C370 -> 0 | J56: =C56*РАБОТЫ!C269 -> 0 | K56: =C56*РАБОТЫ!D269 -> 0 | L56: 0
B57: Шумоглушители, клапана | D57: компл | E57: 0 | F57: 0 | G57: 0 | I57: =C57*УЗЛЫ!C371 -> 0 | J57: =C57*РАБОТЫ!C270 -> 0 | K57: =C57*РАБОТЫ!D270 -> 0 | L57: 0
B58: Стеновой приточный элемент | D58: шт | E58: 0 | F58: 0 | G58: 0 | I58: =C58*УЗЛЫ!C379 -> 0 | J58: 0 | K58: =C58*(УЗЛЫ!C322*2) -> 0 | L58: 0
B59: Крышной приточный элемент | D59: шт | E59: 0 | F59: 0 | G59: 0 | I59: =C59*УЗЛЫ!C380 -> 0 | J59: 0 | K59: =C59*РАБОТЫ!D271 -> 0 | L59: 0
B60: Расходные материалы | D60: компл | E60: 0 | F60: 0 | G60: 0 | I60: =C60*УЗЛЫ!C372 -> 0 | J60: =C60*РАБОТЫ!C272 -> 0 | K60: =C60*РАБОТЫ!D272 -> 0 | L60: 0
B61: Электромонтажные работы (подключение установки, датчиков) | D61: компл | E61: 0 | F61: 0 | G61: 0 | I61: =C61*УЗЛЫ!C373 -> 0 | J61: =C61*РАБОТЫ!C273 -> 0 | K61: =C61*РАБОТЫ!D273 -> 0 | L61: 0
B62: Пусконаладочные работы ** | D62: шт | E62: 0 | F62: =(J62+K62)/0.65 -> 0 | G62: 0 | I62: =C62*УЗЛЫ!C374 -> 0 | J62: =C62*РАБОТЫ!C274 -> 0 | K62: =C62*РАБОТЫ!D274 -> 0 | L62: 0
A63: Проектирование | B63: разработка документов для монтажа системы вентиляции | D63: компл | E63: 0 | F63: 0 | G63: 0 | I63: =C63*УЗЛЫ!C375 -> 0 | J63: =C63*РАБОТЫ!C275 -> 0 | K63: =C63*РАБОТЫ!D275 -> 0 | L63: 0
A64: Проход стен и перекрытий | B64: Сверление отверстий в стене | D64: шт | E64: 0 | F64: =(J64+K64)/0.6 -> 0 | G64: 0 | I64: =C64*УЗЛЫ!C376 -> 0 | J64: =C64*РАБОТЫ!C276 -> 0 | K64: =C64*РАБОТЫ!D276 -> 0 | L64: 0
B65: Сверление отверстий в плите | D65: шт | E65: 0 | F65: =(J65+K65)/0.6 -> 0 | G65: 0 | I65: =C65*УЗЛЫ!C377 -> 0 | J65: =C65*РАБОТЫ!C277 -> 0 | K65: =C65*РАБОТЫ!D277 -> 0 | L65: 0
B66: Сверление отверстий в балках | D66: шт | E66: 0 | F66: =(J66+K66)/0.6 -> 0 | G66: 0 | I66: =C66*УЗЛЫ!C378 -> 0 | J66: =C66*РАБОТЫ!C278 -> 0 | K66: =C66*РАБОТЫ!D278 -> 0 | L66: 0
A67: Общестроительные работы | B67: Декоративные короба (выполняются при разводке воздуховодов под потолком 1 этажа) | D67: м | E67: =I67/0.8 -> 0 | F67: =(J67+K67)/0.6 -> 0 | G67: 0 | I67: =C67*УЗЛЫ!C381 -> 0 | J67: =C67*РАБОТЫ!C279 -> 0 | K67: =C67*РАБОТЫ!D279 -> 0 | L67: 0
B68: Дополнительный пирог пола (выполняется при разводке воздуховодов в полу 2 этажа) - удорожание по отношению к типовому полу | D68: м2 | E68: =I68/0.8 -> 0 | F68: =(J68+K68)/0.6 -> 0 | G68: 0 | I68: =C68*УЗЛЫ!C382 -> 0 | J68: =C68*РАБОТЫ!C280 -> 0 | K68: =C68*РАБОТЫ!D280 -> 0 | L68: 0
A69: Итого материал: | F69: =SUM(E48:E68) -> 0 | L69: =SUM(I48:I68) -> 0 | M69: =IF(F69=0,"",(F69-L69)/F69) ->  | N69: =1-(L69+L70)/(F69+F70) -> 
A70: Работа: | F70: =SUM(F48:F68) -> 0 | L70: =SUM(J48:K68) -> 0 | M70: =IF(F70=0,"",(F70-L70)/F70) -> 
A71: Дополнительно
A72: Материалы/услуги | B72: Описание | C72: Кол-во | D72: Ед.изм | E72: Мат-ал, руб | F72: Работа, руб | G72: Итого, руб | I72: Материал | J72: Бригада | K72: Прораб | L72: Итого | M72: Рента
A73: Проходные отверстия в плите | B73: Алмазное сверление (при ЖБ или монолитных перекрытиях) | C73: 3 | D73: шт. | F73: =IF($C$73=0,0, IF($C$73<4,9000, IF($C$73>3,9000+2300*($C$73-3)))) -> 9000 | G73: =F73 -> 9000 | K73: =IF($C$73=0,0, IF($C$73<4,6000, IF($C$73>3,6000+1700*($C$73-3)))) -> 6000
A74: Подготовительные и накладные расходы | B74: Включают разработку комплекта документов для монтажа, проверку ОТК и приемку каждого этапа работ инженерами технического надзора, соблюдение стандарта компании | C74: 1 | D74: Усл. | F74: =C74*19000 -> 19000 | G74: =F74*C74 -> 19000 | K74: 4000 | L74: =5500+6500 -> 12000
A75: Транспортные расходы | B75: Доставка оборудования и материалов на объект | C75: 1 | D75: усл. | F75: =ROUNDUP((F14+F15+F23+F24+F37+F38+F69+F70)*0.005+5000,-3)*C75 -> 5000 | G75: =F75 -> 5000
A76: Доставка бытовки на объект | B76: Если есть такая необходимость, мы предоставляем бытовку для проживания на объекте строителей. После окончания работ, бытовка вывозится. | D76: км от мкад | G76: =IF(C76=0,0, IF(C76<100,24000, IF(C76<150,30000,36000))) -> 0 | L76: =IF(C76=0,0, IF(C76<=50,13500, IF(C76<=100,17000, IF(C76<=150,20500, IF(C76<=200,24000, IF(C76<=250,27500, IF(C76>250,31000,))))))) -> 0
A77: Итого по смете: | F77: =SUM(F14:G15,F23:G24,F37:G38,F44:G45,F69:G70,G73:G76) -> 33000 | I77: =SUM(I6:I13,I18:I22,I27:I36,I48:I68,I41:I43) -> 0 | J77: =SUM(J6:J13,J18:J22,J27:J36,J48:J68,J73:J76,J41:J43) -> 0 | K77: =SUM(K6:K13,K18:K22,K27:K36,K48:K68,K73:K76,K41:K43) -> 10000 | L77: =SUM(L73:L76,I77:K77) -> 22000 | M77: =IF(F79=0,"",(F79-L77)/F79) -> 0.3333333333
A78: Корректировка стоимости (скидка):
A79: Итого по смете со скидкой: | F79: =F77-G78 -> 33000
A80: * При выполнении разводки под потолком необходимо добавить декоративный короб. При выполнении разводки в межэтажном перекрытии необходима дополнительная обрешётка.
A81: ** ПНР выполняется по факту готовности объекта | G81: =РАБОТЫ!A1 -> Дата
B82: =РАБОТЫ!$A$1 -> Дата | J82: Коэффициент
J84: Мат | K84: Раб
J85: 1 | K85: 1

Sheet Электрика
A1: Приложение № к Договору подряда № ______________от_____________
A2: =TODAY() -> 2024-02-02 | B2: Данный сметный расчёт действителен 7 календарных дней. По истечению срока, цены могут быть изменены.
A3: Сметный расчет Электрика | M3: 0.7
A4: Электротехнические работы и материалы.** | I4: =РАБОТЫ!A1 -> Дата | J4: Коэффициент для ренты | M4: 0.4 | O4: Кабель итого: | P4: =P5+P6+P7+P8+P9+P10+P12+P13 -> 0
A5: Материалы/услуги | B5: Описание | C5: Кол-во | D5: Ед.изм | E5: Мат-ал, руб | F5: Работа, руб | G5: Итого, руб | I5: Материал | J5: Бригада | K5: Прораб | L5: Итого | M5: Рента | O5: Кабель ВВГнг-LS 3х2,5 | P5: =(C6*13)+(C7*13)+(C8*0.5)+(C16*15)+(C26*16)+(C38*14) -> 0
A6: Электрические точки по купону | B6: Электроустановочное оборудование не входит | D6: шт. | E6: 0 | F6: 0 | G6: =SUM(E6:F6) -> 0 | H6: 13 | L6: =SUM(I6:K6) -> 0 | M6: =IF(E6=0, "", (E6-L6)/E6) ->  | O6: Кабель ВВГ нг-LS 5*4 | P6: =(C9*17)+(C15*18) -> 0
A7: Выводы под розетки | B7: Кабелем ВВГ(А)нг-LS. | D7: шт. | E7: =($I7/$M$3)*$J$106 -> 0 | F7: =(($J7+$K7)/$M$4)*$K$106 -> 0 | G7: =SUM(E7:F7) -> 0 | H7: 13 | I7: =$C7*((УЗЛЫ!C400*13)+(УЗЛЫ!C427*13)+(УЗЛЫ!C422*13)+(14*УЗЛЫ!C433)+УЗЛЫ!C432)*L106 -> 0 | J7: =$C7*РАБОТЫ!C115*M106 -> 0 | K7: =$C7*РАБОТЫ!D115*M106 -> 0 | L7: 0 | M7: =IF(G7=0,"",(G7-L7)/G7) ->  | O7: Кабель ПРКС 5х2,5 | P7: =C10*17 -> 0
A8: Выводы под розетки в блоке | B8: 2,3,4 розетки в блоках имеющие одну групповую нагрузку | D8: шт. | E8: =($I8/$M$3)*$J$106 -> 0 | F8: =(($J8+$K8)/0.55)*$K$106 -> 0 | G8: 0 | H8: 0.5 | I8: =$C8*(((УЗЛЫ!C400*0.5)+(2*УЗЛЫ!C433)+УЗЛЫ!C432)*L106) -> 0 | J8: =$C8* РАБОТЫ!C119*M106 -> 0 | K8: =$C8*РАБОТЫ!D119*M106 -> 0 | L8: 0 | O8: Кабель SAT 703B+CU/CU (75 Ом) 100 м белый | P8: =(C12*H12)+(C13*H13) -> 0
A9: Силовые выводы в пределах дома | B9: Сечение свыше 2,5 мм. (Электрокотел, электроплита) | D9: шт. | E9: =($I9/$M$3)*$J$106 -> 0 | F9: =(($J9+$K9)/$M$4)*$K$106 -> 0 | G9: =SUM(E9:F9) -> 0 | H9: 17 | I9: =$C9*((((УЗЛЫ!C396+64)*17)+(УЗЛЫ!C425*17)+(УЗЛЫ!C429*17)+(17*УЗЛЫ!C433))*L106)+IF(C9=0,0,IF(C9>=1,УЗЛЫ!C477)) -> 0 | J9: =$C9* РАБОТЫ!C116*M106 -> 0 | K9: =$C9* РАБОТЫ!D116*M106 -> 0 | L9: 0 | O9: Кабель ВВГ нг-LS 3x1,5 | P9: =(C18*H18)+(C20*H20)+(C21*H21)+(C22*H22)+(C23*H23)+(C25*H25)+(C28*H28)+(C29*H29)+(C30*H30)+(C31*H31)+(C32*H32)+(C36*H36)+(C37*H37) -> 0
A10: Силовые выводы в пределах дома | B10: Сечение свыше 2,5 мм., жаростойкий кабель ПРКС (Электропечь, сауна) | D10: шт. | E10: =($I10/$M$3)*$J$106 -> 0 | F10: 0 | G10: 0 | H10: 17 | I10: =$C10*(((УЗЛЫ!C397*17)+(УЗЛЫ!C425*17)+(УЗЛЫ!C429*17)+(17*УЗЛЫ!C433))+180)*L106+IF(C10=0,0,IF(C10>=1,УЗЛЫ!C477)) -> 0 | J10: =$C10* РАБОТЫ!C116*M106 -> 0 | K10: =$C10* РАБОТЫ!D116*M106 -> 0 | L10: 0 | O10: Кабель ПРКС 3х1,5 | P10: =C19*H19 -> 0
A11: Силовые выводы до потребителя | B11: Сечение свыше 2,5мм (кабель ВбБШВ, метраж определяется по месту) | D11: шт. | F11: 0 | G11: 0 | J11: =$C11* РАБОТЫ!C116*M106 -> 0 | K11: =$C11* РАБОТЫ!D116*M106 -> 0 | L11: 0
A12: Выводы слаботочных систем | B12: TV, int, audio, UTP. | D12: шт. | E12: =($I12/$M$3)*$J$106 -> 0 | F12: 0 | G12: 0 | H12: 14 | I12: =$C12* ((УЗЛЫ!C411*14)+(УЗЛЫ!C426*14)+(УЗЛЫ!C421*14)+(16*УЗЛЫ!C433)+УЗЛЫ!C432)*L106 -> 0 | J12: =$C12*РАБОТЫ!C115*M106 -> 0 | K12: =$C12*РАБОТЫ!D115*M106 -> 0 | L12: 0 | O12: Кабель ВВГнг-LS 4x1,5 | P12: =C24*H24 -> 0
A13: Выводы слаботочных систем на фасад | B13: TV антенна, int, audio, UTP. | D13: шт. | E13: =($I13/$M$3)*$J$106 -> 0 | F13: 0 | G13: 0 | H13: 30 | I13: =$C13* ((УЗЛЫ!C411*25)+(УЗЛЫ!C426*25)+(УЗЛЫ!C421*25)+(25*УЗЛЫ!C433))*L106 -> 0 | J13: =$C13*РАБОТЫ!C115*M106 -> 0 | K13: =$C13*РАБОТЫ!D115*M106 -> 0 | L13: 0 | O13: Кабель ВВГ нг-LS 5x10 | P13: =(C33*H33)+(C34*H34)+(C41*H41)+(C42*H42) -> 0
A14: Выводы слаботочных систем до потребителя | B14: Кабель FTP (метраж определяется по месту) | D14: шт. | F14: 0 | G14: 0 | J14: =$C14*РАБОТЫ!C115*M106 -> 0 | K14: =$C14*РАБОТЫ!D115*M106 -> 0 | L14: 0
A15: Выводы силовые на фасад | B15: Сечение свыше 2,5 мм. (Баня, гараж, электропривод ворот, скважина и т.д.). | D15: шт. | E15: =($I15/$M$3)*$J$106 -> 0 | F15: 0 | G15: 0 | H15: 18 | I15: =$C15* (((УЗЛЫ!C396*18)+(УЗЛЫ!C425*18)+(УЗЛЫ!C429*18)+(21*УЗЛЫ!C433)+(УЗЛЫ!C436)))*L106+IF(C15=0,0,IF(C15>=1,УЗЛЫ!C477)) -> 0 | J15: =$C15* РАБОТЫ!C116*M106 -> 0 | K15: =$C15* РАБОТЫ!D116*M106 -> 0 | L15: 0
A16: Прочие выводы стандартного сечения в пределах дома и на фасад | B16: Сечение менее 2,5 мм. (Септик, вытяжка, вентиляторы, ландшафтное осв., насосная гр., и т.д.). | D16: шт. | E16: =($I16/$M$3)*$J$106 -> 0 | F16: 0 | G16: 0 | H16: 15 | I16: =$C16* ((УЗЛЫ!C400*15)+(УЗЛЫ!C427*15)+(УЗЛЫ!C422*15)+(16*УЗЛЫ!C433))*L106 -> 0 | J16: =$C16* РАБОТЫ!C115*M106 -> 0 | K16: =$C16* РАБОТЫ!D115*M106 -> 0 | L16: 0 | O16: Автоматы ЩР: | P16: =P18+P19 -> 2
A17: Прочие выводы стандартного сечения до потребителя | B17: Сечение менее 2,5мм (кабель ВбБШВ, метраж определяется по месту) | D17: шт. | F17: 0 | G17: =SUM(E17:F17) -> 0 | J17: =$C17* РАБОТЫ!C115*M106 -> 0 | K17: =$C17* РАБОТЫ!D115*M106 -> 0 | L17: =SUM(I17:K17) -> 0
A18: Выводы под осветительные приборы | B18: Кабелем ВВГ(А)нг-LS. | D18: шт. | E18: =($I18/$M$3)*$J$106 -> 0 | F18: 0 | G18: 0 | H18: 16 | I18: =$C18* ((УЗЛЫ!C391*16)+(УЗЛЫ!C427*16)+(УЗЛЫ!C422*16)+(16*УЗЛЫ!C433)+УЗЛЫ!C420)*L106 -> 0 | J18: =$C18* РАБОТЫ!C115*M106 -> 0 | K18: =$C18* РАБОТЫ!D115*M106 -> 0 | L18: 0 | O18: 1Р | P18: =РАБОТЫ!L116+РАБОТЫ!L130+РАБОТЫ!L139+РАБОТЫ!L169 -> 1
A19: Выводы под осветительные приборы | B19: Кабелем ПРКС 3х1,5 | D19: шт. | E19: 0 | F19: 0 | G19: 0 | H19: 16 | I19: =$C19* ((УЗЛЫ!C392*16)+(УЗЛЫ!C427*16)+(УЗЛЫ!C422*16)+(16*УЗЛЫ!C433)+УЗЛЫ!C420)*L106 -> 0 | J19: =$C19* РАБОТЫ!C115*M106 -> 0 | K19: =$C19* РАБОТЫ!D115*M106 -> 0 | L19: 0 | O19: 3Р | P19: =РАБОТЫ!L122+РАБОТЫ!L135+РАБОТЫ!L155 -> 1
A20: Вывод под осветительные приборы 2го подключения | B20: Выводы под потолочные осветительные для одной групповой нагрузки. | D20: шт. | E20: 0 | F20: 0 | G20: 0 | H20: 4 | I20: =$C20*(((УЗЛЫ!C391*4)+(УЗЛЫ!C427*4)+(УЗЛЫ!C422*4)+(5*УЗЛЫ!C433)+УЗЛЫ!C420)*L106) -> 0 | J20: =$C20* РАБОТЫ!C117*M106 -> 0 | K20: =$C20* РАБОТЫ!D117*M106 -> 0 | L20: 0
A21: Выводы подсветки, бра | B21: Выводы под настенные осветительные приборы. | D21: шт. | E21: 0 | F21: 0 | G21: =SUM(E21:F21) -> 0 | H21: 16 | I21: =$C21* (((УЗЛЫ!C391*16)+(УЗЛЫ!C427*16)+(УЗЛЫ!C422*16)+(16*УЗЛЫ!C433)+УЗЛЫ!C420))*L106 -> 0 | J21: =$C21*РАБОТЫ!C115*M106 -> 0 | K21: =$C21*РАБОТЫ!D115*M106 -> 0 | L21: 0 | O21: УЗО | P21: =РАБОТЫ!L117+РАБОТЫ!L129+РАБОТЫ!L134+РАБОТЫ!L156 -> 1
A22: Вывод архитектурной подсветки | B22: Кабель ВВГ нг-LS 3x1,5 | D22: шт. | E22: 0 | F22: 0 | G22: 0 | H22: 25 | I22: =C22*((УЗЛЫ!C391*25)+(УЗЛЫ!C427*25)+(УЗЛЫ!C422*25)+(УЗЛЫ!C433*25)+УЗЛЫ!C432)*L106 -> 0 | J22: =$C22*РАБОТЫ!C115*M106 -> 0 | K22: =$C22*РАБОТЫ!D115*M106 -> 0 | L22: 0 | O22: Контактор | P22: =РАБОТЫ!L131+РАБОТЫ!L140+РАБОТЫ!L144 -> 0
A23: Выводы под датчики движения | B23: Выводы организации управления освещением. | D23: шт. | E23: 0 | F23: 0 | G23: 0 | H23: 16 | I23: =$C23* ((УЗЛЫ!C391*16)+(УЗЛЫ!C427*16)+(УЗЛЫ!C422*16)+(18*УЗЛЫ!C433))*L106 -> 0 | J23: =$C23*РАБОТЫ!C115*M106 -> 0 | K23: =$C23*РАБОТЫ!D115*M106 -> 0 | L23: 0
A24: Выводы под рольставни | B24: Выводы питания электрических штор, маркиз. | D24: шт. | E24: 0 | F24: 0 | G24: 0 | H24: 16 | I24: =$C24* ((УЗЛЫ!C401*16)+(УЗЛЫ!C427*16)+(УЗЛЫ!C422*16)+(16*УЗЛЫ!C433))*L106 -> 0 | J24: =$C24*РАБОТЫ!C115*M106 -> 0 | K24: =$C24*РАБОТЫ!D115*M106 -> 0 | L24: 0
A25: Выводы управления рольставней | B25: Выводы управления электрических штор, маркиз. | D25: шт. | E25: 0 | F25: 0 | G25: 0 | H25: 14 | I25: =$C25* (((УЗЛЫ!C391*14)+(УЗЛЫ!C427*14)+(УЗЛЫ!C422*14)+(16*УЗЛЫ!C433)+УЗЛЫ!C432))*L106 -> 0 | J25: =$C25*РАБОТЫ!C115*M106 -> 0 | K25: =$C25*РАБОТЫ!D115*M106 -> 0 | L25: 0
A26: Выводы питания обогрева водостоков | B26: Система обогрева водостоков позволит исключить обледенение водосточной системы дома, предовращая ее повреждение. | D26: шт. | E26: 0 | F26: 0 | G26: 0 | H26: 16 | I26: =$C26* ((УЗЛЫ!C400*16)+(УЗЛЫ!C427*16)+(УЗЛЫ!C422*16))*L106 -> 0 | J26: =$C26* РАБОТЫ!C115*M106 -> 0 | K26: =$C26* РАБОТЫ!D115*M106 -> 0 | L26: 0
A27: Система обогрева водостоков | D27: м. | E27: =($I27/$M$3)*2*$J$106 -> 0 | F27: 0 | G27: 0 | I27: =$C27*УЗЛЫ!C446*L106 -> 0 | J27: =$C27*РАБОТЫ!C118*M106 -> 0 | K27: =$C27*РАБОТЫ!D118*M106 -> 0 | L27: 0
A28: Выводы под выключатели | B28: Выводы организации управления освещением (одноклавишный, двухклавишный, одноклавишный проходной) | D28: шт. | E28: =($I28/$M$3)*$J$106 -> 0 | F28: 0 | G28: 0 | H28: 14 | I28: =$C28*((УЗЛЫ!C391*14)+(УЗЛЫ!C427*14)+(УЗЛЫ!C422*14)+(16*УЗЛЫ!C433)+УЗЛЫ!C432)*L106 -> 0 | J28: =$C28* РАБОТЫ!C115*M106 -> 0 | K28: =$C28* РАБОТЫ!D115*M106 -> 0 | L28: 0
A29: Выводы под переключатель ответный | B29: Выводы организации управления освещением (двухклавишный проходной) | D29: шт. | E29: 0 | F29: 0 | G29: 0 | H29: 14 | I29: =$C29*((УЗЛЫ!C391*14)+(УЗЛЫ!C427*14)+(УЗЛЫ!C422*14)+(16*УЗЛЫ!C433)+УЗЛЫ!C432)*2 -> 0 | J29: =$C29* (РАБОТЫ!C115*2)*M106 -> 0 | K29: =$C29* (РАБОТЫ!D115*2)*M106 -> 0 | L29: 0
A30: Выводы под диммеры | B30: Выводы организации управления освещением. | D30: шт. | E30: 0 | F30: 0 | G30: 0 | H30: 14 | I30: =$C30*((УЗЛЫ!C391*14)+(УЗЛЫ!C427*14)+(УЗЛЫ!C422*14)+(16*УЗЛЫ!C433)+УЗЛЫ!C432)*L106 -> 0 | J30: =$C30* РАБОТЫ!C115*M106 -> 0 | K30: =$C30* РАБОТЫ!D115*M106 -> 0 | L30: 0
A31: Вывод мастер-ключа | B31: Выключатель систем освещения дома. | D31: шт. | E31: 0 | F31: 0 | G31: 0 | H31: 14 | I31: =$C31*(((УЗЛЫ!C391*14)+(УЗЛЫ!C427*14)+(УЗЛЫ!C422*14)+(16*УЗЛЫ!C433)+УЗЛЫ!C432))*L106 -> 0 | J31: =$C31* РАБОТЫ!C115*M106 -> 0 | K31: =$C31* РАБОТЫ!D115*M106 -> 0 | L31: 0
B32: Выключатель питания всех систем дома. | D32: шт. | E32: 0 | F32: 0 | G32: 0 | H32: 14 | I32: =$C32*(((УЗЛЫ!C391*14)+(УЗЛЫ!C427*14)+(УЗЛЫ!C422*14)+(16*УЗЛЫ!C433)+УЗЛЫ!C432))*L106 -> 0 | J32: =$C32* РАБОТЫ!C115*M106 -> 0 | K32: =$C32* РАБОТЫ!D115*M106 -> 0 | L32: 0
A33: Выводы под генератор на фасад | B33: Резервный источник электропитания дома с автовключнием | D33: шт. | E33: 0 | F33: 0 | G33: 0 | H33: 45 | I33: =$C33*((УЗЛЫ!C398*40)+(УЗЛЫ!C425*45)+(УЗЛЫ!C429*40)+(УЗЛЫ!C400*40)+(УЗЛЫ!C427*40)+(УЗЛЫ!C422*40)+(90*УЗЛЫ!C433))*L106 -> 0 | J33: =$C33* (РАБОТЫ!C116*2)*M106 -> 0 | K33: =$C33* (РАБОТЫ!D116*2)*M106 -> 0 | L33: 0
B34: Резервный источник электропитания дома. | D34: шт. | E34: 0 | F34: 0 | G34: 0 | H34: 20 | I34: =$C34*((УЗЛЫ!C398*20)+(УЗЛЫ!C425*20)+(УЗЛЫ!C429*25)+(25*УЗЛЫ!C433))*L106 -> 0 | J34: =$C34* РАБОТЫ!C116*M106 -> 0 | K34: =$C34* РАБОТЫ!D116*M106 -> 0 | L34: 0
A35: Вывод HDMI | B35: Слаботочный видеовывод. | D35: шт. | E35: 0 | F35: 0 | G35: 0 | H35: 20 | I35: =$C35* (3000 + (УЗЛЫ!C427*20)+(УЗЛЫ!C422*20)+(20*УЗЛЫ!C433))*L106 -> 0 | J35: =$C35* РАБОТЫ!C115*M106 -> 0 | K35: =$C35* РАБОТЫ!D115*M106 -> 0 | L35: 0
A36: Комплект выводов для цифрового видеодомофона | B36: Выводы питания и управления вызывной и приемной панели. | D36: шт. | E36: 0 | F36: 0 | G36: 0 | H36: 30 | I36: =$C36* ((УЗЛЫ!C391*30)+(УЗЛЫ!C411*30)+(УЗЛЫ!C427*45)+(УЗЛЫ!C422*45)+(45*УЗЛЫ!C433))*L106 -> 0 | J36: =$C36* (РАБОТЫ!C115*4)*M106 -> 0 | K36: =$C36* (РАБОТЫ!D115*4)*M106 -> 0 | L36: 0
A37: Комплект выводов для отопительного конвектора | B37: Выводы питания и управления отопительного внутрипольного конвектора. | D37: шт. | E37: 0 | F37: 0 | G37: 0 | H37: 35 | I37: =$C37* ((УЗЛЫ!C391*35)+(УЗЛЫ!C427*35)+(УЗЛЫ!C422*35)+(35*УЗЛЫ!C433))*L106 -> 0 | J37: =$C37* (РАБОТЫ!C115*2)*M106 -> 0 | K37: =$C37* (РАБОТЫ!D115*2)*M106 -> 0 | L37: 0
A38: Вывод питания контура электрического теплого пола | B38: Вывод питания для установки терморегулятора теплого пола. | D38: шт. | E38: 0 | F38: 0 | G38: 0 | H38: 14 | I38: =$C38* ((УЗЛЫ!C400*14)+(УЗЛЫ!C427*14)+(УЗЛЫ!C422*14)+(16*УЗЛЫ!C433)+УЗЛЫ!C432)*L106 -> 0 | J38: =$C38* РАБОТЫ!C115*M106 -> 0 | K38: =$C38* РАБОТЫ!D115*M106 -> 0 | L38: 0 | M38: =IF(G38=0,"",(G38-L38)/G38) -> 
A39: Регулятор ТП | B39: Регулятор ТП с закладной под датчик температуры (закладная под питающий кабель мата) (регулятор Legrand Valena беж.) | D39: шт. | E39: =($I39/0.64)*$J$106 -> 0 | F39: 0 | G39: 0 | I39: =C39*(УЗЛЫ!C450+УЗЛЫ!C560) -> 0 | J39: =C39*(480+690) -> 0 | K39: =C39*(80+110) -> 0 | L39: 0 | M39: =IF(G39=0,"",(G39-L39)/G39) -> 
A40: Устройство электрического теплого пола | B40: Электрический теплый пол (нагревательный мат под плитку) | D40: кв.м. | E40: =($I40/0.8)*$J$106 -> 0 | F40: 0 | G40: 0 | I40: =($C40*(УЗЛЫ!C452)*L106) -> 0 | J40: =$C40*( РАБОТЫ!C140)*M106 -> 0 | K40: =$C40*( РАБОТЫ!D140*4)*M106 -> 0 | L40: 0 | N40: Уточнить снабжение - 140F0451 Devimat DTIF-150 Минимат двухжильный 600Вт 0,45x8м (4 кв.м.) 2м, 4, 6,9 + датчик 4100-4500 (см.письмо Вадим) * на строку выше
A41: Вывод под стабилизатор | B41: Устройство выравнивания перепадов напряжения (около щита). | D41: шт. | E41: =($I41/$M$3)*$J$106 -> 0 | F41: 0 | G41: 0 | H41: 10 | I41: =$C41*((УЗЛЫ!C398*10)+(УЗЛЫ!C425*10)+(УЗЛЫ!C429*10)+(10*УЗЛЫ!C433))*L106 -> 0 | J41: =$C41* РАБОТЫ!C116*M106 -> 0 | K41: =$C41* РАБОТЫ!D116*M106 -> 0 | L41: 0
B42: Устройство выравнивания перепадов напряжения (под лестницей). | D42: шт. | E42: =($I42/$M$3)*$J$106 -> 0 | F42: 0 | G42: 0 | H42: 37 | I42: =$C42*((УЗЛЫ!C398*37)+(УЗЛЫ!C425*35)+(УЗЛЫ!C429*35)+(35*УЗЛЫ!C433))*L106 -> 0 | J42: =$C42* РАБОТЫ!C116*M106 -> 0 | K42: =$C42* РАБОТЫ!D116*M106 -> 0 | L42: 0
A43: Вывод под инвертор | B43: Источник бесперебойного питания для системы отопления. | D43: шт. | E43: =($I43/$M$3)*$J$106 -> 0 | F43: 0 | G43: 0 | H43: 35 | I43: =$C43*((УЗЛЫ!C394*35)+(УЗЛЫ!C425*35)+(УЗЛЫ!C429*35)+(УЗЛЫ!C433*35))*L106 -> 0 | J43: =$C43* РАБОТЫ!C116*M106 -> 0 | K43: =$C43* РАБОТЫ!D116*M106 -> 0 | L43: 0
A44: Штробление под выводы розеток | B44: Под штукатурку | C44: =C7 -> 0 | D44: шт. | F44: 0 | G44: 0 | J44: =$C44* РАБОТЫ!C125*M106 -> 0 | K44: =$C44* РАБОТЫ!D125*M106 -> 0 | L44: 0
A45: Штробление под выводы выключателей/бра | B45: Под штукатурку | C45: =C28+C29+C21+C30+C31 -> 0 | D45: шт. | F45: 0 | G45: 0 | J45: =$C45* РАБОТЫ!C125*M106 -> 0 | K45: =$C45* РАБОТЫ!D125*M106 -> 0 | L45: 0
A46: Штробление стен (2х2) | B46: Под штукатурку | D46: м. | F46: 0 | G46: 0 | J46: =$C46* (РАБОТЫ!C125*1.5)*M106 -> 0 | K46: =$C46* (РАБОТЫ!D125*1.5)*M106 -> 0 | L46: 0
A47: Восстановление бруса | B47: Декоративное восстановление проходных отверстий | D47: шт. | F47: 0 | G47: 0 | J47: =$C47* РАБОТЫ!C149*M106 -> 0 | K47: =$C47* РАБОТЫ!D149*M106 -> 0 | L47: 0
A48: Заземление модульно-штыревое | B48: Заземление модульно-штыревое с углублением 15м. | D48: Компл | E48: =((I48+J48+K48)/0.65)*J106 -> 0 | G48: =E48 -> 0 | I48: =$C48*УЗЛЫ!C455*L106 -> 0 | J48: =$C48*РАБОТЫ!C151*M106 -> 0 | K48: =$C48*РАБОТЫ!D151*M106 -> 0 | L48: 0
B49: Заземление модульно-штыревое на 3 очага | D49: Компл | E49: =((I49+J49+K49)/0.65)*J106 -> 0 | G49: =E49 -> 0 | I49: =$C49*УЗЛЫ!C456*L106 -> 0 | J49: =$C49*РАБОТЫ!C152*M106 -> 0 | K49: =$C49*РАБОТЫ!D152*M106 -> 0 | L49: 0
B50: КУП элемент системы уравнивания потенциалов (защита от поражения током в помещениях, где человек подвергается наибольшему риску. | D50: шт. | E50: =((I50+J50+K50)/0.62) -> 0 | G50: =E50 -> 0 | I50: =C50*УЗЛЫ!C458 -> 0 | J50: =C50*(РАБОТЫ!C122+(РАБОТЫ!C123*6)) -> 0 | K50: =C50*(РАБОТЫ!D122+(РАБОТЫ!D123*6)) -> 0 | L50: 0
A51: Электролитическое заземление EZ-2,5 Г | B51: Электролитическое заземление устанавливают в грунтах с высоким удельным сопротивлением, в том числе в песчаных, скальных, мерзлых. Необходим для безопасной эксплуатации эл.оборуд. | D51: Компл | E51: =((I51+J51+K51)/0.65)*J106 -> 0 | G51: =E51 -> 0 | I51: =C51*УЗЛЫ!C457*L106 -> 0 | J51: =C51*РАБОТЫ!C153*M106 -> 0 | K51: =C51*РАБОТЫ!D153*M106 -> 0 | L51: 0
B52: КУП элемент системы уравнивания потенциалов (защита от поражения током в помещениях, где человек подвергается наибольшему риску. | D52: шт. | E52: =(I52+J52+K52)/0.62 -> 0 | G52: =E52 -> 0 | I52: =C52*УЗЛЫ!C458 -> 0 | J52: =C52*(РАБОТЫ!C122+(РАБОТЫ!C123*6)) -> 0 | K52: =C52*(РАБОТЫ!D122+(РАБОТЫ!D123*6)) -> 0 | L52: 0
A53: Лючок впольный двойной | B53: Лючок для встраиваемых в пол розеток на два поста | D53: шт. | E53: =($I53/$M$3)*$J$106 -> 0 | F53: =((J53+K53)/$M$4)*$K$106 -> 0 | G53: =F53+E53 -> 0 | I53: =$C53*(УЗЛЫ!C461+УЗЛЫ!C460)*L106 -> 0 | J53: =$C53*РАБОТЫ!C150*M106 -> 0 | K53: =$C53*РАБОТЫ!D150*M106 -> 0 | L53: 0
A54: Лючок впольный четверной | B54: Лючок для встраиваемых в пол розеток на четыре поста | D54: шт. | E54: =($I54/$M$3)*$J$106 -> 0 | F54: =((J54+K54)/$M$4)*$K$106 -> 0 | G54: =F54+E54 -> 0 | I54: =$C54*(УЗЛЫ!C463)*L106 -> 0 | J54: =$C54* РАБОТЫ!C150*M106 -> 0 | K54: =$C54* РАБОТЫ!D150*M106 -> 0 | L54: 0
A55: Внешние выводы
A56: Материалы/услуги | B56: Описание | C56: Кол-во | D56: Ед.изм | E56: Мат-ал, руб | F56: Работа, руб | G56: Итого, руб | I56: Материал | J56: Бригада | K56: Прораб | L56: Итого | M56: Рента | N56: Стоимость кабеля, р/м.п.
A57: Бронированный кабель (только материал) | B57: Кабель ВббШВ 5 х 10 | D57: м. | E57: =((I57/0.85)*$J$106) -> 0 | G57: =SUM(E57:F57) -> 0 | I57: =C57*N57 -> 0 | L57: 0 | N57: =УЗЛЫ!D388 -> 856.66
B58: Кабель ВБбШв 4 х 16 | D58: м. | E58: =((I58/0.85)*$J$106) -> 0 | G58: 0 | I58: =C58*N58 -> 0 | L58: 0 | N58: 733
B59: Кабель ВбШв 3 х 1,5 | D59: м. | E59: 0 | G59: =SUM(E59:F59) -> 0 | I59: =C59*N59 -> 0 | L59: 0 | N59: =УЗЛЫ!D390 -> 112.36
B60: Кабель ВббШВ 3 х 4 | D60: м. | E60: 0 | G60: 0 | I60: 0 | L60: 0
B61: Кабель ВБбШв 3 х 2,5 | D61: м. | E61: 0 | G61: 0 | I61: =C61*N61 -> 0 | L61: 0 | N61: 116.4
B62: Кабель ВБбШв 5 х 6 | D62: м. | E62: 0 | G62: 0 | I62: 0 | L62: 0 | N62: 419.45
B63: Витая пара FTP 4х2х0,52 кат. 6А уличный | D63: м. | E63: 0 | G63: 0 | I63: 0 | L63: 0 | N63: 186
B64: Кабель КВК-2п 2x0,75мм² (уличный), , труба гофр.ПНД с протяжкой | D64: м. | E64: 0 | G64: 0 | I64: 0 | L64: 0
A65: Подвод / укладка питающего кабеля | B65: Прокладка кабеля в траншее (укладка сигнальной ленты, без прокопки) | D65: п.м. | E65: =((I65/0.6)*$J$106) -> 0 | F65: =((J65+K65)/M4)*K106 -> 0 | G65: =SUM(E65:F65) -> 0 | I65: =IF(C65=1,УЗЛЫ!C413)+IF(C65>1,УЗЛЫ!C413) -> 0 | J65: =$C65*РАБОТЫ!C124*M106 -> 0 | K65: =$C65*РАБОТЫ!D124*M106 -> 0 | L65: =SUM(I65:K65) -> 0
A66: Подвод питающего кабеля по воздуху | B66: Кабель СИП 4х16 | D66: м | E66: =(I66/M4)*J106 -> 0 | F66: =((J66+K66)/M4)*K106 -> 0 | G66: =SUM(E66:F66) -> 0 | I66: =($C66*90)+IF(C66>=1, УЗЛЫ!D419) -> 0 | J66: =$C66*(РАБОТЫ!C124*0.7)*M106 -> 0 | K66: =$C66*(РАБОТЫ!D124*0.7)*M106 -> 0 | L66: =SUM(I66:K66) -> 0
A67: Земляные работы | B67: Производится выемка и обратная засыпка | D67: м3 | F67: =((J67+K67)/0.65) -> 0 | G67: =F67+E67 -> 0 | J67: =$C67*РАБОТЫ!C9 -> 0 | K67: =$C67*РАБОТЫ!D9 -> 0 | L67: =SUM(I67:K67) -> 0
A68: Итого материал: | G68: =SUM(E6:E47,E53,E54,E57:E65,E66:E67)+0.7*(E48)+(0.7*E51)+E50+E52 -> 0 | L68: =SUM(I6:I67) -> 0 | N68: =(SUM(G68:G69)-SUM(L68:L69))/SUM(G68:G69) -> 
A69: Работа: | G69: =SUM(F6:F47,F53:F67)+0.3*(E48)+(0.3*E51) -> 0 | L69: =SUM(J6:K67) -> 0
A70: Распределительный щит
A71: Материалы/услуги | B71: Описание | C71: Кол-во | D71: Ед.изм | E71: Материал + Работа, руб | G71: Итого, руб | I71: Материал | J71: Бригада | K71: Прораб | L71: Итого | M71: Рента
A72: Распределительный силовой щит (навесной) | B72: Автоматика Legrand, серии DX3, тип защитных устройств А (с детекцией импульсных токов утечки), со степенью отключающей способности не менее 6кА. | D72: Компл | E72: =((I72+J72+K72)/0.7)*J106 -> 0 | G72: =E72 -> 0 | I72: =$C72* РАБОТЫ!N173*L106 -> 0 | J72: =$C72* РАБОТЫ!O173*M106+(C72*РАБОТЫ!O176) -> 0 | K72: =$C72* РАБОТЫ!P173*M106 -> 0 | L72: =SUM(I72:K72) -> 0 | M72: =IF(G72=0,"",(G72-L72)/G72) -> 
B73: Автоматика IEK ARMAT | D73: Компл | E73: =((I73+J73+K73)/0.7)*J106 -> 0 | G73: =E73 -> 0 | I73: =C73*РАБОТЫ!S173*L106 -> 0 | J73: =$C73*РАБОТЫ!O173*M106+(C73*РАБОТЫ!O176) -> 0 | K73: =$C73* РАБОТЫ!P173*M106 -> 0 | L73: =SUM(I73:K73) -> 0 | M73: =IF(G73=0,"",(G73-L73)/G73) -> 
A74: Распределительный силовой щит (встраиваемый) | B74: Автоматика Legrand, серии DX3, тип защитных устройств А (с детекцией импульсных токов утечки), со степенью отключающей способности не менее 6кА. | D74: Компл | E74: =((I74+J74+K74)/0.7)*J106 -> 0 | G74: =E74 -> 0 | I74: =$C74* РАБОТЫ!N174*L106 -> 0 | J74: =$C74* РАБОТЫ!O174*M106+(C74*РАБОТЫ!O177) -> 0 | K74: =$C74* РАБОТЫ!P174*M106 -> 0 | L74: =SUM(I74:K74) -> 0
B75: Автоматика IEK ARMAT | D75: Компл | E75: =((I75+J75+K75)/0.7)*J106 -> 0 | G75: =E75 -> 0 | I75: =C75*РАБОТЫ!S174*L106 -> 0 | J75: =$C75* РАБОТЫ!O174*M106+(C75*РАБОТЫ!O177) -> 0 | K75: =$C75* РАБОТЫ!P174*M106 -> 0 | L75: =SUM(I75:K75) -> 0
A76: Распределительный слаботочный щит (навесной) | B76: Предусмотрено электропитание от силового щита 220 В. Щит предназначен для возможного дальнейшего размещения в нем слаботочного электрооборудования (на 18 модулей) | D76: Компл | E76: =((I76+J76+K76)/0.7)*J106 -> 0 | G76: 0 | I76: =C76*УЗЛЫ!C547*L106 -> 0 | J76: =C76*РАБОТЫ!C138*M106 -> 0 | K76: =C76*РАБОТЫ!D138*M106 -> 0 | L76: 0
A77: Распределительный слаботочный щит (встраиваемый) | B77: Предусмотрено электропитание от силового щита 220 В. Щит предназначен для возможного дальнейшего размещения в нем слаботочного электрооборудования (на 18 модулей) | D77: Компл | E77: =((I77+J77+K77)/0.7)*J106 -> 0 | G77: 0 | I77: =C77*УЗЛЫ!C548*L106 -> 0 | J77: =C77*РАБОТЫ!C139*M106 -> 0 | K77: =C77*РАБОТЫ!D139*M106 -> 0 | L77: 0
A78: Щит автоматики котельной DX | B78: Автоматика Legrand, серии DX3, тип защитных устройств А (с детекцией импульсных токов утечки), со степенью отключающей способности не менее 6кА. (на 18 модулей). | D78: Компл | E78: =((I78+J78+K78)/0.7)*J106 -> 0 | G78: 0 | I78: =C78*УЗЛЫ!C550*L106 -> 0 | J78: =C78*РАБОТЫ!C154*M106 -> 0 | K78: =C78*РАБОТЫ!G154*M106 -> 0 | L78: 0
A79: Щит автоматики котельной | B79: Автоматика IEK ARMAT (на 18 модулей). | D79: Компл | E79: =((I79+J79+K79)/0.7)*J106 -> 0 | G79: 0 | I79: =C79*УЗЛЫ!C551*L106 -> 0 | J79: =C79*РАБОТЫ!C155*M106 -> 0 | K79: =C79*РАБОТЫ!G155*M106 -> 0 | L79: 0
A80: Подключение вводного кабеля в щит в доме | B80: Только работа | D80: усл. | E80: =((J80+K80)/M4)*K106 -> 0 | G80: =E80 -> 0 | J80: =$C80*РАБОТЫ!C142*M106 -> 0 | K80: =$C80*РАБОТЫ!D142*M106 -> 0 | L80: =SUM(I80:K80) -> 0 | M80: =IF(G80=0,"",(G80-L80)/G80) -> 
A81: Дополнительные модули в щите (навесной) | B81: Резерв 18 модулей | D81: шт. | E81: =((I81+J81+K81)/0.7)*K106 -> 0 | G81: =E81 -> 0 | I81: =C81*РАБОТЫ!N149*L106 -> 0 | J81: =C81*((РАБОТЫ!O148+РАБОТЫ!P148)/2)*M106 -> 0 | L81: =SUM(I81:K81) -> 0 | M81: =IF(G81=0,"",(G81-L81)/G81) -> 
A82: Дополнительные модули в щите (встраиваемый) | B82: Резерв 18 модулей | D82: шт. | E82: =((I82+J82+K82)/0.7)*K106 -> 0 | G82: 0 | I82: =C82*РАБОТЫ!N148*L106 -> 0 | L82: 0
A83: УЗИП | B83: УЗИП для защиты электрических линий коттеджей (класс I и II) | D83: Компл | E83: =((I83+J83+K83)/M4)*J106 -> 0 | G83: =E83 -> 0 | I83: =$C83*((УЗЛЫ!C476)+(УЗЛЫ!C475))*L106 -> 0 | J83: =$C83* (РАБОТЫ!C131*3)*M106 -> 0 | K83: =$C83* (РАБОТЫ!D131*3)*M106 -> 0 | L83: =SUM(I83:K83) -> 0 | M83: =IF(G83=0,"",(G83-L83)/G83) -> 
A84: Дополнительно
A85: Материалы/услуги | B85: Описание | C85: Кол-во | D85: Ед.изм | E85: Мат-ал, руб | F85: Работа, руб | G85: Итого, руб | I85: Материал | J85: Бригада | K85: Прораб | L85: Итого | M85: Рента
A86: Закладная для электрики | B86: Устройство ввода электричества в дом (одна закладная под четыре трубы) | C86: 0 | D86: шт. | E86: =K86/0.63 -> 0 | G86: =F86+E86 -> 0 | K86: =29500*C86 -> 0
A87: Проходные отверстия в плите | B87: Алмазное сверление | C87: ='ОВиВК ТЕСЕ'!C97 -> 9 | D87: шт. | F87: =IF(C87=0,0,IF(C87<4,9000,IF(C87>3,9000+2300*(C87-3)))) -> 22800 | G87: =F87+E87 -> 22800 | K87: =IF(C87=0,0,IF(C87<4,6000,IF(C87>3,6000+1700*(C87-3)))) -> 16200
A88: Вывоз мусора (конетейнер) | B88: Вывоз мусора контейнер (необходим для домов свыше 350 м2) | C88: 0 | D88: Усл. | F88: =K88/0.8 -> 0 | G88: =F88 -> 0 | K88: =C88*8000 -> 0
A89: Подготовительные и накладные расходы | B89: Включают разработку комплекта документов для монтажа, проверку ОТК и приемку каждого этапа работ инженерами технического надзора, соблюдение стандарта компании | C89: 1 | D89: Усл. | F89: =C89*31000 -> 31000 | G89: =F89 -> 31000 | J89: 2000 | K89: 4500 | L89: =5500+6500 -> 12000
A90: Транспортные расходы | B90: Доставка оборудования и материалов на объект | C90: 1 | D90: усл. | F90: =C90*11000 -> 11000 | G90: =F90 -> 11000 | L90: 10000
A91: Доставка бытовки на объект | B91: Если есть такая необходимость, мы предоставляем бытовку для проживания на объекте строителей. После окончания работ, бытовка вывозится. | D91: км от мкад | G91: =IF(C91=0,0, IF(C91<100,24000, IF(C91<150,30000,36000))) -> 0 | L91: =IF(C91=0,0, IF(C91<=50,13500, IF(C91<=100,17000, IF(C91<=150,20500, IF(C91<=200,24000, IF(C91<=250,27500, IF(C91>250,31000,))))))) -> 0
A92: Итого по смете: | F92: =SUM(G6:G67,G72:G83,G86:G91) -> 64800 | I92: =SUM(I6:I66,I72:I83) -> 0 | J92: =SUM(J6:J67,J72:J83,J86:J91) -> 2000 | K92: =SUM(K6:K67,K72:K83,K86:K91) -> 20700 | L92: =SUM(I92:K92,L86:L91)-L93 -> 44700 | M92: =IF(F95=0,"",(F95-L92)/F95) -> 0.3101851852
A93: Вычет по сертификату за систему электроснабжения: | D93: шт. | E93: =($I93/$M$4)*$J$106 -> 0 | F93: =(($J93+$K93)/$M$4)*$K$106 -> 0 | G93: =SUM(E93:F93) -> 0 | I93: =$C93*((УЗЛЫ!C400*12)+(УЗЛЫ!C426*12)+(УЗЛЫ!C421*12)+(14*УЗЛЫ!C433)+УЗЛЫ!C432) -> 0 | J93: =$C93*РАБОТЫ!C115 -> 0 | K93: =$C93*РАБОТЫ!D115 -> 0 | L93: =SUM(I93:K93) -> 0
A94: Корректировка стоимости (скидка):
A95: Итого по смете со скидкой: | F95: =F92-G94-G93 -> 64800
A96: *Конечная стоимость заземления определяется фактическим замером сопротивления грунта
B97: =РАБОТЫ!$A$1 -> Дата | K97: Дом кирпичный | L97: 0
K98: Дом бетонный | L98: 0
K99: Дом кирпично-деревянный | L99: 0
L100: 0
L101: (поставить 1)
J103: Коэффициент для заказчика | L103: Коэффициент для СЕБЕСА дом свыше 350м2 плюс 10%; мусор-контейнер; дизайн-проект 10%
N104: * 10% на оплату работ, материал через запрос в проектный
J105: Мат | K105: Раб | L105: Мат | M105: Раб
J106: 1 | K106: 1 | L106: 1 | M106: 1

Sheet ТП REHAU
A1: Приложение № к Договору подряда № ______________от_____________ | J1: КОЭФ для ренты | K1: КОЭФ для ренты
A2: =TODAY() -> 2024-02-02 | B2: Данный сметный расчёт действителен 7 календарных дней. По истечению срока, цены могут быть изменены. | J2: 0.65 | K2: 0.6
A3: Сметный расчет ТП REHAU
A4: Отопительные приборы | I4: =РАБОТЫ!A1 -> Дата
A5: Материалы/услуги | B5: Описание | C5: Кол-во | D5: Ед.изм | E5: Мат-ал, руб | F5: Работа, руб | G5: Итого, руб | I5: Материал | J5: Бригада | K5: Прораб | L5: Итого | M5: Рента | N5: Цена шт. | O5: Курс евро
A6: Радиаторы | D6: шт. | E6: =I6/0.75 -> 0 | G6: =E6 -> 0 | I6: =N6*C6 -> 0 | L6: =SUM(I6:K6) -> 0 | M6: =IF(G6=0,"",(G6-L6)/G6) ->  | O6: 106.1
D7: шт. | E7: =I7/0.75 -> 0 | G7: =E7 -> 0 | I7: =N7*C7 -> 0 | L7: 0
D8: шт. | E8: 0 | G8: 0 | I8: 0 | L8: 0
D9: шт. | E9: 0 | G9: 0 | I9: 0 | L9: 0
D10: шт. | E10: 0 | G10: 0 | I10: 0 | L10: 0
D11: шт. | E11: 0 | G11: 0 | I11: 0 | L11: 0
D12: шт. | E12: 0 | G12: 0 | I12: 0 | L12: 0
D13: шт. | E13: 0 | G13: 0 | I13: 0 | L13: 0
D14: шт. | E14: 0 | G14: 0 | I14: 0 | L14: 0
D15: шт. | E15: 0 | G15: 0 | I15: =N15*C15 -> 0 | L15: 0
A16: Конвектор энергозависимый внутрипольный | D16: шт. | E16: =(I16/0.65)*$J$105*0.88 -> 0 | G16: =E16 -> 0 | I16: =C16*N16*$O$6*0.63*1.02 -> 0 | L16: 0
D17: шт. | E17: =(I17/0.65)*$J$105*0.88 -> 0 | G17: 0 | I17: =C17*N17*$O$6*0.63*1.02 -> 0 | L17: 0
D18: шт. | E18: 0 | G18: 0 | I18: 0 | L18: 0
D19: шт. | E19: 0 | G19: 0 | I19: 0 | L19: 0
D20: шт. | E20: 0 | G20: 0 | I20: 0 | L20: 0
D21: шт. | E21: 0 | G21: 0 | I21: 0 | L21: 0
D22: шт. | E22: 0 | G22: 0 | I22: 0 | L22: 0
D23: шт. | E23: 0 | G23: 0 | I23: 0 | L23: 0
D24: шт. | E24: 0 | G24: 0 | I24: 0 | L24: 0
D25: шт. | E25: 0 | G25: 0 | I25: 0 | L25: 0
A26: Конвектор энергонезависимый внутрипольный влагостойкий корпус | D26: шт. | E26: 0 | G26: 0 | I26: 0 | L26: 0
D27: шт. | E27: 0 | G27: 0 | I27: 0 | L27: 0
D28: шт. | E28: 0 | G28: 0 | I28: 0 | L28: 0
D29: шт. | E29: 0 | G29: 0 | I29: 0 | L29: 0
D30: шт. | E30: 0 | G30: 0 | I30: 0 | L30: 0
D31: шт. | E31: 0 | G31: 0 | I31: 0 | L31: 0
D32: шт. | E32: 0 | G32: 0 | I32: 0 | L32: 0
D33: шт. | E33: 0 | G33: 0 | I33: 0 | L33: 0
D34: шт. | E34: 0 | G34: 0 | I34: 0 | L34: 0
D35: шт. | E35: =(I35/0.65)*$J$105*0.88 -> 0 | G35: 0 | I35: =C35*N35*$O$6*0.63*1.02 -> 0 | L35: 0
A36: Конвектор напольный | D36: шт. | E36: =(I36/0.7)*$J$105*0.87 -> 0 | G36: 0 | I36: =C36*N36*$O$6*0.75*1.02 -> 0 | L36: 0
D37: шт. | E37: =(I37/0.7)*$J$105*0.87 -> 0 | G37: 0 | I37: =C37*N37*$O$6*0.75*1.02 -> 0 | L37: 0
D38: шт. | E38: 0 | G38: 0 | I38: 0 | L38: 0
D39: шт. | E39: 0 | G39: 0 | I39: 0 | L39: 0
D40: шт. | E40: 0 | G40: 0 | I40: 0 | L40: 0 | M40: =IF(G40=0,"",(G40-L40)/G40) -> 
D41: шт. | E41: 0 | G41: 0 | I41: 0 | L41: 0
D42: шт. | E42: 0 | G42: =E42 -> 0 | I42: 0 | L42: 0
D43: шт. | E43: 0 | G43: 0 | I43: 0 | L43: 0
D44: шт. | E44: 0 | G44: 0 | I44: 0 | L44: 0
D45: шт. | E45: 0 | G45: 0 | I45: 0 | L45: 0
A46: Итого материал: | G46: =SUM(G6:G45) -> 0 | L46: =SUM(I6:I45) -> 0
A47: Отопление
A48: Материалы/услуги | B48: Описание | C48: Кол-во | D48: Ед.изм | E48: Мат-ал, руб | F48: Работа, руб | G48: Итого, руб | I48: Материал | J48: Бригада | K48: Прораб | L48: Итого | M48: Рента
A49: Комплект декоративной подводки | B49: Для труб из сшитого полиэтилена | D49: компл. | E49: =(I49/0.9)*$J$105 -> 0 | F49: =((J49+K49)/$J$2)*$K$105*1.5 -> 0 | G49: =F49+E49 -> 0 | I49: =$C49*УЗЛЫ!C22*L105 -> 0 | J49: =$C49* РАБОТЫ!C12 -> 0 | K49: =$C49* РАБОТЫ!D12 -> 0 | L49: =SUM(I49:K49) -> 0 | M49: =IF(G49=0,"",(G49-L49)/G49) -> 
A50: Монтаж креплений для радиаторов настенный | B50: Монтаж с использованием электронного измерителя уровня | D50: компл. | E50: =(I50/$J$2)*$J$119 -> 0 | F50: =((J50+K50)/$J$2)*$K$105*1.3 -> 0 | G50: 0 | J50: =$C50*(РАБОТЫ!C13*0.3) -> 0 | K50: =$C50*( РАБОТЫ!D13*0.3) -> 0 | L50: 0 | M50: =IF(G50=0,"",(G50-L50)/G50) -> 
A51: Монтаж креплений для радиаторов напольный | B51: Монтаж с использованием электронного измерителя уровня | D51: компл. | E51: =(I51/$J$2)*$J$105 -> 0 | F51: =((J51+K51)/$J$2)*$K$105*1.3 -> 0 | G51: 0 | I51: =C51*УЗЛЫ!D26*L105 -> 0 | J51: =$C51*(РАБОТЫ!C13*0.3) -> 0 | K51: =$C51*( РАБОТЫ!D13*0.3) -> 0 | L51: 0
A52: Монтаж радиатора | B52: Монтаж с использованием электронного измерителя уровня | D52: компл. | E52: =(I52/$J$2)*$J$119 -> 0 | F52: =((J52+K52)/0.76)*$K$105*1.3 -> 0 | G52: 0 | J52: =$C52* РАБОТЫ!C13 -> 0 | K52: =$C52* РАБОТЫ!D13 -> 0 | L52: 0
A53: Комплект подключения | B53: Узел нижнего подключения радиатора прямой из пола (без декор.подводки) | D53: компл. | E53: =(I53/0.8)*$J$105*0.7 -> 0 | F53: =(C53*500)*K105 -> 0 | G53: 0 | I53: =$C53*УЗЛЫ!C28*L105 -> 0 | L53: 0
B54: Узел нижнего подключения радиатора угловой из стены (без декор. подводки) | D54: компл. | E54: =(I54/0.8)*$J$105*0.7 -> 0 | F54: =(C54*590)+(J54+K54) -> 0 | G54: 0 | I54: =$C54*УЗЛЫ!C30*L105 -> 0 | J54: =C54*((РАБОТЫ!C36*2)) -> 0 | K54: =C54*(РАБОТЫ!D36*2) -> 0 | L54: 0
A55: Терморегулятор для радиатора | B55: Термоголовка (Германия), c жидкостным чувствительным элементом. С функцией защиты от замерзания и с блокировкой диапазона настройки. | D55: шт. | E55: =1069*C55 -> 0 | F55: =(C55*500)*K105*0.7 -> 0 | G55: 0 | I55: 0 | L55: =SUM(I55:K55) -> 0
A56: Управление внутрипольным конвектором | B56: Настенный регулятор программируемый с сенсорным экраном. Возможность регулировки до 12 приборов (Vartronic Белый) | D56: шт. | E56: =(I56/$J$2)*$J$105 -> 0 | F56: =((J56+K56)/$J$2)*K105 -> 0 | G56: 0 | I56: =$C56* УЗЛЫ!C33*L105 -> 0 | J56: =$C56*РАБОТЫ!C15 -> 0 | K56: =$C56*РАБОТЫ!D15 -> 0 | L56: 0
B57: Настенный регулятор программируемый с сенсорным экраном. Возможность регулировки до 12 приборов (Vartronic Черный) | D57: шт. | E57: =(I57/$J$2)*$J$105 -> 0 | F57: =((J57+K57)/$J$2)*K105 -> 0 | G57: 0 | I57: =$C57* УЗЛЫ!C33*L105 -> 0 | J57: =$C57*РАБОТЫ!C15 -> 0 | K57: =$C57*РАБОТЫ!D15 -> 0 | L57: =SUM(I57:K57) -> 0
A58: Комплектующие для подлючения конвектора внутрипольного | B58: Комплект запорно-регулирующей арматуры. | D58: компл. | E58: =(I58/$J$2)*$J$105 -> 0 | F58: =(C58*2300)*K105 -> 0 | G58: 0 | I58: =$C58*УЗЛЫ!C34*L105 -> 0 | L58: 0
A59: Монтаж внутрипольного конвектора | B59: Монтаж внутрипольного конвектора | D59: шт. | F59: =((J59+K59)/$J$2)*$K$105*2 -> 0 | G59: 0 | J59: =$C59* РАБОТЫ!$C$16 -> 0 | K59: =$C59* РАБОТЫ!$D$16 -> 0 | L59: =SUM(I59:K59) -> 0 | M59: =IF(G59=0,"",(G59-L59)/G59) -> 
A60: Монтаж напольного конвектора | B60: Монтаж напольного конвектора | D60: шт. | F60: =((J60+K60)/$J$2)*$K$105*2 -> 0 | G60: 0 | J60: =$C60* РАБОТЫ!C14 -> 0 | K60: =$C60* РАБОТЫ!D14 -> 0 | L60: =SUM(I60:K60) -> 0 | M60: =IF(G60=0,"",(G60-L60)/G60) -> 
A61: Итого материал: | G61: =SUM(E49:E60) -> 0 | L61: =SUM(I49:I60) -> 0 | M61: =IF(G61=0,"",(G61-L61)/G61) ->  | N61: =(SUM(G61:G62)-SUM(L61:L62))/SUM(G61:G62) -> 
A62: Работа: | G62: =SUM(F49:F60) -> 0 | L62: =SUM(J49:K60) -> 0
A63: Теплые полы | I63: =РАБОТЫ!A33 -> Смеситель (обычный)
A64: Материалы/услуги | B64: Описание | C64: Кол-во | D64: Ед.изм | E64: Мат-ал, руб | F64: Работа, руб | G64: Итого, руб | I64: Материал | J64: Бригада | K64: Прораб | L64: Итого | M64: Рента
A65: Теплый пол REHAU | B65: Высококачественные трубы PEX (REHAU, Германия). Опрессовка системы | D65: м² | E65: =(I65/$K$2)*$J$105 -> 0 | F65: =((J65+K65)/$K$2)*$K$105 -> 0 | G65: =F65+E65 -> 0 | I65: =(C65*(УЗЛЫ!N87*8.4))*L105+(IF(C65>0,УЗЛЫ!C100))*L105 -> 0 | J65: =$C65*(РАБОТЫ!C45) -> 0 | K65: =$C65*(РАБОТЫ!D45) -> 0 | L65: =SUM(I65:K65) -> 0 | M65: =IF(G65=0,"",(G65-L65)/G65) -> 
A66: Трубопровод от коллектора до контуров "тп" | B66: Высококачественные трубы PEX (REHAU, Германия) в утеплителе "Энергофлекс". Опрессовка системы | D66: м | E66: =(I66/$K$2)*$J$105 -> 0 | F66: =((J66+K66)/$K$2)*$K$105 -> 0 | G66: 0 | I66: =C66*УЗЛЫ!N88*L105 -> 0 | J66: =C66*РАБОТЫ!C46 -> 0 | K66: =C66*РАБОТЫ!D46 -> 0 | L66: 0
A67: Подключение коллекторного шкафа вне котельной | B67: Трубопроводы (до 25 пог.м), фитинги, арматура | D67: компл. | E67: =I67/0.62 -> 0 | F67: =(J67+K67)/0.6 -> 0 | G67: 0 | I67: =C67*(УЗЛЫ!C56+УЗЛЫ!C57) -> 0 | J67: =C67*РАБОТЫ!C19 -> 0 | K67: =C67*РАБОТЫ!D19 -> 0 | L67: 0 | O67: Подключения коллекторов ТП вне котельных , продавать на этапе ОВиВК
A68: Коллекторный шкаф ТП | B68: Коллектор, шаровые краны, фиксаторы, прокладки, фитинги. 3 выхода | D68: компл. | E68: =(I68/$K$2)*$J$105*0.7 -> 0 | F68: =((J68+K68)/$K$2)*$K$105*2.7 -> 0 | G68: 0 | I68: =C68*УЗЛЫ!N89*L105 -> 0 | J68: =$C68*(РАБОТЫ!C47) -> 0 | K68: =$C68*(РАБОТЫ!$D$47) -> 0 | L68: 0
B69: Коллектор, шаровые краны, фиксаторы, прокладки, фитинги. 4 выхода | D69: компл. | E69: 0 | F69: 0 | G69: 0 | I69: =C69*УЗЛЫ!N90*L105 -> 0 | J69: =$C69*(РАБОТЫ!C47) -> 0 | K69: =$C69*(РАБОТЫ!$D$47) -> 0 | L69: 0
B70: Коллектор, шаровые краны, фиксаторы, прокладки, фитинги. 5 выходов | D70: компл. | E70: 0 | F70: 0 | G70: 0 | I70: =C70*УЗЛЫ!N91*L105 -> 0 | J70: =$C70*(РАБОТЫ!C47) -> 0 | K70: =$C70*(РАБОТЫ!$D$47) -> 0 | L70: 0
B71: Коллектор, шаровые краны, фиксаторы, прокладки, фитинги. 6 выходов | D71: компл. | E71: 0 | F71: 0 | G71: 0 | I71: =C71*УЗЛЫ!N92*L105 -> 0 | J71: =$C71*(РАБОТЫ!C47) -> 0 | K71: =$C71*(РАБОТЫ!$D$47) -> 0 | L71: 0
B72: Коллектор, шаровые краны, фиксаторы, прокладки, фитинги. 7 выходов | D72: компл. | E72: 0 | F72: 0 | G72: 0 | I72: =C72*УЗЛЫ!N93*L105 -> 0 | J72: =$C72*(РАБОТЫ!C47) -> 0 | K72: =$C72*(РАБОТЫ!$D$47) -> 0 | L72: 0
B73: Коллектор, шаровые краны, фиксаторы, прокладки, фитинги. 8 выходов | D73: компл. | E73: 0 | F73: 0 | G73: 0 | I73: =C73*УЗЛЫ!N94*L105 -> 0 | J73: =$C73*(РАБОТЫ!C47) -> 0 | K73: =$C73*(РАБОТЫ!$D$47) -> 0 | L73: 0
B74: Коллектор, шаровые краны, фиксаторы, прокладки, фитинги. 9 выходов | D74: компл. | E74: 0 | F74: 0 | G74: 0 | I74: =C74*УЗЛЫ!N95*L105 -> 0 | J74: =$C74*(РАБОТЫ!C47) -> 0 | K74: =$C74*(РАБОТЫ!$D$47) -> 0 | L74: 0
B75: Коллектор, шаровые краны, фиксаторы, прокладки, фитинги. 10 выходов | D75: компл. | E75: 0 | F75: 0 | G75: 0 | I75: =C75*УЗЛЫ!N96*L105 -> 0 | J75: =$C75*(РАБОТЫ!C47) -> 0 | K75: =$C75*(РАБОТЫ!$D$47) -> 0 | L75: 0
B76: Коллектор, шаровые краны, фиксаторы, прокладки, фитинги. 11 выходов | D76: компл. | E76: 0 | F76: 0 | G76: 0 | I76: =C76*УЗЛЫ!N97*L105 -> 0 | J76: =$C76*(РАБОТЫ!C47) -> 0 | K76: =$C76*(РАБОТЫ!$D$47) -> 0 | L76: 0
B77: Коллектор, шаровые краны, фиксаторы, прокладки, фитинги. 12 выходов | D77: компл. | E77: 0 | F77: 0 | G77: 0 | I77: =C77*УЗЛЫ!N98*L105 -> 0 | J77: =$C77*(РАБОТЫ!C47) -> 0 | K77: =$C77*(РАБОТЫ!$D$47) -> 0 | L77: 0
A78: REHAU_Терморегулятор с датчиком и комплектом подключения 24В | B78: Служит для контроля и поддержания заданной температуры в помещении при устройстве водяного тёплого пола. В комплект входит Комнатный термостат, датчик температуры пола. | D78: компл. | E78: =I78/K2*J105*0.8 -> 0 | F78: =((J78+K78)/$J$2)*$K$105*2.2 -> 0 | G78: 0 | I78: =C78*УЗЛЫ!C104*L105 -> 0 | J78: =C78*РАБОТЫ!C49 -> 0 | K78: =C78*РАБОТЫ!D49 -> 0 | L78: 0
A79: REHAU_Сервопривод 24В | B79: Необходим для управления отдельными контурами тёплого пола. | D79: шт. | E79: =I79/K2*J105*0.68 -> 0 | F79: =((J79+K79)/$J$2)*$K$105*2.2 -> 0 | G79: 0 | I79: =C79*УЗЛЫ!C107*L105 -> 0 | J79: =C79*РАБОТЫ!C50*0.8 -> 0 | K79: =C79*РАБОТЫ!D50*0.8 -> 0 | L79: 0
A80: Термостатическая головка ТСГ ВПС-01 | B80: Предназначен для точечного регулирования контура ТП | D80: шт. | E80: =I80/K2*J105*0.72 -> 0 | F80: =((J80+K80)/$J$2)*$K$105*2.2 -> 0 | G80: 0 | I80: =C80*УЗЛЫ!C108*L105 -> 0 | J80: =C80*РАБОТЫ!C50*0.8 -> 0 | K80: =C80*РАБОТЫ!D50*0.8 -> 0 | L80: 0
A81: REHAU_Клеммная колодка 10 выходов 24В | B81: Необходим для управления серпоприводами. Не более 6 зон. | D81: шт. | E81: =I81/K2*J105*0.68 -> 0 | F81: =((J81+K81)/$J$2)*$K$105*3 -> 0 | G81: 0 | I81: =C81*УЗЛЫ!C110*L105 -> 0 | J81: =C81*РАБОТЫ!C49 -> 0 | K81: =C81*РАБОТЫ!D49 -> 0 | L81: 0
A82: Unibox RTL | B82: Воздухоотводчик для отдельного контура теплого пола второго этажа (вместо коллектора). | D82: компл. | E82: =(I82/$K$2)*$J$105 -> 0 | F82: =((J82+K82)/$K$2)*$K$105 -> 0 | G82: =E82+F82 -> 0 | I82: =$C82* УЗЛЫ!C99*L105 -> 0 | J82: =$C82* РАБОТЫ!C48 -> 0 | K82: =$C82* РАБОТЫ!D48 -> 0 | L82: 0
A83: Подготовка под ТП | B83: Укладка сетки кладочной. Укладка с проклейкой армированным скотчем стыков швов. | C83: 0 | D83: кв.м | E83: =(I83/0.75) -> 0 | F83: =((J83+K83)/0.4)*$K$105 -> 0 | G83: =E83+F83 -> 0 | I83: =C83*УЗЛЫ!C689 -> 0 | J83: =C83*УЗЛЫ!C691 -> 0 | K83: =C83*УЗЛЫ!D691 -> 0 | L83: 0
A84: Пол по плите | B84: Подготовка под стяжку. Укладка и проклейка пленки, выравнивание поверхности керамзитной крошкой | C84: 0 | D84: кв.м | E84: =(I84/0.75) -> 0 | F84: =((J84+K84)/0.55) -> 0 | G84: 0 | I84: =C84*УЗЛЫ!C690 -> 0 | J84: =C84*УЗЛЫ!C692 -> 0 | K84: =C84*УЗЛЫ!D692 -> 0 | L84: 0
A85: Итого материал: | G85: =SUM(E65:E84) -> 0 | L85: =SUM(I65:I84) -> 0 | N85: =(SUM(G85:G86)-SUM(L85:L86))/SUM(G85:G86) -> 
A86: Работа: | B86: =РАБОТЫ!A1 -> Дата | G86: =SUM(F65:F84) -> 0 | L86: =SUM(J65:K84) -> 0
A87: Дополнительно
A88: Материалы/услуги | B88: Описание | C88: Кол-во | D88: Ед.изм | E88: Мат-ал, руб | F88: Работа, руб | G88: Итого, руб
A89: Проходные отверстия в плите | B89: Алмазное сверление | C89: 3 | D89: шт. | F89: =IF($C$89=0,0, IF($C$89<4,9000, IF($C$89>3,9000+2300*($C$89-3)))) -> 9000 | G89: =F89+E89 -> 9000 | K89: =IF($C$89=0,0, IF($C$89<4,6000, IF($C$89>3,6000+1700*($C$89-3)))) -> 6000
A90: Штробление | B90: Выводы в кухне, с/у | D90: шт. | F90: =(J90+K90)/0.65 -> 0 | G90: =F90+E90 -> 0 | J90: =C90*РАБОТЫ!C36 -> 0 | K90: =C90*РАБОТЫ!D36 -> 0
A91: Закладная для канализации | B91: Устройство ввода канализации в дом | D91: шт. | E91: =C91*4500 -> 0 | F91: =C91*16000 -> 0 | G91: =F91+E91 -> 0 | K91: =12500*C91 -> 0
A92: Закладная для воды | B92: Устройство ввода водоснабжения в дом | D92: шт. | E92: =C92*4500 -> 0 | F92: =C92*16000 -> 0 | G92: =F92+E92 -> 0 | K92: =12500*C92 -> 0
A93: Подготовительные и накладные расходы | B93: Включают разработку комплекта документов для монтажа, проверку ОТК и приемку каждого этапа работ инженерами технического надзора, соблюдение стандарта компании | C93: 1 | D93: Усл. | F93: =C93*31000 -> 31000 | G93: =F93 -> 31000 | J93: =2000+IF((C83+C84)>0,2000,0) -> 2000 | K93: =4500+IF((C83+C84)>0,5000,0) -> 4500 | L93: =5500+6500 -> 12000 | M93: выезды ИТН | O93: Стоимость этапа ТП - заказные позиции
A94: Транспортные расходы | B94: Доставка оборудования и материалов на объект | C94: 1 | D94: усл. | F94: =C94*11000 -> 11000 | G94: =F94 -> 11000 | L94: 10000 | O94: =F96-G46 -> 51000
A95: Доставка бытовки на объект | B95: Если есть такая необходимость, мы предоставляем бытовку для проживания на объекте строителей. После окончания работ, бытовка вывозится. | D95: км от мкад | G95: =IF(C95=0,0, IF(C95<100,24000, IF(C95<150,30000,36000))) -> 0 | L95: =IF(C95=0,0, IF(C95<=50,13500, IF(C95<=100,17000, IF(C95<=150,20500, IF(C95<=200,24000, IF(C95<=250,27500, IF(C95>250,31000,))))))) -> 0
A96: Итого по смете: | F96: =SUM(G85:G86,G89:G95,G46,G61:G62) -> 51000 | I96: =SUM(L85)+L46+SUM(L61) -> 0 | J96: =SUM(J65:J84,J89:J95,J49:J60) -> 2000 | K96: =SUM(K65:K84,K89:K95,K49:K60) -> 10500 | L96: =SUM(I96:K96,L89:L95) -> 34500 | M96: =IF(F98=0,"",(F98-L96)/F98) -> 0.3235294118
A97: Корректировка стоимости (скидка): | G97: 0
A98: Итого по смете со скидкой: | F98: =F96-G97 -> 51000
B99: =РАБОТЫ!$A$1 -> Дата | K99: Дом кирпично-деревянный | L99: 0
K100: (поставить 1)
J102: Коэффициент для заказчика | L102: Коэффициент для себеса материал
J104: Мат | K104: Раб | L104: Мат
J105: 1 | K105: 1 | L105: 1
I107: Стоим. мат-ла | J107: Стоим. работ бр. | K107: Стоим. работ ПР | L107: Мат-л + работа | M107: Промежут. рента
O108: Справочно, в разбивке по этапам:
I109: =I96-I110-I111 ->  | J109: =J96-J110-J111 ->  | K109: =K96-K110-K111 ->  | L109: =L96-L110-L111 ->  | M109: =IF(Q109=0, "", (Q109-L109)/Q109) ->  | O109: Скрытые | Q109: =F96-Q110-Q111 -> 
I110: =SUM(I65+I66+I68+I69+I70+I71+I72+I73+I74+I75+I76+I77+I82) -> 0 | J110: =SUM(J65+J66+J68++J69+J70+J71+J72+J73+J74+J75+J76+J77+J82) -> 0 | K110: =SUM(K65+K66+K68++K69+K70+K71+K72+K73+K74+K75+K76+K77+K82) -> 0 | L110: =SUM(L65+L66+L68++L69+L70+L71+L72+L73+L74+L75+L76+L77+L82) -> 0 | M110: =IF(Q110=0, "", (Q110-L110)/Q110) ->  | O110: Теплые полы | Q110: =SUM(G65+G66+G68+G69+G70+G71+G72+G73+G74+G75+G76+G77+G82) -> 0
I111: =SUM(#REF!) ->  | J111: =SUM(#REF!) ->  | K111: =SUM(#REF!) ->  | L111: =SUM(#REF!) ->  | M111: =IF(Q111=0, "", (Q111-L111)/Q111) ->  | O111: Теплотрасса | Q111: =SUM(#REF!) -> 

Sheet ТП ТЕСЕ
A1: Приложение № к Договору подряда № ______________от_____________ | J1: КОЭФ для ренты | K1: КОЭФ для ренты
A2: =TODAY() -> 2024-02-02 | B2: Данный сметный расчёт действителен 7 календарных дней. По истечению срока, цены могут быть изменены. | J2: 0.65 | K2: 0.6
A3: Сметный расчет ТП ТЕСЕ
A4: Отопительные приборы | I4: =РАБОТЫ!A1 -> Дата
A5: Материалы/услуги | B5: Описание | C5: Кол-во | D5: Ед.изм | E5: Мат-ал, руб | F5: Работа, руб | G5: Итого, руб | I5: Материал | J5: Бригада | K5: Прораб | L5: Итого | M5: Рента | N5: Цена шт. | O5: Курс евро
A6: Радиаторы | D6: шт. | E6: =I6/0.75 -> 0 | G6: =E6 -> 0 | I6: =N6*C6 -> 0 | L6: =SUM(I6:K6) -> 0 | M6: =IF(G6=0,"",(G6-L6)/G6) ->  | O6: 106.1
D7: шт. | E7: =I7/0.75 -> 0 | G7: =E7 -> 0 | I7: =N7*C7 -> 0 | L7: 0
D8: шт. | E8: 0 | G8: 0 | I8: 0 | L8: 0
D9: шт. | E9: 0 | G9: 0 | I9: 0 | L9: 0
D10: шт. | E10: 0 | G10: 0 | I10: 0 | L10: 0
D11: шт. | E11: 0 | G11: 0 | I11: 0 | L11: 0
D12: шт. | E12: 0 | G12: 0 | I12: 0 | L12: 0
D13: шт. | E13: 0 | G13: 0 | I13: 0 | L13: 0
D14: шт. | E14: 0 | G14: 0 | I14: 0 | L14: 0
D15: шт. | E15: 0 | G15: 0 | I15: =N15*C15 -> 0 | L15: 0
A16: Конвектор энергозависимый внутрипольный | D16: шт. | E16: =(I16/0.65)*$J$105*0.88 -> 0 | G16: =E16 -> 0 | I16: =C16*N16*$O$6*0.63*1.02 -> 0 | L16: 0
D17: шт. | E17: =(I17/0.65)*$J$105*0.88 -> 0 | G17: 0 | I17: =C17*N17*$O$6*0.63*1.02 -> 0 | L17: 0
D18: шт. | E18: 0 | G18: 0 | I18: 0 | L18: 0
D19: шт. | E19: 0 | G19: 0 | I19: 0 | L19: 0
D20: шт. | E20: 0 | G20: 0 | I20: 0 | L20: 0
D21: шт. | E21: 0 | G21: 0 | I21: 0 | L21: 0
D22: шт. | E22: 0 | G22: 0 | I22: 0 | L22: 0
D23: шт. | E23: 0 | G23: 0 | I23: 0 | L23: 0
D24: шт. | E24: 0 | G24: 0 | I24: 0 | L24: 0
D25: шт. | E25: 0 | G25: 0 | I25: 0 | L25: 0
A26: Конвектор энергонезависимый внутрипольный влагостойкий корпус | D26: шт. | E26: 0 | G26: 0 | I26: 0 | L26: 0
D27: шт. | E27: 0 | G27: 0 | I27: 0 | L27: 0
D28: шт. | E28: 0 | G28: 0 | I28: 0 | L28: 0
D29: шт. | E29: 0 | G29: 0 | I29: 0 | L29: 0
D30: шт. | E30: 0 | G30: 0 | I30: 0 | L30: 0
D31: шт. | E31: 0 | G31: 0 | I31: 0 | L31: 0
D32: шт. | E32: 0 | G32: 0 | I32: 0 | L32: 0
D33: шт. | E33: 0 | G33: 0 | I33: 0 | L33: 0
D34: шт. | E34: 0 | G34: 0 | I34: 0 | L34: 0
D35: шт. | E35: =(I35/0.65)*$J$105*0.88 -> 0 | G35: 0 | I35: =C35*N35*$O$6*0.63*1.02 -> 0 | L35: 0
A36: Конвектор напольный | D36: шт. | E36: =(I36/0.7)*$J$105*0.87 -> 0 | G36: 0 | I36: =C36*N36*$O$6*0.75*1.02 -> 0 | L36: 0
D37: шт. | E37: =(I37/0.7)*$J$105*0.87 -> 0 | G37: 0 | I37: =C37*N37*$O$6*0.75*1.02 -> 0 | L37: 0
D38: шт. | E38: 0 | G38: 0 | I38: 0 | L38: 0
D39: шт. | E39: 0 | G39: 0 | I39: 0 | L39: 0
D40: шт. | E40: 0 | G40: 0 | I40: 0 | L40: 0 | M40: =IF(G40=0,"",(G40-L40)/G40) -> 
D41: шт. | E41: 0 | G41: 0 | I41: 0 | L41: 0
D42: шт. | E42: 0 | G42: =E42 -> 0 | I42: 0 | L42: 0
D43: шт. | E43: 0 | G43: 0 | I43: 0 | L43: 0
D44: шт. | E44: 0 | G44: 0 | I44: 0 | L44: 0
D45: шт. | E45: 0 | G45: 0 | I45: 0 | L45: 0
A46: Итого материал: | G46: =SUM(G6:G45) -> 0 | L46: =SUM(I6:I45) -> 0 | M46: =IF(G46=0,"",(G46-L46)/G46) -> 
A47: Отопление
A48: Материалы/услуги | B48: Описание | C48: Кол-во | D48: Ед.изм | E48: Мат-ал, руб | F48: Работа, руб | G48: Итого, руб | I48: Материал | J48: Бригада | K48: Прораб | L48: Итого | M48: Рента
A49: Комплект декоративной подводки | B49: Для труб из сшитого полиэтилена | D49: компл. | E49: =(I49/0.9)*$J$105 -> 0 | F49: =((J49+K49)/$J$2)*$K$105*1.5 -> 0 | G49: =F49+E49 -> 0 | I49: =$C49*УЗЛЫ!C22*L105 -> 0 | J49: =$C49* РАБОТЫ!C12 -> 0 | K49: =$C49* РАБОТЫ!D12 -> 0 | L49: =SUM(I49:K49) -> 0 | M49: =IF(G49=0,"",(G49-L49)/G49) -> 
A50: Монтаж креплений для радиаторов настенный | B50: Монтаж с использованием электронного измерителя уровня | D50: компл. | E50: =(I50/$J$2)*$J$119 -> 0 | F50: =((J50+K50)/$J$2)*$K$105*1.3 -> 0 | G50: 0 | J50: =$C50*(РАБОТЫ!C13*0.3) -> 0 | K50: =$C50*( РАБОТЫ!D13*0.3) -> 0 | L50: 0 | M50: =IF(G50=0,"",(G50-L50)/G50) -> 
A51: Монтаж креплений для радиаторов напольный | B51: Монтаж с использованием электронного измерителя уровня | D51: компл. | E51: =(I51/$J$2)*$J$105 -> 0 | F51: =((J51+K51)/$J$2)*$K$105*1.3 -> 0 | G51: 0 | I51: =C51*УЗЛЫ!D26*L105 -> 0 | J51: =$C51*(РАБОТЫ!C13*0.3) -> 0 | K51: =$C51*( РАБОТЫ!D13*0.3) -> 0 | L51: 0
A52: Монтаж радиатора | B52: Монтаж с использованием электронного измерителя уровня | D52: компл. | E52: =(I52/$J$2)*$J$119 -> 0 | F52: =((J52+K52)/0.76)*$K$105*1.3 -> 0 | G52: 0 | J52: =$C52* РАБОТЫ!C13 -> 0 | K52: =$C52* РАБОТЫ!D13 -> 0 | L52: 0
A53: Комплект подключения | B53: Узел нижнего подключения радиатора прямой из пола (без декор.подводки) | D53: компл. | E53: =(I53/0.8)*$J$105*0.7 -> 0 | F53: =(C53*500)*K105 -> 0 | G53: 0 | I53: =$C53*УЗЛЫ!C28*L105 -> 0 | L53: 0
B54: Узел нижнего подключения радиатора угловой из стены (без декор. подводки) | D54: компл. | E54: =(I54/0.8)*$J$105*0.7 -> 0 | F54: =(C54*590)+(J54+K54) -> 0 | G54: 0 | I54: =$C54*УЗЛЫ!C30*L105 -> 0 | J54: =C54*((РАБОТЫ!C36*2)) -> 0 | K54: =C54*(РАБОТЫ!D36*2) -> 0 | L54: 0
A55: Терморегулятор для радиатора | B55: Термоголовка (Германия), c жидкостным чувствительным элементом. С функцией защиты от замерзания и с блокировкой диапазона настройки. | D55: шт. | E55: =1069*C55 -> 0 | F55: =(C55*500)*K105*0.7 -> 0 | G55: 0 | I55: 0 | L55: =SUM(I55:K55) -> 0
A56: Управление внутрипольным конвектором | B56: Настенный регулятор программируемый с сенсорным экраном. Возможность регулировки до 12 приборов (Vartronic Белый) | D56: шт. | E56: =(I56/$J$2)*$J$105 -> 0 | F56: =((J56+K56)/$J$2)*K105 -> 0 | G56: 0 | I56: =$C56* УЗЛЫ!C33*L105 -> 0 | J56: =$C56*РАБОТЫ!C15 -> 0 | K56: =$C56*РАБОТЫ!D15 -> 0 | L56: 0
B57: Настенный регулятор программируемый с сенсорным экраном. Возможность регулировки до 12 приборов (Vartronic Черный) | D57: шт. | E57: =(I57/$J$2)*$J$105 -> 0 | F57: =((J57+K57)/$J$2)*K105 -> 0 | G57: 0 | I57: =$C57* УЗЛЫ!C33*L105 -> 0 | J57: =$C57*РАБОТЫ!C15 -> 0 | K57: =$C57*РАБОТЫ!D15 -> 0 | L57: =SUM(I57:K57) -> 0
A58: Комплектующие для подлючения конвектора внутрипольного | B58: Комплект запорно-регулирующей арматуры. | D58: компл. | E58: =(I58/$J$2)*$J$105 -> 0 | F58: =(C58*2300)*K105 -> 0 | G58: 0 | I58: =$C58*УЗЛЫ!C34*L105 -> 0 | L58: 0
A59: Монтаж внутрипольного конвектора | B59: Монтаж внутрипольного конвектора | D59: шт. | F59: =((J59+K59)/$J$2)*$K$105*2 -> 0 | G59: 0 | J59: =$C59* РАБОТЫ!$C$16 -> 0 | K59: =$C59* РАБОТЫ!$D$16 -> 0 | L59: =SUM(I59:K59) -> 0 | M59: =IF(G59=0,"",(G59-L59)/G59) -> 
A60: Монтаж напольного конвектора | B60: Монтаж напольного конвектора | D60: шт. | F60: =((J60+K60)/$J$2)*$K$105*2 -> 0 | G60: 0 | J60: =$C60* РАБОТЫ!C14 -> 0 | K60: =$C60* РАБОТЫ!D14 -> 0 | L60: =SUM(I60:K60) -> 0 | M60: =IF(G60=0,"",(G60-L60)/G60) -> 
A61: Итого материал: | G61: =SUM(E49:E60) -> 0 | L61: =SUM(I49:I60) -> 0 | M61: =IF(G61=0,"",(G61-L61)/G61) ->  | N61: =(SUM(G61:G62)-SUM(L61:L62))/SUM(G61:G62) -> 
A62: Работа: | G62: =SUM(F49:F60) -> 0 | L62: =SUM(J49:K60) -> 0
A63: Теплые полы | I63: =РАБОТЫ!A33 -> Смеситель (обычный)
A64: Материалы/услуги | B64: Описание | C64: Кол-во | D64: Ед.изм | E64: Мат-ал, руб | F64: Работа, руб | G64: Итого, руб | I64: Материал | J64: Бригада | K64: Прораб | L64: Итого | M64: Рента
A65: Теплый пол ТЕСЕ | B65: Высококачественные трубы PEX (ТЕСЕ Германия). Опрессовка системы | D65: м² | E65: =(I65/$K$2)*$J$105 -> 0 | F65: =((J65+K65)/$K$2)*$K$105 -> 0 | G65: =F65+E65 -> 0 | I65: =(C65*(УЗЛЫ!N87*8.4))*L105+(IF(C65>0,УЗЛЫ!C100))*L105 -> 0 | J65: =$C65*(РАБОТЫ!C45) -> 0 | K65: =$C65*(РАБОТЫ!D45) -> 0 | L65: =SUM(I65:K65) -> 0 | M65: =IF(G65=0,"",(G65-L65)/G65) -> 
A66: Трубопровод от коллектора до контуров "тп" | B66: Высококачественные трубы PEX (ТЕСЕ Германия) в утеплителе "Энергофлекс". Опрессовка системы | D66: м | E66: =(I66/$K$2)*$J$105 -> 0 | F66: =((J66+K66)/$K$2)*$K$105 -> 0 | G66: 0 | I66: =C66*УЗЛЫ!N88*L105 -> 0 | J66: =C66*РАБОТЫ!C46 -> 0 | K66: =C66*РАБОТЫ!D46 -> 0 | L66: 0
A67: Подключение коллекторного шкафа вне котельной | B67: Трубопроводы (до 25 пог.м), фитинги, арматура | D67: компл. | E67: =I67/0.62 -> 0 | F67: =(J67+K67)/0.6 -> 0 | G67: 0 | I67: =C67*(УЗЛЫ!C56+УЗЛЫ!C57) -> 0 | J67: =C67*РАБОТЫ!C19 -> 0 | K67: =C67*РАБОТЫ!D19 -> 0 | L67: 0 | O67: Подключения коллекторов ТП вне котельных , продавать на этапе ОВиВК
A68: Коллекторный шкаф ТП | B68: Коллектор, шаровые краны, фиксаторы, прокладки, фитинги. 3 выхода | D68: компл. | E68: =(I68/$K$2)*$J$105*0.7 -> 0 | F68: =((J68+K68)/$K$2)*$K$105*2.7 -> 0 | G68: 0 | I68: =C68*УЗЛЫ!N89*L105 -> 0 | J68: =$C68*(РАБОТЫ!C47) -> 0 | K68: =$C68*(РАБОТЫ!$D$47) -> 0 | L68: 0
B69: Коллектор, шаровые краны, фиксаторы, прокладки, фитинги. 4 выхода | D69: компл. | E69: 0 | F69: 0 | G69: 0 | I69: =C69*УЗЛЫ!N90*L105 -> 0 | J69: =$C69*(РАБОТЫ!C47) -> 0 | K69: =$C69*(РАБОТЫ!$D$47) -> 0 | L69: 0
B70: Коллектор, шаровые краны, фиксаторы, прокладки, фитинги. 5 выходов | D70: компл. | E70: 0 | F70: 0 | G70: 0 | I70: =C70*УЗЛЫ!N91*L105 -> 0 | J70: =$C70*(РАБОТЫ!C47) -> 0 | K70: =$C70*(РАБОТЫ!$D$47) -> 0 | L70: 0
B71: Коллектор, шаровые краны, фиксаторы, прокладки, фитинги. 6 выходов | D71: компл. | E71: 0 | F71: 0 | G71: 0 | I71: =C71*УЗЛЫ!N92*L105 -> 0 | J71: =$C71*(РАБОТЫ!C47) -> 0 | K71: =$C71*(РАБОТЫ!$D$47) -> 0 | L71: 0
B72: Коллектор, шаровые краны, фиксаторы, прокладки, фитинги. 7 выходов | D72: компл. | E72: 0 | F72: 0 | G72: 0 | I72: =C72*УЗЛЫ!N93*L105 -> 0 | J72: =$C72*(РАБОТЫ!C47) -> 0 | K72: =$C72*(РАБОТЫ!$D$47) -> 0 | L72: 0
B73: Коллектор, шаровые краны, фиксаторы, прокладки, фитинги. 8 выходов | D73: компл. | E73: 0 | F73: 0 | G73: 0 | I73: =C73*УЗЛЫ!N94*L105 -> 0 | J73: =$C73*(РАБОТЫ!C47) -> 0 | K73: =$C73*(РАБОТЫ!$D$47) -> 0 | L73: 0
B74: Коллектор, шаровые краны, фиксаторы, прокладки, фитинги. 9 выходов | D74: компл. | E74: 0 | F74: 0 | G74: 0 | I74: =C74*УЗЛЫ!N95*L105 -> 0 | J74: =$C74*(РАБОТЫ!C47) -> 0 | K74: =$C74*(РАБОТЫ!$D$47) -> 0 | L74: 0
B75: Коллектор, шаровые краны, фиксаторы, прокладки, фитинги. 10 выходов | D75: компл. | E75: 0 | F75: 0 | G75: 0 | I75: =C75*УЗЛЫ!N96*L105 -> 0 | J75: =$C75*(РАБОТЫ!C47) -> 0 | K75: =$C75*(РАБОТЫ!$D$47) -> 0 | L75: 0
B76: Коллектор, шаровые краны, фиксаторы, прокладки, фитинги. 11 выходов | D76: компл. | E76: 0 | F76: 0 | G76: 0 | I76: =C76*УЗЛЫ!N97*L105 -> 0 | J76: =$C76*(РАБОТЫ!C47) -> 0 | K76: =$C76*(РАБОТЫ!$D$47) -> 0 | L76: 0
B77: Коллектор, шаровые краны, фиксаторы, прокладки, фитинги. 12 выходов | D77: компл. | E77: 0 | F77: 0 | G77: 0 | I77: =C77*УЗЛЫ!N98*L105 -> 0 | J77: =$C77*(РАБОТЫ!C47) -> 0 | K77: =$C77*(РАБОТЫ!$D$47) -> 0 | L77: 0
A78: REHAU_Терморегулятор с датчиком и комплектом подключения 24В | B78: Служит для контроля и поддержания заданной температуры в помещении при устройстве водяного тёплого пола. В комплект входит Комнатный термостат, датчик температуры пола. | D78: компл. | E78: =I78/K2*J105*0.8 -> 0 | F78: =((J78+K78)/$J$2)*$K$105*2.2 -> 0 | G78: 0 | I78: =C78*УЗЛЫ!C104*L105 -> 0 | J78: =C78*РАБОТЫ!C49 -> 0 | K78: =C78*РАБОТЫ!D49 -> 0 | L78: 0
A79: REHAU_Сервопривод 24В | B79: Необходим для управления отдельными контурами тёплого пола. | D79: шт. | E79: =I79/K2*J105*0.68 -> 0 | F79: =((J79+K79)/$J$2)*$K$105*2.2 -> 0 | G79: 0 | I79: =C79*УЗЛЫ!C107*L105 -> 0 | J79: =C79*РАБОТЫ!C50*0.8 -> 0 | K79: =C79*РАБОТЫ!D50*0.8 -> 0 | L79: 0
A80: Термостатическая головка ТСГ ВПС-01 | B80: Предназначен для точечного регулирования контура ТП | D80: шт. | E80: =I80/K2*J105*0.72 -> 0 | F80: =((J80+K80)/$J$2)*$K$105*2.2 -> 0 | G80: 0 | I80: =C80*УЗЛЫ!C108*L105 -> 0 | J80: =C80*РАБОТЫ!C50*0.8 -> 0 | K80: =C80*РАБОТЫ!D50*0.8 -> 0 | L80: 0
A81: REHAU_Клеммная колодка 10 выходов 24В | B81: Необходим для управления серпоприводами. Не более 6 зон. | D81: шт. | E81: =I81/K2*J105*0.68 -> 0 | F81: =((J81+K81)/$J$2)*$K$105*3 -> 0 | G81: 0 | I81: =C81*УЗЛЫ!C110*L105 -> 0 | J81: =C81*РАБОТЫ!C49 -> 0 | K81: =C81*РАБОТЫ!D49 -> 0 | L81: 0
A82: Unibox RTL | B82: Воздухоотводчик для отдельного контура теплого пола второго этажа (вместо коллектора). | D82: компл. | E82: =(I82/$K$2)*$J$105 -> 0 | F82: =((J82+K82)/$K$2)*$K$105 -> 0 | G82: =E82+F82 -> 0 | I82: =$C82* УЗЛЫ!C99*L105 -> 0 | J82: =$C82* РАБОТЫ!C48 -> 0 | K82: =$C82* РАБОТЫ!D48 -> 0 | L82: 0
A83: Подготовка под ТП | B83: Укладка сетки кладочной. Укладка с проклейкой армированным скотчем стыков швов. | C83: 0 | D83: кв.м | E83: =(I83/0.75) -> 0 | F83: =((J83+K83)/0.4)*$K$105 -> 0 | G83: =E83+F83 -> 0 | I83: =C83*УЗЛЫ!C689 -> 0 | J83: =C83*УЗЛЫ!C691 -> 0 | K83: =C83*УЗЛЫ!D691 -> 0 | L83: 0
A84: Пол по плите | B84: Подготовка под стяжку. Укладка и проклейка пленки, выравнивание поверхности керамзитной крошкой | C84: 0 | D84: кв.м | E84: =(I84/0.75) -> 0 | F84: =((J84+K84)/0.55) -> 0 | G84: 0 | I84: =C84*УЗЛЫ!C690 -> 0 | J84: =C84*УЗЛЫ!C692 -> 0 | K84: =C84*УЗЛЫ!D692 -> 0 | L84: 0
A85: Итого материал: | G85: =SUM(E65:E84) -> 0 | L85: =SUM(I65:I84) -> 0 | N85: =(SUM(G85:G86)-SUM(L85:L86))/SUM(G85:G86) -> 
A86: Работа: | B86: =РАБОТЫ!A1 -> Дата | G86: =SUM(F65:F84) -> 0 | L86: =SUM(J65:K84) -> 0
A87: Дополнительно
A88: Материалы/услуги | B88: Описание | C88: Кол-во | D88: Ед.изм | E88: Мат-ал, руб | F88: Работа, руб | G88: Итого, руб
A89: Проходные отверстия в плите | B89: Алмазное сверление | C89: 3 | D89: шт. | F89: =IF($C$89=0,0, IF($C$89<4,9000, IF($C$89>3,9000+2300*($C$89-3)))) -> 9000 | G89: =F89+E89 -> 9000 | K89: =IF($C$89=0,0, IF($C$89<4,6000, IF($C$89>3,6000+1700*($C$89-3)))) -> 6000
A90: Штробление | B90: Выводы в кухне, с/у | D90: шт. | F90: =(J90+K90)/0.65 -> 0 | G90: =F90+E90 -> 0 | J90: =C90*РАБОТЫ!C36 -> 0 | K90: =C90*РАБОТЫ!D36 -> 0
A91: Закладная для канализации | B91: Устройство ввода канализации в дом | D91: шт. | E91: =C91*4500 -> 0 | F91: =C91*16000 -> 0 | G91: =F91+E91 -> 0 | K91: =12500*C91 -> 0
A92: Закладная для воды | B92: Устройство ввода водоснабжения в дом | D92: шт. | E92: =C92*4500 -> 0 | F92: =C92*16000 -> 0 | G92: =F92+E92 -> 0 | K92: =12500*C92 -> 0
A93: Подготовительные и накладные расходы | B93: Включают разработку комплекта документов для монтажа, проверку ОТК и приемку каждого этапа работ инженерами технического надзора, соблюдение стандарта компании | C93: 1 | D93: Усл. | F93: =C93*31000 -> 31000 | G93: =F93 -> 31000 | J93: =2000+IF((C83+C84)>0,2000,0) -> 2000 | K93: =4500+IF((C83+C84)>0,5000,0) -> 4500 | L93: =5500+6500 -> 12000 | M93: выезды ИТН | O93: Стоимость этапа ТП - заказные позиции
A94: Транспортные расходы | B94: Доставка оборудования и материалов на объект | C94: 1 | D94: усл. | F94: =C94*11000 -> 11000 | G94: =F94 -> 11000 | L94: 10000 | O94: =F96-G46 -> 51000
A95: Доставка бытовки на объект | B95: Если есть такая необходимость, мы предоставляем бытовку для проживания на объекте строителей. После окончания работ, бытовка вывозится. | D95: км от мкад | G95: =IF(C95=0,0, IF(C95<100,24000, IF(C95<150,30000,36000))) -> 0 | L95: =IF(C95=0,0, IF(C95<=50,13500, IF(C95<=100,17000, IF(C95<=150,20500, IF(C95<=200,24000, IF(C95<=250,27500, IF(C95>250,31000,))))))) -> 0
A96: Итого по смете: | F96: =SUM(G85:G86,G89:G95,G46,G61:G62) -> 51000 | I96: =SUM(L85)+L46+SUM(L61) -> 0 | J96: =SUM(J65:J84,J89:J95,J49:J60) -> 2000 | K96: =SUM(K65:K84,K89:K95,K49:K60) -> 10500 | L96: =SUM(I96:K96,L89:L95) -> 34500 | M96: =IF(F98=0,"",(F98-L96)/F98) -> 0.3235294118
A97: Корректировка стоимости (скидка): | G97: 0
A98: Итого по смете со скидкой: | F98: =F96-G97 -> 51000
B99: =РАБОТЫ!$A$1 -> Дата | K99: Дом кирпично-деревянный | L99: 0
K100: (поставить 1)
J102: Коэффициент для заказчика | L102: Коэффициент для себеса материал
J104: Мат | K104: Раб | L104: Мат
J105: 1 | K105: 1 | L105: 1
I107: Стоим. мат-ла | J107: Стоим. работ бр. | K107: Стоим. работ ПР | L107: Мат-л + работа | M107: Промежут. рента
O108: Справочно, в разбивке по этапам:
I109: =I96-I110-I111 ->  | J109: =J96-J110-J111 ->  | K109: =K96-K110-K111 ->  | L109: =L96-L110-L111 ->  | M109: =IF(Q109=0, "", (Q109-L109)/Q109) ->  | O109: Скрытые | Q109: =F96-Q110-Q111 -> 
I110: =SUM(I65+I66+I68+I69+I70+I71+I72+I73+I74+I75+I76+I77+I82) -> 0 | J110: =SUM(J65+J66+J68++J69+J70+J71+J72+J73+J74+J75+J76+J77+J82) -> 0 | K110: =SUM(K65+K66+K68++K69+K70+K71+K72+K73+K74+K75+K76+K77+K82) -> 0 | L110: =SUM(L65+L66+L68++L69+L70+L71+L72+L73+L74+L75+L76+L77+L82) -> 0 | M110: =IF(Q110=0, "", (Q110-L110)/Q110) ->  | O110: Теплые полы | Q110: =SUM(G65+G66+G68+G69+G70+G71+G72+G73+G74+G75+G76+G77+G82) -> 0
I111: =SUM(#REF!) ->  | J111: =SUM(#REF!) ->  | K111: =SUM(#REF!) ->  | L111: =SUM(#REF!) ->  | M111: =IF(Q111=0, "", (Q111-L111)/Q111) ->  | O111: Теплотрасса | Q111: =SUM(#REF!) -> 

Sheet ТП Stout
A1: Приложение № к Договору подряда № ______________от_____________ | J1: КОЭФ для ренты | K1: КОЭФ для ренты
A2: =TODAY() -> 2024-02-02 | B2: Данный сметный расчёт действителен 7 календарных дней. По истечению срока, цены могут быть изменены. | J2: 0.65 | K2: 0.6
A3: Сметный расчет ТП Stout
A4: Отопительные приборы | I4: =РАБОТЫ!A1 -> Дата
A5: Материалы/услуги | B5: Описание | C5: Кол-во | D5: Ед.изм | E5: Мат-ал, руб | F5: Работа, руб | G5: Итого, руб | I5: Материал | J5: Бригада | K5: Прораб | L5: Итого | M5: Рента | N5: Цена шт. | O5: Курс евро
A6: Радиаторы | D6: шт. | E6: =I6/0.75 -> 0 | G6: =E6 -> 0 | I6: =N6*C6 -> 0 | L6: =SUM(I6:K6) -> 0 | M6: =IF(G6=0,"",(G6-L6)/G6) ->  | O6: 106.1
D7: шт. | E7: =I7/0.75 -> 0 | G7: =E7 -> 0 | I7: =N7*C7 -> 0 | L7: 0
D8: шт. | E8: 0 | G8: 0 | I8: 0 | L8: 0
D9: шт. | E9: 0 | G9: 0 | I9: 0 | L9: 0
D10: шт. | E10: 0 | G10: 0 | I10: 0 | L10: 0
D11: шт. | E11: 0 | G11: 0 | I11: 0 | L11: 0
D12: шт. | E12: 0 | G12: 0 | I12: 0 | L12: 0
D13: шт. | E13: 0 | G13: 0 | I13: 0 | L13: 0
D14: шт. | E14: 0 | G14: 0 | I14: 0 | L14: 0
D15: шт. | E15: 0 | G15: 0 | I15: =N15*C15 -> 0 | L15: 0
A16: Конвектор энергозависимый внутрипольный | D16: шт. | E16: =(I16/0.65)*$J$105*0.88 -> 0 | G16: =E16 -> 0 | I16: =C16*N16*$O$6*0.63*1.02 -> 0 | L16: 0
D17: шт. | E17: =(I17/0.65)*$J$105*0.88 -> 0 | G17: 0 | I17: =C17*N17*$O$6*0.63*1.02 -> 0 | L17: 0
D18: шт. | E18: 0 | G18: 0 | I18: =C18*N18*$O$6*0.63*1.02 -> 0 | L18: 0
D19: шт. | E19: 0 | G19: 0 | I19: 0 | L19: 0
D20: шт. | E20: 0 | G20: 0 | I20: 0 | L20: 0
D21: шт. | E21: 0 | G21: 0 | I21: 0 | L21: 0
D22: шт. | E22: 0 | G22: 0 | I22: 0 | L22: 0
D23: шт. | E23: 0 | G23: 0 | I23: 0 | L23: 0
D24: шт. | E24: 0 | G24: 0 | I24: 0 | L24: 0
D25: шт. | E25: 0 | G25: 0 | I25: 0 | L25: 0
A26: Конвектор энергонезависимый внутрипольный влагостойкий корпус | D26: шт. | E26: 0 | G26: 0 | I26: 0 | L26: 0
D27: шт. | E27: 0 | G27: 0 | I27: 0 | L27: 0
D28: шт. | E28: 0 | G28: 0 | I28: 0 | L28: 0
D29: шт. | E29: 0 | G29: 0 | I29: 0 | L29: 0
D30: шт. | E30: 0 | G30: 0 | I30: 0 | L30: 0
D31: шт. | E31: 0 | G31: 0 | I31: 0 | L31: 0
D32: шт. | E32: 0 | G32: 0 | I32: 0 | L32: 0
D33: шт. | E33: 0 | G33: 0 | I33: 0 | L33: 0
D34: шт. | E34: 0 | G34: 0 | I34: =C34*N34*$O$6*0.63*1.02 -> 0 | L34: 0
D35: шт. | E35: =(I35/0.65)*$J$105*0.88 -> 0 | G35: 0 | I35: =C35*N35*$O$6*0.63*1.02 -> 0 | L35: 0
A36: Конвектор напольный | D36: шт. | E36: =(I36/0.7)*$J$105*0.87 -> 0 | G36: 0 | I36: =C36*N36*$O$6*0.75*1.02 -> 0 | L36: 0
D37: шт. | E37: =(I37/0.7)*$J$105*0.87 -> 0 | G37: 0 | I37: =C37*N37*$O$6*0.75*1.02 -> 0 | L37: 0
D38: шт. | E38: 0 | G38: 0 | I38: =C38*N38*$O$6*0.75*1.02 -> 0 | L38: 0
D39: шт. | E39: 0 | G39: 0 | I39: 0 | L39: 0
D40: шт. | E40: 0 | G40: 0 | I40: 0 | L40: 0 | M40: =IF(G40=0,"",(G40-L40)/G40) -> 
D41: шт. | E41: 0 | G41: 0 | I41: 0 | L41: 0
D42: шт. | E42: 0 | G42: =E42 -> 0 | I42: 0 | L42: 0
D43: шт. | E43: 0 | G43: 0 | I43: 0 | L43: 0
D44: шт. | E44: 0 | G44: 0 | I44: 0 | L44: 0
D45: шт. | E45: 0 | G45: 0 | I45: 0 | L45: 0
A46: Итого материал: | G46: =SUM(G6:G45) -> 0 | L46: =SUM(I6:I45) -> 0 | M46: =IF(G46=0,"",(G46-L46)/G46) -> 
A47: Отопление
A48: Материалы/услуги | B48: Описание | C48: Кол-во | D48: Ед.изм | E48: Мат-ал, руб | F48: Работа, руб | G48: Итого, руб | I48: Материал | J48: Бригада | K48: Прораб | L48: Итого | M48: Рента
A49: Комплект декоративной подводки | B49: Для труб из сшитого полиэтилена | D49: компл. | E49: =(I49/0.9)*$J$105 -> 0 | F49: =((J49+K49)/$J$2)*$K$105*1.5 -> 0 | G49: =F49+E49 -> 0 | I49: =$C49*УЗЛЫ!C22*L105 -> 0 | J49: =$C49* РАБОТЫ!C12 -> 0 | K49: =$C49* РАБОТЫ!D12 -> 0 | L49: =SUM(I49:K49) -> 0 | M49: =IF(G49=0,"",(G49-L49)/G49) -> 
A50: Монтаж креплений для радиаторов настенный | B50: Монтаж с использованием электронного измерителя уровня | D50: компл. | E50: =(I50/$J$2)*$J$119 -> 0 | F50: =((J50+K50)/$J$2)*$K$105*1.3 -> 0 | G50: 0 | J50: =$C50*(РАБОТЫ!C13*0.3) -> 0 | K50: =$C50*( РАБОТЫ!D13*0.3) -> 0 | L50: 0 | M50: =IF(G50=0,"",(G50-L50)/G50) -> 
A51: Монтаж креплений для радиаторов напольный | B51: Монтаж с использованием электронного измерителя уровня | D51: компл. | E51: =(I51/$J$2)*$J$105 -> 0 | F51: =((J51+K51)/$J$2)*$K$105*1.3 -> 0 | G51: 0 | I51: =C51*УЗЛЫ!D26*L105 -> 0 | J51: =$C51*(РАБОТЫ!C13*0.3) -> 0 | K51: =$C51*( РАБОТЫ!D13*0.3) -> 0 | L51: 0
A52: Монтаж радиатора | B52: Монтаж с использованием электронного измерителя уровня | D52: компл. | E52: =(I52/$J$2)*$J$119 -> 0 | F52: =((J52+K52)/0.76)*$K$105*1.3 -> 0 | G52: 0 | J52: =$C52* РАБОТЫ!C13 -> 0 | K52: =$C52* РАБОТЫ!D13 -> 0 | L52: 0
A53: Комплект подключения | B53: Узел нижнего подключения радиатора прямой из пола (без декор.подводки) | D53: компл. | E53: =(I53/0.8)*$J$105*0.7 -> 0 | F53: =(C53*500)*K105 -> 0 | G53: 0 | I53: =$C53*УЗЛЫ!C28*L105 -> 0 | L53: 0
B54: Узел нижнего подключения радиатора угловой из стены (без декор. подводки) | D54: компл. | E54: =(I54/0.8)*$J$105*0.7 -> 0 | F54: =(C54*590)+(J54+K54) -> 0 | G54: 0 | I54: =$C54*УЗЛЫ!C30*L105 -> 0 | J54: =C54*((РАБОТЫ!C36*2)) -> 0 | K54: =C54*(РАБОТЫ!D36*2) -> 0 | L54: 0
A55: Терморегулятор для радиатора | B55: Термоголовка (Германия), c жидкостным чувствительным элементом. С функцией защиты от замерзания и с блокировкой диапазона настройки. | D55: шт. | E55: =1069*C55 -> 0 | F55: =(C55*500)*K105*0.7 -> 0 | G55: 0 | I55: 0 | L55: =SUM(I55:K55) -> 0
A56: Управление внутрипольным конвектором | B56: Настенный регулятор программируемый с сенсорным экраном. Возможность регулировки до 12 приборов (Vartronic Белый) | D56: шт. | E56: =(I56/$J$2)*$J$105 -> 0 | F56: =((J56+K56)/$J$2)*K105 -> 0 | G56: 0 | I56: =$C56* УЗЛЫ!C33*L105 -> 0 | J56: =$C56*РАБОТЫ!C15 -> 0 | K56: =$C56*РАБОТЫ!D15 -> 0 | L56: 0
B57: Настенный регулятор программируемый с сенсорным экраном. Возможность регулировки до 12 приборов (Vartronic Черный) | D57: шт. | E57: =(I57/$J$2)*$J$105 -> 0 | F57: =((J57+K57)/$J$2)*K105 -> 0 | G57: 0 | I57: =$C57* УЗЛЫ!C33*L105 -> 0 | J57: =$C57*РАБОТЫ!C15 -> 0 | K57: =$C57*РАБОТЫ!D15 -> 0 | L57: =SUM(I57:K57) -> 0
A58: Комплектующие для подлючения конвектора внутрипольного | B58: Комплект запорно-регулирующей арматуры. | D58: компл. | E58: =(I58/$J$2)*$J$105 -> 0 | F58: =(C58*2300)*K105 -> 0 | G58: 0 | I58: =$C58*УЗЛЫ!C34*L105 -> 0 | L58: 0
A59: Монтаж внутрипольного конвектора | B59: Монтаж внутрипольного конвектора | D59: шт. | F59: =((J59+K59)/$J$2)*$K$105*2 -> 0 | G59: 0 | J59: =$C59* РАБОТЫ!$C$16 -> 0 | K59: =$C59* РАБОТЫ!$D$16 -> 0 | L59: =SUM(I59:K59) -> 0 | M59: =IF(G59=0,"",(G59-L59)/G59) -> 
A60: Монтаж напольного конвектора | B60: Монтаж напольного конвектора | D60: шт. | F60: =((J60+K60)/$J$2)*$K$105*2 -> 0 | G60: 0 | J60: =$C60* РАБОТЫ!C14 -> 0 | K60: =$C60* РАБОТЫ!D14 -> 0 | L60: =SUM(I60:K60) -> 0 | M60: =IF(G60=0,"",(G60-L60)/G60) -> 
A61: Итого материал: | G61: =SUM(E49:E60) -> 0 | L61: =SUM(I49:I60) -> 0 | N61: =(SUM(G61:G62)-SUM(L61:L62))/SUM(G61:G62) -> 
A62: Работа: | G62: =SUM(F49:F60) -> 0 | L62: =SUM(J49:K60) -> 0
A63: Теплые полы | I63: =РАБОТЫ!A1 -> Дата
A64: Материалы/услуги | B64: Описание | C64: Кол-во | D64: Ед.изм | E64: Мат-ал, руб | F64: Работа, руб | G64: Итого, руб | I64: Материал | J64: Бригада | K64: Прораб | L64: Итого | M64: Рента
A65: Теплый пол Stout | B65: Трубопроводы системы внутрипольного отопления - высококачественные трубы PE-Xa (Трубы Stout, Испания - поперечно сшитый полиэтилен) | C65: ='ТП ТЕСЕ'!C65 -> 0 | D65: м² | E65: =(I65/$K$2)*$J$105 -> 0 | F65: =((J65+K65)/$K$2)*$K$105 -> 0 | G65: =F65+E65 -> 0 | I65: =C65*(УЗЛЫ!H87*8.4)*L105+(IF(C65>0,УЗЛЫ!C105))*L105 -> 0 | J65: =$C65*(РАБОТЫ!C45) -> 0 | K65: =$C65*(РАБОТЫ!D45) -> 0 | L65: =SUM(I65:K65) -> 0 | M65: =IF(G65=0,"",(G65-L65)/G65) -> 
A66: Магистрали от коллектора до "тп" | B66: Трубопроводы системы внутрипольного отопления - высококачественные трубы PE-Xa (Трубы Stout, Испания - поперечно сшитый полиэтилен) в утеплителе "Энергофлекс" | C66: ='ТП ТЕСЕ'!C66 -> 0 | D66: м | E66: =(I66/$K$2)*$J$105 -> 0 | F66: =((J66+K66)/$K$2)*$K$105 -> 0 | G66: 0 | I66: =C66*УЗЛЫ!H88*L105 -> 0 | J66: =C66*РАБОТЫ!C46 -> 0 | K66: =C66*РАБОТЫ!D46 -> 0 | L66: 0 | M66: =IF(G66=0,"",(G66-L66)/G66) -> 
A67: Подключение коллекторного шкафа вне котельной | B67: Трубопроводы (до 25 пог.м), фитинги, арматура | C67: ='ТП ТЕСЕ'!C67 -> 0 | D67: компл. | E67: =I67/0.62 -> 0 | F67: =(J67+K67)/0.6 -> 0 | G67: 0 | I67: =C67*(УЗЛЫ!C54+УЗЛЫ!C55) -> 0 | J67: =C67*РАБОТЫ!C19 -> 0 | K67: =C67*РАБОТЫ!D19 -> 0 | L67: 0 | O67: Подключения коллекторов ТП вне котельных , продавать на этапе ОВВВК
A68: Коллекторный шкаф ТП | B68: Коллектор, шаровые краны, фиксаторы, прокладки, фитинги. 3 выхода | C68: ='ТП ТЕСЕ'!C68 -> 0 | D68: компл. | E68: =(I68/$K$2)*$J$105*0.7 -> 0 | F68: =((J68+K68)/$K$2)*$K$105*2.7 -> 0 | G68: 0 | I68: =C68*УЗЛЫ!H89*L105 -> 0 | J68: =$C68*(РАБОТЫ!C47) -> 0 | K68: =$C68*(РАБОТЫ!$D$47) -> 0 | L68: 0
B69: Коллектор, шаровые краны, фиксаторы, прокладки, фитинги. 4 выхода | C69: ='ТП ТЕСЕ'!C69 -> 0 | D69: компл. | E69: 0 | F69: 0 | G69: 0 | I69: =C69*УЗЛЫ!H90*L105 -> 0 | J69: =$C69*(РАБОТЫ!C47) -> 0 | K69: =$C69*(РАБОТЫ!$D$47) -> 0 | L69: 0
B70: Коллектор, шаровые краны, фиксаторы, прокладки, фитинги. 5 выходов | C70: ='ТП ТЕСЕ'!C70 -> 0 | D70: компл. | E70: 0 | F70: 0 | G70: 0 | I70: =C70*УЗЛЫ!H91*L105 -> 0 | J70: =$C70*(РАБОТЫ!C47) -> 0 | K70: =$C70*(РАБОТЫ!$D$47) -> 0 | L70: 0
B71: Коллектор, шаровые краны, фиксаторы, прокладки, фитинги. 6 выходов | C71: ='ТП ТЕСЕ'!C71 -> 0 | D71: компл. | E71: 0 | F71: 0 | G71: 0 | I71: =C71*УЗЛЫ!H92*L105 -> 0 | J71: =$C71*(РАБОТЫ!C47) -> 0 | K71: =$C71*(РАБОТЫ!$D$47) -> 0 | L71: 0
B72: Коллектор, шаровые краны, фиксаторы, прокладки, фитинги. 7 выходов | C72: ='ТП ТЕСЕ'!C72 -> 0 | D72: компл. | E72: 0 | F72: 0 | G72: 0 | I72: =C72*УЗЛЫ!H93*L105 -> 0 | J72: =$C72*(РАБОТЫ!C47) -> 0 | K72: =$C72*(РАБОТЫ!$D$47) -> 0 | L72: 0
B73: Коллектор, шаровые краны, фиксаторы, прокладки, фитинги. 8 выходов | C73: ='ТП ТЕСЕ'!C73 -> 0 | D73: компл. | E73: 0 | F73: 0 | G73: 0 | I73: =C73*УЗЛЫ!H94*L105 -> 0 | J73: =$C73*(РАБОТЫ!C47) -> 0 | K73: =$C73*(РАБОТЫ!$D$47) -> 0 | L73: 0
B74: Коллектор, шаровые краны, фиксаторы, прокладки, фитинги. 9 выходов | C74: ='ТП ТЕСЕ'!C74 -> 0 | D74: компл. | E74: 0 | F74: 0 | G74: 0 | I74: =C74*УЗЛЫ!H95*L105 -> 0 | J74: =$C74*(РАБОТЫ!C47) -> 0 | K74: =$C74*(РАБОТЫ!$D$47) -> 0 | L74: 0
B75: Коллектор, шаровые краны, фиксаторы, прокладки, фитинги. 10 выходов | C75: ='ТП ТЕСЕ'!C75 -> 0 | D75: компл. | E75: 0 | F75: 0 | G75: 0 | I75: =C75*УЗЛЫ!H96*L105 -> 0 | J75: =$C75*(РАБОТЫ!C47) -> 0 | K75: =$C75*(РАБОТЫ!$D$47) -> 0 | L75: 0
B76: Коллектор, шаровые краны, фиксаторы, прокладки, фитинги. 11 выходов | C76: ='ТП ТЕСЕ'!C76 -> 0 | D76: компл. | E76: 0 | F76: 0 | G76: 0 | I76: =C76*УЗЛЫ!H97*L105 -> 0 | J76: =$C76*(РАБОТЫ!C47) -> 0 | K76: =$C76*(РАБОТЫ!$D$47) -> 0 | L76: 0
B77: Коллектор, шаровые краны, фиксаторы, прокладки, фитинги. 12 выходов | C77: ='ТП ТЕСЕ'!C77 -> 0 | D77: компл. | E77: 0 | F77: 0 | G77: 0 | I77: =C77*УЗЛЫ!H98*L105 -> 0 | J77: =$C77*(РАБОТЫ!C47) -> 0 | K77: =$C77*(РАБОТЫ!$D$47) -> 0 | L77: 0
A78: Терморегулятор тёплого пола REHAU NEA HCT 230 В | B78: Служит для контроля и поддержания заданной температуры в помещении при устройстве водяного тёплого пола. В комплект входит терморегулятор Nea HCT 230 В, выносной датчик Nea 230 В, комплект подключения датчика к терморегулятору. | C78: ='ТП ТЕСЕ'!C78 -> 0 | D78: компл. | E78: =I78/K2*J105*0.8 -> 0 | F78: =((J78+K78)/$J$2)*$K$105*2.2 -> 0 | G78: 0 | I78: =C78*УЗЛЫ!C104*L105 -> 0 | J78: =C78*РАБОТЫ!C49 -> 0 | K78: =C78*РАБОТЫ!D49 -> 0 | L78: 0
A79: Сервопривод REHAU UNI 230 В | B79: Необходим для управления отдельными контурами тёплого пола. | C79: ='ТП ТЕСЕ'!C79 -> 0 | D79: шт. | E79: =I79/K2*J105*0.68 -> 0 | F79: =((J79+K79)/$J$2)*$K$105*2.2 -> 0 | G79: 0 | I79: =C79*УЗЛЫ!C107*L105 -> 0 | J79: =C79*РАБОТЫ!C50*0.8 -> 0 | K79: =C79*РАБОТЫ!D50*0.8 -> 0 | L79: 0
A80: Термостатическая головка ТСГ ВПС-01 | B80: Предназначен для точечного регулирования контура ТП | C80: ='ТП ТЕСЕ'!C80 -> 0 | D80: шт. | E80: =I80/K2*J105*0.72 -> 0 | F80: =((J80+K80)/$J$2)*$K$105*2.2 -> 0 | G80: 0 | I80: =C80*УЗЛЫ!C108*L105 -> 0 | J80: =C80*РАБОТЫ!C50*0.8 -> 0 | K80: =C80*РАБОТЫ!D50*0.8 -> 0 | L80: 0
A81: Клеммная колодка REHAU Nea HС 230 В | B81: Необходим для управления серпоприводами. Не более 6 зон. | C81: ='ТП ТЕСЕ'!C81 -> 0 | D81: шт. | E81: =I81/K2*J105*0.68 -> 0 | F81: =((J81+K81)/$J$2)*$K$105*3 -> 0 | G81: 0 | I81: =C81*УЗЛЫ!C110*L105 -> 0 | J81: =C81*РАБОТЫ!C49 -> 0 | K81: =C81*РАБОТЫ!D49 -> 0 | L81: 0
A82: Unibox RTL | B82: Воздухоотводчик для отдельного контура теплого пола второго этажа (вместо коллектора). | C82: ='ТП ТЕСЕ'!C82 -> 0 | D82: компл. | E82: =(I82/$K$2)*$J$105 -> 0 | F82: =((J82+K82)/$K$2)*$K$105 -> 0 | G82: =E82+F82 -> 0 | I82: =C82*УЗЛЫ!H99*L105 -> 0 | J82: =$C82* РАБОТЫ!C48 -> 0 | K82: =$C82* РАБОТЫ!D48 -> 0 | L82: 0 | N82: =(SUM(G85:G86)-SUM(L85:L86))/SUM(G85:G86) -> 
A83: Подготовка под ТП | B83: Укладка сетки кладочной. Укладка с проклейкой армированным скотчем стыков швов. | C83: ='ТП ТЕСЕ'!C83 -> 0 | D83: кв.м | E83: =(I83/0.75) -> 0 | F83: =((J83+K83)/0.4)*$K$105 -> 0 | G83: =E83+F83 -> 0 | I83: =C83*УЗЛЫ!C689 -> 0 | J83: =C83*УЗЛЫ!C691 -> 0 | K83: =C83*УЗЛЫ!D691 -> 0 | L83: 0
A84: Пол по плите | B84: Подготовка под стяжку. Укладка и проклейка пленки, выравнивание поверхности керамзитной крошкой | C84: ='ТП ТЕСЕ'!C84 -> 0 | D84: кв.м | E84: =(I84/0.75) -> 0 | F84: =((J84+K84)/0.55) -> 0 | G84: 0 | I84: =C84*УЗЛЫ!C690 -> 0 | J84: =C84*УЗЛЫ!C692 -> 0 | K84: =C84*УЗЛЫ!D692 -> 0 | L84: 0
A85: Итого материал: | G85: =SUM(E65:E84) -> 0 | L85: =SUM(I65:I84) -> 0
A86: Работа: | B86: =РАБОТЫ!A1 -> Дата | G86: =SUM(F65:F84) -> 0 | L86: =SUM(J65:K84) -> 0
A87: Дополнительно
A88: Материалы/услуги | B88: Описание | C88: Кол-во | D88: Ед.изм | E88: Мат-ал, руб | F88: Работа, руб | G88: Итого, руб
A89: Проходные отверстия в плите | B89: Алмазное сверление | C89: ='ТП ТЕСЕ'!C89 -> 3 | D89: шт. | F89: =IF($C$89=0,0, IF($C$89<4,9000, IF($C$89>3,9000+2300*($C$89-3)))) -> 9000 | G89: =F89+E89 -> 9000 | K89: =IF($C$89=0,0, IF($C$89<4,6000, IF($C$89>3,6000+1700*($C$89-3)))) -> 6000
A90: Штробление | B90: Выводы в кухне, с/у | C90: ='ТП ТЕСЕ'!C90 -> 0 | D90: шт. | F90: =(J90+K90)/0.65 -> 0 | G90: =F90+E90 -> 0 | J90: =C90*РАБОТЫ!C36 -> 0 | K90: =C90*РАБОТЫ!D36 -> 0
A91: Закладная для канализации | B91: Устройство ввода канализации в дом | C91: ='ТП ТЕСЕ'!C91 -> 0 | D91: шт. | E91: =C91*4500 -> 0 | F91: =C91*16000 -> 0 | G91: =F91+E91 -> 0 | K91: =12500*C91 -> 0
A92: Закладная для воды | B92: Устройство ввода водоснабжения в дом | C92: ='ТП ТЕСЕ'!C92 -> 0 | D92: шт. | E92: =C92*4500 -> 0 | F92: =C92*16000 -> 0 | G92: =F92+E92 -> 0 | K92: =12500*C92 -> 0
A93: Подготовительные и накладные расходы | B93: Включают разработку комплекта документов для монтажа, проверку ОТК и приемку каждого этапа работ инженерами технического надзора, соблюдение стандарта компании | C93: ='ТП ТЕСЕ'!C93 -> 1 | D93: Усл. | F93: =C93*31000 -> 31000 | G93: =F93 -> 31000 | J93: =2000+IF((C83+C84)>0,2000,0) -> 2000 | K93: =4500+IF((C83+C84)>0,5000,0) -> 4500 | L93: =5500+6500 -> 12000 | M93: выезды ИТН | O93: Стоимость этапа ТП - заказные позиции
A94: Транспортные расходы | B94: Доставка оборудования и материалов на объект | C94: ='ТП ТЕСЕ'!C94 -> 1 | D94: усл. | F94: =C94*11000 -> 11000 | G94: =F94 -> 11000 | L94: 10000 | O94: =F96-G46 -> 51000
A95: Доставка бытовки на объект | B95: Если есть такая необходимость, мы предоставляем бытовку для проживания на объекте строителей. После окончания работ, бытовка вывозится. | C95: ='ТП ТЕСЕ'!C95 -> 0 | D95: км от мкад | G95: =IF(C95=0,0, IF(C95<100,24000, IF(C95<150,30000,36000))) -> 0 | L95: =IF(C95=0,0, IF(C95<=50,13500, IF(C95<=100,17000, IF(C95<=150,20500, IF(C95<=200,24000, IF(C95<=250,27500, IF(C95>250,31000,))))))) -> 0
A96: Итого по смете: | F96: =SUM(G85:G86,G89:G94,G46,G61:G62) -> 51000 | I96: =SUM(L85,L61,L46) -> 0 | J96: =SUM(J65:J84,J89:J95,J49:J60) -> 2000 | K96: =SUM(K65:K84,K89:K95,K49:K60) -> 10500 | L96: =SUM(I96:K96,L89:L95) -> 34500 | M96: =IF(F98=0,"",(F98-L96)/F98) -> 0.3235294118
A97: Корректировка стоимости (скидка): | G97: 0
A98: Итого по смете со скидкой: | F98: =F96-G97 -> 51000
B99: =РАБОТЫ!$A$1 -> Дата | K99: Дом кирпично-деревянный | L99: 0
K100: (поставить 1)
J102: Коэффициент для заказчика | L102: Коэффициент для себеса материал
J104: Мат | K104: Раб | L104: Мат
J105: 1 | K105: 1 | L105: 1
I107: Стоим. мат-ла | J107: Стоим. работ бр. | K107: Стоим. работ ПР | L107: Мат-л + работа | M107: Промежут. рента
O108: Справочно, в разбивке по этапам:
I109: =I96-I110-I111 ->  | J109: =J96-J110-J111 ->  | K109: =K96-K110-K111 ->  | L109: =L96-L110-L111 ->  | M109: =IF(Q109=0, "", (Q109-L109)/Q109) ->  | O109: Скрытые | Q109: =F96-Q110-Q111 -> 
I110: =SUM(I65+I66+I68+I69+I70+I71+I72+I73+I74+I75+I76+I77+I82) -> 0 | J110: =SUM(J65+J66+J68++J69+J70+J71+J72+J73+J74+J75+J76+J77+J82) -> 0 | K110: =SUM(K65+K66+K68++K69+K70+K71+K72+K73+K74+K75+K76+K77+K82) -> 0 | L110: =SUM(L65+L66+L68++L69+L70+L71+L72+L73+L74+L75+L76+L77+L82) -> 0 | M110: =IF(Q110=0, "", (Q110-L110)/Q110) ->  | O110: Теплые полы | Q110: =SUM(G65+G66+G68+G69+G70+G71+G72+G73+G74+G75+G76+G77+G82) -> 0
I111: =SUM(#REF!) ->  | J111: =SUM(#REF!) ->  | K111: =SUM(#REF!) ->  | L111: =SUM(#REF!) ->  | M111: =IF(Q111=0, "", (Q111-L111)/Q111) ->  | O111: Теплотрасса | Q111: =SUM(#REF!) -> 

Sheet Кот PPR (бюджет)
A1: Приложение № к Договору подряда № ______________от_____________ | I1: =РАБОТЫ!A1 -> Дата
A2: =TODAY() -> 2024-02-02 | B2: Данный сметный расчёт действителен 7 календарных дней. По истечению срока, цены могут быть изменены. | H2: курс € | I2: для узлов "/" | J2: для Котлов "/" | K2: для Бойлеров "/" | L2: для Ecosystem "/"
A3: Сметный расчет Котельная (FV) | H3: ='ОВиВК ТЕСЕ'!I2 -> 100 | I3: 0.45 | J3: 0.93 | K3: 0.93 | L3: 0.8
A4: Теплотрасса | I4: =РАБОТЫ!A2 -> 2,5% размазаная себестомость ( Амортизация, расходники, надбавка за разряд, гсп прораба)
A5: Материалы/услуги | B5: Описание | C5: Кол-во | D5: Ед.изм | E5: Мат-ал, руб | F5: Работа, руб | G5: Итого, руб | I5: Материал | J5: Бригада | K5: Прораб | L5: Итого | M5: Рента
A6: Узел ТТ1 до150м2 | B6: Обвязка теплотрассы, подключение к коллекторам и насосам | D6: компл | E6: =(I6/0.65)*J75 -> 0 | F6: =((J6+K6)/0.65)*$K$75 -> 0 | G6: =F6+E6 -> 0 | I6: =$C6*(УЗЛЫ!C8*0.5)*L75 -> 0 | J6: =$C6*РАБОТЫ!C7*M75 -> 0 | K6: =$C6*РАБОТЫ!D7*M75 -> 0 | L6: =SUM(I6:K6) -> 0 | M6: =IF(G6=0,"",(G6-L6)/G6) ->  | N6: * Обвязка с одной стороны, в случае обвязки с двух сторон - 2 компл.
A7: Узел ТТ2 150-200м2 | B7: Обвязка теплотрассы, подключение к коллекторам и насосам | D7: компл | E7: =(I7/0.65)*$J$75 -> 0 | F7: =((J7+K7)/0.65)*$K$75 -> 0 | G7: 0 | I7: =$C7* (УЗЛЫ!C9*0.5)*L75 -> 0 | J7: =$C7*РАБОТЫ!C7*M75 -> 0 | K7: =$C7*РАБОТЫ!D7*M75 -> 0 | L7: 0
A8: Греющий кабель для узла ввода воды | B8: Греющий кабель | D8: шт. | E8: =I8/0.8*$J$75 -> 0 | F8: =(SUM(J8:K8)/$I$3)*$K$75 -> 0 | G8: 0 | I8: =C8*УЗЛЫ!C198*L75 -> 0 | J8: =C8*((РАБОТЫ!C102)*0.4)*M75 -> 0 | K8: =C8*((РАБОТЫ!D102)*0.4)*M75 -> 0 | L8: 0
A9: Автоматика | B9: Датчик температуры МЛ-722 (DS) | D9: шт. | E9: =(I9/0.65)*$J$75 -> 0 | F9: =((J9+K9)/0.65)*$K$75 -> 0 | G9: 0 | I9: =$C9* УЗЛЫ!C12*L75 -> 0 | J9: =($C9*РАБОТЫ!C8)*M75 -> 0 | K9: =$C9*РАБОТЫ!D8*M75 -> 0 | L9: 0
A10: Котельная (Для каркасных перегородок необходимо усиление)
A11: Котел газовый (мощность выбирается на 10 кв.м - 1,2 кВт, если дом деревянный) | B11: Газовый котел Baxi LUNA 3 comfort (1.240 Fi кВт) (Одноконтурный, настенный, турб.) | D11: шт. | E11: =I11/0.9 -> 0 | G11: =E11+F11 -> 0 | H11: ↗ | I11: =C11*УЗЛЫ!C133 -> 0 | L11: =SUM(I11:K11) -> 0 | M11: =IF(G11=0,"",(G11-L11)/G11) -> 
B12: Газовый котел Baxi LUNA 3 comfort (1.310 Fi кВт) (Одноконтурный, настенный, турб.) | D12: шт. | E12: =I12/0.9 -> 0 | G12: 0 | H12: ↗ | I12: =C12*УЗЛЫ!C134 -> 0 | L12: =SUM(I12:K12) -> 0 | M12: =IF(G12=0,"",(G12-L12)/G12) -> 
B13: Газовый котел Baxi LUNA 3 comfort (1.240 Fi кВт) (Двухконтурный, настенный, турб.) | D13: шт. | E13: =I13/0.9 -> 0 | G13: 0 | H13: ↗ | I13: =C13*УЗЛЫ!C135 -> 0 | L13: =SUM(I13:K13) -> 0 | M13: =IF(G13=0,"",(G13-L13)/G13) -> 
B14: Газовый котел Baxi LUNA 3 comfort (1.310 Fi кВт) (Двухконтурный, настенный, турб.) | D14: шт. | E14: =I14/0.9 -> 0 | G14: 0 | H14: ↗ | I14: =C14*УЗЛЫ!C136 -> 0 | L14: =SUM(I14:K14) -> 0
B15: Узел подключения одноконтурного/двухконтурого котла | D15: компл. | E15: =I15/0.6*$J$75 -> 0 | F15: =(SUM(J15:K15)/0.6)*$K$75 -> 0 | G15: =E15+F15 -> 0 | I15: =C15*УЗЛЫ!C199*L75 -> 0 | J15: =C15*РАБОТЫ!C54*M75 -> 0 | K15: =C15*РАБОТЫ!D54*M75 -> 0 | L15: 0
B16: Узел общей обвязки котельной для двухконтурного котла | D16: компл. | E16: =I16/0.6*$J$75 -> 0 | F16: =(SUM(J16:K16)/0.6)*$K$75 -> 0 | G16: 0 | I16: =C16*(УЗЛЫ!C208+УЗЛЫ!C210+УЗЛЫ!C221)*L75 -> 0 | J16: =C16*РАБОТЫ!C65 -> 0 | K16: =C16*РАБОТЫ!D65 -> 0 | L16: 0
B17: Узел общей обвязки котельной для одноконтурного котла | D17: компл. | E17: =I17/0.6*$J$75 -> 0 | F17: =(SUM(J17:K17)/0.6)*$K$75 -> 0 | G17: 0 | I17: =C17*(УЗЛЫ!C207+УЗЛЫ!C210+УЗЛЫ!C221)*L75 -> 0 | J17: =C17*РАБОТЫ!C65 -> 0 | K17: =C17*РАБОТЫ!D65 -> 0 | L17: 0
B18: Узел Минерит+Лист нержи. (Только для брусовой котельной) | D18: компл. | E18: =I18/$I$3*$J$75 -> 0 | F18: =(SUM(J18:K18)/$I$3)*$K$75 -> 0 | G18: 0 | I18: =C18*УЗЛЫ!C209*L75 -> 0 | J18: =C18*(РАБОТЫ!C54*0.2)*M75 -> 0 | K18: =C18*(РАБОТЫ!D54*0.2)*M75 -> 0 | L18: 0
A19: Котёл электрический (Резервный котёл предназначен для поддержания положительной температуры в доме ((Не является заменой основному теплогениратору). Не сможет обеспечить прогревание воды до оптимальной температуры и прогрев всего дома) | B19: STOUT котёл электрический 9 кВт | D19: шт. | E19: =I19/$J$3*$J$75 -> 0 | G19: 0 | I19: =C19*УЗЛЫ!C141 -> 0 | L19: 0
B20: STOUT котёл электрический 12 кВт | D20: шт. | E20: =I20/$J$3*$J$75 -> 0 | G20: 0 | I20: =C20*УЗЛЫ!C142 -> 0 | L20: 0
B21: STOUT котёл электрический 14 кВт | D21: шт. | E21: =I21/$J$3*$J$75 -> 0 | G21: 0 | I21: =C21*УЗЛЫ!C143 -> 0 | L21: 0
B22: STOUT котёл электрический 18 кВт | D22: шт. | E22: =I22/$J$3*$J$75 -> 0 | G22: 0 | I22: =C22*УЗЛЫ!C144 -> 0 | L22: 0
B23: Подключение основного Электрического котла (Отопление + ГВС) | D23: шт. | E23: =I23/0.6*$J$75 -> 0 | F23: =(SUM(J23:K23)/0.6)*$K$75 -> 0 | G23: =E23+F23 -> 0 | I23: =C23*УЗЛЫ!C213*L75 -> 0 | J23: =C23*(РАБОТЫ!C54+РАБОТЫ!C64) -> 0 | K23: =C23*(РАБОТЫ!D54+РАБОТЫ!D64) -> 0 | L23: 0
B24: Подключение основного Электрического котла (Отопление) | D24: шт. | E24: =I24/0.6*$J$75 -> 0 | F24: =(SUM(J24:K24)/0.6)*$K$75 -> 0 | G24: =E24+F24 -> 0 | I24: =C24*УЗЛЫ!C214*L75 -> 0 | J24: =C24*(РАБОТЫ!C54*0.9)*M75 -> 0 | K24: =C24*(РАБОТЫ!D54*0.9)*M75 -> 0 | L24: 0
B25: Подключение резервного Электрического котла (Отопление + ГВС) | D25: шт. | E25: =I25/0.6*$J$75 -> 0 | F25: =(SUM(J25:K25)/0.6)*$K$75 -> 0 | G25: 0 | I25: =C25*УЗЛЫ!C215*L75 -> 0 | J25: =C25*(РАБОТЫ!C54+РАБОТЫ!C64) -> 0 | K25: =C25*(РАБОТЫ!D54+РАБОТЫ!D64) -> 0 | L25: 0
B26: Подключение резервного Электрического котла (Отопление) | D26: шт. | E26: =I26/0.6*$J$75 -> 0 | F26: =(SUM(J26:K26)/0.6)*$K$75 -> 0 | G26: 0 | I26: =C26*УЗЛЫ!C216*L75 -> 0 | J26: =C26*(РАБОТЫ!C54*0.9)*M75 -> 0 | K26: =C26*(РАБОТЫ!D54*0.9)*M75 -> 0 | L26: 0
A27: Автоматика Zont | B27: Zont Climatic 1.3 (741) Погодозависимый автоматический регулятор для многоконтурных систем отопления (1прямой + 3смесительных контура) Zont Плата цифровой шины для Zont Climatic ** | D27: шт. | E27: =I27/J3 -> 0 | F27: =(SUM(J27:K27)/0.5)*$K$75 -> 0 | G27: 0 | I27: =C27*(УЗЛЫ!C145+УЗЛЫ!C146) -> 0 | J27: =(C27*РАБОТЫ!C74)+(C27*2900) -> 0 | K27: =(C27*РАБОТЫ!G74)+(C27*600) -> 0 | L27: 0
B28: Zont Climatic 1.3 (741) Погодозависимый автоматический регулятор для многоконтурных систем отопления (1прямой + 3смесительных контура) Zont Плата цифровой шины для Zont Climatic (2шт.) ** | D28: шт. | E28: =I28/J3 -> 0 | F28: =(SUM(J28:K28)/0.53)*$K$75 -> 0 | G28: 0 | I28: =C28*(УЗЛЫ!C145+УЗЛЫ!C146+УЗЛЫ!C146) -> 0 | J28: =(C28*РАБОТЫ!C75)+(C28*2900) -> 0 | K28: =(C28*РАБОТЫ!D75)++(C28*600) -> 0 | L28: 0
B29: Zont Smart 2.0 (744) Отопительный GSM / WiFi контроллер для газовых и электрических котлов. Адаптер для подключения по цифровой шине ** | D29: шт. | E29: =I29/J3 -> 0 | F29: =(SUM(J29:K29)/0.6)*$K$75 -> 0 | G29: 0 | I29: =C29*(УЗЛЫ!C147+УЗЛЫ!C148) -> 0 | J29: =(C29*РАБОТЫ!C76)++(C29*2900) -> 0 | K29: =(C29*РАБОТЫ!D76)++(C29*600) -> 0 | L29: 0
B30: Комплект беспроводных датчиков для автоматики (наружный + внутренний) | D30: шт. | E30: =I30/0.8 -> 0 | F30: =(SUM(J30:K30)/0.65)*$K$75 -> 0 | G30: =E30+F30 -> 0 | I30: =C30*УЗЛЫ!C149 -> 0 | J30: =C30*РАБОТЫ!C77 -> 0 | K30: =C30*РАБОТЫ!D77 -> 0 | L30: 0
B31: Датчик температуры комнатный (проводной) | D31: шт. | E31: =I31/0.93 -> 0 | F31: =(SUM(J31:K31)/0.65)*$K$75 -> 0 | G31: 0 | I31: =C31*УЗЛЫ!C150 -> 0 | J31: =C31*РАБОТЫ!C77 -> 0 | K31: =C31*РАБОТЫ!D77 -> 0 | L31: 0
B32: Коаксиальный дымоход с проходом через кровлю 80/125 | D32: шт. | E32: =I32/0.6*$J$75 -> 0 | F32: =(SUM(J32:K32)/0.5)*$K$75 -> 0 | G32: 0 | I32: =C32*УЗЛЫ!C212*L75 -> 0 | J32: =$C32* РАБОТЫ!C80*M75 -> 0 | K32: =$C32* РАБОТЫ!D80*M75 -> 0 | L32: 0
B33: Коаксиальный дымоход с проходом через кровлю для 1 этажного дома | D33: шт. | E33: =I33/0.6*$J$75 -> 0 | F33: =(SUM(J33:K33)/0.5)*$K$75 -> 0 | G33: 0 | I33: =C33*УЗЛЫ!C590*L75 -> 0 | J33: =C33*РАБОТЫ!C82*M75 -> 0 | K33: =C33*РАБОТЫ!D82*M75 -> 0 | L33: 0
B34: Коаксиальный дымоход с проходом через стену | D34: шт. | E34: =I34/0.6*$J$75 -> 0 | F34: =(SUM(J34:K34)/0.4)*$K$75 -> 0 | G34: 0 | I34: =C34*УЗЛЫ!C211*L75 -> 0 | J34: =$C34* РАБОТЫ!C83*M75 -> 0 | K34: =$C34* РАБОТЫ!D83*M75 -> 0 | L34: 0
A35: Монтаж бойлера косвенного нагрева | B35: Бойлер 150 Stout | D35: шт. | E35: =I35*$J$75/$L$3 -> 0 | G35: 0 | H35: ↗ | I35: =$C35* УЗЛЫ!C162 -> 0 | L35: 0
B36: Бойлер 200 Stout | D36: шт. | E36: =I36*$J$75/$L$3 -> 0 | G36: 0 | H36: ↗ | I36: =$C36* УЗЛЫ!C163 -> 0 | L36: 0
B37: Бойлер 300 Stout | D37: шт. | E37: =I37*$J$75/$L$3 -> 0 | G37: 0 | H37: ↗ | I37: =C37*УЗЛЫ!C165 -> 0 | L37: 0
B38: Водонагреватель Thermex ЭдЭ001694 Thermex НЭВН Нержавейка THERMEX MK 80 V Плоский MECHANIK - MK Нержавейка | D38: шт. | E38: =I38*$J$75/$K$3 -> 0 | G38: 0 | H38: ↗ | I38: =C38*УЗЛЫ!C173*L75 -> 0 | L38: 0
B39: Узел подключения электрического бойлера 100л | D39: компл. | E39: =I39/0.6*$J$75 -> 0 | F39: =(SUM(J39:K39)/0.6)*$K$75 -> 0 | G39: 0 | I39: =C39*УЗЛЫ!C174*L75 -> 0 | J39: =C39*РАБОТЫ!C95*M75 -> 0 | K39: =C39*РАБОТЫ!D95*M75 -> 0 | L39: 0
B40: Узел подключения бойлера косвенного нагрева 150/200 л | D40: компл. | E40: =I40/0.6*$J$75 -> 0 | F40: =(SUM(J40:K40)/0.6)*$K$75 -> 0 | G40: 0 | I40: =C40*УЗЛЫ!C166*L75 -> 0 | J40: =C40*РАБОТЫ!C86*M75 -> 0 | K40: =C40*РАБОТЫ!D86*M75 -> 0 | L40: 0
B41: Узел подключения бойлера косвенного нагрева 300 л | D41: компл. | E41: =I41/0.6*$J$75 -> 0 | F41: =(SUM(J41:K41)/0.6)*$K$75 -> 0 | G41: 0 | I41: =C41*УЗЛЫ!C167*L75 -> 0 | J41: =C41*РАБОТЫ!C87*M75 -> 0 | K41: =C41*РАБОТЫ!D87*M75 -> 0 | L41: 0
A42: Рециркуляция ГВС (опционально) | B42: Узел подключения насоса циркуляции к бойлеру косвенного нагрева | D42: компл. | E42: =I42/$I$3*$J$75 -> 0 | F42: =(SUM(J42:K42)/$I$3)*$K$75 -> 0 | G42: 0 | I42: =C42*УЗЛЫ!C205*L75 -> 0 | J42: =C42*РАБОТЫ!C96*M75 -> 0 | K42: =C42*РАБОТЫ!D96*M75 -> 0 | L42: 0
A43: Байпас для водоподготовки / фильтра | B43: Узел подключения байпаса водоподготовки к узлу ввода воды | D43: компл. | E43: =I43/$I$3*$J$75 -> 0 | F43: =(SUM(J43:K43)/$I$3)*$K$75 -> 0 | G43: 0 | I43: =C43*УЗЛЫ!C203*L75 -> 0 | J43: =C43*((РАБОТЫ!C103)*0.5)*M75 -> 0 | K43: =C43*((РАБОТЫ!D103)*0.5)*M75 -> 0 | L43: 0
A44: Полив | B44: Узел подключения вывода на полив к узлу ввода воды | D44: компл. | E44: =I44/$I$3*$J$75 -> 0 | F44: =(SUM(J44:K44)/$I$3)*$K$75 -> 0 | G44: 0 | I44: =C44*УЗЛЫ!C200*L75 -> 0 | J44: =C44*((РАБОТЫ!C102)*0.4)*M75 -> 0 | K44: =C44*((РАБОТЫ!D102)*0.4)*M75 -> 0 | L44: 0
A45: Расширительный бак | B45: Узел подключения расширительного бака отопления к системе | D45: компл. | E45: =I45/$I$3*$J$75 -> 0 | F45: =(SUM(J45:K45)/$I$3)*$K$75 -> 0 | G45: 0 | I45: =C45*УЗЛЫ!C201*L75 -> 0 | J45: =C45*РАБОТЫ!C102*M75 -> 0 | K45: =C45*РАБОТЫ!D102*M75 -> 0 | L45: 0
A46: Теплый пол | B46: Узел подключения насосной группы теплого пола к системе отопления | D46: компл. | E46: =I46/0.55*$J$75 -> 0 | F46: =(SUM(J46:K46)/0.35)*$K$75 -> 0 | G46: 0 | I46: =C46*УЗЛЫ!C188*L75 -> 0 | J46: =C46*РАБОТЫ!C101*M75 -> 0 | K46: =C46*РАБОТЫ!D101*M75 -> 0 | L46: 0
A47: Узел ввода воды от скважины (В КОТЕЛЬНОЙ) с гидроаккумулятором | B47: Материалы, Гидроаккумулятор, Реле давления скважины, Грязевой фильтр, Редуктор, Полипропилен. | D47: компл. | E47: =I47/$I$3*$J$75 -> 0 | F47: =(SUM(J47:K47)/$I$3)*$K$75 -> 0 | G47: 0 | I47: =C47*УЗЛЫ!C196*L75 -> 0 | J47: =C47*(РАБОТЫ!C102+РАБОТЫ!C103)*M75 -> 0 | K47: =C47*(РАБОТЫ!D102+РАБОТЫ!D103)*M75 -> 0 | L47: 0
A48: Узел ввода воды от скважины (В КОТЕЛЬНОЙ) без гидроаккумулятора | B48: Материалы, Редуктор, Грязевой фильтр, Полипропилен. | D48: компл. | E48: =I48/$I$3*$J$75 -> 0 | F48: 0 | G48: 0 | I48: =C48*УЗЛЫ!C195*L75 -> 0 | J48: =C48*((РАБОТЫ!C102+РАБОТЫ!C103)*0.7)*M75 -> 0 | K48: =C48*((РАБОТЫ!D102+РАБОТЫ!D103)*0.7)*M75 -> 0 | L48: 0
A49: Узел ввода воды из центрального водоснабжения (В КОТЕЛЬНОЙ) | B49: Материалы, Счетчик ХВС, Редуктор, Грязевой фильтр, Полипропилен. | D49: компл. | E49: =I49/$I$3*$J$75 -> 0 | F49: 0 | G49: 0 | I49: =C49*УЗЛЫ!C197*L75 -> 0 | J49: =C49*((РАБОТЫ!C102+РАБОТЫ!C103)*0.85)*M75 -> 0 | K49: =C49*((РАБОТЫ!D102+РАБОТЫ!D103)*0.85)*M75 -> 0 | L49: 0
A50: Греющий кабель для узла ввода воды | B50: Греющий кабель | D50: шт. | E50: =I50/0.8*$J$75 -> 0 | F50: 0 | G50: 0 | I50: =C50*УЗЛЫ!C198*L75 -> 0 | J50: =C50*((РАБОТЫ!C102)*0.4)*M75 -> 0 | K50: =C50*((РАБОТЫ!D102)*0.4)*M75 -> 0 | L50: 0
A51: Защита от протечек воды в доме. | B51: Автоматический запорный кран для защиты от протечек с 4 радиодатчиками и WiFi модуль (настройка системы и запуск производится на пуско-наладочных работах котельной) | D51: компл. | E51: =I51/$I$3*$J$75*0.6 -> 0 | F51: 0 | G51: 0 | I51: =$C51* УЗЛЫ!C192*L75 -> 0 | J51: =$C51*( РАБОТЫ!C105+ РАБОТЫ!C106)*M75 -> 0 | K51: =$C51* (РАБОТЫ!D105+ РАБОТЫ!D106)*M75 -> 0 | L51: 0
A52: Flamko Сепаратор | B52: Flamko Сепаратор воздуха и шлама Flamcovent Clean Smart 3/4 | D52: шт. | E52: =(I52/$I$3)*$J$75 -> 0 | F52: 0 | G52: 0 | H52: ↗ | I52: =C52*УЗЛЫ!C219*L75 -> 0 | J52: =C52*РАБОТЫ!C110*M75 -> 0 | K52: =C52*РАБОТЫ!D110*M75 -> 0 | L52: 0
A53: Стабилизатор напряжения (рекомендуется производителями газовых котлов). | B53: Стабилизатор необходим для защиты котла от перепадов напряжения | C53: 1 | D53: шт. | E53: =(I53/0.97)*$J$75 -> 14313.81443 | F53: 1297.877778 | G53: 15611.69221 | H53: ↗ | I53: =$C53* УЗЛЫ!C193 -> 13884.4 | J53: =$C53* РАБОТЫ!C107*M75 -> 490.4625 | K53: =$C53* РАБОТЫ!D107*M75 -> 93.5825 | L53: 14468.445 | M53: 0.07323019153
A54: Монтаж электрики для котельного оборудования | B54: Силовые Электрические подключения в котельной (монтаж кабель-каналов, установка и и расключение финишных розеток, установка проводов и вилок на насосы и котлы (не требующие подключения в автоматику управления) ,монтаж заземления КШ, коллекторов , бойлера, котла. | C54: 1 | D54: усл | E54: =I54/0.9 -> 17768.88889 | F54: =(J54+K54)/0.8 -> 9000 | G54: =E54+F54 -> 26768.88889 | I54: =C54*РАБОТЫ!F255 -> 15992 | J54: =C54*РАБОТЫ!C255 -> 6000 | K54: =C54*РАБОТЫ!D255 -> 1200 | L54: =SUM(I54:K54) -> 23192 | M54: 0.133621119
A55: Беспроводная GSM - Розетка (материал) | B55: Дистанционно управляемая розетка. GSM-розетка поможет предупредить отключение электроотопительного оборудования и, как следствие, промерзание дома и коммуникаций зимой. Прибор отправляет сигналы в отдел сервиса GOOD WOOD. Аварийный сигнал дублируется в ленте личного кабинета клиента и отправляется через SMS | C55: 1 | D55: шт. | E55: =I55/0.8 -> 5875 | G55: =E55+F55 -> 5875 | I55: =C55*РАБОТЫ!F253 -> 4700 | J55: =C55*РАБОТЫ!C253 -> 500 | L55: =SUM(I55:K55) -> 5200 | M55: 0.114893617
A56: Беламос Реле давления PS-02C (М) | B56: Оповещает о падении давления в системе отопления. | C56: =C55 -> 1 | D56: шт. | E56: =I56/0.9 -> 669.5 | G56: 669.5 | I56: =C56*УЗЛЫ!C222 -> 602.55 | L56: 602.55 | M56: 0.1
A57: Место под установку планируемого настенного котла | B57: Разметка, подготовка места с установкой фитингов под планируемый котёл | D57: усл | E57: =(I57/0.8)*$J$75 -> 0 | F57: =(SUM(J57:K57)/0.61)*$K$75 -> 0 | G57: 0 | I57: =C57*УЗЛЫ!C220 -> 0 | J57: =C57*РАБОТЫ!C109 -> 0 | K57: =C57*РАБОТЫ!D109 -> 0 | L57: 0
A58: Комплект для перехода на С/Г при наличии газгольдера | B58: Комплект для перенастройки котлов на сжиженный газ | D58: компл. | E58: =(I58/$I$3)*$J$75 -> 0 | F58: =(SUM(J58:K58)/$I$3)*$K$75 -> 0 | G58: 0 | H58: ↗ | I58: =$C58* УЗЛЫ!C194*L75 -> 0 | J58: =$C58* РАБОТЫ!C108*M75 -> 0 | K58: =$C58* РАБОТЫ!D108*M75 -> 0 | L58: 0
A59: Итого материал: | G59: =SUM(E11:E58,E6:E9) -> 38627.20332 | L59: =SUM(I11:I58) -> 35178.95 | M59: 0.08927007459
A60: Работа: | G60: =SUM(F11:F58,F6:F9) -> 10297.87778 | L60: =SUM(J11:K58) -> 8284.045 | M60: 0.1955580384
A61: Дополнительно
A62: Материалы/услуги | B62: Описание | C62: Кол-во | D62: Ед.изм | E62: Мат-ал, руб | F62: Работа, руб | G62: Итого, руб
A63: Закладная гильза | B63: Гильза устанавливается в "пироге пола" для дальнейшего ввода коммуникаций | D63: шт. | E63: 0 | F63: =C63*2500 -> 0 | G63: =F63+E63 -> 0 | K63: =1250*C63 -> 0
A64: Проходные отверстия в плите | B64: Алмазное сверление | D64: шт. | E64: =0*C64 -> 0 | F64: =IF($C$64=0,0, IF($C$64<4,9000, IF($C$64>3,9000+2300*($C$64-3)))) -> 0 | G64: =F64+E64 -> 0 | K64: =IF($C$64=0,0, IF($C$64<4,6000, IF($C$64>3,6000+1700*($C$64-3)))) -> 0
A65: Подготовительные и накладные расходы | B65: Включают разработку комплекта документов для монтажа, проверку ОТК и приемку каждого этапа работ инженерами технического надзора, соблюдение стандарта компании | C65: 1 | D65: Усл. | F65: =C65*33000 -> 33000 | G65: =F65*C65 -> 33000 | I65: =IF(ПНР!L18=0,30000,ПНР!L18) -> 3800 | J65: 2000 | K65: 4500 | L65: =5500+6500 -> 12000
A66: Транспортные расходы | B66: Доставка оборудования и материалов на объект | C66: 1 | D66: усл. | F66: =C66*19500 -> 19500 | G66: =F66 -> 19500 | L66: 10000
A67: Доставка бытовки на объект | B67: Если есть такая необходимость, мы предоставляем бытовку для проживания на объекте строителей. После окончания работ бытовка вывозится. | D67: км от мкад | G67: =IF(C67=0,0, IF(C67<100,24000, IF(C67<150,30000,36000))) -> 0 | L67: =IF(C67=0,0, IF(C67<=50,13500, IF(C67<=100,17000, IF(C67<=150,20500, IF(C67<=200,24000, IF(C67<=250,27500, IF(C67>250,31000,))))))) -> 0
A68: Итого по смете: | F68: =SUM(G59:G60,G63:G67) -> 101425.0811 | I68: =SUM(I11:I58,I63:I67,I6:I9) -> 38978.95 | J68: =SUM(J12:J58,J63:J67,J6:J9) -> 8990.4625 | K68: =SUM(K12:K58,K63:K67,K6:K9) -> 5793.5825 | L68: =SUM(I68:K68,L63:L67) -> 75762.995 | M68: =IF(F68=0,"",(F70-L68)/F70) -> 0.2530151894
A69: Корректировка стоимости (скидка):
A70: Итого по смете с учетом скидки: | F70: =F68-G69 -> 101425.0811
A72: ** Полноценная настройка автоматики возможна только при наличии интернета WiFi или 2G.GSM. | J72: Коэффициент для заказчика | L72: Коэффициент для СЕБЕСА (дом свыше 350м2)
B73: =РАБОТЫ!$A$1 -> Дата
J74: Мат | K74: Раб | L74: Мат | M74: Раб
J75: 1 | K75: 1 | L75: 1 | M75: 1
A76: Заказчик:
A79: Подрядчик:

Sheet Кот ППР 23
A1: Приложение № к Договору подряда № ______________от_____________ | I1: =РАБОТЫ!A1 -> Дата
A2: =TODAY() -> 2024-02-02 | B2: Данный сметный расчёт действителен 7 календарных дней. По истечению срока, цены могут быть изменены. | H2: курс € | I2: для узлов "/" | J2: для Котлов "/" | K2: для Бойлеров "/" | L2: для Ecosystem "/"
A3: Сметный расчет Котельная ППР | H3: ='ОВиВК ТЕСЕ'!I2 -> 100 | I3: 0.45 | J3: 0.93 | K3: 0.93 | L3: 0.8
A4: Теплотрасса | H4: Ссылка на маркет | I4: =РАБОТЫ!A1 -> Дата
A5: Материалы/услуги | B5: Описание | C5: Кол-во | D5: Ед.изм | E5: Мат-ал, руб | F5: Работа, руб | G5: Итого, руб | I5: Материал | J5: Бригада | K5: Прораб | L5: Итого | M5: Рента
A6: Узел ТТ1 до150м2 | B6: Обвязка теплотрассы, подключение к коллекторам и насосам | D6: компл | E6: =(I6/0.65)*J79 -> 0 | F6: =((J6+K6)/0.65)*K79 -> 0 | G6: =F6+E6 -> 0 | I6: =$C6*(УЗЛЫ!C8*0.5)*L79 -> 0 | J6: =$C6*РАБОТЫ!C7*M79 -> 0 | K6: =$C6*РАБОТЫ!D7*M79 -> 0 | L6: =SUM(I6:K6) -> 0 | M6: =IF(G6=0,"",(G6-L6)/G6) ->  | N6: * Обвязка с одной стороны, в случае обвязки с двух сторон - 2 компл.
A7: Узел ТТ2 150-200м2 | B7: Обвязка теплотрассы, подключение к коллекторам и насосам | D7: компл | E7: =(I7/0.65)*$J$79 -> 0 | F7: =((J7+K7)/0.65)*$K$79 -> 0 | G7: 0 | I7: =$C7* (УЗЛЫ!C9*0.5)*L79 -> 0 | J7: =$C7*РАБОТЫ!C7*M79 -> 0 | K7: =$C7*РАБОТЫ!D7*M79 -> 0 | L7: 0
A8: Греющий кабель для узла ввода воды | B8: Ввод воды с греющим кабелем | D8: шт. | E8: =I8/0.8*$J$79 -> 0 | F8: =(SUM(J8:K8)/$I$3)*$K$79 -> 0 | G8: 0 | I8: =C8*(+УЗЛЫ!C615)*L79 -> 0 | J8: =C8*((РАБОТЫ!C102)*0.4)*M79 -> 0 | K8: =C8*((РАБОТЫ!D102)*0.4)*M79 -> 0 | L8: 0
A9: Автоматика | B9: Датчик температуры МЛ-722 (DS) | D9: шт. | E9: =(I9/0.65)*$J$79 -> 0 | F9: =((J9+K9)/0.65)*$K$79 -> 0 | G9: 0 | I9: =$C9* УЗЛЫ!C587*L79 -> 0 | J9: =($C9*РАБОТЫ!C8)*M79 -> 0 | K9: =$C9*РАБОТЫ!D8*M79 -> 0 | L9: 0
A10: Котельная (Для каркасных перегородок необходимо усиление)
A11: Котел газовый (мощность выбирается на 10 кв.м - 1,2 кВт, если дом деревянный) | B11: Газовый котел Baxi LUNA 3 comfort (1.240 Fi кВт) (Одноконтурный, настенный, турб.) | D11: шт. | E11: =I11/0.9 -> 0 | G11: =E11+F11 -> 0 | H11: ↗ | I11: =C11*УЗЛЫ!C567 -> 0 | L11: =SUM(I11:K11) -> 0 | M11: =IF(G11=0,"",(G11-L11)/G11) -> 
B12: Газовый котел Baxi LUNA 3 comfort (1.310 Fi кВт) (Одноконтурный, настенный, турб.) | D12: шт. | E12: =I12/0.9 -> 0 | G12: 0 | H12: ↗ | I12: =C12*УЗЛЫ!C568 -> 0 | L12: =SUM(I12:K12) -> 0 | M12: =IF(G12=0,"",(G12-L12)/G12) -> 
B13: Газовый котел Baxi LUNA 3 comfort (1.240 Fi кВт) (Двухконтурный, настенный, турб.) | D13: шт. | E13: =I13/0.9 -> 0 | G13: 0 | H13: ↗ | I13: =C13*УЗЛЫ!C569 -> 0 | L13: =SUM(I13:K13) -> 0 | M13: =IF(G13=0,"",(G13-L13)/G13) -> 
B14: Газовый котел Baxi LUNA 3 comfort (1.310 Fi кВт) (Двухконтурный, настенный, турб.) | D14: шт. | E14: =I14/0.9 -> 0 | G14: 0 | H14: ↗ | I14: =C14*УЗЛЫ!C570 -> 0 | L14: =SUM(I14:K14) -> 0
B15: Подключение газового котла ППР БАКСИ | D15: компл. | E15: =I15/0.6*$J$79 -> 0 | F15: =(SUM(J15:K15)/0.6)*$K$79 -> 0 | G15: 0 | I15: =C15*УЗЛЫ!C571*L79 -> 0 | J15: =C15*РАБОТЫ!C55*M79 -> 0 | K15: =C15*РАБОТЫ!D55*M79 -> 0 | L15: 0
B16: Общая обвязка котельного обрудования, включающая в себя трубопроводы, отводы, хомуты, лён, пасту, бирки и тд | D16: компл. | E16: =I16/$I$3*$J$79 -> 0 | G16: 0 | I16: =C16*(УЗЛЫ!C572/3+УЗЛЫ!C576) -> 0 | L16: 0
B17: Общая обвязка котельного обрудования, включающая в себя трубопроводы, отводы, хомуты, лён, пасту, бирки и тд (2 насоса) | D17: компл. | E17: 0 | G17: 0 | I17: =C17*(УЗЛЫ!C572+УЗЛЫ!$C$576) -> 0 | L17: =SUM(I17:K17) -> 0
B18: Общая обвязка котельного обрудования, включающая в себя трубопроводы, отводы, хомуты, лён, пасту, бирки и тд (3 насоса) | D18: компл. | E18: 0 | G18: 0 | I18: =C18*(УЗЛЫ!C573+УЗЛЫ!$C$576) -> 0 | L18: 0
B19: Общая обвязка котельного обрудования, включающая в себя трубопроводы, отводы, хомуты, лён, пасту, бирки и тд (4 насоса) | D19: компл. | E19: 0 | G19: 0 | I19: =C19*(УЗЛЫ!C574+УЗЛЫ!$C$576) -> 0 | L19: 0
B20: Общая обвязка котельного обрудования, включающая в себя трубопроводы, отводы, хомуты, лён, пасту, бирки и тд (5 насосов) | D20: компл. | E20: 0 | G20: 0 | I20: =C20*(УЗЛЫ!C575+УЗЛЫ!$C$576) -> 0 | L20: 0
B21: Узел Минерит+Лист нержавеющей стали (Только для брусовой котельной!) | D21: компл. | E21: 0 | F21: =(SUM(J21:K21)/$I$3)*$K$79 -> 0 | G21: 0 | I21: =C21*УЗЛЫ!C577*L79 -> 0 | J21: =C21*(РАБОТЫ!C54*0.2)*M79 -> 0 | K21: =C21*(РАБОТЫ!D54*0.2)*M79 -> 0 | L21: 0
A22: Котёл электрический (Резервный котёл предназначен для поддержания положительной температуры в доме ((Не является заменой основному теплогениратору). Не сможет обеспечить прогревание воды до оптимальной температуры и прогрев всего дома) | B22: STOUT котёл электрический 9 кВт | D22: шт. | E22: =I22/$J$3*$J$79 -> 0 | G22: 0 | I22: =C22*УЗЛЫ!C578 -> 0 | L22: 0
B23: STOUT котёл электрический 12 кВт | D23: шт. | E23: =I23/$J$3*$J$79 -> 0 | G23: 0 | I23: =C23*УЗЛЫ!C579 -> 0 | L23: 0
B24: STOUT котёл электрический 14 кВт | D24: шт. | E24: =I24/$J$3*$J$79 -> 0 | G24: 0 | I24: =C24*УЗЛЫ!C580 -> 0 | L24: 0
B25: STOUT котёл электрический 18 кВт | D25: шт. | E25: =I25/$J$3*$J$79 -> 0 | G25: 0 | I25: =C25*УЗЛЫ!C581 -> 0 | L25: 0
B26: Подключение резервного электрического котла ППР | D26: шт. | E26: =I26/0.6*$J$79 -> 0 | F26: =(SUM(J26:K26)/0.6)*$K$79 -> 0 | G26: =E26+F26 -> 0 | I26: =C26*УЗЛЫ!C582*L79 -> 0 | J26: =C26*РАБОТЫ!C61*M79 -> 0 | K26: =C26*РАБОТЫ!D61*M79 -> 0 | L26: 0
A27: Автоматика Zont | B27: Zont Climatic 1.3 (741) Погодозависимый автоматический регулятор для многоконтурных систем отопления (1прямой + 3смесительных контура) Zont Плата цифровой шины для Zont Climatic ** | D27: шт. | E27: =I27/J3 -> 0 | F27: =(SUM(J27:K27)/0.5)*$K$79 -> 0 | G27: 0 | I27: =C27*(УЗЛЫ!C583+УЗЛЫ!C584) -> 0 | J27: =(C27*РАБОТЫ!C74)+(C27*2900) -> 0 | K27: =(C27*РАБОТЫ!D74)+(C27*600) -> 0 | L27: 0
B28: Zont Climatic 1.3 (741) Погодозависимый автоматический регулятор для многоконтурных систем отопления (1прямой + 3смесительных контура) Zont Плата цифровой шины для Zont Climatic (2шт.) ** | D28: шт. | E28: =I28/J3 -> 0 | F28: =(SUM(J28:K28)/0.53)*$K$79 -> 0 | G28: 0 | I28: =C28*(УЗЛЫ!C583+УЗЛЫ!C584+УЗЛЫ!C584) -> 0 | J28: =(C28*РАБОТЫ!C75)+(C28*2900) -> 0 | K28: =(C28*РАБОТЫ!D75)+(C28*600) -> 0 | L28: 0
B29: Zont Smart 2.0 (744) Отопительный GSM / WiFi контроллер для газовых и электрических котлов. Адаптер для подключения по цифровой шине ** | D29: шт. | E29: =I29/J3 -> 0 | F29: =(SUM(J29:K29)/0.6)*$K$79 -> 0 | G29: 0 | I29: =C29*(УЗЛЫ!C585+УЗЛЫ!C586) -> 0 | J29: =(C29*РАБОТЫ!C76)+(C29*2900) -> 0 | K29: =(C29*РАБОТЫ!D76)+(C29*600) -> 0 | L29: 0
B30: Комплект беспроводных датчиков для автоматики (наружный + внутренний) | D30: шт. | E30: =I30/0.8 -> 0 | F30: =(SUM(J30:K30)/0.65)*$K$79 -> 0 | G30: 0 | I30: =C30*УЗЛЫ!C588 -> 0 | J30: =C30*РАБОТЫ!C77 -> 0 | K30: =C30*РАБОТЫ!D77 -> 0 | L30: 0
B31: Датчик температуры комнатный | D31: шт. | E31: =I31/0.93 -> 0 | F31: =(SUM(J31:K31)/0.65) -> 0 | G31: 0 | I31: =C31*УЗЛЫ!C587 -> 0 | J31: =C31*РАБОТЫ!C77 -> 0 | K31: =C31*РАБОТЫ!D77 -> 0 | L31: 0
B32: Блок расширения ЕХ-77 для Zont Climatic 1.3 / Блок питания 12-24V | D32: шт. | E32: =I32/0.8 -> 0 | F32: =(SUM(J32:K32)/0.6) -> 0 | G32: 0 | I32: =C32*(УЗЛЫ!C623+УЗЛЫ!C624) -> 0 | J32: =C32*РАБОТЫ!C78 -> 0 | K32: =C32*РАБОТЫ!D78 -> 0 | L32: 0
B33: Коаксиальный дымоход с проходом через кровлю для 2 этажного дома | D33: шт. | E33: =I33/0.6*$J$79 -> 0 | F33: =(SUM(J33:K33)/0.5)*$K$79 -> 0 | G33: 0 | I33: =C33*УЗЛЫ!C589*L79 -> 0 | J33: =$C33* РАБОТЫ!C80*M79 -> 0 | K33: =$C33* РАБОТЫ!D80*M79 -> 0 | L33: 0
B34: Коаксиальный дымоход с проходом через кровлю для 1 этажного дома | D34: шт. | E34: =I34/0.6*$J$79 -> 0 | F34: =(SUM(J34:K34)/0.5)*$K$79 -> 0 | G34: 0 | I34: =C34*УЗЛЫ!C590*L79 -> 0 | J34: =C34*РАБОТЫ!C82*M79 -> 0 | K34: =C34*РАБОТЫ!D82*M79 -> 0 | L34: 0
B35: Коаксиальный дымоход с проходом через стену | D35: шт. | E35: =I35/0.6*$J$79 -> 0 | F35: =(SUM(J35:K35)/0.4)*$K$79 -> 0 | G35: 0 | I35: =C35*УЗЛЫ!C591*L79 -> 0 | J35: =$C35* РАБОТЫ!C83*M79 -> 0 | K35: =$C35* РАБОТЫ!D83*M79 -> 0 | L35: 0
A36: Монтаж бойлера косвенного нагрева | B36: Бойлер напольный 150 Stout | D36: шт. | E36: =I36*$J$79/$L$3 -> 0 | G36: 0 | H36: ↗ | I36: =$C36* УЗЛЫ!C592 -> 0 | L36: 0
B37: Бойлер напольный 200 Stout | D37: шт. | E37: =I37*$J$79/$L$3 -> 0 | G37: 0 | H37: ↗ | I37: =$C37* УЗЛЫ!C593 -> 0 | L37: 0
B38: Бойлер напольный 300 Stout | D38: шт. | E38: =I38*$J$79/$L$3 -> 0 | G38: 0 | H38: ↗ | I38: =$C38* УЗЛЫ!C594 -> 0 | L38: 0
B39: Бойлер настенный 150 Stout | D39: шт. | E39: =I39*$J$79/$L$3 -> 0 | G39: 0 | I39: =$C39* УЗЛЫ!C595 -> 0 | L39: 0
B40: Бойлер настенный 200 Stout | D40: шт. | E40: =I40*$J$79/$L$3 -> 0 | G40: 0 | I40: =$C40* УЗЛЫ!C596 -> 0 | L40: 0
B41: Подключение напольного бойлера Stout 150л/200л ППР | D41: компл. | E41: =I41/0.6*$J$79 -> 0 | F41: =(SUM(J41:K41)/0.6)*$K$79 -> 0 | G41: 0 | H41: ↗ | I41: =C41*(УЗЛЫ!C598)*L79 -> 0 | J41: =C41*РАБОТЫ!C85*M79 -> 0 | K41: =C41*РАБОТЫ!D85*M79 -> 0 | L41: 0
B42: Подключение настенного бойлера Stout 150л /200л ППР | D42: компл. | E42: =I42/0.6*$J$79 -> 0 | F42: =(SUM(J42:K42)/0.6)*$K$79 -> 0 | G42: 0 | I42: =C42*(УЗЛЫ!C598+УЗЛЫ!C602)*L79 -> 0 | J42: =C42*(РАБОТЫ!C86+1000)*M79 -> 0 | K42: =C42*(РАБОТЫ!D86+200)*M79 -> 0 | L42: 0
B43: Подключение напольного бойлера Stout 300л ППР | D43: компл. | E43: =I43/0.6*$J$79 -> 0 | F43: =(SUM(J43:K43)/0.6)*$K$79 -> 0 | G43: 0 | I43: =C43*(УЗЛЫ!C599)*L79 -> 0 | J43: =C43*РАБОТЫ!C87*M79 -> 0 | K43: =C43*РАБОТЫ!D87*M79 -> 0 | L43: 0
A44: Рециркуляция ГВС (опционально) | B44: Узел подключения насоса циркуляции к бойлеру косвенного нагрева ППР | D44: компл. | E44: =I44/$I$3*$J$79 -> 0 | F44: =(SUM(J44:K44)/$I$3)*$K$79 -> 0 | G44: 0 | I44: =C44*УЗЛЫ!C604*L79 -> 0 | J44: =C44*РАБОТЫ!C96*M79 -> 0 | K44: =C44*РАБОТЫ!D96*M79 -> 0 | L44: 0
A45: Байпас для водоподготовки / фильтра | B45: Узел подключения байпаса водоподготовки к узлу ввода воды | D45: компл. | E45: =I45/$I$3*$J$79 -> 0 | F45: =(SUM(J45:K45)/$I$3)*$K$79 -> 0 | G45: 0 | I45: =C45*УЗЛЫ!C605*L79 -> 0 | J45: =C45*((РАБОТЫ!C103)*0.5)*M79 -> 0 | K45: =C45*((РАБОТЫ!D103)*0.5)*M79 -> 0 | L45: 0
A46: Полив | B46: Узел подключения вывода на полив к узлу ввода воды | D46: компл. | E46: =I46/$I$3*$J$79 -> 0 | F46: =(SUM(J46:K46)/$I$3)*$K$79 -> 0 | G46: 0 | I46: =C46*УЗЛЫ!C606*L79 -> 0 | J46: =C46*((РАБОТЫ!C102)*0.4)*M79 -> 0 | K46: =C46*((РАБОТЫ!D102)*0.4)*M79 -> 0 | L46: 0
A47: Общая обвязка (монтаж) | B47: Обвязка котельного оборудования без насосных групп | D47: услуга | F47: =(SUM(J47:K47)/0.6) -> 0 | G47: 0 | J47: =C47*РАБОТЫ!C65 -> 0 | K47: =C47*РАБОТЫ!D65 -> 0 | L47: 0
A48: Гидравлическая обвязка насосных групп на котллекторе с гидрострелкой | B48: Монтаж насосных групп с коллектором и гидрострелкой, включает в себя 1 прямую насосную группу и 1 смесительную (2 насосные группы), расширительный бак, ППР | D48: компл. | E48: =I48/0.65*$J$79 -> 0 | F48: =(SUM(J48:K48)/$I$3)*$K$79 -> 0 | G48: 0 | I48: =C48*УЗЛЫ!C607*L79 -> 0 | J48: =((C48*РАБОТЫ!C98)*3)+(C48*2719)*M79 -> 0 | K48: =((C48*РАБОТЫ!D98)*3)+(C48*516)*M79 -> 0 | L48: =SUM(I48:K48) -> 0
B49: Монтаж насосных групп с коллектором и гидрострелкой, включает в себя 1 прямую насосную группу и 2 смесительных (3 насосных группы) расширительный бак, ППР | D49: компл. | E49: =I49/0.65*$J$79 -> 0 | F49: 0 | G49: 0 | I49: =C49*УЗЛЫ!C608*L79 -> 0 | J49: =((C49*РАБОТЫ!C98)*4)+(C49*2719)*M79 -> 0 | K49: =((C49*РАБОТЫ!D98)*4)+(C49*516)*M79 -> 0 | L49: 0
B50: Монтаж насосных групп с коллектором и гидрострелкой, включает в себя 1 прямую насосную группу и 3 смесительных (4 насосных группы) расширительный бак, ППР | D50: компл. | E50: =I50/0.65*$J$79 -> 0 | F50: 0 | G50: 0 | I50: =C50*УЗЛЫ!C609*L79 -> 0 | J50: =((C50*РАБОТЫ!C99)*5)+(C50*2719)*M79 -> 0 | K50: =((C50*РАБОТЫ!D99)*5)+(C50*516)*M79 -> 0 | L50: 0
B51: Монтаж насосных групп с коллектором и гидрострелкой, включает в себя 1 прямую насосную группу и 4 смесительных (5 насосных группы) расширительный бак, ППР | D51: компл. | E51: =I51/0.65*$J$79 -> 0 | F51: 0 | G51: 0 | I51: =C51*УЗЛЫ!C610*L79 -> 0 | J51: =((C51*РАБОТЫ!C100)*6)+(C51*2719)*M79 -> 0 | K51: =((C51*РАБОТЫ!D100)*6)+(C51*516)*M79 -> 0 | L51: 0
A52: Узел ввода воды от скважины (В КОТЕЛЬНОЙ) с гидроаккумулятором | B52: Материалы, Гидроаккумулятор, Реле давления скважины, Грязевой фильтр, Редуктор, Полипропилен. | D52: компл. | E52: =I52/$I$3*$J$79 -> 0 | F52: 0 | G52: 0 | I52: =C52*УЗЛЫ!C611*L79 -> 0 | J52: =C52*(РАБОТЫ!C102+РАБОТЫ!C103)*M79 -> 0 | K52: =C52*(РАБОТЫ!D102+РАБОТЫ!D103)*M79 -> 0 | L52: 0
A53: Узел ввода воды от скважины (В КОТЕЛЬНОЙ) без гидроаккумулятора | B53: Материалы, Редуктор, Грязевой фильтр, Полипропилен. | D53: компл. | E53: =I53/$I$3*$J$79 -> 0 | F53: 0 | G53: 0 | I53: =C53*УЗЛЫ!C612*L79 -> 0 | J53: =C53*((РАБОТЫ!C102+РАБОТЫ!C103)*0.7)*M79 -> 0 | K53: =C53*((РАБОТЫ!D102+РАБОТЫ!D103)*0.7)*M79 -> 0 | L53: 0
A54: Узел ввода воды из центрального водоснабжения (В КОТЕЛЬНОЙ) | B54: Материалы, Счетчик ХВС, Редуктор, Грязевой фильтр, Полипропилен. | D54: компл. | E54: =I54/$I$3*$J$79 -> 0 | F54: 0 | G54: 0 | I54: =C54*УЗЛЫ!C613*L79 -> 0 | J54: =C54*((РАБОТЫ!C102+РАБОТЫ!C103)*0.85)*M79 -> 0 | K54: =C54*((РАБОТЫ!D102+РАБОТЫ!D103)*0.85)*M79 -> 0 | L54: 0
A55: Греющий кабель для узла ввода воды | B55: Греющий кабель | D55: шт. | E55: =I55/0.8*$J$79 -> 0 | F55: 0 | G55: 0 | I55: =C55*УЗЛЫ!C614*L79 -> 0 | J55: =C55*((РАБОТЫ!C102)*0.4)*M79 -> 0 | K55: =C55*((РАБОТЫ!D102)*0.4)*M79 -> 0 | L55: 0
A56: Защита от протечек воды в доме. | B56: Автоматический запорный кран для защиты от протечек с 4 радиодатчиками и WiFi модуль (настройка системы и запуск производится на пуско-наладочных работах котельной) | D56: компл. | E56: =I56/$I$3*$J$79*0.6 -> 0 | F56: 0 | G56: 0 | I56: =$C56*УЗЛЫ!C616*L79 -> 0 | J56: =$C56*( РАБОТЫ!C105+РАБОТЫ!C106)*M79 -> 0 | K56: =$C56*( РАБОТЫ!D105+РАБОТЫ!D106)*M79 -> 0 | L56: 0
A57: Стабилизатор напряжения (рекомендуется производителями газовых котлов). | B57: Стабилизатор необходим для защиты котла от перепадов напряжения | C57: 1 | D57: шт. | E57: =(I57/0.97)*$J$79 -> 14865.97938 | F57: 1297.877778 | G57: 16163.85716 | H57: ↗ | I57: =$C57* УЗЛЫ!C617 -> 14420 | J57: =$C57* РАБОТЫ!C107*M79 -> 490.4625 | K57: =$C57* РАБОТЫ!D107*M79 -> 93.5825 | L57: 15004.045 | M57: 0.0717534279
A58: Монтаж электрики для котельного оборудования | B58: Силовые Электрические подключения в котельной (монтаж кабель-каналов, установка и и расключение финишных розеток, установка проводов и вилок на насосы и котлы (не требующие подключения в автоматику управления) ,монтаж заземления КШ, коллекторов , бойлера, котла. | C58: 1 | D58: усл | E58: =I58/0.9 -> 15450 | F58: =(J58+K58)/0.8 -> 9000 | G58: =E58+F58 -> 24450 | I58: =C58*УЗЛЫ!C618 -> 13905 | J58: =C58*РАБОТЫ!C255 -> 6000 | K58: =C58*РАБОТЫ!D255 -> 1200 | L58: =SUM(I58:K58) -> 21105 | M58: 0.136809816
A59: Беспроводная GSM - Розетка (материал) | B59: Дистанционно управляемая розетка. GSM-розетка поможет предупредить отключение электроотопительного оборудования и, как следствие, промерзание дома и коммуникаций зимой. Прибор отправляет сигналы в отдел сервиса GOOD WOOD. Аварийный сигнал дублируется в ленте личного кабинета клиента и отправляется через SMS | C59: 1 | D59: шт. | E59: =I59/0.8 -> 7725 | G59: =E59+F59 -> 7725 | I59: =C59*УЗЛЫ!C619 -> 6180 | J59: =C59*РАБОТЫ!C253 -> 500 | L59: 6680 | M59: 0.1352750809
A60: Беламос Реле давления PS-02C (М) | B60: Оповещает о падении давления в системе отопления. | C60: 1 | D60: шт. | E60: =I60/0.9 -> 801.1111111 | G60: 801.1111111 | I60: =C60*УЗЛЫ!C620 -> 721 | L60: 721 | M60: 0.1
A61: Место под установку планируемого настенного котла | B61: Разметка, подготовка места с установкой фитингов под планируемый котёл | D61: усл | E61: =(I61/0.8)*$J$79 -> 0 | F61: =(SUM(J61:K61)/0.61)*$K$79 -> 0 | G61: 0 | I61: =C61*УЗЛЫ!C621 -> 0 | J61: =C61*РАБОТЫ!C109 -> 0 | K61: =C61*РАБОТЫ!D109 -> 0 | L61: 0
A62: Комплект для перехода на С/Г при наличии газгольдера | B62: Комплект для перенастройки котлов на сжиженный газ | D62: компл. | E62: =I62/$I$3*$J$79 -> 0 | F62: =(SUM(J62:K62)/$I$3)*$K$79 -> 0 | G62: 0 | H62: ↗ | I62: =$C62*УЗЛЫ!C622*L79 -> 0 | J62: =$C62* РАБОТЫ!C108*M79 -> 0 | K62: =$C62* РАБОТЫ!D108*M79 -> 0 | L62: 0
A63: Итого материал: | G63: =SUM(E11:E62,E6:E9) -> 38842.09049 | L63: =SUM(I11:I62) -> 35226 | M63: 0.0930972161
A64: Работа: | G64: =SUM(F11:F62,F6:F9) -> 10297.87778 | L64: =SUM(J11:K62) -> 8284.045 | M64: 0.1955580384
A65: Дополнительно
A66: Материалы/услуги | B66: Описание | C66: Кол-во | D66: Ед.изм | E66: Мат-ал, руб | F66: Работа, руб | G66: Итого, руб
A67: Закладная гильза | B67: Гильза устанавливается в "пироге пола" для дальнейшего ввода коммуникаций | D67: шт. | E67: 0 | F67: =C67*2500 -> 0 | G67: =F67+E67 -> 0 | K67: =1250*C67 -> 0
A68: Проходные отверстия в плите | B68: Алмазное сверление | D68: шт. | E68: =0*C68 -> 0 | F68: =IF($C$68=0,0, IF($C$68<4,9000, IF($C$68>3,9000+2300*($C$68-3)))) -> 0 | G68: =F68+E68 -> 0 | K68: =IF($C$68=0,0, IF($C$68<4,6000, IF($C$68>3,6000+1700*($C$68-3)))) -> 0
A69: Подготовительные и накладные расходы | B69: Включают разработку комплекта документов для монтажа, проверку ОТК и приемку каждого этапа работ инженерами технического надзора, соблюдение стандарта компании | C69: 1 | D69: Усл. | F69: =C69*33000 -> 33000 | G69: =F69*C69 -> 33000 | I69: =IF(ПНР!L18=0,30000,ПНР!L18) -> 3800 | J69: 2000 | K69: 4500 | L69: =5500+6500 -> 12000
A70: Транспортные расходы | B70: Доставка оборудования и материалов на объект | C70: 1 | D70: усл. | F70: =C70*19500 -> 19500 | G70: =F70 -> 19500 | L70: 10000
A71: Доставка бытовки на объект | B71: Если есть такая необходимость, мы предоставляем бытовку для проживания на объекте строителей. После окончания работ бытовка вывозится. | D71: км от мкад | G71: =IF(C71=0,0, IF(C71<100,24000, IF(C71<150,30000,36000))) -> 0 | L71: =IF(C71=0,0, IF(C71<=50,13500, IF(C71<=100,17000, IF(C71<=150,20500, IF(C71<=200,24000, IF(C71<=250,27500, IF(C71>250,31000,))))))) -> 0
A72: Итого по смете: | F72: =SUM(G63:G64,G67:G71) -> 101639.9683 | I72: =SUM(I11:I62,I67:I71,I6:I9) -> 39026 | J72: =SUM(J12:J62,J67:J71,J6:J9) -> 8990.4625 | K72: =SUM(K12:K62,K67:K71,K6:K9) -> 5793.5825 | L72: =SUM(I72:K72,L67:L71) -> 75810.045 | M72: =IF(F72=0,"",(F74-L72)/F74) -> 0.2541315558
A73: Корректировка стоимости (скидка):
A74: Итого по смете с учетом скидки: | F74: =F72-G73 -> 101639.9683
A76: ** Полноценная настройка автоматики возможна только при наличии интернета WiFi или 2G.GSM. | J76: Коэффициент для заказчика | L76: Коэффициент для СЕБЕСА (дом свыше 350м2)
B77: =РАБОТЫ!$A$1 -> Дата
J78: Мат | K78: Раб | L78: Мат | M78: Раб
J79: 1 | K79: 1 | L79: 1 | M79: 1

Sheet Кот Медь 23
A1: Приложение № к Договору подряда № ______________от_____________ | I1: =РАБОТЫ!A1 -> Дата
A2: =TODAY() -> 2024-02-02 | B2: Данный сметный расчёт действителен 7 календарных дней. По истечению срока, цены могут быть изменены. | H2: курс € | I2: для узлов "/" | J2: для Котлов "/" | K2: для Бойлеров "/" | L2: для Ecosystem "/"
A3: Сметный расчет Котельная Медь | H3: ='ОВиВК ТЕСЕ'!I2 -> 100 | I3: 0.45 | J3: 0.93 | K3: 0.93 | L3: 0.8
A4: Теплотрасса | H4: Ссылка на маркет | I4: =РАБОТЫ!A2 -> 2,5% размазаная себестомость ( Амортизация, расходники, надбавка за разряд, гсп прораба)
A5: Материалы/услуги | B5: Описание | C5: Кол-во | D5: Ед.изм | E5: Мат-ал, руб | F5: Работа, руб | G5: Итого, руб | I5: Материал | J5: Бригада | K5: Прораб | L5: Итого | M5: Рента
A6: Узел ТТ1 до150м2 | B6: Обвязка теплотрассы, подключение к коллекторам и насосам | D6: компл | E6: =(I6/0.65)*J79 -> 0 | F6: =((J6+K6)/0.65)*$K$79 -> 0 | G6: =F6+E6 -> 0 | I6: =$C6*(УЗЛЫ!C8*0.5)*L79 -> 0 | J6: =$C6*РАБОТЫ!C7*M79 -> 0 | K6: =$C6*РАБОТЫ!D7*M79 -> 0 | L6: =SUM(I6:K6) -> 0 | M6: =IF(G6=0,"",(G6-L6)/G6) ->  | N6: * Обвязка с одной стороны, в случае обвязки с двух сторон - 2 компл.
A7: Узел ТТ2 150-200м2 | B7: Обвязка теплотрассы, подключение к коллекторам и насосам | D7: компл | E7: =(I7/0.65)*$J$79 -> 0 | F7: =((J7+K7)/0.65)*$K$79 -> 0 | G7: 0 | I7: =$C7* (УЗЛЫ!C9*0.5)*L79 -> 0 | J7: =$C7*РАБОТЫ!C7*M79 -> 0 | K7: =$C7*РАБОТЫ!D7*M79 -> 0 | L7: 0
A8: Греющий кабель для узла ввода воды | B8: Ввод воды с греющим кабелем | D8: шт. | E8: =(I8/0.8)*$J$79 -> 0 | F8: =(SUM(J8:K8)/$I$3)*$K$79 -> 0 | G8: 0 | I8: =C8*УЗЛЫ!C676*L79 -> 0 | J8: =C8*((РАБОТЫ!C102)*0.4)*M79 -> 0 | K8: =C8*((РАБОТЫ!D102)*0.4)*M79 -> 0 | L8: 0
A9: Автоматика | B9: Датчик температуры МЛ-722 (DS) | D9: шт. | E9: =(I9/0.65)*$J$79 -> 0 | F9: =((J9+K9)/0.65)*$K$79 -> 0 | G9: 0 | I9: =$C9* УЗЛЫ!C648*L79 -> 0 | J9: =($C9*РАБОТЫ!C8)*M79 -> 0 | K9: =$C9*РАБОТЫ!D8*M79 -> 0 | L9: 0
A10: Котельная (Для каркасных перегородок необходимо усиление)
A11: Котел газовый (мощность выбирается на 10 кв.м - 1,2 кВт, если дом деревянный) | B11: Газовый котел Baxi LUNA 3 comfort (1.240 Fi кВт) (Одноконтурный, настенный, турб.) | D11: шт. | E11: =I11/0.9 -> 0 | G11: =E11+F11 -> 0 | H11: ↗ | I11: =C11*УЗЛЫ!C628 -> 0 | L11: =SUM(I11:K11) -> 0 | M11: =IF(G11=0,"",(G11-L11)/G11) -> 
B12: Газовый котел Baxi LUNA 3 comfort (1.310 Fi кВт) (Одноконтурный, настенный, турб.) | D12: шт. | E12: =I12/0.9 -> 0 | G12: 0 | H12: ↗ | I12: =C12*УЗЛЫ!C629 -> 0 | L12: =SUM(I12:K12) -> 0 | M12: =IF(G12=0,"",(G12-L12)/G12) -> 
B13: Газовый котел Baxi LUNA 3 comfort (1.240 Fi кВт) (Двухконтурный, настенный, турб.) | D13: шт. | E13: =I13/0.9 -> 0 | G13: 0 | H13: ↗ | I13: =C13*УЗЛЫ!C630 -> 0 | L13: =SUM(I13:K13) -> 0 | M13: =IF(G13=0,"",(G13-L13)/G13) -> 
B14: Газовый котел Baxi LUNA 3 comfort (1.310 Fi кВт) (Двухконтурный, настенный, турб.) | D14: шт. | E14: =I14/0.9 -> 0 | G14: 0 | H14: ↗ | I14: =C14*УЗЛЫ!C631 -> 0 | L14: =SUM(I14:K14) -> 0
B15: Подключение газового котла Медь БАКСИ | D15: компл. | E15: =(I15/0.6)*$J$79 -> 0 | F15: =(SUM(J15:K15)/0.6)*K79 -> 0 | G15: 0 | I15: =C15*УЗЛЫ!C632*L79 -> 0 | J15: =C15*РАБОТЫ!C55*M79 -> 0 | K15: =C15*РАБОТЫ!D55*M79 -> 0 | L15: 0
B16: Общая обвязка котельного обрудования, включающая в себя трубопроводы, отводы, хомуты, лён, пасту, бирки и тд Медь | D16: компл. | E16: =(I16/$I$3)*$J$79 -> 0 | G16: 0 | I16: =C16*(УЗЛЫ!C633/3+УЗЛЫ!C637)*L79 -> 0 | L16: 0
B17: Общая обвязка котельного обрудования, включающая в себя трубопроводы, отводы, хомуты, лён, пасту, бирки и тд (2 насоса) Медь | D17: компл. | E17: 0 | G17: 0 | I17: =C17*(УЗЛЫ!C633+УЗЛЫ!$C$637)*$L$79 -> 0 | L17: =SUM(I17:K17) -> 0
B18: Общая обвязка котельного обрудования, включающая в себя трубопроводы, отводы, хомуты, лён, пасту, бирки и тд (3 насоса) Медь | D18: компл. | E18: 0 | G18: 0 | I18: =C18*(УЗЛЫ!C634+УЗЛЫ!$C$637)*$L$79 -> 0 | L18: 0
B19: Общая обвязка котельного обрудования, включающая в себя трубопроводы, отводы, хомуты, лён, пасту, бирки и тд (4 насоса) Медь | D19: компл. | E19: 0 | G19: 0 | I19: =C19*(УЗЛЫ!C635+УЗЛЫ!$C$637)*$L$79 -> 0 | L19: 0
B20: Общая обвязка котельного обрудования, включающая в себя трубопроводы, отводы, хомуты, лён, пасту, бирки и тд (5 насосов) Медь | D20: компл. | E20: 0 | G20: 0 | I20: =C20*(УЗЛЫ!C636+УЗЛЫ!$C$637)*$L$79 -> 0 | L20: 0
B21: Узел Минерит+Лист нержавеющей стали (Только для брусовой котельной!) | D21: компл. | E21: 0 | F21: =(SUM(J21:K21)/$I$3)*$K$79 -> 0 | G21: 0 | I21: =C21*УЗЛЫ!C638*L79 -> 0 | J21: =C21*(РАБОТЫ!C54*0.2)*M79 -> 0 | K21: =C21*(РАБОТЫ!D54*0.2)*M79 -> 0 | L21: 0
A22: Котёл электрический (Резервный котёл предназначен для поддержания положительной температуры в доме ((Не является заменой основному теплогениратору). Не сможет обеспечить прогревание воды до оптимальной температуры и прогрев всего дома) | B22: STOUT котёл электрический 9 кВт | D22: шт. | E22: =I22/$J$3*$J$79 -> 0 | G22: 0 | I22: =C22*УЗЛЫ!C578 -> 0 | L22: 0
B23: STOUT котёл электрический 12 кВт | D23: шт. | E23: =I23/$J$3*$J$79 -> 0 | G23: 0 | I23: =C23*УЗЛЫ!C579 -> 0 | L23: 0
B24: STOUT котёл электрический 14 кВт | D24: шт. | E24: =I24/$J$3*$J$79 -> 0 | G24: 0 | I24: =C24*УЗЛЫ!C580 -> 0 | L24: 0
B25: STOUT котёл электрический 18 кВт | D25: шт. | E25: =I25/$J$3*$J$79 -> 0 | G25: 0 | I25: =C25*УЗЛЫ!C581 -> 0 | L25: 0
B26: Подключение резервного электрического котла Медь | D26: шт. | E26: =(I26/0.6)*J79 -> 0 | F26: =(SUM(J26:K26)/0.6)*$K$79 -> 0 | G26: =E26+F26 -> 0 | I26: =C26*УЗЛЫ!C643*L79 -> 0 | J26: =C26*РАБОТЫ!C61*M79 -> 0 | K26: =C26*РАБОТЫ!D61*M79 -> 0 | L26: 0
A27: Автоматика Zont | B27: Zont Climatic 1.3 (741) Погодозависимый автоматический регулятор для многоконтурных систем отопления (1прямой + 3смесительных контура) Zont Плата цифровой шины для Zont Climatic ** | D27: шт. | E27: =I27/J3 -> 0 | F27: =(SUM(J27:K27)/0.5)*$K$79 -> 0 | G27: 0 | I27: =C27*(УЗЛЫ!C583+УЗЛЫ!C584) -> 0 | J27: =(C27*РАБОТЫ!C74)+(C27*2900) -> 0 | K27: =(C27*РАБОТЫ!D74)+(C27*600) -> 0 | L27: 0
B28: Zont Climatic 1.3 (741) Погодозависимый автоматический регулятор для многоконтурных систем отопления (1прямой + 3смесительных контура) Zont Плата цифровой шины для Zont Climatic (2шт.) ** | D28: шт. | E28: =I28/J3 -> 0 | F28: =(SUM(J28:K28)/0.53)*$K$79 -> 0 | G28: 0 | I28: =C28*(УЗЛЫ!C583+УЗЛЫ!C584+УЗЛЫ!C584) -> 0 | J28: =(C28*РАБОТЫ!C75)+(C28*2900) -> 0 | K28: =(C28*РАБОТЫ!D75)+(C28*600) -> 0 | L28: 0
B29: Zont Smart 2.0 (744) Отопительный GSM / WiFi контроллер для газовых и электрических котлов. Адаптер для подключения по цифровой шине ** | D29: шт. | E29: =I29/J3 -> 0 | F29: =(SUM(J29:K29)/0.6)*$K$79 -> 0 | G29: 0 | I29: =C29*(УЗЛЫ!C585+УЗЛЫ!C586) -> 0 | J29: =(C29*РАБОТЫ!C76)+(C29*2900) -> 0 | K29: =(C29*РАБОТЫ!D76)+(C29*600) -> 0 | L29: 0
B30: Комплект беспроводных датчиков для автоматики (наружный + внутренний) | D30: шт. | E30: =I30/0.8 -> 0 | F30: =(SUM(J30:K30)/0.65)*$K$79 -> 0 | G30: 0 | I30: =C30*УЗЛЫ!C588 -> 0 | J30: =C30*РАБОТЫ!C77 -> 0 | K30: =C30*РАБОТЫ!D77 -> 0 | L30: 0
B31: Датчик температуры комнатный | D31: шт. | E31: =I31/0.93 -> 0 | F31: =(SUM(J31:K31)/0.65) -> 0 | G31: 0 | I31: =C31*УЗЛЫ!C587 -> 0 | J31: =C31*РАБОТЫ!C77 -> 0 | K31: =C31*РАБОТЫ!D77 -> 0 | L31: 0
B32: Блок расширения ЕХ-77 для Zont Climatic 1.3 / Блок питания 12-24V | D32: шт. | E32: =I32/0.8 -> 0 | F32: =(SUM(J32:K32)/0.6) -> 0 | G32: 0 | I32: =C32*(УЗЛЫ!C623+УЗЛЫ!C624) -> 0 | J32: =C32*РАБОТЫ!C78 -> 0 | K32: =C32*РАБОТЫ!D78 -> 0 | L32: 0
A33: Монтаж дымохода | B33: Коаксиальный дымоход с проходом через кровлю для 2 этажного дома | D33: шт. | E33: =(I33/0.6)*$J$79 -> 0 | F33: =(SUM(J33:K33)/0.5)*K79 -> 0 | G33: 0 | I33: =C33*УЗЛЫ!C589*L79 -> 0 | J33: =$C33* РАБОТЫ!C80*M79 -> 0 | K33: =$C33* РАБОТЫ!D80*M79 -> 0 | L33: 0
B34: Коаксиальный дымоход с проходом через кровлю для 1 этажного дома | D34: шт. | E34: =(I34/0.6)*$J$79 -> 0 | F34: =(SUM(J34:K34)/0.5)*K79 -> 0 | G34: 0 | I34: =C34*УЗЛЫ!C590*L79 -> 0 | J34: =C34*РАБОТЫ!C82*M79 -> 0 | K34: =C34*РАБОТЫ!D82*M79 -> 0 | L34: 0
B35: Коаксиальный дымоход с проходом через стену | D35: шт. | E35: =(I35/0.6)*$J$79 -> 0 | F35: =(SUM(J35:K35)/0.4)*K79 -> 0 | G35: 0 | I35: =C35*УЗЛЫ!C591*L79 -> 0 | J35: =$C35* РАБОТЫ!C83*M79 -> 0 | K35: =$C35* РАБОТЫ!D83*M79 -> 0 | L35: 0
A36: Монтаж бойлера косвенного нагрева | B36: Бойлер напольный 150 Stout | D36: шт. | E36: =I36*$J$79/$L$3 -> 0 | G36: 0 | H36: ↗ | I36: =$C36*УЗЛЫ!C653 -> 0 | L36: 0
B37: Бойлер напольный 200 Stout | D37: шт. | E37: =I37*$J$79/$L$3 -> 0 | G37: 0 | H37: ↗ | I37: =$C37*УЗЛЫ!C654 -> 0 | L37: 0
B38: Бойлер напольный 300 Stout | D38: шт. | E38: =I38*$J$79/$L$3 -> 0 | G38: 0 | H38: ↗ | I38: =$C38*УЗЛЫ!C655 -> 0 | L38: 0
B39: Бойлер настенный 150 Stout | D39: компл. | E39: =(I39/0.6)*$J$79 -> 0 | F39: =(J39+K39)/0.6 -> 0 | G39: 0 | I39: =$C39*УЗЛЫ!C656 -> 0 | J39: =((C39*РАБОТЫ!C85)*1.25)*M79 -> 0 | K39: =((C39*РАБОТЫ!D85)*1.25)*M79 -> 0 | L39: 0
B40: Бойлер настенный 200 Stout | D40: компл. | E40: =(I40/0.6)*$J$79 -> 0 | F40: 0 | G40: 0 | I40: =$C40*УЗЛЫ!C657 -> 0 | J40: =((C40*РАБОТЫ!C86)*1.25)*M79 -> 0 | K40: =((C40*РАБОТЫ!D86)*1.25)*M79 -> 0 | L40: 0
B41: Подключение напольного бойлера Stout 150л/200л Медь | D41: компл. | E41: =I41/0.6*$J$79 -> 0 | F41: =(SUM(J41:K41)/0.6)*$K$79 -> 0 | G41: 0 | H41: ↗ | I41: =C41*УЗЛЫ!C659*L79 -> 0 | J41: =C41*РАБОТЫ!C85*M79 -> 0 | K41: =C41*РАБОТЫ!D85*M79 -> 0 | L41: 0
B42: Подключение настенного бойлера Stout 150л /200л Медь | D42: компл. | E42: =I42/0.6*$J$79 -> 0 | F42: =(SUM(J42:K42)/0.6)*$K$79 -> 0 | G42: 0 | I42: =C42*(УЗЛЫ!C662+УЗЛЫ!C663)*L79 -> 0 | J42: =C42*(РАБОТЫ!C86+1000)*M79 -> 0 | K42: =C42*(РАБОТЫ!D86+200)*M79 -> 0 | L42: 0
B43: Подключение напольного бойлера Stout 300л Медь | D43: компл. | E43: =I43/0.6*$J$79 -> 0 | F43: =(SUM(J43:K43)/0.6)*$K$79 -> 0 | G43: 0 | I43: =C43*(УЗЛЫ!C660)*L79 -> 0 | J43: =C43*РАБОТЫ!C87*M79 -> 0 | K43: =C43*РАБОТЫ!D87*M79 -> 0 | L43: 0
A44: Рециркуляция ГВС (опционально) | B44: Узел подключения насоса циркуляции к бойлеру косвенного нагрева Медь | D44: компл. | E44: =I44/$I$3*$J$79 -> 0 | F44: =(J44+K44)/$I$3 -> 0 | G44: 0 | I44: =C44*УЗЛЫ!C665*L79 -> 0 | J44: =((C44*РАБОТЫ!C96)*1.25)*M79 -> 0 | K44: =((C44*РАБОТЫ!D96)*1.25)*M79 -> 0 | L44: 0
A45: Байпас для водоподготовки / фильтра | B45: Узел подключения байпаса водоподготовки к узлу ввода воды | D45: компл. | E45: =I45/$I$3*$J$79 -> 0 | F45: 0 | G45: 0 | I45: =C45*УЗЛЫ!C666*L79 -> 0 | J45: =C45*((РАБОТЫ!C103)*0.5)*M79 -> 0 | K45: =C45*((РАБОТЫ!D103)*0.5)*M79 -> 0 | L45: 0
A46: Полив | B46: Узел подключения вывода на полив к узлу ввода воды | D46: компл. | E46: =I46/$I$3*$J$79 -> 0 | F46: 0 | G46: 0 | I46: =C46*УЗЛЫ!C667*L79 -> 0 | J46: =C46*((РАБОТЫ!C102)*0.4)*M79 -> 0 | K46: =C46*((РАБОТЫ!D102)*0.4)*M79 -> 0 | L46: 0
A47: Общая обвязка (монтаж) | B47: Обвязка котельного оборудования без насосных групп | D47: услуга | F47: =(J47+K47)/0.6 -> 0 | G47: 0 | J47: =C47*РАБОТЫ!C66 -> 0 | K47: =C47*РАБОТЫ!D66 -> 0 | L47: 0
A48: Гидравлическая обвязка насосных групп на котллекторе с гидрострелкой | B48: Монтаж насосных групп с коллектором и гидрострелкой, включает в себя 1 прямую насосную группу и 1 смесительную (2 насосных группы), расширительный бак, Медь | D48: компл. | E48: =I48/0.65*$J$79 -> 0 | F48: =(J48+K48)/$I$3*$K$79 -> 0 | G48: 0 | I48: =C48*УЗЛЫ!C668*$L$79 -> 0 | J48: =((C48*РАБОТЫ!C98)*3*1.25+(C48*2719))*M79 -> 0 | K48: =((C48*РАБОТЫ!D98)*3*1.25+(516*C48))*M79 -> 0 | L48: =SUM(I48:K48) -> 0
B49: Монтаж насосных групп с коллектором и гидрострелкой, включает в себя 1 прямую насосную группу и 2 смесительных (3 насосных группы), расширительный бак, Медь | D49: компл. | E49: =I49/0.65*$J$79 -> 0 | F49: =(J49+K49)/$I$3*$K$79 -> 0 | G49: 0 | I49: =C49*УЗЛЫ!C669*$L$79 -> 0 | J49: =((C49*РАБОТЫ!C98)*4*1.25+(2719*C49))*M79 -> 0 | K49: =((C49*РАБОТЫ!D98)*4*1.25+(516*C49))*M79 -> 0 | L49: 0
B50: Монтаж насосных групп с коллектором и гидрострелкой, включает в себя 1 прямую насосную группу и 3 смесительных (4 насосных группы), расширительный бак, Медь | D50: компл. | E50: =I50/0.65*$J$79 -> 0 | F50: =(J50+K50)/$I$3*$K$79 -> 0 | G50: 0 | I50: =C50*УЗЛЫ!C670*$L$79 -> 0 | J50: =((C50*РАБОТЫ!C99)*5*1.25+(2719*C50))*M79 -> 0 | K50: =((C50*РАБОТЫ!D99)*5*1.25+(516*C50))*M79 -> 0 | L50: 0
B51: Монтаж насосных групп с коллектором и гидрострелкой, включает в себя 1 прямую насосную группу и 4 смесительных (5 насосных группы), расширительный бак, Медь | D51: компл. | E51: =I51/0.65*$J$79 -> 0 | F51: =(J51+K51)/$I$3*$K$79 -> 0 | G51: 0 | I51: =C51*УЗЛЫ!C671*$L$79 -> 0 | J51: =((C51*РАБОТЫ!C100)*6*1.25+(2719*C51))*M79 -> 0 | K51: =((C51*РАБОТЫ!D100)*6*1.25+(516*C51))*M79 -> 0 | L51: 0
A52: Узел ввода воды от скважины (В КОТЕЛЬНОЙ) с гидроаккумулятором | B52: Материалы, Гидроаккумулятор, Реле давления скважины, Грязевой фильтр, Редуктор, Полипропилен. | D52: компл. | E52: =I52/$I$3*$J$79 -> 0 | F52: =(SUM(J52:K52)/$I$3)*$K$79 -> 0 | G52: 0 | I52: =C52*УЗЛЫ!C672*L79 -> 0 | J52: =C52*(РАБОТЫ!C102+РАБОТЫ!C103)*M79 -> 0 | K52: =C52*(РАБОТЫ!D102+РАБОТЫ!D103)*M79 -> 0 | L52: 0
A53: Узел ввода воды от скважины (В КОТЕЛЬНОЙ) без гидроаккумулятора | B53: Материалы, Редуктор, Грязевой фильтр, Полипропилен. | D53: компл. | E53: =I53/$I$3*$J$79 -> 0 | F53: =(SUM(J53:K53)/$I$3)*$K$79 -> 0 | G53: 0 | I53: =C53*УЗЛЫ!C673*L79 -> 0 | J53: =C53*((РАБОТЫ!C102+РАБОТЫ!C103)*0.7)*M79 -> 0 | K53: =C53*((РАБОТЫ!D102+РАБОТЫ!D103)*0.7)*M79 -> 0 | L53: 0
A54: Узел ввода воды из центрального водоснабжения (В КОТЕЛЬНОЙ) | B54: Материалы, Счетчик ХВС, Редуктор, Грязевой фильтр, Полипропилен. | D54: компл. | E54: =I54/$I$3*$J$79 -> 0 | F54: =(SUM(J54:K54)/$I$3)*$K$79 -> 0 | G54: 0 | I54: =C54*УЗЛЫ!C674*L79 -> 0 | J54: =C54*((РАБОТЫ!C102+РАБОТЫ!C103)*0.85)*M79 -> 0 | K54: =C54*((РАБОТЫ!D102+РАБОТЫ!D103)*0.85)*M79 -> 0 | L54: 0
A55: Греющий кабель для узла ввода воды | B55: Греющий кабель | D55: шт. | E55: =I55/0.8*$J$79 -> 0 | F55: =(SUM(J55:K55)/$I$3)*$K$79 -> 0 | G55: 0 | I55: =C55*УЗЛЫ!C675*L79 -> 0 | J55: =C55*((РАБОТЫ!C102)*0.4)*M79 -> 0 | K55: =C55*((РАБОТЫ!D102)*0.4)*M79 -> 0 | L55: 0
A56: Защита от протечек воды в доме. | B56: Автоматический запорный кран для защиты от протечек с 4 радиодатчиками и GSM-модемом (настройка системы и запуск производится на пуско-наладочных работах котельной) | D56: компл. | E56: =(I56/$I$3)*$J$79*0.6 -> 0 | F56: =(SUM(J56:K56)/$I$3)*K79 -> 0 | G56: 0 | I56: =C56*УЗЛЫ!C677*L79 -> 0 | J56: =$C56*( РАБОТЫ!C105+РАБОТЫ!C106)*M79 -> 0 | K56: =$C56*( РАБОТЫ!D105+РАБОТЫ!D106)*M79 -> 0 | L56: 0
A57: Стабилизатор напряжения (рекомендуется производителями газовых котлов). | B57: Стабилизатор необходим для защиты котла от перепадов напряжения | C57: 1 | D57: шт. | E57: =(I57/0.97)*$J$79 -> 15715.46392 | F57: =(SUM(J57:K57)/$I$3)*K79 -> 1297.877778 | G57: 17013.3417 | H57: ↗ | I57: =$C57* УЗЛЫ!C678 -> 15244 | J57: =$C57* РАБОТЫ!C107*M79 -> 490.4625 | K57: =$C57* РАБОТЫ!D107*M79 -> 93.5825 | L57: 15828.045 | M57: 0.06966865866
A58: Монтаж электрики для котельного оборудования | B58: Силовые Электрические подключения в котельной (монтаж кабель-каналов, установка и и расключение финишных розеток, установка проводов и вилок на насосы и котлы (не требующие подключения в автоматику управления) ,монтаж заземления КШ, коллекторов , бойлера, котла. | C58: 1 | D58: усл | E58: =I58/0.9 -> 16022.22222 | F58: =(J58+K58)/0.8 -> 9000 | G58: =E58+F58 -> 25022.22222 | I58: =C58*УЗЛЫ!C679 -> 14420 | J58: =C58*РАБОТЫ!C255 -> 6000 | K58: =C58*РАБОТЫ!D255 -> 1200 | L58: =SUM(I58:K58) -> 21620 | M58: 0.1359680284
A59: Беспроводная GSM - Розетка (материал) | B59: Дистанционно управляемая розетка. GSM-розетка поможет предупредить отключение электроотопительного оборудования и, как следствие, промерзание дома и коммуникаций зимой. Прибор отправляет сигналы в отдел сервиса GOOD WOOD. Аварийный сигнал дублируется в ленте личного кабинета клиента и отправляется через SMS | C59: 1 | D59: шт. | E59: =I59/0.8 -> 7725 | G59: =E59+F59 -> 7725 | I59: =C59*УЗЛЫ!C680 -> 6180 | J59: =C59*РАБОТЫ!C253 -> 500 | L59: 6680 | M59: 0.1352750809
A60: Беламос Реле давления PS-02C (М) | B60: Оповещает о падении давления в системе отопления. | C60: =C59 -> 1 | D60: шт. | E60: =I60/0.9 -> 801.1111111 | G60: 801.1111111 | I60: =C60*УЗЛЫ!C681 -> 721 | L60: 721 | M60: 0.1
A61: Место под установку планируемого настенного котла | B61: Разметка, подготовка места с установкой фитингов под планируемый котёл | D61: усл | E61: =(I61/0.8)*$J$79 -> 0 | F61: =(SUM(J61:K61)/0.61)*$K$79 -> 0 | G61: 0 | I61: =C61*УЗЛЫ!C682 -> 0 | J61: =C61*РАБОТЫ!C109 -> 0 | K61: =C61*РАБОТЫ!D109 -> 0 | L61: 0
A62: Комплект для перехода на С/Г при наличии газгольдера | B62: Комплект для перенастройки котлов на сжиженный газ | D62: компл. | E62: =(I62/$I$3)*$J$79 -> 0 | F62: =(SUM(J62:K62)/$I$3)*K79 -> 0 | G62: 0 | H62: ↗ | I62: =$C62* УЗЛЫ!C684*L79 -> 0 | J62: =$C62* РАБОТЫ!C108*M79 -> 0 | K62: =$C62* РАБОТЫ!D108*M79 -> 0 | L62: 0
A63: Итого материал: | G63: =SUM(E11:E62,E6:E9) -> 40263.79725 | L63: =SUM(I11:I62) -> 36565 | M63: 0.09186409389
A64: Работа: | G64: =SUM(F11:F62,F6:F9) -> 10297.87778 | L64: =SUM(J11:K62) -> 8284.045 | M64: 0.1955580384
A65: Дополнительно
A66: Материалы/услуги | B66: Описание | C66: Кол-во | D66: Ед.изм | E66: Мат-ал, руб | F66: Работа, руб | G66: Итого, руб
A67: Закладная гильза | B67: Гильза устанавливается в "пироге пола" для дальнейшего ввода коммуникаций | D67: шт. | E67: 0 | F67: =C67*2500 -> 0 | G67: =F67+E67 -> 0 | K67: =1250*C67 -> 0
A68: Проходные отверстия в плите | B68: Алмазное сверление | D68: шт. | E68: =0*C68 -> 0 | F68: =IF($C$68=0,0, IF($C$68<4,9000, IF($C$68>3,9000+2300*($C$68-3)))) -> 0 | G68: =F68+E68 -> 0 | K68: =IF($C$68=0,0, IF($C$68<4,6000, IF($C$68>3,6000+1700*($C$68-3)))) -> 0
A69: Подготовительные и накладные расходы | B69: Включают разработку комплекта документов для монтажа, проверку ОТК и приемку каждого этапа работ инженерами технического надзора, соблюдение стандарта компании | C69: 1 | D69: Усл. | F69: =C69*33000 -> 33000 | G69: =F69*C69 -> 33000 | I69: =IF(ПНР!L18=0,30000,ПНР!L18) -> 3800 | J69: 2000 | K69: 4500 | L69: =5500+6500 -> 12000
A70: Транспортные расходы | B70: Доставка оборудования и материалов на объект | C70: 1 | D70: усл. | F70: =C70*19500 -> 19500 | G70: =F70 -> 19500 | L70: 10000
A71: Доставка бытовки на объект | B71: Если есть такая необходимость, мы предоставляем бытовку для проживания на объекте строителей. После окончания работ бытовка вывозится. | D71: км от мкад | G71: =IF(C71=0,0, IF(C71<100,24000, IF(C71<150,30000,36000))) -> 0 | L71: =IF(C71=0,0, IF(C71<=50,13500, IF(C71<=100,17000, IF(C71<=150,20500, IF(C71<=200,24000, IF(C71<=250,27500, IF(C71>250,31000,))))))) -> 0
A72: Итого по смете: | F72: =SUM(G63:G64,G67:G71) -> 103061.675 | I72: =SUM(I11:I62,I67:I71,I6:I9) -> 40365 | J72: =SUM(J12:J62,J67:J71,J6:J9) -> 8990.4625 | K72: =SUM(K12:K62,K67:K71,K6:K9) -> 5793.5825 | L72: =SUM(I72:K72,L67:L71) -> 77149.045 | M72: =IF(F72=0,"",(F74-L72)/F74) -> 0.2514283804
A73: Корректировка стоимости (скидка):
A74: Итого по смете с учетом скидки: | F74: =F72-G73 -> 103061.675
A76: ** Полноценная настройка автоматики возможна только при наличии интернета WiFi или 2G.GSM. | J76: Коэффициент для заказчика | L76: Коэффициент для СЕБЕСА (дом свыше 350м2)
B77: =РАБОТЫ!$A$1 -> Дата
J78: Мат | K78: Раб | L78: Мат | M78: Раб
J79: 1 | K79: 1 | L79: 1 | M79: 1

Sheet ПНР
A1: Приложение № к Договору подряда № ______________от_____________ | J1: КОЭФ для ренты мат | K1: КОЭФ для ренты раб
A2: =TODAY() -> 2024-02-02 | B2: Данный сметный расчёт действителен 7 календарных дней. По истечению срока, цены могут быть изменены. | J2: 0.65 | K2: 0.9
A3: Сметный расчет ПНР
A4: ПНР | I4: =РАБОТЫ!A1 -> Дата
A5: Материалы/услуги | B5: Описание | C5: Кол-во | D5: Ед.изм | E5: Мат-ал, руб | F5: Работа, руб | G5: Итого, руб | I5: Материал | J5: Бригада | K5: Прораб | L5: Итого | M5: Рента
A6: Котельная (двухконтурный настенный котел) | B6: Пуско-наладочные работы включают: - настройка систем безопасности котельного оборудования; - настройка стабилизатора напряжения; - настройка автоматики котла; - заправка системы отопления теплоносителем с опрессовкой; - регулировка давления в системе отопления; - стравливание воздуха из системы отопления; - пуск и балансировка системы отопления, проверка работоспособности; - наладка работы выносных программируемых регуляторов. | D6: усл | E6: =I6/$J$2 -> 0 | F6: =(J6+K6)/$K$2 -> 0 | G6: =E6+F6 -> 0 | I6: =C6*РАБОТЫ!F243 -> 0 | J6: =C6*РАБОТЫ!C243*J23 -> 0 | K6: =C6*РАБОТЫ!D243 -> 0 | L6: =SUM(I6:K6) -> 0 | M6: =IF(G6=0,"",(G6-L6)/G6) -> 
A7: Котельная (одноконтурный настенный котел) | D7: усл | E7: =I7/$J$2 -> 0 | F7: =(J7+K7)/$K$2 -> 0 | G7: =E7+F7 -> 0 | I7: =C7*РАБОТЫ!F244 -> 0 | J7: =C7*РАБОТЫ!C244*J23 -> 0 | K7: =C7*РАБОТЫ!D244 -> 0 | L7: 0
A8: Котельная (два настенных котла) | D8: усл | E8: 0 | F8: 0 | G8: 0 | I8: =C8*РАБОТЫ!F245 -> 0 | J8: =C8*РАБОТЫ!C245*J23 -> 0 | K8: =C8*РАБОТЫ!D245 -> 0 | L8: 0
A9: Котельная (напольный котел) | D9: усл | E9: 0 | F9: 0 | G9: 0 | I9: =C9*РАБОТЫ!F246 -> 0 | J9: =C9*РАБОТЫ!C246*J23 -> 0 | K9: =C9*РАБОТЫ!D246 -> 0 | L9: 0
A10: Комплексное управление котлом (2 котла/напольный котел) | D10: усл | F10: =(J10+K10)/0.85 -> 0 | G10: 0 | J10: =(C10*7350)*J23 -> 0 | K10: =C10*1470 -> 0 | L10: 0
A11: Дополнительно строение подключённое к теплотрассе | D11: усл | F11: 0 | G11: 0 | I11: =C11*РАБОТЫ!F250 -> 0 | J11: =C11*РАБОТЫ!C250 -> 0 | K11: =C11*РАБОТЫ!D250 -> 0 | L11: 0
A12: Вода очищенная 20л | D12: канистра | E12: =I12/0.95 -> 0 | G12: 0 | I12: =C12*РАБОТЫ!F252 -> 0 | L12: 0
A13: Запуск ХВС ГВС | B13: Запуск системы холодного и горячево водоснабжения (выполняется при наличии установленных сантехприборов) | D13: усл | E13: 0 | F13: =(J13+K13)/0.5 -> 0 | G13: 0 | I13: =C13*РАБОТЫ!F254 -> 0 | J13: =C13*РАБОТЫ!C254*J23 -> 0 | K13: =C13*РАБОТЫ!D254+IF(C13>0,2000,0) -> 0 | L13: 0
A14: Дополнительные расходы (первичный выезд) | B14: Пуско-наладочные работы системы автоматики аварийными инспекторами | C14: 1 | D14: усл | F14: =L14 -> 3800 | G14: =C14*F14 -> 3800 | J14: 3800 | L14: =J14 -> 3800
A15: Дополнительные расходы (транспортные расходы) | B15: Стравливание воздуха из системы отопления (производится при повторном выезде), присутствие заказчика | D15: усл | F15: =J15/0.8-IF(C15>0,333,0) -> 0 | G15: 0 | J15: =C15*(РАБОТЫ!D256+РАБОТЫ!D257)+IF(C15>0,3000,0) -> 0 | L15: =SUM(I15:J15) -> 0
A16: Итого материал: | G16: =SUM(E6:E15) -> 0 | L16: =SUM(I6:I15) -> 0
A17: Работа: | G17: =SUM(F6:F15) -> 3800 | L17: =SUM(J6:K15) -> 3800 | M17: 0
A18: Итого по смете: | F18: =SUM(G16:G17) -> 3800 | I18: =SUM(I6:I15) -> 0 | J18: =SUM(J6:J15) -> 3800 | K18: =SUM(K6:K15) -> 0 | L18: =SUM(I18:K18) -> 3800 | M18: ДОБАВЛЯТЬ 3000р в инфо окно
A19: Корректировка стоимости (скидка):
A20: Итого по смете с учетом скидки: | F20: =F18-G19 -> 3800
B21: =РАБОТЫ!$A$1 -> Дата | M21: Рента
H22: Коэффициент для домов свыше 350м2 (1,5 проставлять вручную)
J23: 1

Sheet ПНР-КО
A1: Приложение № к Договору подряда № ______________от_____________ | J1: КОЭФ для ренты мат | K1: КОЭФ для ренты раб
A2: =TODAY() -> 2024-02-02 | B2: Данный сметный расчёт действителен 7 календарных дней. По истечению срока, цены могут быть изменены. | J2: 0.65 | K2: 0.9
A3: Сметный расчет ПНР
A4: ПНР | I4: =РАБОТЫ!A1 -> Дата
A5: Материалы/услуги | B5: Описание | C5: Кол-во | D5: Ед.изм | E5: Мат-ал, руб | F5: Работа, руб | G5: Итого, руб | I5: Материал | J5: Бригада | K5: Прораб | L5: Итого | M5: Рента
A6: Котельная (двухконтурный настенный котел) | B6: Пуско-наладочные работы включают: - настройка систем безопасности котельного оборудования; - настройка стабилизатора напряжения; - настройка автоматики котла; - заправка системы отопления теплоносителем с опрессовкой; - регулировка давления в системе отопления; - стравливание воздуха из системы отопления; - пуск и балансировка системы отопления, проверка работоспособности; - наладка работы выносных программируемых регуляторов. | D6: усл | E6: =I6/$J$2 -> 0 | F6: =(J6+K6)/$K$2 -> 0 | G6: =E6+F6 -> 0 | I6: =C6*РАБОТЫ!F243 -> 0 | J6: =C6*РАБОТЫ!C243*$J$26 -> 0 | K6: =C6*РАБОТЫ!D243 -> 0 | L6: =SUM(I6:K6) -> 0 | M6: =IF(G6=0,"",(G6-L6)/G6) -> 
A7: Котельная (одноконтурный настенный котел) | D7: усл | E7: =I7/$J$2 -> 0 | F7: =(J7+K7)/$K$2 -> 0 | G7: =E7+F7 -> 0 | I7: =C7*РАБОТЫ!F244 -> 0 | J7: =C7*РАБОТЫ!C244*$J$26 -> 0 | K7: =C7*РАБОТЫ!D244 -> 0 | L7: 0
A8: Котельная (два настенных котла) | D8: усл | E8: 0 | F8: 0 | G8: 0 | I8: =C8*РАБОТЫ!F245 -> 0 | J8: =C8*РАБОТЫ!C245*$J$26 -> 0 | K8: =C8*РАБОТЫ!D245 -> 0 | L8: 0
A9: Котельная (напольный котел) | D9: усл | E9: 0 | F9: 0 | G9: 0 | I9: =C9*РАБОТЫ!F246 -> 0 | J9: =C9*РАБОТЫ!C246*$J$26 -> 0 | K9: =C9*РАБОТЫ!D246 -> 0 | L9: 0
A10: Комплексное управление котлом (1 котел) | D10: усл | F10: =(J10+K10)/0.85 -> 0 | G10: 0 | J10: =(C10*2625)*J26 -> 0 | K10: =C10*525 -> 0 | L10: 0
A11: Комплексное управление котлом (2 котла/напольный котел) | D11: усл | F11: =(J11+K11)/0.85 -> 0 | G11: 0 | J11: =(C11*7350)*J26 -> 0 | K11: =C11*1470 -> 0 | L11: 0
A12: Дополнительно строение подключённое к теплотрассе | D12: усл | F12: 0 | G12: 0 | I12: =C12*РАБОТЫ!F250 -> 0 | J12: =C12*РАБОТЫ!C250 -> 0 | K12: =C12*РАБОТЫ!D250 -> 0 | L12: 0
A13: Вода очищенная 20л | D13: канистра | E13: =I13/0.95 -> 0 | G13: 0 | I13: =C13*РАБОТЫ!F252 -> 0 | L13: 0
A14: Запуск ХВС ГВС | B14: Запуск системы холодного и горячево водоснабжения (выполняется при наличии установленных сантехприборов) | D14: усл | E14: 0 | F14: =(J14+K14)/0.5 -> 0 | G14: 0 | I14: =C14*РАБОТЫ!F254 -> 0 | J14: =C14*РАБОТЫ!C254*J26 -> 0 | K14: =C14*РАБОТЫ!D254+IF(C13>0,2000,0) -> 0 | L14: 0
A15: Монтаж электрики для котельного оборудования | B15: Установка накладных розеток, кабель-каналов и проводов для подключения котельного оборудования | D15: усл | E15: =I15/0.9 -> 0 | F15: =(J15+K15)/0.8 -> 0 | G15: =E15+F15 -> 0 | I15: =C15*РАБОТЫ!F255 -> 0 | J15: =(C15*2500)*J26 -> 0 | K15: =C15*290 -> 0 | L15: 0
A16: Беспроводная GSM - Розетка (материал) | B16: Дистанционно управляемая розетка. GSM-розетка поможет предупредить отключение электроотопительного оборудования и, как следствие, промерзание дома и коммуникаций зимой. Прибор отправляет сигналы в отдел сервиса GOOD WOOD. Аварийный сигнал дублируется в ленте личного кабинета клиента и отправляется через SMS | D16: шт. | E16: =I16/0.8 -> 0 | G16: =E16+F16 -> 0 | I16: =C16*РАБОТЫ!F253 -> 0 | J16: =C16*500 -> 0 | L16: =SUM(I16:K16) -> 0
A17: Дополнительные расходы (первичный выезд) | B17: Стравливание воздуха из системы отопления (производится при повторном выезде), присутствие заказчика | C17: 1 | D17: усл | F17: =L17 -> 3800 | G17: 3800 | J17: 3800 | L17: 3800
A18: Дополнительные расходы (транспортные расходы) | B18: Стравливание воздуха из системы отопления (производится при повторном выезде), присутствие заказчика | D18: усл | F18: =J18/0.8-IF(C18>0,333,0) -> 0 | G18: 0 | J18: =C18*(РАБОТЫ!D256+РАБОТЫ!D257)+IF(C14>0,3000,0) -> 0 | L18: =SUM(I18:J18) -> 0
A19: Итого материал: | G19: =SUM(E6:E18) -> 0 | L19: =SUM(I6:I18) -> 0
A20: Работа: | G20: =SUM(F6:F18) -> 3800 | L20: =SUM(J6:K18) -> 3800 | M20: 0
A21: Итого по смете: | F21: =SUM(G19:G20) -> 3800 | I21: =SUM(I6:I18) -> 0 | J21: =SUM(J6:J18) -> 3800 | K21: =SUM(K6:K18) -> 0 | L21: =SUM(I21:K21) -> 3800 | M21: =IF(F23=0,"",(F23-L21)/F23) -> 0
A22: Корректировка стоимости (скидка):
A23: Итого по смете с учетом скидки: | F23: =F21-G22 -> 3800
B24: =РАБОТЫ!$A$1 -> Дата
H25: Коэффициент для домов свыше 350м2 (1,5 проставлять вручную)
J26: 1

Sheet УЗЛЫ
A1: Материал ОВиВК | B1: Ед.изм. | C1: Цена с наценкой | D1: Цена по складу | E1: Дата обновления | F1: Запас 3% | G1: Для конвекторов (иначе выбиваются из рыночной стоимости) | H1: Курс ЕВРО | I1: ='ОВиВК ТЕСЕ'!I2 -> 100
A2: Uponor Ecoflex Quattro труба 2x25x2,3-2x25х3,5 /175 (арт. 1018147) | B2: пог.м | C2: =D2*$F$2 -> 6807.27 | D2: 6609 | E2: 2022-12-14 | F2: 1.03 | G2: 1.03
A3: Uponor Ecoflex Quattro труба 2x32x2,9-2x25х3,5 /175 (арт. 1018148) | B3: пог.м | C3: 9493.51 | D3: 9217 | E3: 2022-12-14 | F3: по запросу от Тамары
A4: Uponor Ecoflex Varia Twin PN6 25x2.3 25x2.3 140 (арт. 1018238) | B4: пог.м | C4: 4230.21 | D4: 4107 | E4: 2022-12-14
A5: Uponor Ecoflex Varia Twin PN6 2х32x2.9 / PN6 140 (арт. 1018239) | B5: пог.м | C5: 3674.01 | D5: 3567 | E5: 2022-12-14
A6: Труба для хол.водоснабжения ПНД ПЭ-100, SDR 17, PN 10, 32х2,0 мм/100м. | B6: пог.м | C6: 50.47 | D6: 49 | E6: 2023-09-12
A7: Теплоизоляция "Энергофлекс" 35/9 мм | B7: пог.м | C7: 37.08 | D7: 36 | E7: 2024-01-10 | F7: по запросу от Тамары
A8: ТТ_1.1_Дом до_150 м.кв. (Uponor Ecoflex Quattro MIDI труба 2x25x2,3-25x3,5-20x2,8-140) | B8: компл | C8: 94379.93 | D8: 91631 | E8: 2023-11-14
A9: ТТ_2.1_150-250 кв.м. (Uponor Quattro Midi 2X32X2,9-25X3,5-20X2,8/140) | B9: компл | C9: 95361.52 | D9: 92584 | E9: 2023-11-14
A10: 71716 Труба гофрированная DKC ПНД легкая D16 с протяжкой черная | B10: бухта | C10: 2266 | D10: 2200 | E10: 2024-01-10 | F10: по запросу от Галины ПНД/ПВД труба 50 мм (бухта 100м) соотв. 14*100
A11: МКЭШ 5х0,75 | B11: пог.м | C11: 103.927 | D11: 100.9 | E11: 2024-01-10 | F11: по запросу от Галины
A12: Датчик температуры МЛ-722 (DS) | B12: шт | C12: 669.5 | D12: 650 | E12: 2024-01-10 | F12: по запросу от Тамары
A13: Коллекторная система отопления (кв.м) ТЕСЕ | B13: кв.м | C13: 484.3305615 | D13: ='Расчёты ОВиВК'!G9 -> 470.2238462 | E13: 2023-09-12 | F13: см. Расчёты ОВиВК
F14: см. Расчёты ОВиВК
A15: Коллекторная система отопления (кв.м) Stout | B15: кв.м | C15: 363.6603041 | D15: ='Расчёты ОВиВК'!Q9 -> 353.0682564 | E15: 2023-09-12 | F15: см. Расчёты ОВиВК
A16: Переход системы отопления со Stout на ТЕСЕ | B16: кв.м | C16: 120.6702574 | D16: =D13-D15 -> 117.1555897 | E16: 2023-09-12
A17: Материалы для опрессовки (арт.2806) | B17: шт | C17: 3607.06 | D17: 3502 | E17: 2021-01-20 | F17: включается в коллекторную систему отопления Рехау и Стаут
A18: Радиатор Vogel&Noot Ventil 22 kv-500-1200 | B18: шт | C18: 14792.86 | D18: 14362 | E18: 2023-09-12 | F18: запрос Тамаре 12.01.2022
A19: Радиатор Roomer 22 kv-500-1200 | B19: шт | C19: 9270 | D19: 9000 | E19: 2024-01-10
A20: Радиатор КЗТО Гармония С40 2-500-28 | B20: шт | C20: 32548 | D20: 31600 | E20: 2023-06-07 | F20: информация о понижении на 20% от Волковой
A21: Радиатор КЗТО РСК 3-500-27 1/2нп | B21: шт | C21: 30385 | D21: 29500 | E21: 2023-04-07
A22: TECE_Комплект декоративной подводки к радиатору ИЗ ПОЛА | C22: 2997.3 | D22: 2910 | E22: 2024-01-10 | F22: В середине Июля 2023г необходимо сделать ревизию по ценам ТЕСЕ
A23: TECE_Комплект декоративной подводки к радиатору ИЗ СТЕНЫ | C23: 3193 | D23: 3100 | E23: 2024-01-10
A25: STOUT_Комплект декоративной подводки к радиатору (трубки нерж.сталь) | B25: 2276 | C25: 2575 | D25: 2500 | E25: 2024-01-10
A26: Комплект напольного крепежа для радиаторов h=200мм | B26: 23922 | C26: 6196.48 | D26: 6016 | E26: 2023-01-12 | F26: на заказчике Никитин АА за штуку 2600 (в комплекте 2,3 шт) - с Димой принято решение по цене 5 200р. 23.04 закладываем 3 шт.
A27: Узел подключения радиатора Vogel Noot длиной до 1600мм (ПРЯМОЕ) | B27: компл | C27: 2550.28 | D27: 2476 | E27: 2023-02-21
A28: Мультифлекс прямой/крепеж/термоголовка Rettig Heating Group | B28: 21753 | C28: 2987 | D28: 2900 | E28: 2024-01-10
A29: Мультифлекс угловой/крепеж/термоголовка Rettig Heating Group | B29: 21754 | C29: 2884 | D29: 2800 | E29: 2024-01-10
A30: TECE_Узел подключения радиатора из стены -закладная часть (трубки нерж.сталь) + угловой мультифлекс | C30: 3502 | D30: 3400 | E30: 2024-01-10
A32: STOUT_Узел подключения радиатора из стены -закладная часть (трубки нерж.сталь) + угловой мультифлекс | B32: 3013 | C32: 3500.1151 | D32: 3398.17 | E32: 2023-09-12
A33: 703202 Настенный регулятор программируемый для регул.темпер.принуд.конвекция | B33: шт | C33: 8270.9 | D33: 8030 | E33: 2024-01-10
A34: TECE_Узел подключения конвектора Varmann прямой | C34: 1957 | D34: 1900 | E34: 2024-01-10
A36: Конвектор Varmann Qtherm Q 230.75.1250 RR U EV1 | B36: шт | C36: 40994 | D36: =(631*F38)-(233*F38) -> 39800 | E36: 2023-04-12 | F36: Волкова 07.04.23
A37: Конвектор Varmann Qtherm Q 230.75.1500 RR U EV1 | B37: шт | C37: 45938 | D37: =(707*F38)-(261*F38) -> 44600 | E37: 2024-01-10 | F37: скидка 37% курс 80р
A38: Конвектор Varmann Qtherm Q 230.75.1750 RR U EV1 | B38: шт | C38: 50882 | D38: =(784*F38)-(290*F38) -> 49400 | E38: 2024-01-10 | F38: =I1 -> 100
A39: Конвектор Varmann Qtherm 230.75.2000. | B39: шт | C39: =D39*$G$2 -> 55929 | D39: =(861*F38)-(318*F38) -> 54300 | E39: 2023-04-12
A40: Конвектор Varmann Qtherm 230.75.2250. | B40: шт | C40: =D40*$G$2 -> 60873 | D40: =(938*F38)-(347*F38) -> 59100 | E40: 2023-04-12
A41: Конвектор Varmann Qtherm 230.75.3000. | B41: шт | C41: 75911 | D41: =(1169*F38)-(432*F38) -> 73700 | E41: 2023-04-12
A42: Конвектор Varmann Ntherm, 230.90.1400. | B42: шт | C42: 22969 | D42: =(353*F38)-(130*F38) -> 22300 | E42: 2023-04-12
A43: Конвектор Varmann Ntherm, 230.90.1800. | B43: шт | C43: 25750 | D43: 25000 | E43: 2024-01-10
A44: Конвектор Varmann Ntherm, 230.90.2200. | B44: шт | C44: 33887 | D44: =(521*F38)-(192*F38) -> 32900 | E44: 2023-04-12
A45: Конвектор Varmann Ntherm ES (для влажных помещений), 230.90.1400. | B45: шт | C45: 30379.85 | D45: 29495 | E45: 2023-04-12
A46: Конвектор Varmann Ntherm ES (для влажных помещений), 230.90.1800. | B46: шт | C46: 38077.04 | D46: 36968 | E46: 2023-04-12
A47: Конвектор Varmann Ntherm ES (для влажных помещений), 230.90.2200. | B47: шт | C47: 45780.41 | D47: 44447 | E47: 2023-04-12
A48: Конвектор Varmann MiniKon 235.130.1600 глубина 235мм,высота 130мм, длина 1600мм напольный | B48: шт | C48: 30179 | D48: =(390*F38)-(97*F38) -> 29300 | E48: 2023-04-12 | F48: скидка 25% курс 80р
A49: Конвектор Varmann MiniKon 185.130.1600 глубина 185мм,высота 130мм, длина 1600мм напольный | B49: шт | C49: 25132 | D49: =(325*F38)-(81*F38) -> 24400 | E49: 2023-04-12
A50: TECE_Узел подключения вне котельной 25 УНИВЕРСАЛЬНАЯ ТРУБА | C50: 15450 | D50: 15000 | E50: 2024-01-10
A51: 7320258 Универсальная многослойная труба 25*4,0мм | C51: 18900.5 | D51: =734*25 -> 18350 | E51: 2024-01-10
A52: TECE_Узел подключения вне котельной 32 УНИВЕРСАЛЬНАЯ ТРУБА | D52: 23700 | E52: 2024-01-10
A53: [A] 732032 Универсальная многослойная труба 32*4,0мм | D53: =1212*32 -> 38784 | E53: 2024-01-10
A54: STOUT_Узел подключения вне котельной 25 | B54: узел | C54: =D54*F2 -> 10815 | D54: 10500 | E54: 2024-01-10
A55: Труба PEX 25*3,5 | B55: узел | C55: =D55*F2 -> 9012.5 | D55: =350*25 -> 8750 | E55: 2024-01-10
A56: STOUT_Узел подключения вне котельной 32 | B56: узел | C56: =D56*F2 -> 16171 | D56: 15700 | E56: 2024-01-10
A57: Труба PEX 32*4,4 | B57: узел | C57: =D57*F2 -> 19116.8 | D57: =580*32 -> 18560 | E57: 2024-01-10
G58: STOUT_Узел коллектора отопления на 3 контура ШРН-1 | H58: =I58*$F$2 -> 24486.7256 | I58: 23773.52 | J58: 2023-11-14 | M58: TECE_Узел коллектора отопления на 3 контура ШРН-1 | N58: =O58*$F$2 -> 25956 | O58: 25200 | P58: 2024-01-10
G59: STOUT_Узел коллектора отопления на 4 контура ШРН-2 | H59: =I59*$F$2 -> 23825.7952 | I59: 23131.84 | J59: 2023-11-14 | M59: TECE_Узел коллектора отопления на 4 контура ШРН-2 | N59: 30288.18 | O59: 29406 | P59: 2024-01-10
G60: STOUT_Узел коллектора отопления на 5 контуров ШРН-2 | H60: 26780 | I60: 26000 | J60: 2023-11-14 | M60: TECE_Узел коллектора отопления на 5 контуров ШРН-2 | N60: 34608 | O60: 33600 | P60: 2024-01-10
G61: STOUT_Узел коллектора отопления на 6 контура ШРН-2 | H61: 36153 | I61: 35100 | J61: 2024-01-10 | M61: TECE_Узел коллектора отопления на 6 контура ШРН-2 | N61: 46865 | O61: 45500 | P61: 2024-01-10
G62: STOUT_Узел коллектора отопления на 7 контуров ШРН-3 | H62: 32960 | I62: 32000 | J62: 2024-01-10 | M62: TECE_Узел коллектора отопления на 7 контуров ШРН-3 | N62: 44290 | O62: 43000 | P62: 2024-01-10
G63: STOUT_Узел коллектора отопления на 8 контуров ШРН-3 | H63: 36050 | I63: 35000 | J63: 2024-01-10 | M63: TECE_Узел коллектора отопления на 8 контуров ШРН-3 | N63: 49440 | O63: 48000 | P63: 2024-01-10
G64: STOUT_Узел коллектора отопления на 9 контуров ШРН-3 | H64: 38110 | I64: 37000 | J64: 2024-01-10 | M64: TECE_Узел коллектора отопления на 9 контуров ШРН-3 | N64: 53560 | O64: 52000 | P64: 2024-01-10
G65: STOUT_Узел коллектора отопления на 10 контуров ШРН-4 | H65: 42230 | I65: 41000 | J65: 2024-01-10 | M65: TECE_Узел коллектора отопления на 10 контуров ШРН-4 | N65: 59225 | O65: 57500 | P65: 2024-01-10
G66: STOUT_Узел коллектора отопления на 11 контуров ШРН-4 | H66: 44779.9916 | I66: 43475.72 | J66: 2024-01-10 | M66: TECE_Узел коллектора отопления на 11 контуров ШРН-4 | N66: 61800 | O66: 60000 | P66: 2024-01-10
G67: STOUT_Узел коллектора отопления на 12 контуров ШРН-4 | H67: 49746.2808 | I67: 48297.36 | J67: 2024-01-10 | M67: TECE_Узел коллектора отопления на 12 контуров ШРН-4 | N67: 69010 | O67: 67000 | P67: 2024-01-10
A68: Точка водоснабжения ТЕСЕ | B68: шт | C68: =D68*$F$2*1.01 -> 6995.522119 | D68: ='Расчёты ОВиВК'!G160 -> 6724.52381 | E68: 2023-09-12 | F68: см. Расчёты ОВиВК
F69: см. Расчёты ОВиВК
A70: Точка водоснабжения Stout | B70: шт | C70: =D70*$F$2*1.01 -> 4773.375929 | D70: ='Расчёты ОВиВК'!R160 -> 4588.460952 | E70: 2023-09-12 | F70: см. Расчёты ОВиВК
A71: Переход системы водоснабжения со Stout на ТЕСЕ | B71: шт | C71: =D71*$F$2*1.01 -> 2222.14619 | D71: =D68-D70 -> 2136.062857 | E71: 2023-09-12
G72: STOUT_Коллектор Водоснабжение 4 отвода ШРВ-1 Без Циркуляции | H72: =I72*$F$2 -> 29870 | I72: 29000 | J72: 2024-01-10 | M72: TECE_Коллектор Водоснабжение 4 отвода ШРВ-1 БЕЗ Ц. (Труба HIS) | N72: =O72*$F$2 -> 35020 | O72: 34000 | P72: 2024-01-10
G73: STOUT_Коллектор Водоснабжение 4 отвода ШРН-3 Циркуляция | H73: =I73*$F$2 -> 43260 | I73: 42000 | J73: 2024-01-10 | M73: TECE_Коллектор Водоснабжение 4 отвода ШРВ-3 Циркуляция (Труба HIS) | N73: =O73*$F$2 -> 51500 | O73: 50000 | P73: 2024-01-10
F74: см. Расчёты ОВиВК
F75: см. Расчёты ОВиВК
A76: Точка канализации REXAU | B76: шт | C76: =D76*$F$2 -> 7578.970463 | D76: ='Расчёты ОВиВК'!R124 -> 7358.22375 | E76: 2021-11-25 | F76: см. Расчёты ОВиВК
A77: Точка канализации SINICON шумопоглащающие | B77: шт | C77: 3510.015202 | D77: ='Расчёты ОВиВК'!H124 -> 3407.78175 | E77: 2022-10-24 | F77: см. Расчёты ОВиВК
A78: Точка канализации SINICON | B78: шт | C78: 1998.828622 | D78: ='Расчёты ОВиВК'!AB124 -> 1940.610312 | E78: 2022-01-17 | F78: см. Расчёты ОВиВК
A79: Переход с трубы Синикон (купон) на трубу Рехау | B79: шт | C79: 5580.141841 | D79: =D76-D78 -> 5417.613438 | E79: 2022-01-17
A80: TECE_Проходной полив (ДЛЯ PROTHERM) | C80: 8549 | D80: 8300 | E80: 2024-01-10
A82: трап горизонт | B82: шт | C82: =D82*$F$2*1.09 -> 5501.23 | D82: 4900 | E82: 2024-01-10
A83: трап линейный ТЕСЕ (арт. | B83: шт | C83: =D83 -> 43432.31 | D83: 43432.31 | E83: 2024-01-10 | F83: см.скрин из письма правее + 1100 (комплект опор, нет в счёте)
A84: Инсталляция Унитаз (Монтаж в деревянную каркасную перегородку) | B84: компл | C84: =D84*F2 -> 29664 | D84: 28800 | E84: 2024-01-10
A85: Инсталляция Унитаз (Монтаж короба на кирпичную стену) | B85: компл | C85: =D85*F2 -> 63242 | D85: 61400 | E85: 2024-01-10
G87: STOUT_Труба теплого пола+стяжки | H87: =I87*$F$2 -> 95.3574 | I87: 92.58 | J87: 2024-01-10 | M87: Труба для теплого пола БЕЗ ИЗОЛЯЦИИ d16 TECE | N87: =O87*$F$2 -> 122.57 | O87: 119 | P87: 2024-01-10
G88: STOUT_Труба теплого пола+стяжки + гофра | H88: =I88*$F$2 -> 122.8069 | I88: 119.23 | J88: 2024-01-10 | M88: Труба для теплого пола В ИЗОЛЯЦИИ d16 TECE | N88: =O88*$F$2 -> 150.38 | O88: 146 | P88: 2024-01-10
G89: STOUT_Узел теплого пола на 3 контура _ШРВ-1 | H89: 26368 | I89: 25600 | J89: 2024-01-10 | M89: TECE_Узел теплого пола на 3 контура _ШРВ-1 | N89: 27604 | O89: 26800 | P89: 2024-01-10
G90: STOUT_Узел теплого пола на 4 контура _ШРВ-2 | H90: 29046 | I90: 28200 | J90: 2024-01-10 | M90: TECE_Узел теплого пола на 4 контура _ШРВ-2 | N90: 30531.26 | O90: 29642 | P90: 2024-01-10
G91: STOUT_Узел теплого пола на 5 контуров _ШРВ-2 | H91: 33784 | I91: 32800 | J91: 2024-01-10 | M91: TECE_Узел теплого пола на 5 контуров _ШРВ-2 | N91: 34505 | O91: 33500 | P91: 2024-01-10
G92: STOUT_Узел теплого пола на 6 контуров _ШРВ-3 | H92: 37080 | I92: 36000 | J92: 2024-01-10 | M92: TECE_Узел теплого пола на 6 контуров _ШРВ-3 | N92: 38110 | O92: 37000 | P92: 2024-01-10
G93: STOUT_Узел теплого пола на 7 контуров _ШРВ-3 | H93: 43466 | I93: 42200 | J93: 2024-01-10 | M93: TECE_Узел теплого пола на 7 контуров _ШРВ-3 | N93: 44290 | O93: 43000 | P93: 2024-01-10
G94: STOUT_Узел теплого пола на 8 контуров _ШРВ-3 | H94: 51500 | I94: 50000 | J94: 2024-01-10 | M94: TECE_Узел теплого пола на 8 контуров _ШРВ-3 | N94: 53045 | O94: 51500 | P94: 2024-01-10
G95: STOUT_Узел теплого пола на 9 контуров _ШРВ-4 | H95: 53560 | I95: 52000 | J95: 2024-01-10 | M95: TECE_Узел теплого пола на 9 контуров _ШРВ-4 | N95: 54590 | O95: 53000 | P95: 2024-01-10
G96: STOUT_Узел теплого пола на 10 контуров _ШРВ-4 | H96: 55620 | I96: 54000 | J96: 2024-01-10 | M96: TECE_Узел теплого пола на 10 контуров _ШРВ-4 | N96: 57165 | O96: 55500 | P96: 2024-01-10
G97: STOUT_Узел теплого пола на 11 контуров _ШРВ-4 | H97: 63860 | I97: 62000 | J97: 2024-01-10 | M97: TECE_Узел теплого пола на 11 контуров _ШРВ-4 | N97: 66641 | O97: 64700 | P97: 2024-01-10
G98: STOUT_Узел теплого пола на 12 контуров _ШРВ-5 | H98: 69525 | I98: 67500 | J98: 2024-01-10 | M98: TECE_Узел теплого пола на 12 контуров _ШРВ-5 | N98: 71070 | O98: 69000 | P98: 2024-01-10
A99: Meibes Регулировочный короб RTL-I STANDART | B99: компл. | C99: =D99*$F$2 -> 8961 | D99: 8700 | E99: 2024-01-10 | G99: Meibes Регулировочный короб RTL-I STANDART | H99: 8856.97 | I99: 8599 | J99: 2023-09-12 | M99: Meibes Регулировочный короб RTL-I STANDART | N99: 8961 | O99: 8700 | P99: 2024-01-10
A100: Комплект расходных материалов ТП (Кирпичные дома) | B100: ТЕСЕ | C100: 4532 | D100: 4400 | E100: 2024-01-10
A101: Труба для теплого пола БЕЗ ИЗОЛЯЦИИ d16 TECE | B101: ТЕСЕ | C101: 122.57 | D101: 119 | E101: 2024-01-10
A102: Труба для теплого пола В ИЗОЛЯЦИИ d16 TECE | B102: ТЕСЕ | C102: 150.38 | D102: 146 | E102: 2024-01-10
A104: TECE_Терморегулятор с датчиком и комплектом подключения 24В | B104: ТЕСЕ | C104: 9270 | D104: 9000 | E104: 2024-01-10
A105: Комплект расходных материалов ТП (кирпичные дома) | B105: компл. | C105: 4532 | D105: 4400 | E105: 2024-01-10
A107: TECE_Сервопривод 24В | B107: ТЕСЕ | C107: 1854 | D107: 1800 | E107: 2024-01-10
A108: Термостатическая головка ТСГ ВПС-01 | B108: шт | C108: 3738.9 | D108: 3630 | E108: 2024-01-10
A110: TECE_Клеммная колодка 10 выходов 24В | B110: ТЕСЕ | C110: 13802 | D110: 13400 | E110: 2024-01-10
A111: Лоток (трап) в гараже 4м | B111: компл. | C111: 17410.09 | D111: 16903 | E111: 2024-01-10
A112: Пескоуловитель | B112: компл. | C112: 1608.86 | D112: 1562 | E112: 2024-01-10
A113: ЦПС, расходные материалы | B113: компл. | C113: 412 | D113: 400 | E113: 2023-01-12
A114: Подключение к закладной | B114: компл. | C114: 463.5 | D114: 450 | E114: 2023-01-12
A115: REHAU_Подключение скрытого смесителя Гиг. душа | B115: узел | C115: 2554.4 | D115: 2480 | E115: 2023-01-12
A116: TECE_Подключение скрытого смесителя Гиг. душа | C116: 5871 | D116: 5700 | E116: 2024-01-10
A117: REHAU_Подключение скрытого смесителя Душевой/ванны | B117: узел | C117: 4447.54 | D117: 4318 | E117: 2023-02-21
A118: TECE_Подключение скрытого смесителя Душевой/ванны | C118: 7622 | D118: 7400 | E118: 2024-01-10
A119: STOUT_Подключение скрытого смесителя Гиг.душа | B119: узел | C119: 3296 | D119: 3200 | E119: 2024-01-10
A120: STOUT_Подключение скрытого смесителя Душевой/ванны | B120: узел | C120: 4223 | D120: 4100 | E120: 2024-01-10
A123: Материал Котельная | B123: Арт./код | C123: Цена с наценкой | D123: Цена по складу | E123: Дата обновления | F123: Запас %
F124: 1.03 | G124: Курс ЕВРО | H124: 82
F125: 1.03
F126: 1.05
F127: 1.03
A133: Газовый котел Baxi LUNA 3 comfort (24 кВт) (Одноконтурный, настенный, турб.) | B133: 45531358 | C133: =D133*$F$125 -> 84874.0497 | D133: 82401.99 | E133: 2023-11-14 | F133: скидка 45 % условная (на самом деле порядка 13% судя по ценам на сайте)
A134: Газовый котел Baxi LUNA 3 comfort (31 кВт) (Одноконтурный, настенный, турб.) | B134: 45524358 | C134: 92007.3353 | D134: 89327.51 | E134: 2023-11-14
A135: Газовый котел Baxi LUNA 3 comfort (24 кВт) (Двухконтурный, настенный, турб.) | B135: 45624358 | C135: 100697.7955 | D135: 97764.85 | E135: 2023-11-14
A136: Газовый котел Baxi LUNA 3 comfort (31 кВт) (Двухконтурный, настенный, турб.) | B136: 45631358 | C136: 109004.6528 | D136: 105829.76 | E136: 2023-11-14
A141: STOUT котёл электрический 9 кВт | B141: 2101-000009 | C141: 53929.77 | D141: 52359 | E141: 2023-11-14
A142: STOUT котёл электрический 12 кВт | B142: 2101-000012 | C142: 54752.74 | D142: 53158 | E142: 2023-11-14
A143: STOUT котёл электрический 14 кВт | B143: 2101-000014 | C143: 56967.24 | D143: 55308 | E143: 2023-11-14
A144: STOUT котёл электрический 18 кВт | B144: 2101-000018 | C144: 60639.19 | D144: 58873 | E144: 2023-11-14
A145: ML 4486 Zont Climatic 1.3 (741) Погодозависимый автоматический регулятор для многоконтурных систем отопления (1прямой + 3смесительных контура) | B145: ML00004486 | C145: =D145*$F$124 -> 38676.5 | D145: 37550 | E145: 2023-09-12
A146: ML 4512 Zont Плата цифровой шины E-BUS (748) для Zont Climatic | B146: ML00004512 | C146: 3084.85 | D146: 2995 | E146: 2023-11-14
A147: ML 4479 Zont Smart 2.0 (744) Отопительный GSM / WiFi контроллер для газовых и электрических котлов | B147: ML00004479 | C147: 11175.5 | D147: 10850 | E147: 2023-04-07
A148: ML 3305 Zont Адаптер E-BUS (725) для подключения по цифровой шине | B148: ML00003305 | C148: 3011.72 | D148: 2924 | E148: 2023-04-07
A149: Комплект беспроводных датчиков для автоматики (наружный + внутренний) | C149: 8883.75 | D149: 8625 | E149: 2023-01-30
A150: Датчик температуры комнатный | B150: ML00004834 | C150: 669.5 | D150: 650 | E150: 2023-11-14
A151: Комплект сопутсвующих материалов для монтажа (флюс, припой и тд) | B151: 000002772 | C151: 5174.72 | D151: 5024 | E151: 2021-04-12
A152: GSM контроллер Оптима - 1 с сервисом Тепломонитор для удаленного контроля и управления котлом, датчик комнатной температуры, кабель. | B152: 000002906 | C152: 9459.52 | D152: =112*H124 -> 9184 | E152: 2021-01-20
A153: Узел автоматического включения электрического резервного котла (Вайлант Элоблок) | B153: 3383 | C153: 17866.38 | D153: 17346 | E153: 2021-04-12
A154: Узел автоматического включения электрического резервного котла (Протерм Скат) | B154: 2142 | C154: 17866.38 | D154: =D153 -> 17346 | E154: 2021-04-12
A155: Коаксиальный дымоход с проходом через кровлю (обычный котел) | B155: 000002778 | C155: 77013.1 | D155: 74770 | E155: 2021-04-12
A156: Коаксиальный дымоход с проходом через кровлю (конденсационный котел) | B156: 000002782 | C156: 70835.16 | D156: 68772 | E156: 2021-04-12
A157: Коаксиальный дымоход с проходом через стену (обычный котел) | B157: 000002775 | C157: 6099.4231 | D157: 5921.77 | E157: 2023-09-12
A158: Коаксиальный дымоход с проходом через стену (конденсационный котел) | B158: 000002779 | C158: 8755 | D158: =8500 -> 8500 | E158: 2021-04-12
A159: Бойлер Baxi UBT 160 (35 кВТ) | B159: 100020658 | C159: 51912 | D159: 50400 | E159: 2022-08-03
A160: Бойлер Baxi UBT 200 (39 кВТ) | B160: 100020659 | C160: 53560 | D160: 52000 | E160: 2022-08-03
A161: Бойлер Baxi UBT 300 (45 кВТ) | B161: 100020660 | C161: 79516 | D161: 77200 | E161: 2022-08-03
A162: Бойлер S150 (720 л/ч) | B162: 301408/202001 | C162: =D162*$F$124 -> 52187.01 | D162: 50667 | E162: 2023-02-28 | F162: Изготовитель Венгрия HAJDU (заложено в смету по наибольшей) | G162: Информация по ценам на бойлеры (Стаут, Экосистем, Хаджу) | H162: Стаут | I162: Экосистем | J162: Хаджу
A163: Бойлер S200 (768 л/ч) | B163: 301409/202002 | C163: 65966.35 | D163: 64045 | E163: 2023-09-12 | G163: 150 | H163: 28367 | I163: 25649 | J163: 25806
A164: Монтаж бойлера Ecosystem S160 - S200 | B164: 000002804 | C164: 49184.56 | D164: 47752 | E164: 2021-04-12 | G164: 200 | H164: 31956 | I164: 28884 | J164: 29032
A165: Бойлер S300 (882 л/ч) | B165: 301394/202004 | C165: 79585.01 | D165: 77267 | E165: 2023-02-28 | F165: Счёт от Тамары 21.02.23 | G165: 300 | H165: 38838 | I165: 37117 | J165: 35389
A166: Подключение бойлера Stout 200л PPR (без бойлера) | C166: 27291.4671 | D166: 26496.57 | E166: 2023-09-12
A167: Подключение бойлера Stout 300л PPR (без бойлера) | C167: 27291.91 | D167: 26497 | E167: 2023-09-12
A168: Монтаж бойлера Ecosystem S300 | B168: 000002803 | C168: 55221.39 | D168: 53613 | E168: 2021-04-12
A169: Монтаж бойлера Vaillant R120-150 | B169: 000002804 | C169: 49184.56 | D169: =D164 -> 47752 | E169: 2021-04-12
A170: Монтаж бойлера Vaillant R200 | B170: 000002804 | C170: 49184.56 | D170: =D164 -> 47752 | E170: 2021-04-12
A171: Монтаж бойлера Vaillant R300 | B171: 000002594 | C171: 55221.39 | D171: =D168 -> 53613 | E171: 2021-04-12
A172: Gorenje Накопительный электрический водонагреватель Simplicity OTG 100 SLSIM, White Colour 100л | B172: 389991 | C172: 16603.6 | D172: 16120 | E172: 2021-04-12
A173: Thermex ЭдЭ001694 Thermex НЭВН Нержавейка THERMEX MK 80 V Плоский MECHANIK - MK Нержавейка | C173: 21001.7 | D173: 20390 | E173: 2023-05-02
A174: Узел обвязки эл. водонагревателя (без бойлера) | B174: 000002578 | C174: 7828 | D174: 7600 | E174: 2022-08-16
A175: Узел подключения основного одноконтурного газового котла (Радиаторы+теплые полы) Медь. | B175: 000002792 | C175: 51444.38 | D175: 49946 | E175: 2022-08-16
A176: Узел подключения основного двухконтурного газового котла (Радиаторы+теплые полы) Медь. | B176: 000002793 | C176: 53738.19 | D176: 52173 | E176: 2022-08-16
A177: Узел подключения основного одноконтурного газового котла (Радиаторы) Медь. | B177: 000002795 | C177: 46230.52 | D177: 44884 | E177: 2022-08-16
A178: Узел подключения основного двухконтурного газового котла (Радиаторы) Медь. | B178: 000002795 | C178: 46230.52 | D178: =D177 -> 44884 | E178: 2022-08-16
A179: Узел подключения резервного электрического котла Медь. | B179: 000002794 | C179: 15905.26 | D179: 15442 | E179: 2022-08-16
A180: Узел подключения основного электрического котла (Радиаторы+теплые полы)Медь. | B180: 000002797 | C180: 45676.38 | D180: 44346 | E180: 2022-08-16
A181: Узел подключения основного электрического котла (Радиаторы)Медь. | B181: 000002796 | C181: 40231.8 | D181: 39060 | E181: 2022-08-16
A182: Узел подключения основного электрического котла (Радиаторы)Пропилен. | B182: 000002800 | C182: 20110.75 | D182: 19525 | E182: 2022-08-16
A183: Система рециркуляции ГВС позволяет, мгновенно получать горячую воду в конечной точке водоразбора (ремендуется в случае удаленности точек водоразбора от коллектора более 8-10 м). Полипропилен | B183: 000002801 | C183: 48482.1 | D183: 47070 | E183: 2022-08-16
A184: Узел заполнения системы отопления | B184: 000002802 | C184: 4070.56 | D184: 3952 | E184: 2022-08-16
A185: Смесительный контур для радиаторного отопления автоматический. Полипропилен | B185: 000002787 | C185: 42304.16 | D185: 41072 | E185: 2022-08-16
A186: Прямой контур для радиаторного отопления ручной. Полипропилен | B186: 000002788 | C186: 36019.1 | D186: 34970 | E186: 2022-08-16
A187: Смесительный контур для теплых полов автоматический. Полипропилен | B187: 000002790 | C187: 0 | E187: 2022-08-16
A188: Смесительный контур для теплых полов ручной. Полипропилен | B188: 000002789 | C188: 25929.22 | D188: 25174 | E188: 2022-08-16
A189: Материалы, мембранный бак, автоматика. Полипропилен. | B189: 000002604 | C189: 17100.06 | D189: 16602 | E189: 2022-08-16 | F189: Подключение ввода воды от скважины
A190: Материалы, автоматика. Полипропилен. | B190: 000002603 | C190: 4852.33 | D190: 4711 | E190: 2022-08-16 | F190: Подключение ввода воды от центрального водоснабжения
A191: материалы байпаса, обвязки редуктора и т.д. | B191: 000002602 | C191: 21066.59 | D191: 20453 | E191: 2022-08-16 | F191: Подключение байпаса водоподготовки, редуктора
A192: Автоматический запорный кран для защиты от протечек с 4 радиодатчиками и WiFi модуль (настройка системы и запуск производится на пуско-наладочных работах котельной) | B192: 000002847 | C192: 31602.46 | D192: 30682 | E192: 2022-08-16 | F192: Подключение антипротечки от скважины
A193: Стабилизатор необходим для защиты котла от перепадов напряжения | B193: IS1500 (1.5кВА) | C193: 13884.4 | D193: 13480 | E193: 2022-08-16
A194: Комплект для перенастройки котлов на сжиженный газ | B194: 0020053224 | C194: 1329.73 | D194: 1291 | E194: 2022-08-16
A195: Узел ввода воды от скважины без ГА | B195: 2877 | C195: 9178.33 | D195: 8911 | E195: 2022-08-16
A196: Узел ввода воды от скважины с ГА | B196: 2865 | C196: 20366.19 | D196: 19773 | E196: 2022-08-16
A197: Узел ввода воды от центрального водоснабжения | B197: 2866 | C197: 10664.62 | D197: 10354 | E197: 2022-08-16
A198: Узел Греющий кабель | B198: 2878 | C198: 3366.04 | D198: 3268 | E198: 2023-09-12
A199: Узел подключения одноконтурного/двухконтурого котла | B199: 2867 | C199: 9428.62 | D199: 9154 | E199: 2023-09-12
A200: Узел подключения вывода на полив к узлу ввода воды | B200: 2868 | C200: 1939.49 | D200: 1883 | E200: 2023-09-12
A201: Узел подключения расширительного бака отопления к системе | B201: 2869 | C201: 9397.72 | D201: 9124 | E201: 2022-08-16
A202: Узел смесительной насосной группы (управление от контроллера) БЕЗ труб | B202: 3014 | C202: 27252.77 | D202: 26459 | E202: 2022-08-16
A203: Узел подключения байпаса водоподготовки к узлу ввода воды | B203: 2870 | C203: 5206.9796 | D203: 5055.32 | E203: 2023-09-12
A204: Узел подключения бойлера косвенного нагрева 150/200 л | B204: 2871 | C204: =D204*$F$124 -> 36788.51 | D204: 35717 | E204: 2022-08-16
A205: Узел подключения насоса циркуляции к бойлеру косвенного нагрева | B205: 2872 | C205: 15562.27 | D205: 15109 | E205: 2022-08-16
A206: Узел подключения насосной группы теплого пола к системе отопления | B206: 2873 | C206: 52728.79 | D206: 51193 | E206: 2022-08-16
A207: Узел общей обвязки котельной для одноконтурного котла | B207: 2874 | C207: 12165.33 | D207: 11811 | E207: 2023-09-12
A208: Узел общей обвязки котельной для двухконтурного котла | B208: 2875 | C208: 7630.24 | D208: 7408 | E208: 2023-09-12
A209: Узел Минерит+Лист нержи. (Только для брусовой котельной!) | B209: 2876 | C209: 4284.8 | D209: 4160 | E209: 2022-08-16
A210: Комплект расходных материалов на котельную | B210: 1649 | C210: 3063.7865 | D210: 2974.55 | E210: 2022-08-16
A211: 60/100 Через стену 1000мм (Обычный котёл) | B211: 2775 | C211: 4313.64 | D211: 4188 | E211: 2022-10-11
A212: 80/125 Через кровлю, черный (Обычный котёл) | B212: 2778 | C212: 56610.86 | D212: 54962 | E212: 2022-10-11
A213: Подключение основного Электрического котла (Отопление + ГВС) | B213: 2897 | C213: =D213*$F$124 -> 27742.3084 | D213: 26934.28 | E213: 2023-09-12
A214: Подключение основного Электрического котла (Отопление) | B214: 2899 | C214: =D214*$F$124 -> 6075.1769 | D214: 5898.23 | E214: 2023-09-12
A215: Подключение резервного Электрического котла (Отопление + ГВС) | B215: 2898 | C215: 28236.6672 | D215: 27414.24 | E215: 2023-09-12
A216: Подключение резервного Электрического котла (Отопление) | B216: 2900 | C216: 5725.3992 | D216: 5558.64 | E216: 2023-09-12
A217: AquaFilter AQM Корпус 10ВВ, вход 1" FH10B1-B (FH10B1-B-WB)фильтр в сборе (колба, ключ, кронштейн, манометр) без картриджа | B217: 23917 | C217: 5562 | D217: 5400 | E217: 2021-04-12
A218: Honeywell FF06-1"АА на холодную воду, 100 мкм, 1" | B218: 22245 | C218: 6734.655 | D218: =4359*1.5 -> 6538.5 | E218: 2021-04-12
A219: 30041 (FL 30041) Flamko Сепаратор воздуха и шлама Flamcovent Clean Smart 3/4 | B219: 30041 | C219: 9321.5 | D219: 9050 | E219: 2022-08-16
... 418 more rows

Sheet Расчёты ОВиВК
B2: 1 м2 ОТОПЛЕНИЯ ТЕСЕ | E2: м2 отапл.площади | L2: 1 м2 ОТОПЛЕНИЯ STOUT | O2: м2 отапл.площади | T2: 1 м2 ОТОПЛЕНИЯ REHAU | W2: м2 отапл.площади
E3: 195 | O3: 195 | W3: 235
B4: Узел / Номенклатура | C4: Арт. | D4: Ед. | E4: Количество | F4: Цена | G4: Стоимость | L4: Узел / Номенклатура | M4: Арт. | N4: Ед. | O4: Количество | P4: Цена | Q4: Стоимость | T4: Узел / Номенклатура | U4: Арт. | V4: Ед. | W4: Количество | X4: Цена | Y4: Стоимость
A5: 1 | B5: Труба для отопления d16 | D5: шт | E5: 305 | F5: 233 | G5: =(F5*E5)/E3 -> 364.4358974 | H5: 2024-01-10 | L5: Труба PEX 16*2,2 | N5: шт | O5: 305 | P5: 193.11 | Q5: =(P5*O5)/O3 -> 302.0438462 | R5: 2024-01-10 | T5: Rehau Pink 16*2,2 | V5: шт | W5: 400 | X5: 182.68 | Y5: =(X5*W5)/W3 -> 310.9446809
A6: 2 | B6: Труба универсальная многослойная d32 TECE | D6: шт | E6: 17 | F6: 1213.45 | G6: =(F6*E6)/E3 -> 105.7879487 | L6: Труба PEX 32*4,4 | N6: шт | O6: 17 | P6: 585.28 | Q6: =(P6*O6)/O3 -> 51.02441026 | T6: Rehau Pink 32*4,4 | V6: шт | W6: 16 | X6: 842.07 | Y6: =(X6*W6)/W3 -> 57.33242553
A7: 3 | B7: Запасной материал для систем TECE d16 d20 d32 | D7: шт | E7: 1 | G7: =(F7*E7)/E3 -> 0 | L7: Запасной материал для систем STOUT | N7: шт | O7: 1 | Q7: =(P7*O7)/O3 -> 0 | T7: Запасной материал для систем REHAU | V7: шт | W7: 1 | X7: 11932.77 | Y7: =(X7*W7)/W3 -> 50.77774468
E9: ИТОГО ЗА 1м2 | G9: =SUM(G5:G7) -> 470.2238462 | O9: ИТОГО ЗА 1м2 | Q9: =SUM(Q5:Q7) -> 353.0682564 | W9: ИТОГО ЗА 1м2 | Y9: =SUM(Y5:Y7) -> 419.0548511
B16: Расчет номенклатуры по узлам
B17: 1 м2 ОТОПЛЕНИЯ REHAU | L17: 1 м2 ОТОПЛЕНИЯ STOUT
B19: Узел / Номенклатура | C19: Арт. | D19: Ед. | E19: Количество | F19: 235 | G19: м2 отапливаемой площади
A20: 1 | B20: Rehau Pink 16*2,2 более 300м | D20: шт | E20: 445
A21: 2 | B21: Rehau Pink 32*4,4 | D21: шт | E21: 14
A22: 3 | B22: REHAU_Узел подключения вне котельной 32 | D22: шт | E22: 1
A23: 4 | B23: Запасной материал для систем REHAU | D23: шт | E23: 1
G25: 1 | R25: 1
B26: Номенклатура | C26: Арт. | D26: Ед. | E26: Количество | F26: Цена за шт | M26: Номенклатура | N26: Арт. | O26: Ед. | P26: Количество | Q26: Цена за шт
A27: 1 | B27: 092 Шаровый кран латунный полнопр. 1" ВР, ручка-"бабочка", Tmax=150*C Itap Ideal 092 | C27: 092 1 | D27: шт. | E27: 2 | F27: 750 | G27: =F27*E27 -> 1500 | H27: 2022-06-06 | L27: 1 | M27: SVB-0002-000025 STOUT Кран шаровой полнопроходной, ВР/ВР, ручка бабочка 1 | O27: шт. | P27: 2 | Q27: 750 | R27: =Q27*P27 -> 1500 | S27: 2022-06-06
A28: 2 | B28: Гильза 16 PX PVDF надвижная RAUTITAN REHAU | C28: 160001 | D28: шт. | E28: 12 | F28: 86 | G28: =F28*E28 -> 1032 | H28: 2022-06-29 | L28: 2 | M28: SFA-0020-000016 STOUT Монтажная гильза 16 для труб из сшитого полиэтилена аксиальный | O28: шт. | P28: 12 | Q28: 47 | R28: =P28*Q28 -> 564 | S28: 2022-06-06 | T28: повышение цен на Стаут 11.05.22
A29: 3 | B29: Гильза 20 PX PVDF надвижная RAUTITAN REHAU | C29: 160002 | D29: шт | E29: 18 | F29: 113 | G29: 2034 | H29: 2022-06-29 | L29: 3 | M29: SFA-0020-000020 STOUT Монтажная гильза 20 для труб из сшитого полиэтилена аксиальный | O29: шт | P29: 18 | Q29: 50 | R29: =P29*Q29 -> 900 | S29: 2022-06-06
A30: 4 | B30: Монтажная гильза Rehau Rautitan 25 PX | C30: 160003 | D30: шт | E30: 2 | F30: 121 | G30: 242 | H30: 2022-06-29 | L30: 4 | M30: SFA-0020-000025 STOUT Монтажная гильза 25 для труб из сшитого полиэтилена аксиальный | O30: шт | P30: 2 | T30: трасса
A31: 5 | B31: Монтажная гильза Rehau Rautitan 32 PX | C31: 160004 | D31: шт | E31: 2 | I31: трасса | L31: 5 | M31: SFA-0020-000032 STOUT Монтажная гильза 32 для труб из сшитого полиэтилена аксиальный | O31: шт | P31: 18 | T31: трасса
A32: 6 | B32: Надвижная гильза RAUTITAN PX 32 | C32: 160004 | D32: шт | E32: 16 | I32: трасса | L32: 6 | M32: SFA-0001-003210 STOUT Переходник с наружной резьбой 32xR 1" для труб из сшитого полиэтилена аксиальный | O32: шт | P32: 5 | T32: трасса
A33: 7 | B33: Переходник RAUTITAN MX/RX. С наружной резьбой 32x1" | C33: 366060 | D33: шт | E33: 5 | I33: трасса | L33: 7 | M33: SFA-0001-002510 STOUT Переходник с наружной резьбой 25xR 1" для труб из сшитого полиэтилена аксиальный | O33: шт | P33: 1 | T33: трасса
A34: 8 | B34: Переходник Rehau Rautitan RX с наружной резьбой 25-R1-L22 | C34: 366058 | D34: м | E34: 1 | I34: трасса | L34: 8 | M34: SFA-0003-000016 STOUT Муфта соединительная равнопроходная 16 для труб из сшитого полиэтилена аксиальный | O34: шт | P34: 6 | Q34: 110 | R34: 660 | S34: 2022-06-06
A35: 9 | B35: Соединительная муфта Rehau Rautitan равнопроходная 16 PХ | D35: шт | E35: 6 | F35: 325 | G35: 1950 | H35: 2022-06-06 | L35: 9 | M35: SFA-0003-000020 STOUT Муфта соединительная равнопроходная 20 для труб из сшитого полиэтилена аксиальный | O35: шт | P35: 6 | Q35: 160 | R35: 960 | S35: 2022-06-06
A36: 10 | B36: Соединительная муфта Rehau Rautitan равнопроходная 20 PХ | C36: 160012 | D36: шт | E36: 6 | F36: 445 | G36: 2670 | H36: 2022-06-06 | L36: 10 | M36: EFXT018062SUPRK Энергофлекс Трубка СУПЕР ПРОТЕКТ - К 18/6 (2м) (в коробке 180м) | O36: шт | P36: 256 | Q36: =16*R25 -> 16 | R36: 4096 | S36: 2022-06-06
A37: 11 | B37: Теплоизоляция СУПЕР ПРОТЕКТ 18(6мм) Красный | D37: м | E37: 256 | F37: 18 | G37: 4608 | H37: 2022-06-06 | L37: 11 | M37: EFXT018062SUPRS Энергофлекс Трубка СУПЕР ПРОТЕКТ - С 18/6 (2м) (в коробке 180м) | O37: шт | P37: 256 | Q37: =16*R25 -> 16 | R37: 4096 | S37: 2022-06-06
A38: 12 | B38: Теплоизоляция СУПЕР ПРОТЕКТ 18(6мм) Синий | D38: м | E38: 256 | F38: 18 | G38: 4608 | H38: 2022-06-06 | L38: 12 | M38: EFXT035062SUPRK Энергофлекс Трубка СУПЕР ПРОТЕКТ - К 35/6 (2м) (в коробке 80м) | O38: шт | P38: 10 | T38: трасса
A39: 13 | B39: Теплоизоляция СУПЕР ПРОТЕКТ 35 (6) Красный | D39: м | E39: 9 | I39: трасса | L39: 13 | M39: EFXT035062SUPRS Энергофлекс Трубка СУПЕР ПРОТЕКТ - С 35/6 (2м) (в коробке 80м) | O39: шт | P39: 10 | T39: трасса
A40: 14 | B40: Теплоизоляция СУПЕР ПРОТЕКТ 35 (6) Синий | D40: м | E40: 9 | I40: трасса | L40: 14 | M40: SFA-0013-000020 STOUT Тройник равнопроходный 20x20x20 для труб из сшитого полиэтилена аксиальный | O40: шт | P40: 3 | Q40: 320 | R40: 960 | S40: 2022-06-06
A41: 15 | B41: Тройник 20 РХ надвижной REHAU | C41: 160032 | D41: шт | E41: 3 | F41: 739 | G41: 2217 | H41: 2022-04-12 | L41: 15 | M41: SPX-0001-001622 STOUT 16х2,2 (бухта 100 метров) PEX-a труба из сшитого полиэтилена с кислородным слоем, серая | O41: шт | P41: 510 | Q41: 88 | R41: 44880 | S41: 2022-06-06
A42: 16 | B42: ​Труба RAUTITAN ​Pink для систем отопления d16x2.2 (бухта 120м) | C42: 136042 | D42: м | E42: 512 | F42: 107 | G42: 54784 | H42: 2022-04-12 | L42: 16 | M42: SPX-0001-003244 STOUT 32х4,4 (бухта 50 метров) PEX-a труба из сшитого полиэтилена с кислородным слоем, серая | O42: шт | P42: 20 | Q42: 330 | R42: 6600 | S42: 2022-06-06 | T42: 2022-05-17
A43: 17 | B43: Труба RAUTITAN ​Pink для систем отопления d32x4.4 (бухта 50м) | C43: 136072 | D43: м | E43: 18 | F43: 523 | G43: 9414 | I43: трасса | L43: 17 | M43: SFT-0011-000001 STOUT Угольник НВ 1" | O43: шт | P43: 2 | T43: трасса
A44: 18 | B44: Угол 90* ВР-НР 1" латунь Стаут | D44: шт. | E44: 2 | I44: трасса | L44: 18 | M44: SFA-0007-000032 STOUT Угольник 90° 32 для труб из сшитого полиэтилена аксиальный | O44: шт | P44: 6 | T44: трасса
A45: 19 | B45: Угольник RAUTITAN PX 90* 32 | C45: 160024 | D45: шт | E45: 6 | I45: трасса | L45: 19 | M45: SFA-0032-002012 STOUT Угольник настенный с длинным нарезным патрубком 20-Rp 1/2" для труб из сшитого полиэтилена аксиальный | O45: шт | P45: 2 | Q45: 820 | R45: 1640 | S45: 2022-06-06
A46: 20 | B46: Угольник настенный (водорозетка) RAUTITAN MX Внутрення резьба (длинный) 20-Rp 1/2 | C46: 366106 | D46: шт | E46: 2 | F46: 825 | G46: 1650 | H46: 2022-06-06 | L46: 20
G47: =SUM(G27:G46) -> 86709 | H47: =G47/F19 -> 368.9744681 | R47: =SUM(R27:R46) -> 66856 | S47: =R47/F19 -> 284.493617
H48: за 1м2 | S48: за 1м2
B52: Расчет номенклатуры по узлам | L52: Расчет номенклатуры по узлам | V52: Расчет номенклатуры по узлам
B53: ТОЧКА КАНАЛИЗАЦИИ SINICON | L53: ТОЧКА КАНАЛИЗАЦИИ REXAU | V53: ТОЧКА КАНАЛИЗАЦИИ SINICON | X53: Не ИСПОЛЬЗУЕМ
B54: шумопоглащающие | V54: обычные
B55: Узел / Номенклатура | C55: Арт. | D55: Ед. | E55: Количество | F55: 16 | G55: ТОЧЕК | L55: Узел / Номенклатура | M55: Арт. | N55: Ед. | O55: Количество | P55: 16 | Q55: ТОЧЕК | V55: Узел / Номенклатура | W55: Арт. | X55: Ед. | Y55: Количество | Z55: 16 | AA55: ТОЧЕК
A56: 1 | B56: Труба 50*250 Комфорт | D56: шт | E56: 10 | K56: 1 | L56: Труба 50*250 Raupiano Plus | N56: шт | O56: 10 | U56: 1 | V56: Труба 50*250 | X56: шт | Y56: 10
A57: 2 | B57: Труба 50*500 Комфорт | D57: шт | E57: 10 | K57: 2 | L57: Труба 50*500 Raupiano Plus | N57: шт | O57: 10 | U57: 2 | V57: Труба 50*500 | X57: шт | Y57: 10
A58: 3 | B58: Труба 50*1000 Комфорт | D58: шт | E58: 5 | K58: 3 | L58: Труба 50*1000 Raupiano Plus | N58: шт | O58: 5 | U58: 3 | V58: Труба 50*1000 | X58: шт | Y58: 5
A59: 4 | B59: Труба 50*2000 Комфорт | D59: шт | E59: 9 | K59: 4 | L59: Труба 50*2000 Raupiano Plus | N59: шт | O59: 9 | U59: 4 | V59: Труба 50*2000 | X59: шт | Y59: 9
A60: 5 | B60: Труба 110*250 Комфорт | D60: шт | E60: 6 | K60: 5 | L60: Труба 110*250 Raupiano Plus | N60: шт | O60: 6 | U60: 5 | V60: Труба 110*250 | X60: шт | Y60: 6
A61: 6 | B61: Труба 110*500 Комфорт | D61: шт | E61: 6 | K61: 6 | L61: Труба 110*500 Raupiano Plus | N61: шт | O61: 6 | U61: 6 | V61: Труба 110*500 | X61: шт | Y61: 6
A62: 7 | B62: Труба 110*1000 Комфорт | D62: шт | E62: 4 | K62: 7 | L62: Труба 110*1000 Raupiano Plus | N62: шт | O62: 4 | U62: 7 | V62: Труба 110*1000 | X62: шт | Y62: 4
A63: 8 | B63: Труба 110*2000 Комфорт | D63: шт | E63: 7 | K63: 8 | L63: Труба 110*2000 Raupiano Plus | N63: шт | O63: 7 | U63: 8 | V63: Труба 110*2000 | X63: шт | Y63: 7
A64: 9 | B64: Утеплитель 110 | D64: шт | E64: 14 | K64: 9 | L64: Утеплитель 110 | N64: шт | O64: 14 | U64: 9 | V64: Утеплитель 110 | X64: шт | Y64: 14
A65: 10 | B65: Утеплитель 50 | D65: шт | E65: 10 | K65: 10 | L65: Утеплитель 50 | N65: шт | O65: 10 | U65: 10 | V65: Утеплитель 50 | X65: шт | Y65: 10
A66: 11 | B66: отвод 50*45 комфорт | D66: шт | E66: 26 | K66: 11 | L66: отвод 50*45 Raupiano Plus | N66: шт | O66: 26 | U66: 11 | V66: отвод 50*45 | X66: шт | Y66: 26
A67: 12 | B67: отвод 50*90 комфорт | D67: шт | E67: 11 | K67: 12 | L67: отвод 50*90 Raupiano Plus | N67: шт | O67: 11 | U67: 12 | V67: отвод 50*90 | X67: шт | Y67: 11
A68: 13 | B68: отвод 110*45 комфорт | D68: шт | E68: 6 | K68: 13 | L68: отвод 110*45 Raupiano Plus | N68: шт | O68: 6 | U68: 13 | V68: отвод 110*45 | X68: шт | Y68: 6
A69: 14 | B69: отвод 110*90 комфорт | D69: шт | E69: 2 | K69: 14 | L69: отвод 110*90 | N69: шт | O69: 2 | U69: 14 | V69: отвод 110*90 | X69: шт | Y69: 2
A70: 15 | B70: Ревизия с крышкой Ø110 Комфорт | C70: 516007 | D70: шт | E70: 1 | K70: 15 | L70: Ревизия с крышкой Ø110 | N70: шт | O70: 1 | U70: 15 | V70: Ревизия с крышкой Ø110 | W70: 516007 | X70: шт | Y70: 1
A71: 16 | B71: Компенсационный патрубок учетверенной длины Ø110 Синикон Комфорт | C71: 531011 | D71: шт | E71: 2 | K71: 16 | L71: Компенсационный патрубок учетверенной длины Ø110 | N71: шт | O71: 2 | U71: 16 | V71: Компенсационный патрубок учетверенной длины Ø110 Синикон | W71: 531011 | X71: шт | Y71: 2
A72: 17 | B72: Аэратор канализационный d50 серый | D72: шт. | E72: 1 | K72: 17 | L72: Аэратор канализационный d50 серый | N72: шт. | O72: 1 | U72: 17 | V72: Аэратор канализационный d50 серый | X72: шт. | Y72: 1
A73: 18 | B73: Тройник D 110x110x87º Синикон Комфорт | C73: 508029 | D73: шт | E73: 1 | K73: 18 | L73: Тройник D 110x110x87º | N73: шт | O73: 1 | U73: 18 | V73: Тройник D 110x110x87º Синикон | W73: 508029 | X73: шт | Y73: 1
A74: 19 | B74: Тройник D 110x50x87º Комфорт | D74: шт | E74: 1 | K74: 19 | L74: Тройник D 110x50x87º Raupiano Plus | N74: шт | O74: 1 | U74: 19 | V74: Тройник D 110x50x87º | X74: шт | Y74: 1
A75: 20 | B75: Тройник 110*50*45 Комфорт | C75: 510031 | D75: шт | E75: 1 | K75: 20 | L75: Тройник 110*50*45 Raupiano Plus | N75: шт | O75: 1 | U75: 20 | V75: Тройник 110*50*45 | W75: 510031 | X75: шт | Y75: 1
A76: 21 | B76: Тройник D 50x50x45º Синикон Комфорт | C76: 508013 | D76: шт | E76: 1 | K76: 21 | L76: Тройник D 50x50x45º Raupiano Plus | N76: шт | O76: 1 | U76: 21 | V76: Тройник D 50x50x45º Синикон | W76: 508013 | X76: шт | Y76: 1
A77: 22 | B77: Переход эксцентр. Ø110*50 Синикон Комфорт | C77: 514009 | D77: шт | E77: 1 | K77: 22 | L77: Переход эксцентр. Ø110*50 Raupiano Plus | N77: шт | O77: 1 | U77: 22 | V77: Переход эксцентр. Ø110*50 Синикон | W77: 514009 | X77: шт | Y77: 1
A78: 23 | B78: Отвод D 110х15 Синикон Комфорт | C78: 504049 | D78: шт | E78: 1 | K78: 23 | L78: Отвод D 110х15 Raupiano Plus | N78: шт | O78: 1 | U78: 23 | V78: Отвод D 110х15 Синикон | W78: 504049 | X78: шт | Y78: 1
A79: 24 | B79: Отвод D 110х30 Синикон Комфорт | C79: 504051 | D79: шт | E79: 1 | K79: 24 | L79: Отвод D 110х30 Raupiano Plus | N79: шт | O79: 1 | U79: 24 | V79: Отвод D 110х30 Синикон | W79: 504051 | X79: шт | Y79: 1
A80: 25 | B80: Отвод D 050х15 Синикон Комфорт | C80: 504025 | D80: шт | E80: 1 | K80: 25 | L80: Отвод D 050х15 Raupiano Plus | N80: шт | O80: 1 | U80: 25 | V80: Отвод D 050х15 Синикон | W80: 504025 | X80: шт | Y80: 1
A81: 26 | B81: Заглушка ПП Ø50 Синикон Комфорт | C81: 524003 | D81: шт | E81: 1 | K81: 26 | L81: Заглушка ПП Ø50 Raupiano Plus | N81: шт | O81: 1 | U81: 26 | V81: Заглушка ПП Ø50 Синикон | W81: 524003 | X81: шт | Y81: 1
A82: 27 | B82: Заглушка ПП Ø110 Синикон Комфорт | C82: 524007 | D82: шт | E82: 1 | K82: 27 | L82: Заглушка ПП Ø110 Raupiano Plus | N82: шт | O82: 1 | U82: 27 | V82: Заглушка ПП Ø110 Синикон | W82: 524007 | X82: шт | Y82: 1
Q84: 1
B85: Номенклатура | C85: Арт. | D85: Ед. | E85: Количество | F85: Цена | G85: Стоимость | L85: Номенклатура | M85: Арт. | N85: Ед. | O85: Количество | P85: Цена | Q85: Стоимость | V85: Номенклатура | W85: Арт. | X85: Ед. | Y85: Количество | Z85: Цена | AA85: Стоимость
A86: 1 | B86: Аэратор канализационный d50 серый | D86: шт. | E86: 1 | F86: 205 | G86: =F86*E86 -> 205 | H86: 2024-01-10 | I86: 188.77 | K86: 1 | L86: Аэратор канализационный d50 серый | N86: шт. | O86: 1 | P86: 205 | Q86: =P86*O86 -> 205 | R86: 2023-11-30 | U86: 1 | V86: Аэратор канализационный d50 серый | X86: шт. | Y86: 1 | Z86: 123 | AA86: =Z86*Y86 -> 123
A87: 2 | K87: 2 | L87: Винт-шуруп М10*100 мм (шпилька сантехническая) | N87: шт. | O87: 41 | P87: 32 | Q87: 1312 | R87: 2022-06-06 | U87: 2 | V87: Винт-шуруп М10*100 мм (шпилька сантехническая) | X87: шт. | Y87: 41 | AA87: 0
A88: 3 | K88: 3 | L88: Винт-шуруп М8*80 мм (шпилька сантехническая) | N88: шт. | O88: 64 | P88: 15 | Q88: 960 | R88: 2022-06-06 | U88: 3 | V88: Винт-шуруп М8*80 мм (шпилька сантехническая) | X88: шт. | Y88: 64 | AA88: 0
A89: 4 | B89: Гайка оцинк. (муфта) М10 (DIN6334) | C89: 1730 | D89: шт | E89: 13 | F89: 23 | G89: 299 | H89: 2024-01-10 | K89: 4 | L89: Гайка оцинк. (муфта) М10 (DIN6334) | M89: 1730 | N89: шт | O89: 13 | P89: 23 | Q89: 299 | R89: 2023-11-30 | U89: 4 | V89: Гайка оцинк. (муфта) М10 (DIN6334) | W89: 1730 | X89: шт | Y89: 13 | Z89: 2.64 | AA89: 34.32
A90: 5 | B90: Гайка оцинк. (муфта) М8 | D90: шт | E90: 9 | F90: 17 | G90: 153 | H90: 2024-01-10 | K90: 5 | L90: Гайка оцинк. (муфта) М8 | N90: шт | O90: 9 | P90: 17 | Q90: 153 | R90: 2023-11-30 | U90: 5 | V90: Гайка оцинк. (муфта) М8 | X90: шт | Y90: 9 | Z90: 3.65 | AA90: 32.85
A91: 6 | B91: Дюбель S12x60 | C91: D-S12x60 | D91: шт. | E91: 41 | F91: 16 | G91: 656 | H91: 2024-01-10 | I91: 153.25 | K91: 6 | L91: Дюбель S12x60 | M91: D-S12x60 | N91: шт. | O91: 41 | P91: 16 | Q91: 656 | R91: 2023-11-30 | U91: 6 | V91: Дюбель S12x60 | W91: D-S12x60 | X91: шт. | Y91: 41 | Z91: 0.7 | AA91: 28.7
A92: 7 | B92: Дюбель S10x50 | C92: D-S10x50 | D92: шт. | E92: 64 | F92: 9.77 | G92: 625.28 | H92: 2024-01-10 | I92: 180.5 | K92: 7 | L92: Дюбель S10x50 | M92: D-S10x50 | N92: шт. | O92: 64 | P92: 10 | Q92: 640 | R92: 2023-11-30 | U92: 7 | V92: Дюбель S10x50 | W92: D-S10x50 | X92: шт. | Y92: 64 | Z92: 4.75 | AA92: 304
A93: 8 | B93: Заглушка ПП Ø110 Синикон Комфорт | C93: 524007 | D93: шт | E93: 3 | F93: 47 | G93: 141 | H93: 2024-01-10 | K93: 8 | L93: Заглушка ПП Ø110 Raupiano Plus | M93: 121474-002 | N93: шт | O93: 3 | P93: 182 | Q93: 546 | R93: 2022-06-06 | U93: 8 | V93: Заглушка ПП Ø110 Синикон | W93: 524007 | X93: шт | Y93: 3 | Z93: 28 | AA93: 84
A94: 9 | B94: Заглушка ПП Ø50 Синикон Комфорт | C94: 524003 | D94: шт | E94: 12 | F94: 27 | G94: 324 | H94: 2024-01-10 | K94: 9 | L94: Заглушка ПП Ø50 Raupiano Plus | M94: 121454-002 | N94: шт | O94: 12 | P94: 79 | Q94: 948 | R94: 2022-06-06 | U94: 9 | V94: Заглушка ПП Ø50 Синикон | W94: 524003 | X94: шт | Y94: 12 | Z94: 16 | AA94: 192
A95: 10 | B95: Компенсационный патрубок учетверенной длины Ø110 Синикон Комфорт | C95: 531011 | D95: шт | E95: 2 | F95: 227.53 | G95: 455.06 | H95: 2024-01-10 | K95: 10 | L95: Компенсационный патрубок 110 Raupiano Plus | M95: 121594-001 | N95: шт | O95: 2 | P95: 1144 | Q95: 2288 | R95: 2022-06-06 | U95: 10 | V95: Компенсационный патрубок учетверенной длины Ø110 Синикон | W95: 531011 | X95: шт | Y95: 2 | Z95: 151 | AA95: 302
A96: 11 | B96: Отвод D 050х15 Синикон Комфорт | C96: 504025 | D96: шт | E96: 6 | F96: 52.73 | G96: 316.38 | H96: 2024-01-10 | I96: 0 | K96: 11 | L96: Отвод D 050х15 Raupiano Plus | N96: шт | O96: 6 | P96: 158 | Q96: 948 | R96: 2022-06-06 | U96: 11 | V96: Отвод D 050х15 Синикон | W96: 504025 | X96: шт | Y96: 6 | Z96: 27 | AA96: 162
A97: 12 | B97: Отвод D 110х15 Синикон Комфорт | C97: 504049 | D97: шт | E97: 2 | F97: 140.62 | G97: 281.24 | H97: 2024-01-10 | I97: 0 | K97: 12 | L97: Отвод D 110х15 Raupiano Plus | N97: шт | O97: 2 | P97: 476 | Q97: 952 | R97: 2022-06-06 | U97: 12 | V97: Отвод D 110х15 Синикон | W97: 504049 | X97: шт | Y97: 2 | Z97: 72 | AA97: 144
A98: 13 | B98: Отвод D 110х30 Синикон Комфорт | C98: 504051 | D98: шт | E98: 2 | F98: 140.62 | G98: 281.24 | H98: 2024-01-10 | I98: 0 | K98: 13 | L98: Отвод D 110х30 Raupiano Plus | N98: шт | O98: 2 | P98: 528 | Q98: 1056 | R98: 2022-06-06 | U98: 13 | V98: Отвод D 110х30 Синикон | W98: 504051 | X98: шт | Y98: 2 | Z98: 45 | AA98: 90
A99: 14 | B99: Отвод ПП Ø110*45 Синикон Комфорт | C99: 504053 | D99: шт | E99: 9 | F99: 127.92 | G99: 1151.28 | H99: 2024-01-10 | K99: 14 | L99: Отвод ПП Ø110*45 Raupiano Plus | M99: 123444-001 | N99: шт | O99: 9 | P99: 581 | Q99: 5229 | R99: 2022-06-06 | U99: 14 | V99: Отвод ПП Ø110*45 Синикон | W99: 504053 | X99: шт | Y99: 9 | Z99: 76 | AA99: 684
A100: 15 | B100: Отвод ПП Ø110*87 Синикон Комфорт | C100: 504059 | D100: шт | E100: 3 | F100: 127.92 | G100: 383.76 | H100: 2024-01-10 | K100: 15 | L100: Отвод ПП Ø110*87 Raupiano Plus | M100: 123464-001 | N100: шт | O100: 3 | P100: 581 | Q100: 1743 | R100: 2022-06-06 | U100: 15 | V100: Отвод ПП Ø110*87 Синикон | W100: 504059 | X100: шт | Y100: 3 | Z100: 76 | AA100: 228
A101: 16 | B101: Отвод ПП Ø50*45 Синикон Комфорт | C101: 504029 | D101: шт | E101: 39 | F101: 41.99 | G101: 1637.61 | H101: 2024-01-10 | K101: 16 | L101: Отвод ПП Ø50*45 Raupiano Plus | M101: 121114-001 | N101: шт | O101: 39 | P101: 161 | Q101: 6279 | R101: 2022-06-06 | U101: 16 | V101: Отвод ПП Ø50*45 Синикон | W101: 504029 | X101: шт | Y101: 39 | Z101: 25 | AA101: 975
A102: 17 | B102: Отвод ПП Ø50*87 Синикон Комфорт | C102: 504035 | D102: шт | E102: 13 | F102: 41.99 | G102: 545.87 | H102: 2024-01-10 | K102: 17 | L102: Отвод ПП Ø50*87 Raupiano Plus | M102: 121134-001 | N102: шт | O102: 13 | P102: 161 | Q102: 2093 | R102: 2022-06-06 | U102: 17 | V102: Отвод ПП Ø50*87 Синикон | W102: 504035 | X102: шт | Y102: 13 | Z102: 25 | AA102: 325
